{"text_format":"1","workbook":"xlsx","n_sheets":7,"sheets":["Modification Proposals Register","Legal Text Rotation","Lookups","Category KPI","KPI","Annual Report KPI","CACoP Reporting Metrics - Ofgem"],"not_rendered":{"charts":17,"images":0,"macros":1,"external_links":0,"defined_names":11,"comments":2,"pivot_tables":0},"unopened":[],"bounds":{"document_bytes":16777216,"sheet_cells":100000,"rows_first":2000,"rows_last":500,"rows_between":2000,"halvings":0,"cell_chars":16384,"cell_head_chars":4096},"cells_cut":0,"cells_raw":0,"read":"whole","date_system":"1900"}

{"sheet":"Modification Proposals Register","index":0,"n_rows":506,"n_cols":31,"rows_kept":506,"cut":false,"hidden":false,"merged":[[1,0,1,9],[0,0,0,2]]}
[null,null,null,null,null,null,null,null,null,null,null,"*Key Dates are normally an end-date, where shown red this is date sent to Ofgem"]
["Modification Reference Suffix:  A - Alternate,  S - Self Governance,  FT - Fast Track Self Governance,  V - Varied"]
["Mod Ref",null,"Title","Proposing Organisation","Date Raised","Live/ Closed","Category","Other Codes Impacted","Workgroup","Current Status","Next Stage","Key date*","SME",null,"Legal Text Provider","Text Rotation","Text Requested","Text Due","Text Delivered","Std Met","Panel Decision Date","Ofgem Decision Date","ACS",null,null,null,null,null,"Keyword1","Keyword2","Keyword3"]
["0870",null,"Amendments to Wobbe Index and Calorific Value Lower Limits at NTS System National Transmision System (NTS) Entry Points","National Gas Transmission","2024-03-11",{"$f":"VLOOKUP($J4,Lookups!$A$3:$C$20,3,FALSE)","v":"Live"},"Modification",null,"Transmission","Allocated to Workgroup",{"$f":"LOOKUP(J4,Lookups!$A$3:$A$20,Lookups!$B$3:$B$20)","v":"Report to Panel"},"2024-09-19",null,null,"National Gas Transmission","n/a"]
["0869",null,"Revision to the Calculation Methodology of the Security Amount for Planning and Advanced Reservation of Capacity Agreement (PARCA)","National Gas Transmission","2024-03-11",{"$f":"VLOOKUP($J5,Lookups!$A$3:$C$20,3,FALSE)","v":"Live"},"Modification",null,"NTSCMF","Allocated to Workgroup",{"$f":"LOOKUP(J5,Lookups!$A$3:$A$20,Lookups!$B$3:$B$20)","v":"Report to Panel"},"2024-06-29",null,null,"National Gas Transmission","n/a"]
["0868",null,"Change to the current Allocation of Unidentified Gas Statement  frequency","SEFE Energy Limited","2024-02-07",{"$f":"VLOOKUP($J6,Lookups!$A$3:$C$20,3,FALSE)","v":"Live"},"Modification",null,"Other","Allocated to Workgroup",{"$f":"LOOKUP(J6,Lookups!$A$3:$A$20,Lookups!$B$3:$B$20)","v":"Report to Panel"},"2024-08-15",null,null,"Cadent",8]
["0867",null,"Gas Demand Side Response (DSR) Aggregation Arrangements ","National Gas Transmission","2024-01-08",{"$f":"VLOOKUP($J7,Lookups!$A$3:$C$20,3,FALSE)","v":"Live"},"Modification",null,"Transmission","Allocated to Workgroup",{"$f":"LOOKUP(J7,Lookups!$A$3:$A$20,Lookups!$B$3:$B$20)","v":"Report to Panel"},"2024-09-19",null,null,"National Gas Transmission","n/a"]
["0866","S","Amendments to Demand Side Response (DSR) Arrangements ","National Gas Transmission","2024-01-08",{"$f":"VLOOKUP($J8,Lookups!$A$3:$C$20,3,FALSE)","v":"Live"},"Self-Governance",null,"Transmission","Allocated to Workgroup",{"$f":"LOOKUP(J8,Lookups!$A$3:$A$20,Lookups!$B$3:$B$20)","v":"Report to Panel"},"2024-05-16",null,null,"National Gas Transmission","n/a","2024-05-16"]
["0865","S","Permitting DNOs to charge Shippers negative Supplier of Last Resort (SoLR) unit rates","Wales & West Utilities","2023-12-05",{"$f":"VLOOKUP($J9,Lookups!$A$3:$C$20,3,FALSE)","v":"Closed"},"Self-Governance",null,"Distribution","Implemented",{"$f":"LOOKUP(J9,Lookups!$A$3:$A$20,Lookups!$B$3:$B$20)","v":"Effective date"},"2024-03-08",null,null,"Wales & West Utilities","n/a"]
["0864","S","Update of UNC Code Communication Methods","National Gas Transmission","2023-11-03",{"$f":"VLOOKUP($J10,Lookups!$A$3:$C$20,3,FALSE)","v":"Live"},"Self-Governance",null,"None","Allocated to Workgroup",{"$f":"LOOKUP(J10,Lookups!$A$3:$A$20,Lookups!$B$3:$B$20)","v":"Report to Panel"},"2024-06-20",null,null,"National Gas Transmission","n/a","2024-06-20"]
["0863","S","Erroneous Transfers Exception Process","SEFE Energy Limited","2023-10-26",{"$f":"VLOOKUP($J11,Lookups!$A$3:$C$20,3,FALSE)","v":"Live"},"Self-Governance",null,"None","Allocated to Workgroup",{"$f":"LOOKUP(J11,Lookups!$A$3:$A$20,Lookups!$B$3:$B$20)","v":"Report to Panel"},"2024-05-16",null,null,"Wales & West Utilities",7]
["0862",null,"Amendments to the current Unidentified Gas Reconciliation Period arrangements ","SEFE Energy Limited","2023-10-26",{"$f":"VLOOKUP($J12,Lookups!$A$3:$C$20,3,FALSE)","v":"Live"},"Modification",null,"Distribution","Allocated to Workgroup",{"$f":"LOOKUP(J12,Lookups!$A$3:$A$20,Lookups!$B$3:$B$20)","v":"Report to Panel"},"2024-07-18",null,null,"Cadent",6,"2024-03-21","2024-04-15"]
["0861","S","Clarification of Provisions Regarding Utilisation of the System Without Holding System Capacity","National Gas Transmission","2023-10-24",{"$f":"VLOOKUP($J13,Lookups!$A$3:$C$20,3,FALSE)","v":"Live"},"Self-Governance",null,"None","Awaiting Implementation",{"$f":"LOOKUP(J13,Lookups!$A$3:$A$20,Lookups!$B$3:$B$20)","v":"Implemented"},"2024-04-16",null,null,"National Gas Transmission","n/a","2024-02-15",null,"2023-10-24"]
["0860","S","Clarify impact of exit capacity holdings on offtake rights","RWE Trading GmbH","2023-10-05",{"$f":"VLOOKUP($J14,Lookups!$A$3:$C$20,3,FALSE)","v":"Live"},"Self-Governance",null,"None","Allocated to Workgroup",{"$f":"LOOKUP(J14,Lookups!$A$3:$A$20,Lookups!$B$3:$B$20)","v":"Report to Panel"},"2024-05-16",null,null,"Scotia Gas Networks",5,"2024-05-16"]
["0859",null,"Reintroduction of the enhanced pressure service and increased MNEPOR for BBLC (as introduced by UNC0814)","National Gas Transmission","2023-10-09",{"$f":"VLOOKUP($J15,Lookups!$A$3:$C$20,3,FALSE)","v":"Live"},"Modification",null,"Transmission","Awaiting Implementation",{"$f":"LOOKUP(J15,Lookups!$A$3:$A$20,Lookups!$B$3:$B$20)","v":"Implemented"},"TBC",null,null,"National Gas Transmission","n/a","2023-12-14","2024-01-09"]
["0858","S","Amendment to Network Entry Provision at Shell St Fergus Terminal","Shell","2023-09-13",{"$f":"VLOOKUP($J16,Lookups!$A$3:$C$20,3,FALSE)","v":"Closed"},"Modification",null,"None","Implemented",{"$f":"LOOKUP(J16,Lookups!$A$3:$A$20,Lookups!$B$3:$B$20)","v":"Effective date"},"2023-12-08",null,null,"National Gas Transmission","n/a","2023-09-21","2023-10-12",null,{"$f":"IF(ISBLANK(S16),\" \",IF(S16<=R16,\"Y\",\"N\"))","v":" "}]
["0857",null,"Revision to the Determination of Non-Transmission Services Gas Year Target Revenue","National Gas Transmission","2023-09-13",{"$f":"VLOOKUP($J17,Lookups!$A$3:$C$20,3,FALSE)","v":"Live"},"Modification",null,"NTSCMF","Panel recommended implementation",{"$f":"LOOKUP(J17,Lookups!$A$3:$A$20,Lookups!$B$3:$B$20)","v":"Ofgem decision"},"2024-02-15",null,null,"National Gas Transmission","n/a","2023-12-14","2024-01-09"]
["0856",null,"Introduction of Trials for Non-Daily Metered (NDM) Demand Side Response (DSR)","National Gas Transmission","2023-09-13",{"$f":"VLOOKUP($J18,Lookups!$A$3:$C$20,3,FALSE)","v":"Live"},"Modification",null,"None","Awaiting Implementation","Effective date","TBC",null,null,"National Gas Transmission","n/a","2023-09-21","2023-10-12","2023-10-12",{"$f":"IF(ISBLANK(S18),\" \",IF(S18<=R18,\"Y\",\"N\"))","v":"Y"},null,"2024-03-19"]
["0855",null,"Settlement Adjustments for Supply Meter Points impacted by the Central Switching System P1 Incident ","SEFE Energy Limited","2023-08-08",{"$f":"VLOOKUP($J19,Lookups!$A$3:$C$20,3,FALSE)","v":"Live"},"Modification","Distribution","None","Awaiting Implementation",{"$f":"LOOKUP(J19,Lookups!$A$3:$A$20,Lookups!$B$3:$B$20)","v":"Implemented"},"TBC",null,null,"Cadent",4,"2023-08-17","2023-09-08"]
["0854",null,"Revision of Virtual Last Resort User and Contingent Procurement of Supplier Demand Event Triggers","National Gas Transmission","2023-08-04",{"$f":"VLOOKUP($J20,Lookups!$A$3:$C$20,3,FALSE)","v":"Live"},"Modification",null,"Transmission","Panel recommended implementation",{"$f":"LOOKUP(J20,Lookups!$A$3:$A$20,Lookups!$B$3:$B$20)","v":"Ofgem decision"},"2024-03-21",null,null,"National Gas Transmission","n/a","2023-12-14","2024-01-09"]
["0853","S","CDSP permissions to facilitate implementation of UNC0701","Northern Gas Networks","2023-07-27",{"$f":"VLOOKUP($J21,Lookups!$A$3:$C$20,3,FALSE)","v":"Closed"},"Self-Governance",null,"Distribution","Implemented",{"$f":"LOOKUP(J21,Lookups!$A$3:$A$20,Lookups!$B$3:$B$20)","v":"Effective date"},"2023-11-04",null,null,"Northern Gas Networks","n/a","2023-08-17","2023-09-08"]
["0852",null,"Shipper notification in relation to option exercise for Customer Demand Side Response   ","SEFE Energy Limited","2023-07-25",{"$f":"VLOOKUP($J22,Lookups!$A$3:$C$20,3,FALSE)","v":"Live"},"Modification",null,"Transmission","Panel recommended implementation",{"$f":"LOOKUP(J22,Lookups!$A$3:$A$20,Lookups!$B$3:$B$20)","v":"Ofgem decision"},"2024-03-21",null,null,"National Gas Transmission","n/a ","2023-12-14","2024-01-09"]
["0851","R","Extending the Annually Read PC4 Supply Meter Point (SMP) read submission window","OVO Energy","2023-07-10",{"$f":"VLOOKUP($J23,Lookups!$A$3:$C$20,3,FALSE)","v":"Live"},"Request",null,"Distribution","Allocated to Workgroup",{"$f":"LOOKUP(J23,Lookups!$A$3:$A$20,Lookups!$B$3:$B$20)","v":"Report to Panel"},"2024-07-18",null,null,"N/A - Request","n/a "]
["0850",null,"Amendments to Allocation of Unidentified Gas Expert (AUGE) arrangements to introduce a new Residual Upstream Contributor","SEFE Energy Limited","2023-07-07",{"$f":"VLOOKUP($J24,Lookups!$A$3:$C$20,3,FALSE)","v":"Closed"},"Modification",null,"Distribution","Withdrawn",{"$f":"LOOKUP(J24,Lookups!$A$3:$A$20,Lookups!$B$3:$B$20)","v":"End of process"},"2023-12-11",null,null,"Cadent",2]
["0849","R","Commercial Framework Review to Enable Hydrogen Blending","National Gas Transmission","2023-05-09",{"$f":"VLOOKUP($J25,Lookups!$A$3:$C$20,3,FALSE)","v":"Live"},"Request",null,"Other","Allocated to Workgroup",{"$f":"LOOKUP(J25,Lookups!$A$3:$A$20,Lookups!$B$3:$B$20)","v":"Report to Panel"},"2024-09-19",null,null,"National Gas Transmission","n/a ",null,null,null,null,null,null,null,{"$f":"IF(AND(F26=\"Live\",K26=\"Ofgem decision\"),\"Yes\",\"No\")","v":"No"},null,null,null,null,"hydrogen","framework","blending"]
["0848","S","Alignment of Entry and Exit Capacity Constraint Management Provisions","National Gas Transmission","2023-05-09",{"$f":"VLOOKUP($J26,Lookups!$A$3:$C$20,3,FALSE)","v":"Closed"},"Self-Governance",null,"Transmission","Implemented",{"$f":"LOOKUP(J26,Lookups!$A$3:$A$20,Lookups!$B$3:$B$20)","v":"Effective date"},"2023-10-13",null,null,"National Gas Transmission","n/a","2023-07-21","2023-08-11",null,null,null,null,null,"No",null,null,null,null,"exit","entry","capacity"]
["0847",null,"Introduction of a Minimum General Non-Transmission Services Charge","National Gas Transmission","2023-05-05","Closed","Modification",null,"NTSCMF","Implemented",{"$f":"LOOKUP(J27,Lookups!$A$3:$A$20,Lookups!$B$3:$B$20)","v":"Effective date"},"2023-12-19",null,null,"National Gas Transmission","n/a","2023-07-21","2023-08-11",null,null,null,"2023-11-22",null,"No",null,null,null,null,"charge"]
["0846",null,"Use of Entry Capacity Holdings at Easington at the Rough Storage ASEP in Winter 2023/2024","Centrica","2023-05-05",{"$f":"VLOOKUP($J28,Lookups!$A$3:$C$20,3,FALSE)","v":"Closed"},"Modification",null,"Transmission","Implemented",{"$f":"LOOKUP(J28,Lookups!$A$3:$A$20,Lookups!$B$3:$B$20)","v":"Effective date"},"2023-09-25",null,null,"National Gas Transmission","n/a","2023-07-21","2023-08-11","29/06/23 (deeded request) ",null,null,null,null,"No",null,null,null,null,"entry","capacity","rough"]
["0845",null,"Enhancements to Demand Side Response (DSR) Arrangements including a D-5 Product","National Gas Transmission","2023-04-12",{"$f":"VLOOKUP($J29,Lookups!$A$3:$C$20,3,FALSE)","v":"Closed"},"Modification",null,"Transmission","Implemented",{"$f":"LOOKUP(J29,Lookups!$A$3:$A$20,Lookups!$B$3:$B$20)","v":"Effective date"},"2023-08-07",null,null,"National Gas Transmission","n/a","2023-05-18","2023-06-09",null,null,null,null,null,"No",null,null,null,null,"demand","D-5","product"]
["0844",null,"Enabling Direct Contractual Arrangements with Consumers for Demand Side Response","National Gas Transmission","2023-04-12",{"$f":"VLOOKUP($J30,Lookups!$A$3:$C$20,3,FALSE)","v":"Closed"},"Modification",null,"Transmission","Implemented",{"$f":"LOOKUP(J30,Lookups!$A$3:$A$20,Lookups!$B$3:$B$20)","v":"Effective date"},"2023-08-07",null,null,"National Gas Transmission","n/a","2023-05-18","2023-06-09",null,null,null,null,null,"No",null,null,null,null,"demand","consumers","product"]
["0843",null,"Establishing the Independent Shrinkage Charge and the Independent Shrinkage Expert","OVO Energy","2023-04-06",{"$f":"VLOOKUP($J31,Lookups!$A$3:$C$20,3,FALSE)","v":"Live"},"Modification",null,"Distribution","Allocated to Workgroup",{"$f":"LOOKUP(J31,Lookups!$A$3:$A$20,Lookups!$B$3:$B$20)","v":"Report to Panel"},"2024-07-18",null,null,"Scotia Gas Networks",1,null,null,null,null,null,null,null,"Yes",null,null,null,null,"shrinkage"]
["0842",null,"Gas Entry onto the Total system via an Independent Gas Transporter","SGN","2023-03-29",{"$f":"VLOOKUP($J32,Lookups!$A$3:$C$20,3,FALSE)","v":"Live"},"Modification",null,"Distribution","Panel recommended implementation",{"$f":"LOOKUP(J32,Lookups!$A$3:$A$20,Lookups!$B$3:$B$20)","v":"Ofgem decision"},"2024-02-15",null,null,"Scotia Gas Networks","n/a","2023-11-16","2023-12-07","2023-11-21",{"$f":"IF(ISBLANK(S32),\" \",IF(S32<=R32,\"Y\",\"N\"))","v":"Y"},null,null,null,{"$f":"IF(AND(F34=\"Live\",K34=\"Ofgem decision\"),\"Yes\",\"No\")","v":"Yes"},null,null,null,null,"entry","IGT"]
["0841","A","Introduction of cost efficiency and transparency requirements for the CDSP Budget","Northern Gas Networks","2023-09-27",{"$f":"VLOOKUP($J33,Lookups!$A$3:$C$20,3,FALSE)","v":"Closed"},"Modification",null,"Governance","Withdrawn",{"$f":"LOOKUP(J33,Lookups!$A$3:$A$20,Lookups!$B$3:$B$20)","v":"End of process"},"2024-01-26",null,null,"Northern Gas Networks","n/a"]
["0841",null,"Introduction of cost efficiency and transparency requirements for the CDSP Budget","Centrica","2023-03-06",{"$f":"VLOOKUP($J34,Lookups!$A$3:$C$20,3,FALSE)","v":"Live"},"Modification",null,"Governance","Panel recommended implementation",{"$f":"LOOKUP(J34,Lookups!$A$3:$A$20,Lookups!$B$3:$B$20)","v":"Ofgem decision"},"2024-03-21",null,null,"Cadent",8,"2024-02-15",null,"2024-02-15","Y",null,null,null,"No",null,null,null,null,"CDSP","budget","cost"]
["0840",null,"Equalisation of prepayment and non-prepayment AUG factors","Centrica","2023-03-06",{"$f":"VLOOKUP($J35,Lookups!$A$3:$C$20,3,FALSE)","v":"Closed"},"Urgent",null,"None","Implemented",{"$f":"LOOKUP(J35,Lookups!$A$3:$A$20,Lookups!$B$3:$B$20)","v":"Effective date"},"2023-10-01",null,null,"Wales & West Utilities",7,null,"2023-03-07","2023-03-07",{"$f":"IF(ISBLANK(S35),\" \",IF(S35<=R35,\"Y\",\"N\"))","v":"Y"},null,null,null,"No",null,null,null,null,"AUG","prepayment","factor"]
["0839",null,"Revision of the Modification Panel Membership Cessation Provisions ","National Gas Transmission","2023-03-02","Closed","Modification",null,"Governance","Implemented",{"$f":"LOOKUP(J36,Lookups!$A$3:$A$20,Lookups!$B$3:$B$20)","v":"Effective date"},"2024-01-17",null,null,"National Gas Transmission","n/a","2023-04-20","2023-05-15","2023-05-24",null,"2023-07-20","2024-01-12",null,"No",null,null,null,null,"Panel","Member"]
["0838",null,"Equalisation of prepayment and non-prepayment AUG factors","Centrica","2023-02-10",{"$f":"VLOOKUP($J37,Lookups!$A$3:$C$20,3,FALSE)","v":"Closed"},"Urgent",null,"None","Withdrawn",{"$f":"LOOKUP(J37,Lookups!$A$3:$A$20,Lookups!$B$3:$B$20)","v":"End of process"},"2023-03-03",null,null,"Wales & West Utilities",7,null,null,null,null,null,null,null,"No",null,null,null,null,"AUG","prepayment","factor"]
["0837","FT","Updating all UNC references of “National Grid” to “National Gas Transmission” to reflect the sale of National Grid Gas plc","National Gas Transmission","2023-02-08",{"$f":"VLOOKUP($J38,Lookups!$A$3:$C$20,3,FALSE)","v":"Closed"},"Fast Track",null,"None","Implemented",{"$f":"LOOKUP(J38,Lookups!$A$3:$A$20,Lookups!$B$3:$B$20)","v":"Effective date"},"2023-03-10",null,null,"National Gas Transmission","n/a","Text provided with mod",null,"2023-02-08",null,null,null,null,{"$f":"IF(AND(F39=\"Live\",K39=\"Ofgem decision\"),\"Yes\",\"No\")","v":"No"},null,null,null,null,"National Grid","National Gas"]
["0836","S","Resolution of Missing Messages following Central Switching Service implementation and integration with REC Change R0067","Cadent","2023-02-06",{"$f":"VLOOKUP($J39,Lookups!$A$3:$C$20,3,FALSE)","v":"Closed"},"Self-Governance",null,"Distribution","Implemented",{"$f":"LOOKUP(J39,Lookups!$A$3:$A$20,Lookups!$B$3:$B$20)","v":"Effective date"},"2023-12-18",null,null,"Cadent",7,"2023-08-17","2023-09-08",null,null,null,null,null,"No",null,null,null,null,"CSS","switching"]
["0835","R","Review of Gas Demand Side Response Arrangements","National Gas Transmission","2023-02-02",{"$f":"VLOOKUP($J40,Lookups!$A$3:$C$20,3,FALSE)","v":"Closed"},"Request",null,"Other","Request Closed",{"$f":"LOOKUP(J40,Lookups!$A$3:$A$20,Lookups!$B$3:$B$20)","v":"End of process"},"2024-03-21",null,null,"N/A - Request","n/a",null,null,null,null,null,null,null,"No",null,null,null,null,"demand","response"]
["0834","S","Inclusion of the “Process for the Update and Retention of Shared Site Drawings” as a Subsidiary Document within the Offtake Arrangements Document","National Gas Transmission","2023-01-06",{"$f":"VLOOKUP($J41,Lookups!$A$3:$C$20,3,FALSE)","v":"Closed"},"Self-Governance",null,"Offtake","Implemented",{"$f":"LOOKUP(J41,Lookups!$A$3:$A$20,Lookups!$B$3:$B$20)","v":"Effective date"},"2023-06-12",null,null,"National Gas Transmission","n/a","2023-03-16","2023-04-06",null,null,null,null,null,"No",null,null,null,null,"shared","subsidiary"]
["0833",null,"Enabling Demand Side Response (DSR) Market Offers to be made by Non-Trading System Transactions","National Grid NTS","2022-11-29",{"$f":"VLOOKUP($J42,Lookups!$A$3:$C$20,3,FALSE)","v":"Closed"},"Urgent",null,"None","Implemented",{"$f":"LOOKUP(J42,Lookups!$A$3:$A$20,Lookups!$B$3:$B$20)","v":"Effective date"},"2022-12-09",null,null,"N/A - National Grid","n/a",null,null,"2022-12-01",null,null,null,null,"No"]
["0832","S","Introducing additional flexibility to change the NTS large price step for Ascending Clock Auctions at Ips","National Gas Transmission","2022-11-08",{"$f":"VLOOKUP($J43,Lookups!$A$3:$C$20,3,FALSE)","v":"Closed"},"Self-Governance",null,"NTSCMF","Implemented",{"$f":"LOOKUP(J43,Lookups!$A$3:$A$20,Lookups!$B$3:$B$20)","v":"Effective date"},"2023-04-06",null,null,"National Gas Transmission","n/a","20/01/2023 Deemed request sent",null,"2023-01-23",null,null,null,null,{"$f":"IF(AND(F45=\"Live\",K45=\"Ofgem decision\"),\"Yes\",\"No\")","v":"No"}]
["0831","A","Allocation of LDZ UIG to Shippers (Class 3 and 4) Based on a Straight Throughput Method","Brook Green Trading","2023-03-06",{"$f":"VLOOKUP($J44,Lookups!$A$3:$C$20,3,FALSE)","v":"Closed"},"Modification",null,"Distribution","Rejected",{"$f":"LOOKUP(J44,Lookups!$A$3:$A$21,Lookups!$B$3:$B$21)","v":"End of process"},"2024-02-06",null,null,"Cadent",6,"2023-10-19",null,"2023-08-04"]
["0831",null,"Allocation of LDZ UIG to Shippers Based on a Straight Throughput Method","SSE","2022-11-04",{"$f":"VLOOKUP($J45,Lookups!$A$3:$C$20,3,FALSE)","v":"Closed"},"Modification",null,"Distribution","Rejected",{"$f":"LOOKUP(J45,Lookups!$A$3:$A$21,Lookups!$B$3:$B$21)","v":"End of process"},"2024-02-06",null,null,"Cadent",6,"2023-10-19",null,"2023-08-04",null,null,null,null,"No"]
["0830","S ","Obligation for Shipper to pay CDSP for Class 1 read service","Wales & West Utilities","2022-11-04",{"$f":"VLOOKUP($J46,Lookups!$A$3:$C$20,3,FALSE)","v":"Closed"},"Self-Governance",null,"None","Implemented",{"$f":"LOOKUP(J46,Lookups!$A$3:$A$21,Lookups!$B$3:$B$21)","v":"Effective date"},"2023-04-01",null,null,"Wales & West Utilities","n/a","2022-11-17","2022-12-08",null,null,null,null,null,"No"]
["0829","S ","Updates to the Supplemental Agreement Amendments Process","Cadent","2022-11-04",{"$f":"VLOOKUP($J47,Lookups!$A$3:$C$20,3,FALSE)","v":"Closed"},"Self-Governance",null,"Offtake","Implemented",{"$f":"LOOKUP(J47,Lookups!$A$3:$A$20,Lookups!$B$3:$B$20)","v":"Effective date"},"2023-07-07",null,null,"Cadent","n/a",null,null,null,null,null,null,null,"No"]
["0828","R","Introduction of an Independent Shrinkage Expert","OVO Energy","2022-11-04",{"$f":"VLOOKUP($J48,Lookups!$A$3:$C$20,3,FALSE)","v":"Closed"},"Request",null,"Other","Request Closed",{"$f":"LOOKUP(J48,Lookups!$A$3:$A$21,Lookups!$B$3:$B$21)","v":"End of process"},"2023-06-15",null,null,"N/A - Request","n/a",null,null,null,null,null,null,null,"No"]
["0827","S","Amending the Unsecured Credit Table in TPD V3 to reflect the removal of Graydons and insertion of Creditsafe","Cadent","2022-10-31",{"$f":"VLOOKUP($J49,Lookups!$A$3:$C$20,3,FALSE)","v":"Closed"},"Self-Governance",null,"Distribution","Implemented",{"$f":"LOOKUP(J49,Lookups!$A$3:$A$21,Lookups!$B$3:$B$21)","v":"Effective date"},"2023-02-10",null,null,"Cadent","n/a","2022-12-15","2023-01-10","2022-12-16",{"$f":"IF(ISBLANK(S49),\" \",IF(S49<=R49,\"Y\",\"N\"))","v":"Y"},null,null,null,"No"]
["0826","S","Amendment to Network Entry Provision at Shell St Fergus Terminal","Shell","2022-10-12",{"$f":"VLOOKUP($J50,Lookups!$A$3:$C$20,3,FALSE)","v":"Closed"},"Self-Governance",null,"Transmission","Implemented",{"$f":"LOOKUP(J50,Lookups!$A$3:$A$21,Lookups!$B$3:$B$21)","v":"Effective date"},"2023-01-11",null,null,"National Grid","n/a","No Text req'd - enabling Mod"," ",null,null,null,null,null,"No"]
["0825",null,"Removal of the remaining Retrospective Asset, Address and Supply Point (RAASP) elements of the Retrospective Adjustment arrangements put in place under Modification 0434","EDF Energy","2022-10-10","Closed","Modification",null,"Distribution","Implemented","End of process","2023-12-15",null,null,"Cadent",4,"2023-06-15","2023-07-06","2022-05-19",{"$f":"IF(ISBLANK(S51),\" \",IF(S51<=R51,\"Y\",\"N\"))","v":"Y"},null,null,null,"No"]
["0824",null,"Appointment of CDSP as the Scheme Administrator for the Energy Price Guarantee (EPG) for Domestic Gas Consumers (Gas)","Northern Gas Networks","2022-09-16",{"$f":"VLOOKUP($J52,Lookups!$A$3:$C$20,3,FALSE)","v":"Closed"},"Urgent",null,"None","Implemented",{"$f":"LOOKUP(J52,Lookups!$A$3:$A$21,Lookups!$B$3:$B$21)","v":"Effective date"},"2022-09-26",null,null,"Northern Gas Networks","n/a",null,null,null,null,null,null,null,"No"]
["0823",null,"Amendment to the Allocation of Entry Capacity and Flow Quantities to Qualifying CNCCD Routes","RWE Trading GmbH","2022-09-06",{"$f":"VLOOKUP($J53,Lookups!$A$3:$C$20,3,FALSE)","v":"Closed"},"Modification",null,"NTSCMF","Rejected",{"$f":"LOOKUP(J53,Lookups!$A$3:$A$21,Lookups!$B$3:$B$21)","v":"End of process"},"2024-01-26",null,null,"National Grid","n/a","2022-11-17","2022-12-08","2022-12-01",{"$f":"IF(ISBLANK(S53),\" \",IF(S53<=R53,\"Y\",\"N\"))","v":"Y"},null,null,null,"No"]
["0822",null,"Reform of Gas Demand Side Response Arrangements","National Grid NTS","2022-09-05",{"$f":"VLOOKUP($J54,Lookups!$A$3:$C$20,3,FALSE)","v":"Closed"},"Urgent",null,"None","Implemented",{"$f":"LOOKUP(J54,Lookups!$A$3:$A$20,Lookups!$B$3:$B$20)","v":"Effective date"},"2022-10-17",null,null,"National Grid","n/a",null,null,null,null,null,null,null,"No"]
["0821","FT","Alignment of TPD Section I Licence Reference to the current National Grid Gas Licence","National Grid NTS","2022-09-05",{"$f":"VLOOKUP($J55,Lookups!$A$3:$C$20,3,FALSE)","v":"Closed"},"Fast Track",null,"None","Implemented",{"$f":"LOOKUP(J55,Lookups!$A$3:$A$20,Lookups!$B$3:$B$20)","v":"Effective date"},"2022-10-10",null,null,"National Grid","n/a",null,null,null,null,null,null,null,"No"]
["0820","FT","Clarification on how many decimal places the Conditional NTS Capacity Charge Discount is calculated to","National Grid NTS","2022-09-05",{"$f":"VLOOKUP($J56,Lookups!$A$3:$C$20,3,FALSE)","v":"Closed"},"Fast Track",null,"None","Implemented",{"$f":"LOOKUP(J56,Lookups!$A$3:$A$20,Lookups!$B$3:$B$20)","v":"Effective date"},"2022-10-10",null,null,"National Grid","n/a",null,null,null,null,null,null,null,"No"]
["0819",null,"Establishing/Amending a Gas Vacant Site Process","British Gas","2022-09-02",{"$f":"VLOOKUP($J57,Lookups!$A$3:$C$20,3,FALSE)","v":"Live"},"Modification",null,"Distribution","Awaiting Implementation",{"$f":"LOOKUP(J57,Lookups!$A$3:$A$21,Lookups!$B$3:$B$21)","v":"Implemented"},"TBC",null,null,"Cadent",2,"2023-03-16","2023-04-06",null,null,null,null,null,"No"]
["0818",null,"Releasing of unused capacity under a specific set of circumstances","Northern Gas Networks","2022-08-24",{"$f":"VLOOKUP($J58,Lookups!$A$3:$C$20,3,FALSE)","v":"Closed"},"Modification",null,"Distribution","Rejected",{"$f":"LOOKUP(J58,Lookups!$A$3:$A$20,Lookups!$B$3:$B$20)","v":"End of process"},"2023-04-24",null,null,"National Grid","n/a","2022-12-15","2023-01-10",null,null,null,null,null,"No"]
["0817",null,"Treatment of Existing Capacity Holding at Easington on creation of the new Rough Storage ASEP","Centrica","2022-08-23",{"$f":"VLOOKUP($J59,Lookups!$A$3:$C$20,3,FALSE)","v":"Closed"},"Urgent",null,"None","Implemented",{"$f":"LOOKUP(J59,Lookups!$A$3:$A$21,Lookups!$B$3:$B$21)","v":"Effective date"},"2022-09-28",null,null,"N/A - National Grid","n/a",null,null,null,null,null,null,null,"No"]
["0816","S","Update to AQ Correction Processes","E.ON Next","2022-08-08",{"$f":"VLOOKUP($J60,Lookups!$A$3:$C$20,3,FALSE)","v":"Closed"},"Self-Governance",null,"Distribution","Implemented",{"$f":"LOOKUP(J60,Lookups!$A$3:$A$20,Lookups!$B$3:$B$20)","v":"Effective date"},"2024-02-24",null,null,"Scotia Gas Networks",1,"2023-03-16","2023-04-06","2023-04-17",null,"2023-06-15",null,null,"No"]
["0815","S","DSC Committee Quoracy ","SEFE Energy Limited","2022-08-03",{"$f":"VLOOKUP($J61,Lookups!$A$3:$C$20,3,FALSE)","v":"Closed"},"Self-Governance",null,"Governance","Implemented",{"$f":"LOOKUP(J61,Lookups!$A$3:$A$20,Lookups!$B$3:$B$20)","v":"Effective date"},"2023-02-10",null,null,"Cadent",8,"2022-10-20","2022-11-10","2022-10-20",{"$f":"IF(ISBLANK(S61),\" \",IF(S61<=R61,\"Y\",\"N\"))","v":"Y"},null,null,null,"No"]
["0814",null,"Temporary Access to the Enhanced Pressure Service and Increase to the Maximum NTS Exit Point Offtake Rate of the BBL interconnector","National Gas Transmission","2022-07-22",{"$f":"VLOOKUP($J62,Lookups!$A$3:$C$20,3,FALSE)","v":"Closed"},"Urgent",null,"None","Implemented",{"$f":"LOOKUP(J62,Lookups!$A$3:$A$20,Lookups!$B$3:$B$20)","v":"Effective date"},"2023-07-19",null,null,"National Gas Transmission","n/a",null,null,null,null,null,null,null,"No"]
["0813",null,"Revision of Virtual Last Resort User and Contingent Procurement of Supplier Demand Event Triggers","National Gas Transmission","2022-07-12",{"$f":"VLOOKUP($J63,Lookups!$A$3:$C$20,3,FALSE)","v":"Closed"},"Modification",null,"Transmission","Rejected",{"$f":"LOOKUP(J63,Lookups!$A$3:$A$21,Lookups!$B$3:$B$21)","v":"End of process"},"2023-02-16",null,null,"National Gas Transmission","n/a","2022-10-20","2022-11-10","2022-11-23",{"$f":"IF(ISBLANK(S63),\" \",IF(S63<=R63,\"Y\",\"N\"))","v":"N"},null,"2023-07-20",null,"No"]
["0812","R","Review of Alternatives to “Must Read” Arrangements","Wales & West Utilities","2022-07-01",{"$f":"VLOOKUP($J64,Lookups!$A$3:$C$20,3,FALSE)","v":"Closed"},"Request",null,"Distribution","Request Closed",{"$f":"LOOKUP(J64,Lookups!$A$3:$A$21,Lookups!$B$3:$B$21)","v":"End of process"},"2023-08-17",null,null,"N/A - Request","n/a",null,null,null,null,null,null,null,"No"]
["0811","S","Shipper Agreed Read (SAR) exceptions process ","SEFE Energy Limited","2022-06-23",{"$f":"VLOOKUP($J65,Lookups!$A$3:$C$20,3,FALSE)","v":"Closed"},"Self-Governance",null,"Distribution","Implemented",{"$f":"LOOKUP(J65,Lookups!$A$3:$A$20,Lookups!$B$3:$B$20)","v":"Effective date"},"2024-02-24",null,null,"Wales & West Utilities",7,"2022-10-20","2022-11-10","2022-11-23",{"$f":"IF(ISBLANK(S65),\" \",IF(S65<=R65,\"Y\",\"N\"))","v":"N"},null,null,null,"No"]
["0810","S","Amendment of Transportation Principal Document Section V 14.1.1 and Annex-V5 to reflect updated Theft of Gas Process","SEFE Energy Limited","2022-06-01",{"$f":"VLOOKUP($J66,Lookups!$A$3:$C$20,3,FALSE)","v":"Closed"},"Self-Governance",null,"None","Implemented",{"$f":"LOOKUP(J66,Lookups!$A$3:$A$21,Lookups!$B$3:$B$21)","v":"Effective date"},"2023-04-01",null,null,"Scotia Gas Networks","n/a","2022-06-16","2022-06-17","2022-06-16",{"$f":"IF(ISBLANK(S66),\" \",IF(S66<=R66,\"Y\",\"N\"))","v":"Y"},null,null,null,"No"]
["0809",null,"Distribution of Last Resort Supplier Payment (LRSP) claims to include IGT sites","Northern Gas Networks","2022-06-01",{"$f":"VLOOKUP($J67,Lookups!$A$3:$C$19,3,FALSE)","v":"Closed"},"Modification",null,"Distribution","Implemented",{"$f":"LOOKUP(J67,Lookups!$A$3:$A$21,Lookups!$B$3:$B$21)","v":"Effective date"},"2023-04-01",null,null,"Northern Gas Networks","n/a","2022-06-16","2022-07-07","2022-06-16",{"$f":"IF(ISBLANK(S67),\" \",IF(S67<=R67,\"Y\",\"N\"))","v":"Y"},null,null,null,"No"]
["0808",null,"Reverse Compression","Barrow Shipping Ltd","2022-05-09",{"$f":"VLOOKUP($J68,Lookups!$A$3:$C$19,3,FALSE)","v":"Live"},"Modification",null,"Distribution","Awaiting Implementation",{"$f":"LOOKUP(J68,Lookups!$A$3:$A$20,Lookups!$B$3:$B$20)","v":"Implemented"},"TBC",null,null,"Scotia Gas Networks",5,"2023-04-20","2023-05-15","2023-05-19",null,null,"2023-11-24",null,"No"]
["0807","FT","Minor update to the legal text implemented under Modification 0672S","Scottish Power","2022-04-11",{"$f":"VLOOKUP($J69,Lookups!$A$3:$C$19,3,FALSE)","v":"Closed"},"Fast Track",null,"Other","Implemented",{"$f":"LOOKUP(J69,Lookups!$A$3:$A$20,Lookups!$B$3:$B$20)","v":"Effective date"},"2022-05-16",null,null,"Cadent",6,null,null,null,null,null,null,null,"No"]
["0806",null,"Change to Curtailment Trade Price Compensation in Section Q","SSE","2022-03-30",{"$f":"VLOOKUP($J70,Lookups!$A$3:$C$19,3,FALSE)","v":"Closed"},"Modification",null,"Transmission","Rejected",{"$f":"LOOKUP(J70,Lookups!$A$3:$A$20,Lookups!$B$3:$B$20)","v":"End of process"},"2022-12-09",null,null,"National Grid","n/a","2022-06-16","2022-07-07","2022-06-23",{"$f":"IF(ISBLANK(S70),\" \",IF(S70<=R70,\"Y\",\"N\"))","v":"Y"},null,null,null,"No"]
["0805",null,"Introduction of Weekly NTS Exit Capacity Auctions","Vitol SA Geneva","2022-03-04",{"$f":"VLOOKUP($J71,Lookups!$A$3:$C$19,3,FALSE)","v":"Closed"},"Modification",null,"Transmission","Rejected",{"$f":"LOOKUP(J71,Lookups!$A$3:$A$20,Lookups!$B$3:$B$20)","v":"End of process"},"2023-01-30",null,null,"National Grid","n/a","2022-05-19","2022-06-13","2022-07-22",{"$f":"IF(ISBLANK(S71),\" \",IF(S71<=R71,\"Y\",\"N\"))","v":"N"},null,null,null,"No"]
["0804",null,"Consequential UNC changes for Switching SCR (REC 3.0)","Ofgem","2022-02-09",{"$f":"VLOOKUP($J72,Lookups!$A$3:$C$19,3,FALSE)","v":"Closed"},"Significant Code Review",null,"None","Implemented",{"$f":"LOOKUP(J72,Lookups!$A$3:$A$20,Lookups!$B$3:$B$20)","v":"Effective date"},"2022-07-18",null,null,"Cadent","n/a","2022-04-22",null,"2022-03-04",{"$f":"IF(ISBLANK(S72),\" \",IF(S72<=R72,\"Y\",\"N\"))","v":"N"},null,null,null,"No"]
["0803",null,"Exceptional Circumstances Modification process ","Gazprom Energy","2022-02-09",{"$f":"VLOOKUP($J73,Lookups!$A$3:$C$20,3,FALSE)","v":"Closed"},"Modification",null,"Governance","Withdrawn",{"$f":"LOOKUP(J73,Lookups!$A$3:$A$20,Lookups!$B$3:$B$20)","v":"End of process"},"2022-05-04",null,null,"Cadent",4,null,null,null,null,null,null,null,"No"]
["0802","S","Clarification of ‘Annual Update’ for impacted Users in relation to CNCCD Election(s) ","National Grid NTS","2022-02-09",{"$f":"VLOOKUP($J74,Lookups!$A$3:$C$19,3,FALSE)","v":"Closed"},"Self-Governance",null,"NTSCMF","Implemented",{"$f":"LOOKUP(J74,Lookups!$A$3:$A$20,Lookups!$B$3:$B$20)","v":"Effective date"},"2022-05-16",null,null,"National Grid","n/a","2022-02-17","2022-03-10",null,{"$f":"IF(ISBLANK(S74),\" \",IF(S74<=R74,\"Y\",\"N\"))","v":" "},null,null,null,"No"]
["0801",null,"Removal of capacity and balancing services from the role of CDSP ","National Grid NTS","2022-02-09",{"$f":"VLOOKUP($J75,Lookups!$A$3:$C$19,3,FALSE)","v":"Closed"},"Modification",null,"Transmission","Withdrawn",{"$f":"LOOKUP(J75,Lookups!$A$3:$A$20,Lookups!$B$3:$B$20)","v":"End of process"},"2022-08-18",null,null,"National Grid","n/a","2022-05-19","2022-06-13",null," ",null,null,null,"No"]
["0800",null,"Introducing the concept of a derogation framework into Uniform Network Code (UNC) (Authority Direction)","Northern Gas Networks","2022-02-03",{"$f":"VLOOKUP($J76,Lookups!$A$3:$C$20,3,FALSE)","v":"Closed"},"Modification",null,"Governance","Implemented",{"$f":"LOOKUP(J76,Lookups!$A$3:$A$20,Lookups!$B$3:$B$20)","v":"Effective date"},"2022-10-01",null,null,"Northern Gas Networks","n/a","2022-03-17","2022-04-07","2022-03-17","Y",null,null,null,"No"]
["0799",null,"UNC arrangements for the H100 Fife project (100% hydrogen)","SGN","2022-01-10",{"$f":"VLOOKUP($J77,Lookups!$A$3:$C$19,3,FALSE)","v":"Live"},"Modification",null,"Other","Awaiting Implementation",{"$f":"LOOKUP(J77,Lookups!$A$3:$A$20,Lookups!$B$3:$B$20)","v":"Implemented"},"TBC",null,null,"Scotia Gas Networks","n/a","2022-03-17","2022-04-07",null," ",null,null,null,"No"]
["0798","S","Enablement of Exit Assignment process at Interconnectors","National Grid NTS","2022-01-07",{"$f":"VLOOKUP($J78,Lookups!$A$3:$C$19,3,FALSE)","v":"Closed"},"Self-Governance",null,"Transmission","Implemented",{"$f":"LOOKUP(J78,Lookups!$A$3:$A$20,Lookups!$B$3:$B$20)","v":"Effective date"},"2022-04-24",null,null,"National Grid","n/a","2022-02-17","2022-03-10",null," ",null,null,null,"No"]
["0797",null,"Last Resort Supply Payments Volumetric Charges","Corona Energy","2021-12-22",{"$f":"VLOOKUP($J79,Lookups!$A$3:$C$19,3,FALSE)","v":"Closed"},"Urgent",null,"None","Implemented",{"$f":"LOOKUP(J79,Lookups!$A$3:$A$20,Lookups!$B$3:$B$20)","v":"Effective date"},"2022-04-01",null,null,"Northern Gas Networks",3,"2022-01-21","2022-02-10",null," ",null,null,null,"No"]
["0796",null,"Revision to the Determination of National Grid NTS Target Revenue for Transportation Charging","National Grid NTS","2021-12-08",{"$f":"VLOOKUP($J80,Lookups!$A$3:$C$19,3,FALSE)","v":"Closed"},"Modification",null,"NTSCMF","Implemented",{"$f":"LOOKUP(J80,Lookups!$A$3:$A$20,Lookups!$B$3:$B$20)","v":"Effective date"},"2022-10-01",null,null,"National Grid","n/a","2022-02-17","2022-03-10","2020-02-04","Y",null,null,null,"No"]
["0795","S","Arrangements for charging for revenue to pay valid Last Resort Supplier Payment claims","Wales & West Utilities","2021-12-06",{"$f":"VLOOKUP($J81,Lookups!$A$3:$C$20,3,FALSE)","v":"Closed"},"Self-Governance",null,"None","Withdrawn",{"$f":"LOOKUP(J81,Lookups!$A$3:$A$20,Lookups!$B$3:$B$20)","v":"End of process"},"2022-02-15",null,null,"Wales & West Utilities","n/a",null,null,null,null,null,null,null,"No"]
["0794","S","Obligation for DNOs to Continue Provision of Gas Composition Information to National Grid NTS","National Grid NTS","2021-12-06",{"$f":"VLOOKUP($J82,Lookups!$A$3:$C$19,3,FALSE)","v":"Closed"},"Self-Governance",null,"Offtake","Implemented",{"$f":"LOOKUP(J82,Lookups!$A$3:$A$20,Lookups!$B$3:$B$20)","v":"Effective date"},"2022-04-08",null,null,"N/A - National Grid","n/a","2022-02-17","2022-03-10","2020-02-07",{"$f":"IF(ISBLANK(S82),\" \",IF(S82<=R82,\"Y\",\"N\"))","v":"Y"},null,null,null,"No"]
["0793","S","Determination of Charging Area CVs (Daily CVs) – Modification of Calculation Process Arrangements","SGN","2021-12-06",{"$f":"VLOOKUP($J83,Lookups!$A$3:$C$20,3,FALSE)","v":"Closed"},"Self-Governance",null,"Offtake","Implemented",{"$f":"LOOKUP(J83,Lookups!$A$3:$A$20,Lookups!$B$3:$B$20)","v":"Effective date"},"2022-09-01",null,null,"Scotia Gas Networks","n/a",null,null,null,null,null,null,null,"No"]
["0792","S","Amendments to Cost Recovery under OAD","Cadent","2021-12-02",{"$f":"VLOOKUP($J84,Lookups!$A$3:$C$20,3,FALSE)","v":"Closed"},"Self-Governance",null,"Offtake","Implemented",{"$f":"LOOKUP(J84,Lookups!$A$3:$A$20,Lookups!$B$3:$B$20)","v":"Effective date"},"2022-09-16",null,null,"Cadent","n/a","2022-03-17","2022-04-07",null,null,null,null,null,"No"]
["0791",null,"Contingency Gas Procurement Arrangements when a Supplier acts under a Deed of Undertaking","National Grid NTS","2021-12-01",{"$f":"VLOOKUP($J85,Lookups!$A$3:$C$19,3,FALSE)","v":"Closed"},"Urgent",null,"None","Implemented",{"$f":"LOOKUP(J85,Lookups!$A$3:$A$20,Lookups!$B$3:$B$20)","v":"Effective date"},"2022-03-02",null,null,"N/A - National Grid","n/a",null,null,null,null,null,null,null,"No"]
["0790",null,"Introduction of a Transmission Services Entry Flow Charge","National Grid NTS","2021-11-08",{"$f":"VLOOKUP($J86,Lookups!$A$3:$C$19,3,FALSE)","v":"Closed"},"Urgent",null,"NTSCMF","Rejected",{"$f":"LOOKUP(J86,Lookups!$A$3:$A$20,Lookups!$B$3:$B$20)","v":"End of process"},"2021-12-16",null,null,"N/A - National Grid","n/a",null,null,null,null,null,null,null,"No"]
["0789",null,"Energy Balancing Arrangements During the Operation of a Supplier Undertaking to Transporters","National Grid NTS","2021-10-19",{"$f":"VLOOKUP($J87,Lookups!$A$3:$C$20,3,FALSE)","v":"Closed"},"Urgent",null,"NTSCMF","Withdrawn",{"$f":"LOOKUP(J87,Lookups!$A$3:$A$20,Lookups!$B$3:$B$20)","v":"End of process"},"2021-11-17",null,null,"N/A - National Grid","n/a",null,null,null,null,null,null,null,"No"]
["0788",null,"Minimising the market impacts of ‘Supplier Undertaking’ operation","National Grid NTS","2021-10-19",{"$f":"VLOOKUP($J88,Lookups!$A$3:$C$19,3,FALSE)","v":"Closed"},"Urgent",null,"None","Implemented",{"$f":"LOOKUP(J88,Lookups!$A$3:$A$20,Lookups!$B$3:$B$20)","v":"Effective date"},"2021-11-01",null,null,"N/A - National Grid","n/a","No Text req'd - enabling Mod",null,null,null,null,null,null,"No"]
["0787","S","Introducing amendments to the interconnection agreement with Interconnector Limited to reflect latest operational standards and practices","National Grid NTS","2021-10-12",{"$f":"VLOOKUP($J89,Lookups!$A$3:$C$19,3,FALSE)","v":"Closed"},"Self-Governance",null,"Transmission","Implemented",{"$f":"LOOKUP(J89,Lookups!$A$3:$A$20,Lookups!$B$3:$B$20)","v":"Effective date"},"2022-03-11",null,null,"N/A - National Grid","n/a","No Text req'd - enabling Mod",null,null,null,null,null,null,"No"]
["0786","S","Amendment of the framework for the Bacton exit pressure service to interconnectors","National Grid NTS","2021-10-12",{"$f":"VLOOKUP($J90,Lookups!$A$3:$C$19,3,FALSE)","v":"Closed"},"Self-Governance",null,"Transmission","Implemented",{"$f":"LOOKUP(J90,Lookups!$A$3:$A$20,Lookups!$B$3:$B$20)","v":"Effective date"},"2022-03-11",null,null,"N/A - National Grid","n/a","Panel Requested Text\n18/11/2021","2021-12-09",null,{"$f":"IF(ISBLANK(S90),\" \",IF(S90<=R90,\"Y\",\"N\"))","v":" "},null,null,null,"No"]
["0785",null,"Application of UNC processes to an aggregated Bacton (exit) Interconnection Point","National Grid NTS","2021-10-12",{"$f":"VLOOKUP($J91,Lookups!$A$3:$C$19,3,FALSE)","v":"Closed"},"Modification",null,"Transmission","Implemented",{"$f":"LOOKUP(J91,Lookups!$A$3:$A$20,Lookups!$B$3:$B$20)","v":"Effective date"},"2022-01-20",null,null,"N/A - National Grid","n/a","2022-01-21","2022-02-10",null,{"$f":"IF(ISBLANK(S91),\" \",IF(S91<=R91,\"Y\",\"N\"))","v":" "},null,null,null,"No"]
["0784","S","Transition to the Central Switching Service and the Retail Energy Code v3.0","Cadent","2021-10-12",{"$f":"VLOOKUP($J92,Lookups!$A$3:$C$19,3,FALSE)","v":"Closed"},"Self-Governance",null,"Distribution","Implemented",{"$f":"LOOKUP(J92,Lookups!$A$3:$A$20,Lookups!$B$3:$B$20)","v":"Effective date"},"2022-03-11",null,null,"Cadent","n/a",null,null,null,null,null,null,null,"No"]
["0783","R","Review of AQ Correction Processes","Cadent","2021-10-06",{"$f":"VLOOKUP($J93,Lookups!$A$3:$C$19,3,FALSE)","v":"Closed"},"Request",null,"Other","Request Closed",{"$f":"LOOKUP(J93,Lookups!$A$3:$A$20,Lookups!$B$3:$B$20)","v":"End of process"},"2022-08-18",null,null,"N/A - Request","n/a",null,null,null,null,null,null,null,"No"]
["0782",null,"Creation of Independent AUGE Assurer (IAA) role","Corona Energy","2021-09-15",{"$f":"VLOOKUP($J94,Lookups!$A$3:$C$20,3,FALSE)","v":"Closed"},"Modification",null,"Distribution","Withdrawn",{"$f":"LOOKUP(J94,Lookups!$A$3:$A$20,Lookups!$B$3:$B$20)","v":"End of process"},"2022-04-08",null,null,"Northern Gas Networks",3,null,null,null,null,null,null,null,"No"]
["0781","R","Review of the Unidentified Gas process ","Corona Energy","2021-09-13",{"$f":"VLOOKUP($J95,Lookups!$A$3:$C$19,3,FALSE)","v":"Closed"},"Request",null,"Distribution","Request Closed",{"$f":"LOOKUP(J95,Lookups!$A$3:$A$20,Lookups!$B$3:$B$20)","v":"End of process"},"2022-06-16",null,null,"N/A - Request",null,null,null,null,null,null,null,null,"No"]
["0780",null,"Amendment to Gas Quality NTS Entry Specification at the St Fergus SAGE System Entry Point","SAGE North Sea Limited","2021-08-11",{"$f":"VLOOKUP($J96,Lookups!$A$3:$C$19,3,FALSE)","v":"Closed"},"Modification",null,"Transmission","Implemented",{"$f":"LOOKUP(J96,Lookups!$A$3:$A$20,Lookups!$B$3:$B$20)","v":"Effective date"},"2022-05-06",null,null,"National Grid",null,"2021-12-16","2022-01-11","2021-12-23",{"$f":"IF(ISBLANK(S96),\" \",IF(S96<=R96,\"Y\",\"N\"))","v":"Y"},null,null,null,{"$f":"IF(AND(F98=\"Live\",K98=\"Ofgem decision\"),\"Yes\",\"No\")","v":"No"}]
["0779","A","Introduction of Entry Capacity Assignments with Defined End Date","RWE Trading GmbH","2021-09-08",{"$f":"VLOOKUP($J97,Lookups!$A$3:$C$19,3,FALSE)","v":"Closed"},"Modification",null,"Transmission","Rejected",{"$f":"LOOKUP(J97,Lookups!$A$3:$A$20,Lookups!$B$3:$B$20)","v":"End of process"},"2022-11-11",null,null,"National Grid","n/a","2021-12-16","2022-01-11","2021-12-23",{"$f":"IF(ISBLANK(S97),\" \",IF(S97<=R97,\"Y\",\"N\"))","v":"Y"},null,null,null,"No"]
["0779",null,"Introduction of Entry Capacity Assignments","National Grid NTS","2021-08-10",{"$f":"VLOOKUP($J98,Lookups!$A$3:$C$19,3,FALSE)","v":"Closed"},"Modification",null,"Transmission","Rejected",{"$f":"LOOKUP(J98,Lookups!$A$3:$A$20,Lookups!$B$3:$B$20)","v":"End of process"},"2022-11-11",null,null,"N/A - National Grid","n/a",null,null,null,null,null,null,null,"No"]
["0778","R","Gas Vacant Sites Process review","Centrica","2021-08-09",{"$f":"VLOOKUP($J99,Lookups!$A$3:$C$19,3,FALSE)","v":"Closed"},"Request",null,"Other","Request Closed",{"$f":"LOOKUP(J99,Lookups!$A$3:$A$20,Lookups!$B$3:$B$20)","v":"End of process"},"2022-07-21",null,null,"N/A - Request",null,null,null,null,null,null,null,null,"No"]
["0777",null,"Removal of Obstacles to Market Withdrawal","Pavilion Energy Spain","2021-08-09",{"$f":"VLOOKUP($J100,Lookups!$A$3:$C$20,3,FALSE)","v":"Closed"},"Modification",null,"Transmission","Withdrawn",{"$f":"LOOKUP(J100,Lookups!$A$3:$A$20,Lookups!$B$3:$B$20)","v":"End of process"},"2021-11-02",null,null,"National Grid","n/a","2021-09-16","2021-10-08",null,{"$f":"IF(ISBLANK(S100),\" \",IF(S100<=R100,\"Y\",\"N\"))","v":" "},null,null,null,"No"]
["0776","S","Revision of the Modification Panel Meeting Location Requirement in the Modification Rules","National Grid NTS","2021-07-09",{"$f":"VLOOKUP($J101,Lookups!$A$3:$C$19,3,FALSE)","v":"Closed"},"Self-Governance",null,"Governance","Implemented",{"$f":"LOOKUP(J101,Lookups!$A$3:$A$20,Lookups!$B$3:$B$20)","v":"Effective date"},"2021-12-10",null,null,"N/A - National Grid","n/a","2021-08-19","2021-09-10","2021-08-19",{"$f":"IF(ISBLANK(S101),\" \",IF(S101<=R101,\"Y\",\"N\"))","v":"Y"},null,null,null,"No"]
["0775","S","Amendment to the Requirement to Conduct the Transporting Britain’s Energy Consultation","National Grid NTS","2021-07-05",{"$f":"VLOOKUP($J102,Lookups!$A$3:$C$19,3,FALSE)","v":"Closed"},"Self-Governance",null,"Transmission","Implemented",{"$f":"LOOKUP(J102,Lookups!$A$3:$A$20,Lookups!$B$3:$B$20)","v":"Effective date"},"2021-11-15",null,null,"N/A - National Grid","n/a","2021-08-19","2021-09-10","2021-08-20",{"$f":"IF(ISBLANK(S102),\" \",IF(S102<=R102,\"Y\",\"N\"))","v":"Y"},null,null,null,"No"]
["0774","S","Alignment of UNC TPD to the National Grid Licence in respect of the NTS","National Grid NTS","2021-07-05",{"$f":"VLOOKUP($J103,Lookups!$A$3:$C$19,3,FALSE)","v":"Closed"},"Self-Governance",null,"Governance","Implemented",{"$f":"LOOKUP(J103,Lookups!$A$3:$A$20,Lookups!$B$3:$B$20)","v":"Effective date"},"2021-10-08",null,null,"N/A - National Grid","n/a",null,null,null,null,null,null,null,"No"]
["0773",null,"Introduction of a Micro Business identifier in Central Systems","Gazprom Energy","2021-07-05",{"$f":"VLOOKUP($J104,Lookups!$A$3:$C$20,3,FALSE)","v":"Closed"},"Modification",null,"Distribution","Withdrawn",{"$f":"LOOKUP(J104,Lookups!$A$3:$A$20,Lookups!$B$3:$B$20)","v":"End of process"},"2021-07-12",null,null,"Cadent",2,"2021-09-16","2021-10-08",null,null,null,null,null,"No"]
["0772","S","Transparency Improvements to the Process for Changing Gas Quality Limits in NTS Connection Agreements","National Grid NTS","2021-06-09",{"$f":"VLOOKUP($J105,Lookups!$A$3:$C$19,3,FALSE)","v":"Closed"},"Self-Governance",null,"Transmission","Implemented",{"$f":"LOOKUP(J105,Lookups!$A$3:$A$20,Lookups!$B$3:$B$20)","v":"Effective date"},"2021-11-12",null,null,"N/A - National Grid","n/a","2021-09-16","2021-10-08","2021-09-22",{"$f":"IF(ISBLANK(S105),\" \",IF(S105<=R105,\"Y\",\"N\"))","v":"Y"},null,null,null,"No"]
["0771","S","Removal of the absolute requirement to include a Remotely Operable Valve (ROV) Installation for all new NTS Entry connections","National Grid NTS","2021-06-08",{"$f":"VLOOKUP($J106,Lookups!$A$3:$C$19,3,FALSE)","v":"Closed"},"Self-Governance",null,"Transmission","Implemented",{"$f":"LOOKUP(J106,Lookups!$A$3:$A$20,Lookups!$B$3:$B$20)","v":"Effective date"},"2022-06-14",null,null,"N/A - National Grid","n/a","No Text req'd - enabling Mod",null,null,null,null,null,null,"No"]
["0770","FT","Amendments to legal text numbering for UNC Modification 0701","Northern Gas Networks","2021-06-04",{"$f":"VLOOKUP($J107,Lookups!$A$3:$C$19,3,FALSE)","v":"Closed"},"Fast Track",null,"None","Implemented",{"$f":"LOOKUP(J107,Lookups!$A$3:$A$20,Lookups!$B$3:$B$20)","v":"Effective date"},"2023-11-04",null,null,"Northern Gas Networks","n/a","SCR - text provided with mod ",null,null,null,null,null,null,"No"]
["0769","S","Adding Local Authorities as a new User type to the Data Permissions Matrix","Cadent","2021-06-01",{"$f":"VLOOKUP($J108,Lookups!$A$3:$C$19,3,FALSE)","v":"Closed"},"Self-Governance",null,"Distribution","Implemented",{"$f":"LOOKUP(J108,Lookups!$A$3:$A$20,Lookups!$B$3:$B$20)","v":"Effective date"},"2021-10-19",null,null,"Cadent","n/a",null,null,null,null,null,null,null,"No"]
["0768",null,"Retail Code Consolidation Significant Code Review","Ofgem","2021-05-13",{"$f":"VLOOKUP($J109,Lookups!$A$3:$C$19,3,FALSE)","v":"Closed"},"Significant Code Review",null,"Other","Implemented",{"$f":"LOOKUP(J109,Lookups!$A$3:$A$20,Lookups!$B$3:$B$20)","v":"Effective date"},"2021-09-01",null,null,"Cadent",1,null,null,null,null,null,null,null,"No"]
["0767",null,"Incorporation of AUGE Framework Document into the UNC main body","Gazprom Energy","2021-05-12",{"$f":"VLOOKUP($J110,Lookups!$A$3:$C$20,3,FALSE)","v":"Closed"},"Modification",null,"Distribution","Withdrawn",{"$f":"LOOKUP(J110,Lookups!$A$3:$A$20,Lookups!$B$3:$B$20)","v":"End of process"},"2021-10-21",null,null,"Scotia Gas Networks","n/a","2021-08-19","2021-09-10","2021-08-19",{"$f":"IF(ISBLANK(S110),\" \",IF(S110<=R110,\"Y\",\"N\"))","v":"Y"},null,null,null,"No"]
["0766","FT","Align TPD Section Y (Part A-I) to the National Grid Licence in respect of the NTS","National Grid NTS","2021-04-07",{"$f":"VLOOKUP($J111,Lookups!$A$3:$C$19,3,FALSE)","v":"Closed"},"Fast Track",null,"NTSCMF","Implemented",{"$f":"LOOKUP(J111,Lookups!$A$3:$A$20,Lookups!$B$3:$B$20)","v":"Effective date"},"2021-05-11",null,null,"N/A - National Grid","n/a","2021-08-19","2021-09-10","2021-08-20",{"$f":"IF(ISBLANK(S111),\" \",IF(S111<=R111,\"Y\",\"N\"))","v":"Y"},null,null,null,"No"]
["0765",null,"New retrospective debit and credit charges to reflect changes to the treatment of Entry Capacity Revenue between October and December 2020","National Grid NTS","2021-04-07",{"$f":"VLOOKUP($J112,Lookups!$A$3:$C$19,3,FALSE)","v":"Closed"},"Modification",null,"NTSCMF","Rejected",{"$f":"LOOKUP(J112,Lookups!$A$3:$A$20,Lookups!$B$3:$B$20)","v":"End of process"},"2022-01-28",null,null,"N/A - National Grid","n/a",null,null,null,null,null,null,null,"No"]
["0764",null,"UNC TPD Section Y (Part A-I) amendments to Kt to align to RIIO2 Licence","National Grid NTS","2021-04-06",{"$f":"VLOOKUP($J113,Lookups!$A$3:$C$19,3,FALSE)","v":"Closed"},"Urgent",null,"NTSCMF","Implemented",{"$f":"LOOKUP(J113,Lookups!$A$3:$A$20,Lookups!$B$3:$B$20)","v":"Effective date"},"2021-05-24",null,null,"N/A - National Grid","n/a",null,null,null,null,null,null,null,"No"]
["0763","R","Review of Gas Meter By-Pass Arrangements ","Scottish Power","2021-03-29",{"$f":"VLOOKUP($J114,Lookups!$A$3:$C$19,3,FALSE)","v":"Closed"},"Request",null,"Distribution","Request Closed",{"$f":"LOOKUP(J114,Lookups!$A$3:$A$20,Lookups!$B$3:$B$20)","v":"End of process"},"2022-08-18",null,null,"N/A - Request","n/a",null,null,null,null,null,null,null,"No"]
["0762","S","Adding the Retail Energy Code Company as a new User type to the Data Permissions Matrix","SGN","2021-03-12",{"$f":"VLOOKUP($J115,Lookups!$A$3:$C$19,3,FALSE)","v":"Closed"},"Self-Governance",null,"Distribution","Implemented",{"$f":"LOOKUP(J115,Lookups!$A$3:$A$20,Lookups!$B$3:$B$20)","v":"Effective date"},"2021-07-12",null,null,"Scotia Gas Networks","n/a","2021-09-16","2021-10-08",null,{"$f":"IF(ISBLANK(S115),\" \",IF(S115<=R115,\"Y\",\"N\"))","v":" "},null,null,null,"No"]
["0761",null,"Arrangements for Interconnectors with additional Storage capability","National Gas Transmission","2021-03-10",{"$f":"VLOOKUP($J116,Lookups!$A$3:$C$19,3,FALSE)","v":"Closed"},"Modification",null,"Transmission","Rejected",{"$f":"LOOKUP(J116,Lookups!$A$3:$A$20,Lookups!$B$3:$B$20)","v":"End of process"},"2023-08-24",null,null,"National Gas Transmission","n/a","2021-08-19","2021-09-10","2021-08-18",{"$f":"IF(ISBLANK(S116),\" \",IF(S116<=R116,\"Y\",\"N\"))","v":"Y"},null,null,null,"No"]
["0760",null,"Introducing the concept of a derogation framework into Uniform Network Code (UNC)","Northern Gas Networks","2021-03-09",{"$f":"VLOOKUP($J117,Lookups!$A$3:$C$19,3,FALSE)","v":"Closed"},"Modification",null,"Governance","Rejected",{"$f":"LOOKUP(J117,Lookups!$A$3:$A$20,Lookups!$B$3:$B$20)","v":"End of process"},"2022-01-21",null,null,"Northern Gas Networks",8,"2021-04-15","2021-05-07",null,{"$f":"IF(ISBLANK(S117),\" \",IF(S117<=R117,\"Y\",\"N\"))","v":" "},null,null,null,"No"]
["0759","S","Enhancements to NTS Within-Day Firm Entry and Exit Capacity Allocations","National Grid NTS","2021-03-08",{"$f":"VLOOKUP($J118,Lookups!$A$3:$C$19,3,FALSE)","v":"Closed"},"Self-Governance",null,"Transmission","Implemented",{"$f":"LOOKUP(J118,Lookups!$A$3:$A$20,Lookups!$B$3:$B$20)","v":"Effective date"},"2022-04-24",null,null,"N/A - National Grid","n/a",null,null,null,null,null,null,null,"No"]
["0758",null,"Temporary extension of AUG Statement creation process ","Utilita Energy Limited","2021-03-04",{"$f":"VLOOKUP($J119,Lookups!$A$3:$C$19,3,FALSE)","v":"Closed"},"Modification",null,"Distribution","Rejected",{"$f":"LOOKUP(J119,Lookups!$A$3:$A$20,Lookups!$B$3:$B$20)","v":"End of process"},"2021-09-06",null,null,"Cadent","n/a","Panel requested text 18/03/21 ","2021-04-12","2021-04-01",{"$f":"IF(ISBLANK(S119),\" \",IF(S119<=R119,\"Y\",\"N\"))","v":"Y"},null,null,null,"No"]
["0757","FT","Amendment to Ratchet Process Guidance Document Name","SGN","2021-02-12",{"$f":"VLOOKUP($J120,Lookups!$A$3:$C$19,3,FALSE)","v":"Closed"},"Fast Track",null,"None","Implemented",{"$f":"LOOKUP(J120,Lookups!$A$3:$A$20,Lookups!$B$3:$B$20)","v":"Effective date"},"2021-05-11",null,null,"Scotia Gas Networks","n/a","Panel requested text 21/05/21",null,null,null,null,null,null,"No"]
["0756","S","Changes to Offtake Profile Notice Submission Requirements  ","National Grid NTS","2021-02-11",{"$f":"VLOOKUP($J121,Lookups!$A$3:$C$19,3,FALSE)","v":"Closed"},"Self-Governance",null,"Transmission","Implemented",{"$f":"LOOKUP(J121,Lookups!$A$3:$A$20,Lookups!$B$3:$B$20)","v":"Effective date"},"2021-06-14",null,null,"N/A - National Grid","n/a",null,null,null,null,null,null,null,"No"]
["0755","S","Enhancement of Exit Capacity Assignments","National Grid NTS","2021-02-08",{"$f":"VLOOKUP($J122,Lookups!$A$3:$C$19,3,FALSE)","v":"Closed"},"Self-Governance",null,"Transmission","Implemented",{"$f":"LOOKUP(J122,Lookups!$A$3:$A$20,Lookups!$B$3:$B$20)","v":"Effective date"},"2022-04-24",null,null,"N/A - National Grid","n/a","Panel requested text 18/03/21 ","2021-04-12","2021-02-12",{"$f":"IF(ISBLANK(S122),\" \",IF(S122<=R122,\"Y\",\"N\"))","v":"Y"},null,null,null,"No"]
["0754","R","Investigate Advanced Analytic Options to improve NDM Demand Modelling","SEFE Energy Limited","2021-02-05",{"$f":"VLOOKUP($J123,Lookups!$A$3:$C$20,3,FALSE)","v":"Closed"},"Request",null,"Other","Request Closed",{"$f":"LOOKUP(J123,Lookups!$A$3:$A$20,Lookups!$B$3:$B$20)","v":"End of process"},"2022-10-20",null,null,"N/A - Request","n/a","Panel requested text 18/03/21 ","2021-04-12","2021-04-15",{"$f":"IF(ISBLANK(S123),\" \",IF(S123<=R123,\"Y\",\"N\"))","v":"N"},null,null,null,"No"]
["0753",null,"Removal of Pricing Disincentives for Secondary Trading of Fixed Price NTS System Entry Capacity","Total Gas and Power","2021-01-29",{"$f":"VLOOKUP($J124,Lookups!$A$3:$C$19,3,FALSE)","v":"Closed"},"Modification",null,"NTSCMF","Rejected",{"$f":"LOOKUP(J124,Lookups!$A$3:$A$20,Lookups!$B$3:$B$20)","v":"End of process"},"2021-11-26",null,null,"N/A - National Grid","n/a","Panel requested text 18/03/21 ","2021-04-12","2021-04-13",{"$f":"IF(ISBLANK(S124),\" \",IF(S124<=R124,\"Y\",\"N\"))","v":"N"},null,null,null,"No"]
["0752","S","Introduction of Weekly Entry Capacity Auction","South Hook Gas","2021-01-11",{"$f":"VLOOKUP($J125,Lookups!$A$3:$C$19,3,FALSE)","v":"Closed"},"Self-Governance",null,"Transmission","Implemented",{"$f":"LOOKUP(J125,Lookups!$A$3:$A$20,Lookups!$B$3:$B$20)","v":"Effective date"},"2022-04-24",null,null,"N/A - National Grid","n/a","FT - text provided with mod ",null,null,null,null,null,null,"No"]
["0751",null,"\nCapping price increases for Long-Term Entry Capacity","Storengy UK Ltd","2021-01-11",{"$f":"VLOOKUP($J126,Lookups!$A$3:$C$19,3,FALSE)","v":"Closed"},"Modification",null,"NTSCMF","Rejected",{"$f":"LOOKUP(J126,Lookups!$A$3:$A$20,Lookups!$B$3:$B$20)","v":"End of process"},"2021-10-29",null,null,"N/A - National Grid","n/a",null,null,null,null,null,null,null,"No"]
["0750","FT","Amendment to regulations relating to Covid Modifications","Northern Gas Networks","2020-12-14",{"$f":"VLOOKUP($J127,Lookups!$A$3:$C$19,3,FALSE)","v":"Closed"},"Fast Track",null,"None","Implemented",{"$f":"LOOKUP(J127,Lookups!$A$3:$A$20,Lookups!$B$3:$B$20)","v":"Effective date"},"2021-01-13",null,null,"Northern Gas Networks","n/a",null,null,null,null,null,null,null,"No"]
["0749","R","Increased DM SOQ Flexibility","Barrow Shipping Ltd","2020-12-11",{"$f":"VLOOKUP($J128,Lookups!$A$3:$C$19,3,FALSE)","v":"Closed"},"Request",null,"Other","Request Closed",{"$f":"LOOKUP(J128,Lookups!$A$3:$A$20,Lookups!$B$3:$B$20)","v":"End of process"},"2021-10-21",null,null,"N/A - Request",7,null,null,null,null,null,null,null,"No"]
["0748",null,"Prospective Removal of Entry Capacity Revenue from Capacity Neutrality Arrangements","National Grid NTS","2020-12-08",{"$f":"VLOOKUP($J129,Lookups!$A$3:$C$19,3,FALSE)","v":"Closed"},"Urgent",null,"NTSCMF","Implemented",{"$f":"LOOKUP(J129,Lookups!$A$3:$A$20,Lookups!$B$3:$B$20)","v":"Effective date"},"2021-01-01",null,null,"N/A - National Grid",null,"Panel requested text 21/05/21",null,null,null,null,null,null,"No"]
["0747","FT","Amendment of reference from AIGT to INA within the UNC ","GTC Pipelines Ltd","2020-12-03",{"$f":"VLOOKUP($J130,Lookups!$A$3:$C$19,3,FALSE)","v":"Closed"},"Fast Track",null,"None","Implemented",{"$f":"LOOKUP(J130,Lookups!$A$3:$A$20,Lookups!$B$3:$B$20)","v":"Effective date"},"2021-01-13",null,null,"Wales & West Utilities","n/a","Panel requested text 21/01/21 ","2021-02-11",null,null,null,null,null,"No"]
["0746 ",null,"Application of Clarificatory change\nto the AQ amendment process\nwithin TPD G2.3 from 1st April 2020","SEFE Energy Limited","2020-11-19",{"$f":"VLOOKUP($J131,Lookups!$A$3:$C$19,3,FALSE)","v":"Closed"},"Modification",null,"Distribution","Rejected",{"$f":"LOOKUP(J131,Lookups!$A$3:$A$20,Lookups!$B$3:$B$20)","v":"End of process"},"2022-09-28",null,null,"Cadent","n/a",null,null,null,null,null,null,null,"No"]
["0745","S","Mandatory Setting of Auction Bid Parameters","National Grid NTS","2020-11-12",{"$f":"VLOOKUP($J132,Lookups!$A$3:$C$19,3,FALSE)","v":"Closed"},"Self-Governance",null,"Transmission","Implemented",{"$f":"LOOKUP(J132,Lookups!$A$3:$A$20,Lookups!$B$3:$B$20)","v":"Effective date"},"2021-10-01",null,null,"N/A - National Grid","n/a","Panel requested text 21/01/21 ","2021-02-11",null,null,null,null,null,"No"]
["0744","FT","Remove redundant reference to NTS Optional Commodity Charges","National Grid NTS","2020-11-06",{"$f":"VLOOKUP($J133,Lookups!$A$3:$C$19,3,FALSE)","v":"Closed"},"Fast Track",null,"None","Implemented",{"$f":"LOOKUP(J133,Lookups!$A$3:$A$20,Lookups!$B$3:$B$20)","v":"Effective date"},"2020-12-11",null,null,"N/A - National Grid","n/a",null,null,null,null,null,null,null,"No"]
["0743","S","Revisions to User Termination Provisions","National Grid NTS","2020-11-06",{"$f":"VLOOKUP($J134,Lookups!$A$3:$C$19,3,FALSE)","v":"Closed"},"Self-Governance",null,"Transmission","Implemented",{"$f":"LOOKUP(J134,Lookups!$A$3:$A$20,Lookups!$B$3:$B$20)","v":"Effective date"},"2021-03-12",null,null,"N/A - National Grid",6,"2021-02-18","2021-03-11","2021-02-09",{"$f":"IF(ISBLANK(S134),\" \",IF(S134<=R134,\"Y\",\"N\"))","v":"Y"},null,null,null,"No"]
["0742",null,"Amendment to Gas Quality NTS Entry Specification at the St Fergus SAGE System Entry Point","SAGE North Sea Limited","2020-11-06",{"$f":"VLOOKUP($J135,Lookups!$A$3:$C$20,3,FALSE)","v":"Closed"},"Modification",null,"Transmission","Withdrawn",{"$f":"LOOKUP(J135,Lookups!$A$3:$A$20,Lookups!$B$3:$B$20)","v":"End of process"},"2021-02-19",null,null,"N/A - National Grid",null,null,null,null,null,null,null,null,"No"]
["0741","S","Updating specific gender references to neutral terms","E.ON UK","2020-10-23",{"$f":"VLOOKUP($J136,Lookups!$A$3:$C$19,3,FALSE)","v":"Closed"},"Self-Governance",null,"Governance","Implemented",{"$f":"LOOKUP(J136,Lookups!$A$3:$A$20,Lookups!$B$3:$B$20)","v":"Effective date"},"2021-06-14",null,null,"Cadent","n/a","Panel requested text 17/12/20 ","2021-01-12","2021-01-04",{"$f":"IF(ISBLANK(S136),\" \",IF(S136<=R136,\"Y\",\"N\"))","v":"Y"},null,null,null,"No"]
["0740 ",null,"0740 - Amending the Formula Year AQ approach for 2021/2 Formula Year","E.ON UK","2020-10-09",{"$f":"VLOOKUP($J137,Lookups!$A$3:$C$20,3,FALSE)","v":"Closed"},"Modification",null,"none","Withdrawn",{"$f":"LOOKUP(J137,Lookups!$A$3:$A$20,Lookups!$B$3:$B$20)","v":"End of process"},"2020-10-14",null,null,"n/a","n/a","Panel requested Text 19/11/2020",null,null,null,null,null,null,"No"]
["0739",null,"Aggregate overrun regime for Original Capacity held at the Bacton ASEPs","ENI","2020-10-05",{"$f":"VLOOKUP($J138,Lookups!$A$3:$C$19,3,FALSE)","v":"Closed"},"Modification",null,"Transmission","Rejected",{"$f":"LOOKUP(J138,Lookups!$A$3:$A$20,Lookups!$B$3:$B$20)","v":"End of process"},"2021-08-20","2021-02-11",null,"N/A - National Grid","n/a","Panel requested Text 19/11/2020",null,null,null,null,null,null,"No"]
["0738",null,"Incremental NTS Entry Capacity Surrender","Barrow Shipping Ltd","2020-10-05",{"$f":"VLOOKUP($J139,Lookups!$A$3:$C$19,3,FALSE)","v":"Closed"},"Modification",null,"Transmission","Rejected",{"$f":"LOOKUP(J139,Lookups!$A$3:$A$20,Lookups!$B$3:$B$20)","v":"End of process"},"2021-03-19",null,null,"N/A - National Grid","n/a",null,null,null,null,null,null,null,"No"]
["0737",null,"Transfer of NTS Entry Capacity from a Capacity Abandoned ASEP","Centrica","2020-09-09",{"$f":"VLOOKUP($J140,Lookups!$A$3:$C$19,3,FALSE)","v":"Closed"},"Modification",null,"NTSCMF","Rejected",{"$f":"LOOKUP(J140,Lookups!$A$3:$A$20,Lookups!$B$3:$B$20)","v":"End of process"},"2021-01-21",null,null,"N/A - National Grid","n/a","Panel Requested Text\n15/10/2020","2020-11-05",null,null,null,null,null,"No"]
["0736","S","Clarificatory change to the AQ amendment process within TPD G2.3","Cadent","2020-09-07",{"$f":"VLOOKUP($J141,Lookups!$A$3:$C$19,3,FALSE)","v":"Closed"},"Self-Governance",null,"Distribution","Implemented",{"$f":"LOOKUP(J141,Lookups!$A$3:$A$20,Lookups!$B$3:$B$20)","v":"Effective date"},"2021-01-14",null,null,"Cadent","n/a"]
["0736","A","Clarificatory change to the AQ amendment process within TPD G2.3 (Renumbered as 0746)","Gazprom Energy","2020-09-15",{"$f":"VLOOKUP($J142,Lookups!$A$3:$C$20,3,FALSE)","v":"Closed"},"Modification",null,"Distribution","Withdrawn",{"$f":"LOOKUP(J142,Lookups!$A$3:$A$20,Lookups!$B$3:$B$20)","v":"End of process"},"2020-11-19",null,null,"Cadent",null,null,null,null,null,null,null,null,{"$f":"IF(AND(F144=\"Live\",K144=\"Ofgem decision\"),\"Yes\",\"No\")","v":"No"}]
["0735","VS","UNC Changes as a consequence of the United Kingdom’s exit from the European Union","National Grid NTS","2021-01-21",{"$f":"VLOOKUP($J143,Lookups!$A$3:$C$19,3,FALSE)","v":"Closed"},"Self-Governance",null,"None","Implemented",{"$f":"LOOKUP(J143,Lookups!$A$3:$A$20,Lookups!$B$3:$B$20)","v":"Effective date"},"2021-03-12",null,null,"N/A - National Grid",5,null,null,null,null,null,null,null,{"$f":"IF(AND(F145=\"Live\",K145=\"Ofgem decision\"),\"Yes\",\"No\")","v":"No"}]
["0735","S","UNC Changes as a consequence of the absence of trade agreement/s between the United Kingdom and the European Union (‘no deal’)","National Grid NTS","2020-09-04",{"$f":"VLOOKUP($J144,Lookups!$A$3:$C$20,3,FALSE)","v":"Closed"},"Self-Governance",null,"Distribution and Transmission","Withdrawn",{"$f":"LOOKUP(J144,Lookups!$A$3:$A$20,Lookups!$B$3:$B$20)","v":"End of process"},"2021-01-21",null,null,"N/A - National Grid","n/a","Panel Requested Text\n18/11/2021","2021-12-09",null,null,null,null,null,{"$f":"IF(AND(F146=\"Live\",K146=\"Ofgem decision\"),\"Yes\",\"No\")","v":"No"}]
["0734","S","Reporting Valid Confirmed Theft of Gas into Central Systems and Reporting Suspected Theft to Suppliers","SEFE Energy Limited","2020-08-12",{"$f":"VLOOKUP($J145,Lookups!$A$3:$C$19,3,FALSE)","v":"Closed"},"Self-Governance",null,"Distribution","Implemented",{"$f":"LOOKUP(J145,Lookups!$A$3:$A$20,Lookups!$B$3:$B$20)","v":"Effective date"},"2023-04-01",null,null,"Scotia Gas Networks","n/a","FT - text provided with mod ",null,null,null,null,null,null,{"$f":"IF(AND(F147=\"Live\",K147=\"Ofgem decision\"),\"Yes\",\"No\")","v":"No"}]
["0733","FT","UNC Section Y clarification post decision on implementation of Modification 0678A","National Grid NTS","2020-08-10",{"$f":"VLOOKUP($J146,Lookups!$A$3:$C$19,3,FALSE)","v":"Closed"},"Fast Track",null,"None","Implemented",{"$f":"LOOKUP(J146,Lookups!$A$3:$A$20,Lookups!$B$3:$B$20)","v":"Effective date"},"2020-10-01",null,null,"N/A - National Grid",4,"Panel Requested Text\n15/10/2020","2020-11-05",null,null,null,null,null,{"$f":"IF(AND(F148=\"Live\",K148=\"Ofgem decision\"),\"Yes\",\"No\")","v":"No"}]
["0732","FT","Performance Assurance Committee voting arrangements","Wales & West Utilities","2020-08-07",{"$f":"VLOOKUP($J147,Lookups!$A$3:$C$19,3,FALSE)","v":"Closed"},"Fast Track",null,"None","Implemented",{"$f":"LOOKUP(J147,Lookups!$A$3:$A$20,Lookups!$B$3:$B$20)","v":"Effective date"},"2020-09-14",null,null,"Wales & West Utilites",3]
["0731","S","Introduction of an Annual Modification Panel Report","Gazprom Energy","2020-08-06",{"$f":"VLOOKUP($J148,Lookups!$A$3:$C$19,3,FALSE)","v":"Closed"},"Self-Governance",null,"Governance","Implemented",{"$f":"LOOKUP(J148,Lookups!$A$3:$A$20,Lookups!$B$3:$B$20)","v":"Effective date"},"2021-01-13",null,null,"Cadent",null,null,null,"2020-07-02",null,null,null,null,{"$f":"IF(AND(F150=\"Live\",K150=\"Ofgem decision\"),\"Yes\",\"No\")","v":"No"}]
["0730","V","COVID-19 Capacity Retention Process","Gazprom Energy","2020-12-17",{"$f":"VLOOKUP($J149,Lookups!$A$3:$C$19,3,FALSE)","v":"Closed"},"Modification",null,"Distribution","Rejected",{"$f":"LOOKUP(J149,Lookups!$A$3:$A$20,Lookups!$B$3:$B$20)","v":"End of process"},"2021-03-19",null,null,"Northern Gas Networks","n/a","Panel Requested Text\n19/08/2020","2020-08-19","2020-08-19",{"$f":"IF(ISBLANK(S149),\" \",IF(S149<=R149,\"Y\",\"N\"))","v":"Y"},null,null,null,"No"]
["0730",null,"COVID-19 Capacity Retention Process","Gazprom Energy","2020-06-30",{"$f":"VLOOKUP($J150,Lookups!$A$3:$C$20,3,FALSE)","v":"Closed"},"Modification",null,"Distribution","Withdrawn",{"$f":"LOOKUP(J150,Lookups!$A$3:$A$20,Lookups!$B$3:$B$20)","v":"End of process"},"2020-12-17",null,null,"Northern Gas Networks","n/a",null,null,null,null,null,null,null,"No"]
["0729",null,"Applying a discount to the Revenue Recovery Charge at Storage Points","Storengy UK Ltd","2020-06-24",{"$f":"VLOOKUP($J151,Lookups!$A$3:$C$19,3,FALSE)","v":"Closed"},"Modification",null,"NTSCMF","Implemented",{"$f":"LOOKUP(J151,Lookups!$A$3:$A$20,Lookups!$B$3:$B$20)","v":"Effective date"},"2021-10-01",null,null,"National Grid NTS","n/a",null,null,null,null,null,null,null,"No"]
["0728","B","Introduction of Conditional Discount for Avoiding Inefficient Bypass of the NTS with 28km distance cap","Vitol SA Geneva","2020-06-09",{"$f":"VLOOKUP($J152,Lookups!$A$3:$C$19,3,FALSE)","v":"Closed"},"Urgent",null,"NTSCMF","Implemented",{"$f":"LOOKUP(J152,Lookups!$A$3:$A$20,Lookups!$B$3:$B$20)","v":"Effective date"},"2021-10-01",null,null,"National Grid NTS","n/a",null,null,null,null,null,null,null,"No"]
["0728","D","Introduction of Conditional Discounts for Avoiding Inefficient Bypass of the NTS","ENI","2020-06-09",{"$f":"VLOOKUP($J153,Lookups!$A$3:$C$19,3,FALSE)","v":"Closed"},"Urgent",null,"NTSCMF","Rejected",{"$f":"LOOKUP(J153,Lookups!$A$3:$A$20,Lookups!$B$3:$B$20)","v":"End of process"},"2021-04-27",null,null,"National Grid NTS","n/a",null,null,null,null,null,null,null,"No"]
["0728","C","Introduction of a Capacity Discount to Avoid Inefficient Bypass of the NTS","RWE Npower","2020-06-09",{"$f":"VLOOKUP($J154,Lookups!$A$3:$C$19,3,FALSE)","v":"Closed"},"Urgent",null,"NTSCMF","Rejected",{"$f":"LOOKUP(J154,Lookups!$A$3:$A$20,Lookups!$B$3:$B$20)","v":"End of process"},"2021-04-27",null,null,"National Grid NTS","n/a",null,null,null,null,null,null,null,"No"]
["0728","A","Introduction of Conditional Discounts for Avoiding Inefficient Bypass of the NTS","South Hook Gas","2020-06-09",{"$f":"VLOOKUP($J155,Lookups!$A$3:$C$19,3,FALSE)","v":"Closed"},"Urgent",null,"NTSCMF","Rejected",{"$f":"LOOKUP(J155,Lookups!$A$3:$A$20,Lookups!$B$3:$B$20)","v":"End of process"},"2021-04-27",null,null,"National Grid NTS","n/a",null,null,null,null,null,null,null,"No"]
["0728",null,"Introduction of a Conditional Discount for Avoiding Inefficient Bypass of the NTS","National Grid NTS","2020-06-09",{"$f":"VLOOKUP($J156,Lookups!$A$3:$C$19,3,FALSE)","v":"Closed"},"Urgent",null,"NTSCMF","Rejected",{"$f":"LOOKUP(J156,Lookups!$A$3:$A$20,Lookups!$B$3:$B$20)","v":"End of process"},"2021-04-27",null,null,"National Grid NTS","n/a",null,null,null,null,null,null,null,"No"]
["0727",null,"Increasing the Storage Transmission Capacity Charge Discount to 80%","Storengy UK Ltd","2020-06-05",{"$f":"VLOOKUP($J157,Lookups!$A$3:$C$19,3,FALSE)","v":"Closed"},"Urgent",null,"NTSCMF","Implemented",{"$f":"LOOKUP(J157,Lookups!$A$3:$A$20,Lookups!$B$3:$B$20)","v":"Effective date"},"2021-10-01",null,null,"National Grid NTS","n/a",null,null,null,null,null,null,null,"No"]
["0726",null,"COVID-19 Liquidity Relief Scheme for Shippers","Wales & West Utilities","2020-06-03",{"$f":"VLOOKUP($J158,Lookups!$A$3:$C$19,3,FALSE)","v":"Closed"},"Urgent",null,"Distribution","Implemented",{"$f":"LOOKUP(J158,Lookups!$A$3:$A$20,Lookups!$B$3:$B$20)","v":"Effective date"},"2020-06-24",null,null,"Northern Gas Networks","n/a",null,null,null,null,null,null,null,"No"]
["0725",null,"Ability to Reflect the Correct Customer Network Use and System Offtake Quantity (SOQ) During COVID-19 ","Gazprom Energy","2020-05-05",{"$f":"VLOOKUP($J159,Lookups!$A$3:$C$19,3,FALSE)","v":"Closed"},"Urgent",null,"Other","Rejected",{"$f":"LOOKUP(J159,Lookups!$A$3:$A$20,Lookups!$B$3:$B$20)","v":"End of process"},"2020-05-29",null,null,"Northern Gas Networks","n/a",null,null,null,null,null,null,null,"No"]
["0724",null,"Amendment to Ratchet charges during COVID-19 period","Northern Gas Networks","2020-04-21",{"$f":"VLOOKUP($J160,Lookups!$A$3:$C$19,3,FALSE)","v":"Closed"},"Urgent",null,"Distribution","Implemented",{"$f":"LOOKUP(J160,Lookups!$A$3:$A$20,Lookups!$B$3:$B$20)","v":"Effective date"},"2020-05-12",null,null,"Northern Gas Networks","n/a",null,null,null,null,null,null,null,"No"]
["0723",null,"Use of the Isolation Flag to identify sites with abnormal load reduction during COVID-19 period","Northern Gas Networks","2020-04-21",{"$f":"VLOOKUP($J161,Lookups!$A$3:$C$19,3,FALSE)","v":"Closed"},"Urgent",null,"Distribution","Implemented",{"$f":"LOOKUP(J161,Lookups!$A$3:$A$20,Lookups!$B$3:$B$20)","v":"Effective date"},"2020-05-12",null,null,"Northern Gas Networks","n/a",null,null,null,null,null,null,null,"No"]
["0722",null,"Allow Users to submit Estimated Meter Reading during COVID-19","Gazprom Energy","2020-04-21",{"$f":"VLOOKUP($J162,Lookups!$A$3:$C$19,3,FALSE)","v":"Closed"},"Urgent",null,"Distribution","Implemented",{"$f":"LOOKUP(J162,Lookups!$A$3:$A$20,Lookups!$B$3:$B$20)","v":"Effective date"},"2020-05-12",null,null,"Northern Gas Networks","n/a",null,null,null,null,null,null,null,"No"]
["0721",null,"Shipper submitted AQ Corrections during COVID-19 ","Gazprom Energy","2020-04-21",{"$f":"VLOOKUP($J163,Lookups!$A$3:$C$19,3,FALSE)","v":"Closed"},"Urgent",null,"Distribution","Rejected",{"$f":"LOOKUP(J163,Lookups!$A$3:$A$20,Lookups!$B$3:$B$20)","v":"End of process"},"2020-06-02",null,null,"Northern Gas Networks","n/a",null,null,null,null,null,null,null,"No"]
["0720","S","Amendments to the Agreed Target Quantity at the Moffat Interconnection Point ","National Grid","2020-03-11",{"$f":"VLOOKUP($J164,Lookups!$A$3:$C$19,3,FALSE)","v":"Closed"},"Self-Governance",null,"Transmission","Implemented",{"$f":"LOOKUP(J164,Lookups!$A$3:$A$20,Lookups!$B$3:$B$20)","v":"Effective date"},"2020-10-09",null,null,"N/A - Enabling Modification","n/a",null,null,null,{"$f":"IF(ISBLANK(S164),\" \",IF(S164<=R164,\"Y\",\"N\"))","v":" "},null,null,null,"No"]
["0719","R","Calculation of Energy Value of Gas","SGN","2020-03-06",{"$f":"VLOOKUP($J165,Lookups!$A$3:$C$19,3,FALSE)","v":"Closed"},"Request",null,"Offtake","Request Closed",{"$f":"LOOKUP(J165,Lookups!$A$3:$A$20,Lookups!$B$3:$B$20)","v":"End of process"},"2020-09-17",null,null,"National Grid NTS","n/a",null,null,null,{"$f":"IF(ISBLANK(S165),\" \",IF(S165<=R165,\"Y\",\"N\"))","v":" "},null,null,null,"No"]
["0718","C","Introduction of Conditional Capacity Discount for Avoiding Inefficient Bypass of the NTS","RWE","2020-03-06",{"$f":"VLOOKUP($J166,Lookups!$A$3:$C$20,3,FALSE)","v":"Closed"},"Modification",null,"NTSCMF","Withdrawn",{"$f":"LOOKUP(J166,Lookups!$A$3:$A$20,Lookups!$B$3:$B$20)","v":"End of process"},"2020-03-26",null,null,"National Grid NTS","n/a",null,null,null,{"$f":"IF(ISBLANK(S166),\" \",IF(S166<=R166,\"Y\",\"N\"))","v":" "},null,null,null,"No"]
["0718","B","Introduction of Conditional Discounts for Avoiding Inefficient Bypass of the NTS with 28km Distance Cap","VPI Immingham LLP","2020-03-06",{"$f":"VLOOKUP($J167,Lookups!$A$3:$C$20,3,FALSE)","v":"Closed"},"Modification",null,"NTSCMF","Withdrawn",{"$f":"LOOKUP(J167,Lookups!$A$3:$A$20,Lookups!$B$3:$B$20)","v":"End of process"},"2020-03-26",null,null,"National Grid NTS","n/a",null,null,null,null,null,null,null,"No"]
["0718","A","Introduction of Conditional Discounts for Avoiding Inefficient Bypass of the NTS","South Hook Gas","2020-03-06",{"$f":"VLOOKUP($J168,Lookups!$A$3:$C$20,3,FALSE)","v":"Closed"},"Modification",null,"NTSCMF","Withdrawn",{"$f":"LOOKUP(J168,Lookups!$A$3:$A$20,Lookups!$B$3:$B$20)","v":"End of process"},"2020-03-26",null,null,"National Grid NTS","na",null,null,null,null,null,null,null,"No"]
["0718",null,"Introduction of a Conditional Discount for Avoiding Inefficient Bypass of the NTS","National Grid","2020-03-06",{"$f":"VLOOKUP($J169,Lookups!$A$3:$C$20,3,FALSE)","v":"Closed"},"Modification",null,"NTSCMF","Withdrawn",{"$f":"LOOKUP(J169,Lookups!$A$3:$A$20,Lookups!$B$3:$B$20)","v":"End of process"},"2020-03-26",null,null,"National Grid NTS","n/a","Panel Requested Text\n19/06/2020","2020-07-09"]
["0717",null,"Increasing the Storage Transmission Capacity Charge Discount to 80%","Storengy UK Ltd","2020-03-05",{"$f":"VLOOKUP($J170,Lookups!$A$3:$C$20,3,FALSE)","v":"Closed"},"Modification",null,"NTSCMF","Withdrawn",{"$f":"LOOKUP(J170,Lookups!$A$3:$A$20,Lookups!$B$3:$B$20)","v":"End of process"},"2020-03-26",null,null,"na","n/a","Panel Requested Text\n19/06/2020","2020-07-09",null,null,null,null,null,{"$f":"IF(AND(F172=\"Live\",K172=\"Ofgem decision\"),\"Yes\",\"No\")","v":"No"}]
["0716",null,"Revision of Overrun Charge Multiplier","National Grid","2020-02-12",{"$f":"VLOOKUP($J171,Lookups!$A$3:$C$19,3,FALSE)","v":"Closed"},"Modification",null,"Transmission ","Implemented",{"$f":"LOOKUP(J171,Lookups!$A$3:$A$20,Lookups!$B$3:$B$20)","v":"Effective date"},"2020-10-01",null,null,"N/A - National Grid","n/a",null,null,null,null,null,null,null,"No"]
["0716","A","Revision of Overrun Charge Multiplier","Storengy UK Ltd","2020-04-20",{"$f":"VLOOKUP($J172,Lookups!$A$3:$C$19,3,FALSE)","v":"Closed"},"Modification",null,"Transmission ","Rejected",{"$f":"LOOKUP(J172,Lookups!$A$3:$A$20,Lookups!$B$3:$B$20)","v":"End of process"},"2020-09-18",null,null,"N/A - National Grid","n/a",null,null,null,null,null,null,null,"No"]
["0715","S","Amendment of the Data Permission Matrix and UNC TPD Section V5 to add Electricity System Operator (ESO) as a new User type","National Grid","2020-02-10",{"$f":"VLOOKUP($J173,Lookups!$A$3:$C$19,3,FALSE)","v":"Closed"},"Self-Governance",null,"Distribution","Implemented",{"$f":"LOOKUP(J173,Lookups!$A$3:$A$20,Lookups!$B$3:$B$20)","v":"Effective date"},"2020-06-15",null,null,"n/a","n/a","Panel Requested Text 19/12/2019","2020-01-14",null,null,null,null,null,"No"]
["0714",null,"Amendment to Network Entry Provision at Perenco Bacton terminal","Centrica","2020-01-08",{"$f":"VLOOKUP($J174,Lookups!$A$3:$C$19,3,FALSE)","v":"Closed"},"Modification",null,"Other","Implemented",{"$f":"LOOKUP(J174,Lookups!$A$3:$A$20,Lookups!$B$3:$B$20)","v":"Effective date"},"2021-03-29",null,null,"n/a",null,null,null,null,null,null,null,null,"No"]
["0713","S","Amendments to TPD V3.1.7 Independent Assessment table","Wales & West Utilities ","2019-12-12",{"$f":"VLOOKUP($J175,Lookups!$A$3:$C$19,3,FALSE)","v":"Closed"},"Self-Governance",null,"Transmission & Distribution","Implemented",{"$f":"LOOKUP(J175,Lookups!$A$3:$A$20,Lookups!$B$3:$B$20)","v":"Effective date"},"2020-05-11",null,null,"Wales & West Utilities",3,"Panel Requested Text 16/01/20","2020-02-06","2020-01-28",{"$f":"IF(ISBLANK(S175),\" \",IF(S175<=R175,\"Y\",\"N\"))","v":"Y"},null,null,null,"No"]
["0712","S","Amending the oxygen content limit in the Network Entry Agreement (NEA) at the St Fergus SAGE plant","OMV Gas Marketing and Trading GmbH ","2019-11-20",{"$f":"VLOOKUP($J176,Lookups!$A$3:$C$19,3,FALSE)","v":"Closed"},"Self-Governance",null,"Transmission","Implemented",{"$f":"LOOKUP(J176,Lookups!$A$3:$A$20,Lookups!$B$3:$B$20)","v":"Effective date"},"2020-05-11",null,null,"n/a","n/a",null,null,null,null,null,null,null,"No"]
["0711",null,"Update of AUG Table to reflect new EUC bands","Gazprom","2019-11-11",{"$f":"VLOOKUP($J177,Lookups!$A$3:$C$19,3,FALSE)","v":"Closed"},"Modification",null,"Distribution","Implemented",{"$f":"LOOKUP(J177,Lookups!$A$3:$A$20,Lookups!$B$3:$B$20)","v":"Effective date"},"2021-10-01",null,null,"Northern Gas Networks","n/a",null,null,"2019-11-07",null,null,null,null,"No"]
["0710","S","CDSP provision of Class 1 read\nservice","Wales & West Utilities","2019-11-08",{"$f":"VLOOKUP($J178,Lookups!$A$3:$C$19,3,FALSE)","v":"Closed"},"Self-Governance",null,"Distribution","Implemented",{"$f":"LOOKUP(J178,Lookups!$A$3:$A$20,Lookups!$B$3:$B$20)","v":"Effective date"},"2023-04-01",null,null,"Wales & West Utilites","n/a",null,null,null,null,null,null,null,"No"]
["0709","FT","Amendment of references to Data Protection Act for GDPR","Wales & West Utilities","2019-11-08",{"$f":"VLOOKUP($J179,Lookups!$A$3:$C$19,3,FALSE)","v":"Closed"},"Fast Track",null,"None","Implemented",{"$f":"LOOKUP(J179,Lookups!$A$3:$A$20,Lookups!$B$3:$B$20)","v":"Effective date"},"2019-12-12",null,null,"Wales & West Utilites","n/a","No Text req'd - enabling Mod",null,null,null,null,null,null,"No"]
["0708","S","Re-ordering of the UNC in advance of Faster Switching ","Northern Gas Networks","2019-11-08",{"$f":"VLOOKUP($J180,Lookups!$A$3:$C$19,3,FALSE)","v":"Closed"},"Self-Governance",null,"Governance","Implemented",{"$f":"LOOKUP(J180,Lookups!$A$3:$A$20,Lookups!$B$3:$B$20)","v":"Effective date"},"2020-07-24",null,null,"Northern Gas Networks","n/a",null,null,null,null,null,null,null,"No"]
["0707","S","Introducing ‘Performance Assurance Framework Administrator’ as a new User type to the Data Permissions Matrix","Shell","2019-11-08",{"$f":"VLOOKUP($J181,Lookups!$A$3:$C$19,3,FALSE)","v":"Closed"},"Self-Governance",null,"Distribution","Implemented",{"$f":"LOOKUP(J181,Lookups!$A$3:$A$20,Lookups!$B$3:$B$20)","v":"Effective date"},"2020-04-14",null,null,"n/a","n/a",null,null,null,null,null,null,null,"No"]
["0706","R","Instances where Shippers can exit commercial agreements with an independent Supplier","Contract Natural Gas Ltd","2019-10-31",{"$f":"VLOOKUP($J182,Lookups!$A$3:$C$20,3,FALSE)","v":"Closed"},"Request",null,"Distribution","Withdrawn",{"$f":"LOOKUP(J182,Lookups!$A$3:$A$20,Lookups!$B$3:$B$20)","v":"End of process"},"2020-02-25",null,null,"n/a","n/a",null,null,null,null,null,null,null,"No"]
["0705","R","NTS Capacity Access Review","National Grid NTS","2019-10-10",{"$f":"VLOOKUP($J183,Lookups!$A$3:$C$19,3,FALSE)","v":"Closed"},"Request",null,"Transmission","Request Closed",{"$f":"LOOKUP(J183,Lookups!$A$3:$A$20,Lookups!$B$3:$B$20)","v":"End of process"},"2021-12-16",null,null,"n/a","n/a","Text provided with mod",null,null,null,null,null,null,"No"]
["0704","S","Review of Transporter Theft Reporting","SGN","2019-10-04",{"$f":"VLOOKUP($J184,Lookups!$A$3:$C$19,3,FALSE)","v":"Closed"},"Self-Governance",null,"Distribution","Implemented",{"$f":"LOOKUP(J184,Lookups!$A$3:$A$20,Lookups!$B$3:$B$20)","v":"Effective date"},"2020-06-15",null,null,"SGN",2,null,null,null,null,null,null,null,"No"]
["0703","S","Correction to Modification 0689S 'Improvements to Margins Notice Arrangements'","National Grid NTS","2019-10-04",{"$f":"VLOOKUP($J185,Lookups!$A$3:$C$19,3,FALSE)","v":"Closed"},"Self-Governance",null,"Transmission","Implemented",{"$f":"LOOKUP(J185,Lookups!$A$3:$A$20,Lookups!$B$3:$B$20)","v":"Effective date"},"2019-11-25",null,null,"National Grid NTS","n/a",null,null,null,null,null,null,null,"No"]
["0702","S","Introducing ‘Research Body’ as a new User type to the Data Permissions Matrix and UNC TPD Section V5 ","Gazprom Energy","2019-09-11",{"$f":"VLOOKUP($J186,Lookups!$A$3:$C$19,3,FALSE)","v":"Closed"},"Self-Governance",null,"Distribution","Implemented",{"$f":"LOOKUP(J186,Lookups!$A$3:$A$20,Lookups!$B$3:$B$20)","v":"Effective date"},"2020-07-24",null,null,"Cadent",2,null,null,null,null,null,null,null,"No"]
["0701",null,"Aligning Capacity booking under the UNC and arrangements set out in relevant NExAs","Northern Gas Networks","2019-08-01",{"$f":"VLOOKUP($J187,Lookups!$A$3:$C$19,3,FALSE)","v":"Closed"},"Modification",null,"Distribution","Implemented",{"$f":"LOOKUP(J187,Lookups!$A$3:$A$20,Lookups!$B$3:$B$20)","v":"Effective date"},"2023-11-04",null,null,"Northern Gas Networks",1,null,null,null,null,null,null,null,"No"]
["0700",null,"Enabling large scale utilisation of Class 3","Gazprom Energy","2019-07-19",{"$f":"VLOOKUP($J188,Lookups!$A$3:$C$19,3,FALSE)","v":"Closed"},"Urgent",null,"Distribution","Implemented",{"$f":"LOOKUP(J188,Lookups!$A$3:$A$20,Lookups!$B$3:$B$20)","v":"Effective date"},"2019-09-28",null,null,"Cadent","n/a","Text provided with mod","2019-07-18","2019-07-18",{"$f":"IF(ISBLANK(S188),\" \",IF(S188<=R188,\"Y\",\"N\"))","v":"Y"},null,null,null,"No"]
["0699",null,"Incentivise Key Areas of Performance using additional UIG Charges","Scottish Power","2019-07-10",{"$f":"VLOOKUP($J189,Lookups!$A$3:$C$20,3,FALSE)","v":"Closed"},"Modification",null,"Distribution","Withdrawn",{"$f":"LOOKUP(J189,Lookups!$A$3:$A$20,Lookups!$B$3:$B$20)","v":"End of process"},"2020-01-21",null,null,"Scotia Gas Networks",8,"Panel Requested Text\n17/09/2020","2020-09-17","2020-09-17",{"$f":"IF(ISBLANK(S189),\" \",IF(S189<=R189,\"Y\",\"N\"))","v":"Y"}]
["0698","S","Improvements to Margins Notice Arrangements ","National Grid NTS","2019-07-09",{"$f":"VLOOKUP($J190,Lookups!$A$3:$C$19,3,FALSE)","v":"Closed"},"Self-Governance",null,"Transmission","Implemented",{"$f":"LOOKUP(J190,Lookups!$A$3:$A$20,Lookups!$B$3:$B$20)","v":"Effective date"},"2019-09-09",null,null,"National Grid NTS",8,"Panel Requested Text\n19/08/2020","2020-08-19","2020-08-19",{"$f":"IF(ISBLANK(S190),\" \",IF(S190<=R190,\"Y\",\"N\"))","v":"Y"},null,null,null,{"$f":"IF(AND(F192=\"Live\",K192=\"Ofgem decision\"),\"Yes\",\"No\")","v":"No"}]
["0697","VS","Alignment of the UNC TPD Section V5 and the Data Permissions Matrix","Gazprom Energy","2020-09-17",{"$f":"VLOOKUP($J191,Lookups!$A$3:$C$19,3,FALSE)","v":"Closed"},"Self-Governance",null,"Distribution","Implemented",{"$f":"LOOKUP(J191,Lookups!$A$3:$A$20,Lookups!$B$3:$B$20)","v":"Effective date"},"2020-11-18",null,null,"Cadent",7,null,null,null,null,null,null,null,"No"]
["0697","S","Alignment of the UNC TPD Section V5 and the Data Permissions Matrix","Gazprom Energy","2019-07-08",{"$f":"VLOOKUP($J192,Lookups!$A$3:$C$20,3,FALSE)","v":"Closed"},"Self-Governance",null,"Distribution","Withdrawn",{"$f":"LOOKUP(J192,Lookups!$A$3:$A$20,Lookups!$B$3:$B$20)","v":"End of process"},"2020-09-17",null,null,"Cadent",7,"Panel Requested Text 19/03/2020","2020-04-09","2020-03-19",{"$f":"IF(ISBLANK(S192),\" \",IF(S192<=R192,\"Y\",\"N\"))","v":"Y"},null,null,null,"No"]
["0696","V ","Addressing inequities between Capacity booking under the UNC and arrangements set out in relevant NExAs","SEFE Energy Limited","2020-03-19",{"$f":"VLOOKUP($J193,Lookups!$A$3:$C$19,3,FALSE)","v":"Closed"},"Modification",null,"Distribution","Rejected",{"$f":"LOOKUP(J193,Lookups!$A$3:$A$20,Lookups!$B$3:$B$20)","v":"End of process"},"2023-09-29",null,null,"Wales & West Utilities","n/a","Text provided with mod","2019-09-17","2019-09-17",{"$f":"IF(ISBLANK(S193),\" \",IF(S193<=R193,\"Y\",\"N\"))","v":"Y"},null,null,null,"No"]
["0696",null,"Addressing inequities between Capacity booking under the UNC and arrangements set out in relevant NExAs","Gazprom Energy","2019-06-12",{"$f":"VLOOKUP($J194,Lookups!$A$3:$C$20,3,FALSE)","v":"Closed"},"Modification",null,"Distribution","Withdrawn",{"$f":"LOOKUP(J194,Lookups!$A$3:$A$20,Lookups!$B$3:$B$20)","v":"End of process"},"2020-03-19",null,null,"Wales & West Utilities",null,null,null,null,null,null,null,null,"No"]
["0696","A","Aligning Capacity booking under the UNC and arrangements set out in relevant NExAs (Renumbered to 0701)","Northern Gas Networks","2019-08-01",{"$f":"VLOOKUP($J195,Lookups!$A$3:$C$20,3,FALSE)","v":"Closed"},"Modification",null,"Distribution","Withdrawn",{"$f":"LOOKUP(J195,Lookups!$A$3:$A$20,Lookups!$B$3:$B$20)","v":"End of process"},"2019-08-15",null,null,"Wales & West Utilities",7,"Panel Requested Text 15/08/2019","2019-09-06","2019-09-06",{"$f":"IF(ISBLANK(S195),\" \",IF(S195<=R195,\"Y\",\"N\"))","v":"Y"},null,null,null,"No"]
["0695","S","Obligations on Shippers to pass Transporter compensation payments on to consumers, via Suppliers","Northern Gas Networks","2019-06-10",{"$f":"VLOOKUP($J196,Lookups!$A$3:$C$19,3,FALSE)","v":"Closed"},"Self-Governance",null,"Distribution","Implemented",{"$f":"LOOKUP(J196,Lookups!$A$3:$A$20,Lookups!$B$3:$B$20)","v":"Effective date"},"2019-11-08",null,null,"Northern Gas Networks",null,null,null,null,null,null,null,null,"No"]
["0694","R","CDSP provision of Class 1 Read service","Wales & West Utilities","2019-05-31",{"$f":"VLOOKUP($J197,Lookups!$A$3:$C$20,3,FALSE)","v":"Closed"},"Request",null,"Distribution","Withdrawn",{"$f":"LOOKUP(J197,Lookups!$A$3:$A$20,Lookups!$B$3:$B$20)","v":"End of process"},"2019-11-25",null,null,"n/a",6,"Text provided with mod",null,null,null,null,null,null,"No"]
["0693","R","Treatment of kWh error arising from statutory volume-energy conversion","Scottish Power","2019-05-23",{"$f":"VLOOKUP($J198,Lookups!$A$3:$C$19,3,FALSE)","v":"Closed"},"Request",null,"Distribution","Request Closed",{"$f":"LOOKUP(J198,Lookups!$A$3:$A$20,Lookups!$B$3:$B$20)","v":"End of process"},"2021-01-21",null,null,"n/a",5,"Panel Requested Text 20/02/2020","2020-03-12","2020-03-12",{"$f":"IF(ISBLANK(S198),\" \",IF(S198<=R198,\"Y\",\"N\"))","v":"Y"},null,null,null,"No"]
["0692","S","Automatic updates to Meter Read Frequency ","Total Gas and Power","2019-05-02",{"$f":"VLOOKUP($J199,Lookups!$A$3:$C$19,3,FALSE)","v":"Closed"},"Self-Governance",null,"Distribution","Implemented",{"$f":"LOOKUP(J199,Lookups!$A$3:$A$20,Lookups!$B$3:$B$20)","v":"Effective date"},"2022-01-22",null,null,"Cadent",4,"Panel Requested Text 21/11/2019","2019-12-12",null,null,null,null,null,"No"]
["0691","S","CDSP to convert Class 2, 3 or 4 meter points to Class 1 when G1.6.15 criteria are met","Centrica","2019-04-09",{"$f":"VLOOKUP($J200,Lookups!$A$3:$C$19,3,FALSE)","v":"Closed"},"Self-Governance",null,"Distribution","Implemented",{"$f":"LOOKUP(J200,Lookups!$A$3:$A$20,Lookups!$B$3:$B$20)","v":"Effective date"},"2021-04-01",null,null,"Scotia Gas Networks",3,null,null,null,null,null,null,null,"No"]
["0690","S","Reduce qualifying period for Class 1","Centrica","2019-04-09",{"$f":"VLOOKUP($J201,Lookups!$A$3:$C$19,3,FALSE)","v":"Closed"},"Self-Governance",null,"UIG","Implemented",{"$f":"LOOKUP(J201,Lookups!$A$3:$A$20,Lookups!$B$3:$B$20)","v":"Effective date"},"2020-03-25",null,null,"Cadent",2,null,null,null,null,null,null,null,"No"]
["0689",null,"Removing the requirement to support Invoice queries before the due date with information from the .AML file ","Gazprom","2019-04-09",{"$f":"VLOOKUP($J202,Lookups!$A$3:$C$20,3,FALSE)","v":"Closed"},"Modification",null,"Distribution","Withdrawn",{"$f":"LOOKUP(J202,Lookups!$A$3:$A$20,Lookups!$B$3:$B$20)","v":"End of process"},"2019-09-13",null,null,"Northern Gas Networks",1,"Panel Requested Text 15/08/2019","2019-09-06","2019-08-19",{"$f":"IF(ISBLANK(S202),\" \",IF(S202<=R202,\"Y\",\"N\"))","v":"Y"},null,null,null,{"$f":"IF(AND(F205=\"Live\",K205=\"Ofgem decision\"),\"Yes\",\"No\")","v":"No"}]
["0688",null,"Recovery of Shipper Losses incurred in Supplier of Last Resort events","Contract Natural Gas Ltd","2019-04-09",{"$f":"VLOOKUP($J203,Lookups!$A$3:$C$20,3,FALSE)","v":"Closed"},"Modification",null,"Transmission","Withdrawn",{"$f":"LOOKUP(J203,Lookups!$A$3:$A$20,Lookups!$B$3:$B$20)","v":"End of process"},"2019-10-02",null,null,"Cadent","n/a","Panel Requested Text 18/4/19 ","2019-05-14","2019-05-15","N"]
["0687","V","Creation of new charge to recover Last Resort Supply Payments","Total Gas and Power","2021-12-14",{"$f":"VLOOKUP($J204,Lookups!$A$3:$C$19,3,FALSE)","v":"Closed"},"Modification",null,"Distribution","Rejected",{"$f":"LOOKUP(J204,Lookups!$A$3:$A$20,Lookups!$B$3:$B$20)","v":"End of process"},"2022-01-20",null,null,"Scotia Gas Networks","n/a","Panel Requested Text 18/4/19 ","2019-05-14","2019-05-15","N",null,null,null,{"$f":"IF(AND(F206=\"Live\",K206=\"Ofgem decision\"),\"Yes\",\"No\")","v":"No"}]
["0687",null,"Creation of new charge to recover Last Resort Supply Payments","Total Gas and Power","2019-04-09",{"$f":"VLOOKUP($J205,Lookups!$A$3:$C$20,3,FALSE)","v":"Closed"},"Modification",null,"Distribution","Withdrawn",{"$f":"LOOKUP(J205,Lookups!$A$3:$A$20,Lookups!$B$3:$B$20)","v":"End of process"},"2021-12-14",null,null,"Scotia Gas Networks","n/a","Panel Requested Text 18/04/19 ","2019-05-14","2019-04-29","Y",null,null,null,"No"]
["0686",null,"Removal of the NTS Optional Commodity Rate with adequate notice","Vermilion Energy Ireland Ltd","2019-04-02",{"$f":"VLOOKUP($J206,Lookups!$A$3:$C$19,3,FALSE)","v":"Closed"},"Modification",null,"NTSCMF","Rejected",{"$f":"LOOKUP(J206,Lookups!$A$3:$A$20,Lookups!$B$3:$B$20)","v":"End of process"},"2021-06-18",null,null,"National Grid NTS",8,"Panel Requested Text 21/03/19","2019-04-11","2019-03-27","Y",null,null,null,"No"]
["0685",null,"Amendment of the UNC term ‘Gas Deficit Warning’ to ‘Gas Balancing Notification’","National Grid NTS","2019-04-02",{"$f":"VLOOKUP($J207,Lookups!$A$3:$C$19,3,FALSE)","v":"Closed"},"Modification",null,"None","Implemented",{"$f":"LOOKUP(J207,Lookups!$A$3:$A$20,Lookups!$B$3:$B$20)","v":"Effective date"},"2019-10-01",null,null,"National Grid NTS","n/a",null,null,null," ",null,null,null,"No"]
["0684","S","Amendment of the Data Permission\nMatrix to add Meter Asset Provider as a new User type Document - Phase 1","Scottish Power","2019-03-14",{"$f":"VLOOKUP($J208,Lookups!$A$3:$C$19,3,FALSE)","v":"Closed"},"Self-Governance",null,"Distribution","Implemented",{"$f":"LOOKUP(J208,Lookups!$A$3:$A$20,Lookups!$B$3:$B$20)","v":"Effective date"},"2019-06-28",null,null,"Cadent",7,"Panel Requested Text 18/4/19 ","2019-05-14","2019-05-20","N",null,null,null,"No"]
["0683","S","Offtake Arrangements Document (OAD) Review Updates – Phase 1","Cadent","2019-03-11",{"$f":"VLOOKUP($J209,Lookups!$A$3:$C$19,3,FALSE)","v":"Closed"},"Self-Governance",null,"Offtake","Implemented",{"$f":"LOOKUP(J209,Lookups!$A$3:$A$20,Lookups!$B$3:$B$20)","v":"Effective date"},"2020-06-15",null,null,"Cadent",6,"Panel Requested Text 16/05/19","2019-06-07","2019-06-04","Y",null,null,null,"No"]
["0682",null,"Market Participant MDD Migration to UNC Governance from the SPAA","E.ON UK","2019-03-08",{"$f":"VLOOKUP($J210,Lookups!$A$3:$C$19,3,FALSE)","v":"Closed"},"Modification",null,"Distribution","Implemented",{"$f":"LOOKUP(J210,Lookups!$A$3:$A$20,Lookups!$B$3:$B$20)","v":"Effective date"},"2020-02-28",null,null,"Wales & West Utilities",null,"Panel Requested Text 21/02/19","2019-03-14",null," ",null,null,null,"No"]
["0681","S","Improvements to the quality of the Conversion Factor values held on the Supply Point Register","E.ON UK","2019-03-06",{"$f":"VLOOKUP($J211,Lookups!$A$3:$C$19,3,FALSE)","v":"Closed"},"Self-Governance",null,"UIG","Implemented",{"$f":"LOOKUP(J211,Lookups!$A$3:$A$20,Lookups!$B$3:$B$20)","v":"Effective date"},"2020-03-25",null,null,"Cadent",null,"Panel Requested Text 21/02/19","2019-03-14",null," ",null,null,null,"No"]
["0680","VS","UNC Changes as a Consequence of ‘no deal’ United Kingdom Exit from the European Union","National Grid NTS","2019-11-01",{"$f":"VLOOKUP($J212,Lookups!$A$3:$C$20,3,FALSE)","v":"Closed"},"Self-Governance",null,"Transmission","Withdrawn",{"$f":"LOOKUP(J212,Lookups!$A$3:$A$20,Lookups!$B$3:$B$20)","v":"End of process"},"2020-02-18",null,null,"National Grid NTS",null,null,null,null," ",null,null,null,"No"]
["0680","S","UNC Changes as a Consequence of ‘no deal’ United Kingdom Exit from the European Union","National Grid NTS","2019-02-07",{"$f":"VLOOKUP($J213,Lookups!$A$3:$C$20,3,FALSE)","v":"Closed"},"Self-Governance",null,"Transmission","Withdrawn",{"$f":"LOOKUP(J213,Lookups!$A$3:$A$20,Lookups!$B$3:$B$20)","v":"End of process"},"2019-11-01",null,null,"National Grid NTS",null,null,null,null," ",null,null,null,"No"]
["0679",null,"Amendments to Gas Transmission Charging Regime (Postage Stamp) (Renumbered to 0678A)","RWE Npower","2019-01-24",{"$f":"VLOOKUP($J214,Lookups!$A$3:$C$20,3,FALSE)","v":"Closed"},"Urgent",null,"Other","Withdrawn",{"$f":"LOOKUP(J214,Lookups!$A$3:$A$20,Lookups!$B$3:$B$20)","v":"End of process"},"2019-01-28",null,null,"National Grid NTS",null,null,null,null," ",null,null,null,"No"]
["0678","A","Amendments to Gas Transmission Charging Regime (Postage Stamp)","RWE  ","2019-01-28",{"$f":"VLOOKUP($J215,Lookups!$A$3:$C$19,3,FALSE)","v":"Closed"},"Urgent",null,"Other","Implemented",{"$f":"LOOKUP(J215,Lookups!$A$3:$A$20,Lookups!$B$3:$B$20)","v":"Effective date"},"2020-10-01",null,null,"National Grid NTS",null,null,null,null," ",null,null,null,"No"]
["0678","J","Amendments to Gas Charging Regime (Postage Stamp) including a Cost based Optional Capacity Charge","South Hook Gas","2019-03-19",{"$f":"VLOOKUP($J216,Lookups!$A$3:$C$19,3,FALSE)","v":"Closed"},"Urgent",null,"Other","Rejected",{"$f":"LOOKUP(J216,Lookups!$A$3:$A$20,Lookups!$B$3:$B$20)","v":"End of process"},"2020-05-28",null,null,"National Grid NTS",null,null,null,null," ",null,null,null,"No"]
["0678","I","Amendments to Gas Transmission Charging Regime","SEFE Energy Limited","2019-02-27",{"$f":"VLOOKUP($J217,Lookups!$A$3:$C$19,3,FALSE)","v":"Closed"},"Urgent",null,"Other","Rejected",{"$f":"LOOKUP(J217,Lookups!$A$3:$A$20,Lookups!$B$3:$B$20)","v":"End of process"},"2020-05-28",null,null,"National Grid NTS",null,null,null,null," ",null,null,null,"No"]
["0678","H","Amendments to Gas Transmission Charging Regime (Postage Stamp) including a Cost based Optional Capacity Charge","EP UK Investments","2019-02-27",{"$f":"VLOOKUP($J218,Lookups!$A$3:$C$19,3,FALSE)","v":"Closed"},"Urgent",null,"Other","Rejected",{"$f":"LOOKUP(J218,Lookups!$A$3:$A$20,Lookups!$B$3:$B$20)","v":"End of process"},"2020-05-28",null,null,"National Grid NTS",null,null,null,null," ",null,null,null,"No"]
["0678","G","Amendments to Gas Transmission Charging Regime including a Cost based Optional Capacity Charge","Vitol SA Geneva","2019-02-26",{"$f":"VLOOKUP($J219,Lookups!$A$3:$C$19,3,FALSE)","v":"Closed"},"Urgent",null,"Other","Rejected",{"$f":"LOOKUP(J219,Lookups!$A$3:$A$20,Lookups!$B$3:$B$20)","v":"End of process"},"2020-05-28",null,null,"National Grid NTS",null,null,null,null," ",null,null,null,"No"]
["0678","F","Amendments to Gas Transmission Charging Regime – Treatment of Unprotected Entry Capacity and Storage ","Storengy UK Ltd","2019-02-22",{"$f":"VLOOKUP($J220,Lookups!$A$3:$C$19,3,FALSE)","v":"Closed"},"Urgent",null,"Other","Rejected",{"$f":"LOOKUP(J220,Lookups!$A$3:$A$20,Lookups!$B$3:$B$20)","v":"End of process"},"2020-05-28",null,null,"National Grid NTS",null,null,null,null," ",null,null,null,"No"]
["0678","E","Amendments to Gas Charging Regime – Treatment of Storage","Gateway LNG Company Ltd","2019-02-20",{"$f":"VLOOKUP($J221,Lookups!$A$3:$C$19,3,FALSE)","v":"Closed"},"Urgent",null,"Other","Rejected",{"$f":"LOOKUP(J221,Lookups!$A$3:$A$20,Lookups!$B$3:$B$20)","v":"End of process"},"2020-05-28",null,null,"National Grid NTS",null,null,null,null," ",null,null,null,"No"]
["0678","D","Amendments to Gas Transmission Charging Regime","ENI","2019-02-20",{"$f":"VLOOKUP($J222,Lookups!$A$3:$C$19,3,FALSE)","v":"Closed"},"Urgent",null,"Other","Rejected",{"$f":"LOOKUP(J222,Lookups!$A$3:$A$20,Lookups!$B$3:$B$20)","v":"End of process"},"2020-05-28",null,null,"National Grid NTS",null,null,null,null," ",null,null,null,"No"]
["0678","C","Amendments to Gas Charging Regime (Postage Stamp)","SSE","2019-02-15",{"$f":"VLOOKUP($J223,Lookups!$A$3:$C$19,3,FALSE)","v":"Closed"},"Urgent",null,"Other","Rejected",{"$f":"LOOKUP(J223,Lookups!$A$3:$A$20,Lookups!$B$3:$B$20)","v":"End of process"},"2020-05-28",null,null,"National Grid NTS",null,null,null,null," ",null,null,null,"No"]
["0678","B","Amendments to Gas Transmission Charging Regime","Centrica","2019-02-06",{"$f":"VLOOKUP($J224,Lookups!$A$3:$C$19,3,FALSE)","v":"Closed"},"Urgent",null,"Other","Rejected",{"$f":"LOOKUP(J224,Lookups!$A$3:$A$20,Lookups!$B$3:$B$20)","v":"End of process"},"2020-05-28",null,null,"National Grid NTS",null,null,null,null," ",null,null,null,"No"]
["0678",null,"Amendments to Gas Transmission Charging Regime","National Grid NTS","2019-01-17",{"$f":"VLOOKUP($J225,Lookups!$A$3:$C$19,3,FALSE)","v":"Closed"},"Urgent",null,"Other","Rejected",{"$f":"LOOKUP(J225,Lookups!$A$3:$A$20,Lookups!$B$3:$B$20)","v":"End of process"},"2020-05-28",null,null,"National Grid NTS",5,null,null,null," ",null,null,null,"No"]
["0677","R","Shipper Supplier Theft Reporting Request","first:utility","2019-01-04",{"$f":"VLOOKUP($J226,Lookups!$A$3:$C$19,3,FALSE)","v":"Closed"},"Request",null,"Other","Request Closed",{"$f":"LOOKUP(J226,Lookups!$A$3:$A$20,Lookups!$B$3:$B$20)","v":"End of process"},"2019-11-21",null,null,"n/a",null,"No Text req'd - enabling Mod",null,null," ",null,null,null,"No"]
["0676","R","Review of Gas Transporter Joint Office Arrangements ","Gazprom","2018-12-24",{"$f":"VLOOKUP($J227,Lookups!$A$3:$C$20,3,FALSE)","v":"Closed"},"Request",null,"Governance","Withdrawn",{"$f":"LOOKUP(J227,Lookups!$A$3:$A$20,Lookups!$B$3:$B$20)","v":"End of process"},"2021-02-22",null,null,"SGN",4,"Panel requested text 21/01/21 ","2021-02-11",null," ",null,null,null,"No"]
["0675","S","Enabling changes to the BBL Interconnection Agreement to facilitate physical reverse flow","National Grid NTS","2018-12-11",{"$f":"VLOOKUP($J228,Lookups!$A$3:$C$19,3,FALSE)","v":"Closed"},"Self-Governance",null,"Transmission","Implemented",{"$f":"LOOKUP(J228,Lookups!$A$3:$A$20,Lookups!$B$3:$B$20)","v":"Effective date"},"2019-07-12",null,null,"National Grid NTS",3,null,null,null," ",null,null,null,"No"]
["0674","V","Performance Assurance Techniques and Controls ","Scottish Power","2018-11-07",{"$f":"VLOOKUP($J229,Lookups!$A$3:$C$19,3,FALSE)","v":"Closed"},"Modification",null,"Other","Implemented",{"$f":"LOOKUP(J229,Lookups!$A$3:$A$20,Lookups!$B$3:$B$20)","v":"Effective date"},"2022-11-01",null,null,"Cadent",2,"Panel Requested Text 21/11/19","2019-12-12","2019-12-06","Y",null,null,null,"No"]
["0673",null,"Amendment of UNC and DSC arrangements to enable Xoserve to bid for and provide CSS Services","Gazprom","2018-10-19",{"$f":"VLOOKUP($J230,Lookups!$A$3:$C$19,3,FALSE)","v":"Closed"},"Urgent",null,"Other","Implemented",{"$f":"LOOKUP(J230,Lookups!$A$3:$A$20,Lookups!$B$3:$B$20)","v":"Effective date"},"2018-11-30",null,null,"Northern Gas Networks",null,null,null,null," ",null,null,null,"No"]
["0672","S","Target, Measure and Reporting Product Class 4 Read Performance","Scottish Power","2018-10-08",{"$f":"VLOOKUP($J231,Lookups!$A$3:$C$19,3,FALSE)","v":"Closed"},"Self-Governance",null,"UIG","Implemented",{"$f":"LOOKUP(J231,Lookups!$A$3:$A$20,Lookups!$B$3:$B$20)","v":"Effective date"},"2020-09-07",null,null,"Cadent",null,"No Text req'd - Request",null,null," ",null,null,null,"No"]
["0671",null,"New Capacity Exchange process at NTS exit points for capacity below baseline","Wales & West Utilities","2018-10-08",{"$f":"VLOOKUP($J232,Lookups!$A$3:$C$20,3,FALSE)","v":"Closed"},"Modification",null,"Transmission","Withdrawn",{"$f":"LOOKUP(J232,Lookups!$A$3:$A$20,Lookups!$B$3:$B$20)","v":"End of process"},"2019-08-16",null,null,"n/a",null,null,null,null," ",null,null,null,"No"]
["0670","R","Review of the charging methodology to avoid the inefficient bypass of the NTS","National Grid NTS","2018-10-08",{"$f":"VLOOKUP($J233,Lookups!$A$3:$C$19,3,FALSE)","v":"Closed"},"Request",null,"NTSCMF","Request Closed",{"$f":"LOOKUP(J233,Lookups!$A$3:$A$20,Lookups!$B$3:$B$20)","v":"End of process"},"2020-07-16",null,null,"National Grid NTS",1,null,null,"2018-12-19","N",null,null,null,"No"]
["0669","R","Review of the Gas Deficit Warning (GDW) and Margins Notice (MN) Arrangements","National Grid NTS","2018-09-07",{"$f":"VLOOKUP($J234,Lookups!$A$3:$C$19,3,FALSE)","v":"Closed"},"Request",null,"Transmission","Request Closed",{"$f":"LOOKUP(J234,Lookups!$A$3:$A$20,Lookups!$B$3:$B$20)","v":"End of process"},"2019-08-15",null,null,"National Grid NTS"," ","Panel Requested Text 21/03/19","2019-04-11","2019-04-16","N",null,null,null,"No"]
["0668","S","Amendment of the Data Permission Matrix to add Alt Han Company as a new User type","E.ON UK","2018-09-06",{"$f":"VLOOKUP($J235,Lookups!$A$3:$C$19,3,FALSE)","v":"Closed"},"Self-Governance",null,"Distribution","Implemented",{"$f":"LOOKUP(J235,Lookups!$A$3:$A$20,Lookups!$B$3:$B$20)","v":"Effective date"},"2019-03-01",null,null,"Scotia Gas Networks",8,"Text provided with mod","2018-08-29","2018-08-29","Y",null,null,null,"No"]
["0667",null,"Inclusion and Amendment of Entry Incremental Capacity Release NPV test in UNC ","South Hook Gas","2018-09-06",{"$f":"VLOOKUP($J236,Lookups!$A$3:$C$19,3,FALSE)","v":"Closed"},"Modification",null,"Transmission","Rejected",{"$f":"LOOKUP(J236,Lookups!$A$3:$A$20,Lookups!$B$3:$B$20)","v":"End of process"},"2020-02-20",null,null,"National Grid NTS","7 (5)","Panel Requested Text 21/02/19","2019-03-14",null," ",null,null,null,"No"]
["0666",null,"Establishment of a CSS Bid Group or CDSP central switching system bid activities","Gazprom","2018-08-15",{"$f":"VLOOKUP($J237,Lookups!$A$3:$C$19,3,FALSE)","v":"Closed"},"Urgent",null,"Other","Implemented",{"$f":"LOOKUP(J237,Lookups!$A$3:$A$20,Lookups!$B$3:$B$20)","v":"Effective date"},"2018-09-11",null,null,"Cadent",6,"Panel Requested Text 17/09/20","2020-09-17","2020-09-17","Y"]
["0665",null,"Changes to Ratchet Regime","Gazprom","2018-08-14",{"$f":"VLOOKUP($J238,Lookups!$A$3:$C$19,3,FALSE)","v":"Closed"},"Modification",null,"Other","Implemented",{"$f":"LOOKUP(J238,Lookups!$A$3:$A$20,Lookups!$B$3:$B$20)","v":"Effective date"},"2019-10-01",null,null,"SGN",6,"Panel Requested Text 17/09/20","2020-09-17","2020-09-17","Y"]
["0664","VVS","Transfer of Sites with Low Read Submission Performance from Class 2 and 3 into Class 4 (adopted)","SSE","2021-06-17",{"$f":"VLOOKUP($J239,Lookups!$A$3:$C$19,3,FALSE)","v":"Closed"},"Self-Governance",null,"Distribution","Implemented",{"$f":"LOOKUP(J239,Lookups!$A$3:$A$20,Lookups!$B$3:$B$20)","v":"Effective date"},"2023-02-25",null,null,"Cadent",6,"Panel Requested Text 16/01/20","2020-02-06","2020-01-29","Y",null,null,null,{"$f":"IF(AND(F241=\"Live\",K241=\"Ofgem decision\"),\"Yes\",\"No\")","v":"No"}]
["0664","V","Transfer of Sites with Low Read Submission Performance from Class 2 and 3 into Class 4 (adopted)","SSE","2020-09-17",{"$f":"VLOOKUP($J240,Lookups!$A$3:$C$20,3,FALSE)","v":"Closed"},"Modification",null,"Distribution","Withdrawn",{"$f":"LOOKUP(J240,Lookups!$A$3:$A$20,Lookups!$B$3:$B$20)","v":"End of process"},"2021-06-17",null,null,"Cadent",6,null,null,null," ",null,null,null,"No"]
["0664",null,"Transfer of Sites with Low Read Submission Performance from Class 2 and 3 into Class 4 (adopted)","SSE","2019-06-28",{"$f":"VLOOKUP($J241,Lookups!$A$3:$C$20,3,FALSE)","v":"Closed"},"Modification",null,"UIG","Withdrawn",{"$f":"LOOKUP(J241,Lookups!$A$3:$A$20,Lookups!$B$3:$B$20)","v":"End of process"},"2020-09-17",null,null,"Cadent","5 (7)",null,null,null," ",null,null,null,"No"]
["0664",null,"Transfer of Sites with Low Read Submission Performance from Class 2 and 3 into Class 4","Npower","2018-08-06",{"$f":"VLOOKUP($J242,Lookups!$A$3:$C$20,3,FALSE)","v":"Closed"},"Modification",null,"UIG","Withdrawn",{"$f":"LOOKUP(J242,Lookups!$A$3:$A$20,Lookups!$B$3:$B$20)","v":"End of process"},"2019-06-26",null,null,"Cadent",null,null,null,null," ",null,null,null,"No"]
["0663","S","Extending the data comprised under the definition of Supply Point Premises Data (TPD V5.18.1)","Scottish Power","2018-07-06",{"$f":"VLOOKUP($J243,Lookups!$A$3:$C$20,3,FALSE)","v":"Closed"},"Self-Governance",null,"Distribution","Withdrawn",{"$f":"LOOKUP(J243,Lookups!$A$3:$A$20,Lookups!$B$3:$B$20)","v":"End of process"},"2018-11-27",null,null,"Wales & West Utilities","n/a",null,null,null," ",null,null,null,"No"]
["0662",null,"Revenue Recovery at Combined  ASEPs","National Grid NTS","2018-06-12",{"$f":"VLOOKUP($J244,Lookups!$A$3:$C$20,3,FALSE)","v":"Closed"},"Modification",null,"Transmission","Withdrawn",{"$f":"LOOKUP(J244,Lookups!$A$3:$A$20,Lookups!$B$3:$B$20)","v":"End of process"},"2020-01-09",null,null,"National Grid",4,"Panel Requested Text 20/09/18","2018-10-11",null," ",null,null,null,"No"]
["0661","R","Reconciliation and Imbalance Cash Out Prices","Winchester Gas","2018-06-11",{"$f":"VLOOKUP($J245,Lookups!$A$3:$C$19,3,FALSE)","v":"Closed"},"Request",null,"Other","Request Closed",{"$f":"LOOKUP(J245,Lookups!$A$3:$A$20,Lookups!$B$3:$B$20)","v":"End of process"},"2019-05-16",null,null,"n/a",3,"Panel requested Text 18/10/18","2018-11-08",null," ",null,null,null,"No"]
["0660","S","Amendment to PARR permissions to allow PAC to update with UNCC approval","Centrica","2018-06-08",{"$f":"VLOOKUP($J246,Lookups!$A$3:$C$19,3,FALSE)","v":"Closed"},"Self-Governance",null,"Distribution","Implemented",{"$f":"LOOKUP(J246,Lookups!$A$3:$A$20,Lookups!$B$3:$B$20)","v":"Effective date"},"2018-12-07",null,null,"Cadent",2,null,null,null," ",null,null,null,"No"]
["0659","S","Improvements to the Composite Weather Variable","E.ON UK","2018-05-29",{"$f":"VLOOKUP($J247,Lookups!$A$3:$C$20,3,FALSE)","v":"Closed"},"Self-Governance",null,"UIG","Withdrawn",{"$f":"LOOKUP(J247,Lookups!$A$3:$A$20,Lookups!$B$3:$B$20)","v":"End of process"},"2018-11-14",null,null,"Northern Gas Networks",1,"N/A",null,null," ",null,null,null,"No"]
["0658",null,"CDSP to identify and develop improvements to LDZ settlement processes ","Total Gas and Power","2018-05-25",{"$f":"VLOOKUP($J248,Lookups!$A$3:$C$19,3,FALSE)","v":"Closed"},"Urgent",null,"None","Implemented",{"$f":"LOOKUP(J248,Lookups!$A$3:$A$20,Lookups!$B$3:$B$20)","v":"Effective date"},"2018-07-06",null,null,"Cadent",8,"Panel Requested Text 16/08/18","2018-09-07","2018-08-17","Y",null,null,null,"No"]
["0657","S","Adding AQ reporting to the PARR Schedule reporting suite ","Npower","2018-04-30",{"$f":"VLOOKUP($J249,Lookups!$A$3:$C$19,3,FALSE)","v":"Closed"},"Self-Governance",null,"Distribution","Implemented",{"$f":"LOOKUP(J249,Lookups!$A$3:$A$20,Lookups!$B$3:$B$20)","v":"Effective date"},"2018-10-12",null,null,"SGN",7,null,null,null," ",null,null,null,"No"]
["0656",null,"Changes to Modification Panel arrangements","Gazprom","2018-04-30",{"$f":"VLOOKUP($J250,Lookups!$A$3:$C$19,3,FALSE)","v":"Closed"},"Modification",null,"Governance","Implemented",{"$f":"LOOKUP(J250,Lookups!$A$3:$A$20,Lookups!$B$3:$B$20)","v":"Effective date"},"2018-11-28",null,null,"Cadent",5,"Panel requested Text 16/08/18","2018-08-16","2018-08-16","Y",null,null,null,"No"]
["0655","S","Requiring a Meter Reading following a change of Local Distribution Zone or Exit Zone.","Gazprom","2018-04-06",{"$f":"VLOOKUP($J251,Lookups!$A$3:$C$20,3,FALSE)","v":"Closed"},"Self-Governance",null,"Distribution","Withdrawn",{"$f":"LOOKUP(J251,Lookups!$A$3:$A$20,Lookups!$B$3:$B$20)","v":"End of process"},"2018-07-16",null,null,"Wales & West Utilities","n/a",null,null,null," ",null,null,null,"No"]
["0654","S","Mandating the provision of NDM sample data","E.ON UK","2018-03-28",{"$f":"VLOOKUP($J252,Lookups!$A$3:$C$19,3,FALSE)","v":"Closed"},"Self-Governance",null,"UIG","Implemented",{"$f":"LOOKUP(J252,Lookups!$A$3:$A$20,Lookups!$B$3:$B$20)","v":"Effective date"},"2019-03-01","National Grid NTS",null,"Scotia Gas Networks",3,"Panel requested Text 18/10/18","2018-11-08","2018-11-16","N",null,null,null,"No"]
["0653",null,"Updating the parameters for the NTS Optional Commodity Charge – Introducing the NTS Optional Capacity Charge ","Centrica","2018-03-15",{"$f":"VLOOKUP($J253,Lookups!$A$3:$C$20,3,FALSE)","v":"Closed"},"Modification",null,"NTSCMF","Withdrawn",{"$f":"LOOKUP(J253,Lookups!$A$3:$A$20,Lookups!$B$3:$B$20)","v":"End of process"},"2018-08-13","National Grid NTS","n/a","National Grid NTS","n/a","Panel requested Text 18/07/18","2018-07-18","2018-07-18","Y",null,null,null,{"$f":"IF(AND(F255=\"Live\",K255=\"Ofgem decision\"),\"Yes\",\"No\")","v":"No"}]
["0652",null,"Introduction of winter read/consumption reports and associated obligations","Npower","2018-03-07",{"$f":"VLOOKUP($J254,Lookups!$A$3:$C$19,3,FALSE)","v":"Closed"},"Modification",null,"UIG","Implemented",{"$f":"LOOKUP(J254,Lookups!$A$3:$A$20,Lookups!$B$3:$B$20)","v":"Effective date"},"2019-08-11","n/a","n/a","Northern Gas Networks",null,null,null,null," ",null,null,null,"No"]
["0651",null,"Changes to the Retrospective Data Update provisions","Cadent","2018-03-05",{"$f":"VLOOKUP($J255,Lookups!$A$3:$C$19,3,FALSE)","v":"Closed"},"Modification",null,"Distribution","Rejected",{"$f":"LOOKUP(J255,Lookups!$A$3:$A$20,Lookups!$B$3:$B$20)","v":"End of process"},"2023-11-14",null,null,"Not implemented see UNC 0825",2,"Panel Requested Text 16/08/18","2018-09-07","2018-08-17","Y",null,null,null,"No"]
["0650","FT","Minor Typographical Correction to UNC0638V Legal Text","Northern Gas Networks","2018-02-28",{"$f":"VLOOKUP($J256,Lookups!$A$3:$C$19,3,FALSE)","v":"Closed"},"Fast Track",null,"Distribution","Implemented",{"$f":"LOOKUP(J256,Lookups!$A$3:$A$20,Lookups!$B$3:$B$20)","v":"Effective date"},"2018-04-10",null,null,"n/a",1,"Panel Requested Text 15/02/18","2018-03-08","2018-02-26","Y",null,null,null,"No"]
["0649","S","Update to UNC to formalise the Data Enquiry Service Permissions Matrix ","Gazprom","2018-02-26",{"$f":"VLOOKUP($J257,Lookups!$A$3:$C$19,3,FALSE)","v":"Closed"},"Self-Governance",null,"Distribution","Implemented",{"$f":"LOOKUP(J257,Lookups!$A$3:$A$20,Lookups!$B$3:$B$20)","v":"Effective date"},"2018-11-09",null,null,"Cadent",null,null,null,null," ",null,null,null,"No"]
["0648","S","End dating the revised DM Read estimation process introduced by Modification 0634 ","Gazprom","2018-02-06",{"$f":"VLOOKUP($J258,Lookups!$A$3:$C$19,3,FALSE)","v":"Closed"},"Self-Governance",null,"Distribution","Implemented",{"$f":"LOOKUP(J258,Lookups!$A$3:$A$20,Lookups!$B$3:$B$20)","v":"Effective date"},"2018-06-11",null,null,"Scotia Gas Networks",null,null,null,null," ",null,null,null,"No"]
["0647",null,"Opening Class 1 reads to Competition","Wales & West Utilities","2018-01-18",{"$f":"VLOOKUP($J259,Lookups!$A$3:$C$20,3,FALSE)","v":"Closed"},"Modification",null,"Distribution","Withdrawn",{"$f":"LOOKUP(J259,Lookups!$A$3:$A$20,Lookups!$B$3:$B$20)","v":"End of process"},"2019-06-20","SGN",null,"n/a",null,"Panel Requested Text 15/02/18","2018-03-08","2018-02-16","Y",null,null,null,"No"]
["0646","R","Review of the Offtake Arrangements Document ","Cadent","2018-01-10",{"$f":"VLOOKUP($J260,Lookups!$A$3:$C$19,3,FALSE)","v":"Closed"},"Request",null,"Offtake","Request Closed",{"$f":"LOOKUP(J260,Lookups!$A$3:$A$20,Lookups!$B$3:$B$20)","v":"End of process"},"2021-12-16",null,null,"n/a","2 (6)",null,null,null," ",null,null,null,"No"]
["0645","S","Amending the oxygen content limit in the Network Entry Agreement at South Hook LNG","South Hook Gas","2018-01-02",{"$f":"VLOOKUP($J261,Lookups!$A$3:$C$19,3,FALSE)","v":"Closed"},"Self-Governance",null,"Transmission","Implemented",{"$f":"LOOKUP(J261,Lookups!$A$3:$A$20,Lookups!$B$3:$B$20)","v":"Effective date"},"2018-06-11","n/a","n/a","National Grid NTS","2 (4)",null,null,null," ",null,null,null,"No"]
["0644",null,"Improvements to nomination and reconciliation through the introduction of new EUC bands and improvements for the ALP and DAF","E.ON UK","2017-12-15",{"$f":"VLOOKUP($J262,Lookups!$A$3:$C$20,3,FALSE)","v":"Closed"},"Modification",null,"Distribution","Withdrawn",{"$f":"LOOKUP(J262,Lookups!$A$3:$A$20,Lookups!$B$3:$B$20)","v":"End of process"},"2018-07-27",null,null,"Cadent",2,"Panel Requested 18/01/18","2018-02-08","2018-02-01","Y",null,null,null,"No"]
["0643",null,"(Urgent) - Changes to settlement regime to address Unidentified Gas issues including retrospective correction","Orsted Sales","2017-12-15",{"$f":"VLOOKUP($J263,Lookups!$A$3:$C$19,3,FALSE)","v":"Closed"},"Urgent",null,"Distribution","Rejected",{"$f":"LOOKUP(J263,Lookups!$A$3:$A$20,Lookups!$B$3:$B$20)","v":"End of process"},"2018-08-17",null,null,"Cadent",2,null,null,null," ",null,null,null,"No"]
["0642","A","(Urgent) - Changes to settlement regime to address Unidentified Gas issues","E.ON UK","2017-12-22",{"$f":"VLOOKUP($J264,Lookups!$A$3:$C$19,3,FALSE)","v":"Closed"},"Urgent",null,"UIG","Rejected",{"$f":"LOOKUP(J264,Lookups!$A$3:$A$20,Lookups!$B$3:$B$20)","v":"End of process"},"2018-08-17",null,null,"Cadent",8,"Panel Requested 18/01/18","2018-02-08","2018-03-07","N",null,null,null,"No"]
["0642",null,"(Urgent) - Changes to settlement regime to address Unidentified Gas issues","Corona Energy","2017-12-15",{"$f":"VLOOKUP($J265,Lookups!$A$3:$C$19,3,FALSE)","v":"Closed"},"Urgent",null,"Distribution","Rejected",{"$f":"LOOKUP(J265,Lookups!$A$3:$A$20,Lookups!$B$3:$B$20)","v":"End of process"},"2018-08-17",null,null,"Cadent",7,"Panel Requested Text 21/12/17","2018-01-17","2018-01-17","Y",null,null,null,"No"]
["0641","S","Amendments to Modification 0431 - Shipper/Transporter - Meter Point Portfolio Reconciliation rules and obligations","Centrica","2017-12-08",{"$f":"VLOOKUP($J266,Lookups!$A$3:$C$19,3,FALSE)","v":"Closed"},"Self-Governance",null,"Distribution","Implemented",{"$f":"LOOKUP(J266,Lookups!$A$3:$A$20,Lookups!$B$3:$B$20)","v":"Effective date"},"2018-06-11",null,null,"Cadent","n/a",null,null,null,{"$f":"IF(ISBLANK(S266),\" \",IF(S266<=R266,\"Y\",\"N\"))","v":" "},null,null,null,"No"]
["0640","S","Provision of access to Domestic Consumer data for Suppliers","Centrica","2017-12-08",{"$f":"VLOOKUP($J267,Lookups!$A$3:$C$19,3,FALSE)","v":"Closed"},"Self-Governance",null,"Distribution","Implemented",{"$f":"LOOKUP(J267,Lookups!$A$3:$A$20,Lookups!$B$3:$B$20)","v":"Effective date"},"2018-04-10",null,null,"Wales & West Utilities",3,"Panel Requested Text 21/12/17","2018-01-16","2018-01-08","Y",null,null,null,"No"]
["0639","R","Review of AUGE Framework and Arrangements","Gazprom","2017-12-07",{"$f":"VLOOKUP($J268,Lookups!$A$3:$C$19,3,FALSE)","v":"Closed"},"Request",null,"Individual","Request Closed",{"$f":"LOOKUP(J268,Lookups!$A$3:$A$20,Lookups!$B$3:$B$20)","v":"End of process"},"2018-06-21",null,null,"n/a",3,"Panel Requested Text 19/10/17","2017-11-09","2017-11-07","Y",null,null,null,"No"]
["0638","V","Mandate monthly read submission for Smart and AMR sites from 01 April 2018","Centrica Energy","2017-12-21",{"$f":"VLOOKUP($J269,Lookups!$A$3:$C$19,3,FALSE)","v":"Closed"},"Modification",null,"Distribution","Implemented",{"$f":"LOOKUP(J269,Lookups!$A$3:$A$20,Lookups!$B$3:$B$20)","v":"Effective date"},"2018-04-01","Northern Gas Networks",3,"Northern Gas Networks",6,"Panel Requested Text 19/10/17","2017-10-19","2017-10-19","Y",null,null,null,"No"]
["0638",null,"Mandate monthly read submission for Smart and AMR sites from 01 April 2018","Centrica Energy","2017-10-30",{"$f":"VLOOKUP($J270,Lookups!$A$3:$C$20,3,FALSE)","v":"Closed"},"Modification",null,"Distribution","Withdrawn",{"$f":"LOOKUP(J270,Lookups!$A$3:$A$20,Lookups!$B$3:$B$20)","v":"End of process"},"2017-12-21",null,null,"Northern Gas Networks","n/a",null,null,null," ",null,null,null,"No"]
["0637","S","Amending the permissions to release data to Meter Asset Provider organisations  ","E.ON UK","2017-10-11",{"$f":"VLOOKUP($J271,Lookups!$A$3:$C$19,3,FALSE)","v":"Closed"},"Self-Governance",null,"Distribution","Implemented",{"$f":"LOOKUP(J271,Lookups!$A$3:$A$20,Lookups!$B$3:$B$20)","v":"Effective date"},"2017-12-08",null,null,"Cadent","n/a",null,null,null," ",null,null,null,"No"]
["0636","C*","Updating the parameters for the NTS Optional Commodity Charge – Introducing the NTS Optional Capacity Charge (Renumbered to 0653)","Centrica","2018-02-20",{"$f":"VLOOKUP($J272,Lookups!$A$3:$C$20,3,FALSE)","v":"Closed"},"Modification",null,"NTSCMF","Withdrawn",{"$f":"LOOKUP(J272,Lookups!$A$3:$A$20,Lookups!$B$3:$B$20)","v":"End of process"},"2018-08-13","National Grid NTS",null,"National Grid NTS","n/a","Panel Requested Text 15/02/18","2018-03-08","2018-04-03","N",null,null,null,"No"]
["0636","D","Updating the parameters for the NTS Optional Commodity Charge while complying with the EU Tariff Code","Gazprom","2018-04-06",{"$f":"VLOOKUP($J273,Lookups!$A$3:$C$19,3,FALSE)","v":"Closed"},"Modification",null,"NTSCMF","Rejected",{"$f":"LOOKUP(J273,Lookups!$A$3:$A$20,Lookups!$B$3:$B$20)","v":"End of process"},"2018-07-31",null,null,"National Grid NTS","n/a ","Panel Requested Text 15/03/18","2018-04-09","2018-04-03","Y",null,null,null,"No"]
["0636","C","Updating the parameters for the NTS Optional Commodity Charge ","Aughinish Alumina","2018-03-02",{"$f":"VLOOKUP($J274,Lookups!$A$3:$C$19,3,FALSE)","v":"Closed"},"Modification",null,"NTSCMF","Rejected",{"$f":"LOOKUP(J274,Lookups!$A$3:$A$20,Lookups!$B$3:$B$20)","v":"End of process"},"2018-07-31","National Grid NTS","n/a","National Grid NTS","n/a","Panel Requested 18/01/18","2018-02-08","2018-04-03","N",null,null,null,"No"]
["0636","B","Updating the parameters for the NTS Optional Commodity Charge ","SSE","2018-02-01",{"$f":"VLOOKUP($J275,Lookups!$A$3:$C$19,3,FALSE)","v":"Closed"},"Modification",null,"NTSCMF","Rejected",{"$f":"LOOKUP(J275,Lookups!$A$3:$A$20,Lookups!$B$3:$B$20)","v":"End of process"},"2018-07-31","National Grid NTS",null,"National Grid NTS","n/a","Panel Requested Text 21/12/17","2018-01-16","2018-04-03","N",null,null,null,"No"]
["0636","A","Updating the parameters for the NTS Optional Commodity Charge ","Vitol SA Geneva","2018-01-05",{"$f":"VLOOKUP($J276,Lookups!$A$3:$C$19,3,FALSE)","v":"Closed"},"Modification",null,"NTSCMF","Rejected",{"$f":"LOOKUP(J276,Lookups!$A$3:$A$20,Lookups!$B$3:$B$20)","v":"End of process"},"2018-07-31","National Grid NTS","n/a","National Grid NTS",5,null,null,null," ",null,null,null,"No"]
["0636",null,"Updating the parameters for the NTS Optional Commodity Charge ","Vermilion Energy Ireland Ltd","2017-10-10",{"$f":"VLOOKUP($J277,Lookups!$A$3:$C$19,3,FALSE)","v":"Closed"},"Modification",null,"NTSCMF","Rejected",{"$f":"LOOKUP(J277,Lookups!$A$3:$A$20,Lookups!$B$3:$B$20)","v":"End of process"},"2018-07-31",null,null,"National Grid NTS",5,null,null,null," ",null,null,null,"No"]
["0635",null,"Reforms to incentivise accurate and timely DM reads for Class 2 Meter Points to improve the accuracy of Unidentified Gas allocation","first:utility","2017-10-09",{"$f":"VLOOKUP($J278,Lookups!$A$3:$C$20,3,FALSE)","v":"Closed"},"Modification",null,"Distribution","Withdrawn",{"$f":"LOOKUP(J278,Lookups!$A$3:$A$20,Lookups!$B$3:$B$20)","v":"End of process"},"2018-02-20",null,null,"SGN",3,"Panel Requested Text 21/12/17","2018-01-16","2018-01-08","Y",null,null,null,"No"]
["0635","A","Reforms to incentivise accurate and timely DM reads and to remove the Transporter Class 1 read obligation","Wales & West Utilities","2018-01-10",{"$f":"VLOOKUP($J279,Lookups!$A$3:$C$19,3,FALSE)","v":"Closed"},"Modification",null,"Distribution","Renumbered",{"$f":"LOOKUP(J279,Lookups!$A$3:$A$20,Lookups!$B$3:$B$20)","v":"End of process"},"2018-01-18","SGN",5,"SGN",4,"Panel Requested Text 19/10/17","2017-11-09","2017-11-07","Y",null,null,null,"No"]
["0634",null,"(Urgent) - Revised estimation process for DM sites with D-7 zero consumption","first:utility","2017-10-09",{"$f":"VLOOKUP($J280,Lookups!$A$3:$C$19,3,FALSE)","v":"Closed"},"Urgent",null,"Distribution","Implemented",{"$f":"LOOKUP(J280,Lookups!$A$3:$A$20,Lookups!$B$3:$B$20)","v":"Effective date"},"2017-11-20",null,null,"Cadent",3,"Panel Requested Text 19/10/17","2017-11-09","2017-11-07","Y",null,null,null,"No"]
["0633","V","Mandate monthly read submission for Smart and AMR sites from 01 February 2018","Corona Energy","2017-12-21",{"$f":"VLOOKUP($J281,Lookups!$A$3:$C$19,3,FALSE)","v":"Closed"},"Modification",null,"Distribution","Rejected",{"$f":"LOOKUP(J281,Lookups!$A$3:$A$20,Lookups!$B$3:$B$20)","v":"End of process"},"2018-01-31","Northern Gas Networks",3,"Northern Gas Networks",2,"Panel Requested 18/01/18","2018-02-08","2018-01-24","Y",null,null,null,"No"]
["0633",null,"Mandate monthly read submission for Smart and AMR sites from 01 December 2017","Corona Energy","2017-10-09",{"$f":"VLOOKUP($J282,Lookups!$A$3:$C$20,3,FALSE)","v":"Closed"},"Modification",null,"Distribution","Withdrawn",{"$f":"LOOKUP(J282,Lookups!$A$3:$A$20,Lookups!$B$3:$B$20)","v":"End of process"},"2017-12-21",null,null,"Northern Gas Networks","n/a",null,null,null," ",null,null,null,"No"]
["0632","S","Shipper asset details reconcilation","Corona Energy","2017-10-09",{"$f":"VLOOKUP($J283,Lookups!$A$3:$C$19,3,FALSE)","v":"Closed"},"Self-Governance",null,"Distribution","Implemented",{"$f":"LOOKUP(J283,Lookups!$A$3:$A$20,Lookups!$B$3:$B$20)","v":"Effective date"},"2018-04-10",null,null,"Cadent","n/a",null,null,null," ",null,null,null,"No"]
["0631","R","Review of NDM algorithm post-Nexus","Corona Energy","2017-10-06",{"$f":"VLOOKUP($J284,Lookups!$A$3:$C$19,3,FALSE)","v":"Closed"},"Request",null,"Distribution","Request Closed",{"$f":"LOOKUP(J284,Lookups!$A$3:$A$20,Lookups!$B$3:$B$20)","v":"End of process"},"2018-04-19",null,null,"n/a","n/a","Text provided with mod",null,"2018-03-26","N",null,null,null,"No"]
["0630","R","Review of the consequential changes required in UNC as a result of the Ofgem Switching Programme","Cadent","2017-10-06",{"$f":"VLOOKUP($J285,Lookups!$A$3:$C$19,3,FALSE)","v":"Closed"},"Request",null,"Distribution","Request Closed",{"$f":"LOOKUP(J285,Lookups!$A$3:$A$20,Lookups!$B$3:$B$20)","v":"End of process"},"2019-05-16",null,null,"n/a","n/a","Text provided with mod",null,"2018-03-26","N",null,null,null,"No"]
["0629","S","Standard Design Connections: A2O connection process modification","National Grid NTS","2017-10-04",{"$f":"VLOOKUP($J286,Lookups!$A$3:$C$19,3,FALSE)","v":"Closed"},"Self-Governance",null,"Transmission","Implemented",{"$f":"LOOKUP(J286,Lookups!$A$3:$A$20,Lookups!$B$3:$B$20)","v":"Effective date"},"2018-10-30",null,null,"National Grid NTS","n/a","Panel Requested Text 16/11/17","2017-11-16","2017-11-16","Y",null,null,null,"No"]
["0628","S","Standard Design Connections: PARCA process","National Grid NTS","2017-10-04",{"$f":"VLOOKUP($J287,Lookups!$A$3:$C$19,3,FALSE)","v":"Closed"},"Self-Governance",null,"Transmission","Implemented",{"$f":"LOOKUP(J287,Lookups!$A$3:$A$20,Lookups!$B$3:$B$20)","v":"Effective date"},"2018-10-30",null,null,"National Grid NTS","n/a",null,null,null," ",null,null,null,"No"]
["0627","S","Removal of the absolute requirement to include a Remotely Operable Valve (ROV) Installation for all new NTS Exit Connections","National Grid NTS","2017-09-08",{"$f":"VLOOKUP($J288,Lookups!$A$3:$C$19,3,FALSE)","v":"Closed"},"Self-Governance",null,"Transmission","Implemented",{"$f":"LOOKUP(J288,Lookups!$A$3:$A$20,Lookups!$B$3:$B$20)","v":"Effective date"},"2018-01-17",null,null,"National Grid NTS",1,"Panel Requested Text 19/10/17","2017-10-19","2017-10-19","Y",null,null,null,"No"]
["0626","FT","Updating UNC Section B to correct a number of references to the timing of processes associated with the start of a Gas Day","National Grid NTS","2017-09-08",{"$f":"VLOOKUP($J289,Lookups!$A$3:$C$19,3,FALSE)","v":"Closed"},"Fast Track",null,"Transmission","Implemented",{"$f":"LOOKUP(J289,Lookups!$A$3:$A$20,Lookups!$B$3:$B$20)","v":"Effective date"},"2017-10-13",null,null,"National Grid NTS","n/a","No Text req'd - Request",null,null," ",null,null,null,"No"]
["0625",null,"Extension of 4 months to 10 months to transfer non-mandatory sites from Class 1","Gazprom","2017-08-01",{"$f":"VLOOKUP($J290,Lookups!$A$3:$C$19,3,FALSE)","v":"Closed"},"Modification",null,"Distribution","Implemented",{"$f":"LOOKUP(J290,Lookups!$A$3:$A$20,Lookups!$B$3:$B$20)","v":"Effective date"},"2017-11-28",null,null,"SGN","n/a","Panel Requested Text 16/11/17","2017-12-07","2017-11-30","Y",null,null,null,"No"]
["0624","R","Review of arrangements for Retrospective Adjustment of Meter Information, Meter Point/Supply Point and Address data","Cadent","2017-07-07",{"$f":"VLOOKUP($J291,Lookups!$A$3:$C$19,3,FALSE)","v":"Closed"},"Request",null,"Other","Request Closed",{"$f":"LOOKUP(J291,Lookups!$A$3:$A$20,Lookups!$B$3:$B$20)","v":"End of process"},"2018-02-15",null,null,"N/A - Request",8,null,null,null," ",null,null,null,"No"]
["0623",null,"Governance Arrangements for Alternatives to Self-Governance Modification Proposals","Wales & West Utilities","2017-07-03",{"$f":"VLOOKUP($J292,Lookups!$A$3:$C$19,3,FALSE)","v":"Closed"},"Modification",null,"Governance","Implemented",{"$f":"LOOKUP(J292,Lookups!$A$3:$A$20,Lookups!$B$3:$B$20)","v":"Effective date"},"2018-04-20",null,null,"Wales & West Utilities","n/a",null,null,null," ",null,null,null,"No"]
["0622",null,"Correct allocation of Shrinkage Error as identified by the AUGE","Gazprom","2017-06-13",{"$f":"VLOOKUP($J293,Lookups!$A$3:$C$20,3,FALSE)","v":"Closed"},"Modification",null,"Distribution","Withdrawn",{"$f":"LOOKUP(J293,Lookups!$A$3:$A$20,Lookups!$B$3:$B$20)","v":"End of process"},"2017-07-03",null,null,"Cadent","n/a",null,null,null," ",null,null,null,"No"]
["0621","L","Amendments to Gas Transmission Charging Regime ","Shell","2018-04-26",{"$f":"VLOOKUP($J294,Lookups!$A$3:$C$19,3,FALSE)","v":"Closed"},"Modification",null,"NTSCMF","Rejected",{"$f":"LOOKUP(J294,Lookups!$A$3:$A$20,Lookups!$B$3:$B$20)","v":"End of process"},"2018-12-20",null,null,"National Grid NTS","n/a",null,null,null," ",null,null,null,"No"]
["0621","K","Amendments to Gas Transmission Charging Regime ","Gateway LNG\nCompany Ltd","2018-04-24",{"$f":"VLOOKUP($J295,Lookups!$A$3:$C$19,3,FALSE)","v":"Closed"},"Modification",null,"NTSCMF","Rejected",{"$f":"LOOKUP(J295,Lookups!$A$3:$A$20,Lookups!$B$3:$B$20)","v":"End of process"},"2018-12-20",null,null,"National Grid NTS","n/a",null,null,null," ",null,null,null,"No"]
["0621","J","Amendments to Gas Transmission Charging Regime ","RWE  ","2018-03-08",{"$f":"VLOOKUP($J296,Lookups!$A$3:$C$19,3,FALSE)","v":"Closed"},"Modification",null,"NTSCMF","Rejected",{"$f":"LOOKUP(J296,Lookups!$A$3:$A$20,Lookups!$B$3:$B$20)","v":"End of process"},"2018-12-20",null,null,"National Grid NTS","n/a",null,null,null," ",null,null,null,"No"]
["0621","H","Amendments to Gas Transmission Charging Regime","E.ON UK","2018-03-02",{"$f":"VLOOKUP($J297,Lookups!$A$3:$C$19,3,FALSE)","v":"Closed"},"Modification",null,"NTSCMF","Rejected",{"$f":"LOOKUP(J297,Lookups!$A$3:$A$20,Lookups!$B$3:$B$20)","v":"End of process"},"2018-12-20",null,null,"National Grid NTS","n/a",null,null,null," ",null,null,null,"No"]
["0621","F ","Amendments to Gas Transmission Charging Regime","Interconnector","2018-02-02",{"$f":"VLOOKUP($J298,Lookups!$A$3:$C$19,3,FALSE)","v":"Closed"},"Modification",null,"NTSCMF","Rejected",{"$f":"LOOKUP(J298,Lookups!$A$3:$A$20,Lookups!$B$3:$B$20)","v":"End of process"},"2018-12-20",null,null,"National Grid NTS","n/a",null,null,null," ",null,null,null,"No"]
["0621","E","Amendments to Gas Transmission Charging Regime","Uniper Energy","2018-02-02",{"$f":"VLOOKUP($J299,Lookups!$A$3:$C$19,3,FALSE)","v":"Closed"},"Modification",null,"NTSCMF","Rejected",{"$f":"LOOKUP(J299,Lookups!$A$3:$A$20,Lookups!$B$3:$B$20)","v":"End of process"},"2018-12-20",null,null,"National Grid NTS","n/a",null,null,null," ",null,null,null,"No"]
["0621","D","Amendments to Gas Transmission Charging Regime","Wales & West Utilities","2018-02-01",{"$f":"VLOOKUP($J300,Lookups!$A$3:$C$19,3,FALSE)","v":"Closed"},"Modification",null,"NTSCMF","Rejected",{"$f":"LOOKUP(J300,Lookups!$A$3:$A$20,Lookups!$B$3:$B$20)","v":"End of process"},"2018-12-20",null,null,"National Grid NTS","n/a",null,null,null," ",null,null,null,"No"]
["0621","C","Amendments to Gas Transmission Charging Regime","Centrica","2018-02-01",{"$f":"VLOOKUP($J301,Lookups!$A$3:$C$19,3,FALSE)","v":"Closed"},"Modification",null,"NTSCMF","Rejected",{"$f":"LOOKUP(J301,Lookups!$A$3:$A$20,Lookups!$B$3:$B$20)","v":"End of process"},"2018-12-20",null,null,"National Grid NTS","n/a",null,null,null," ",null,null,null,"No"]
["0621","B","Amendments to Gas Transmission Charging Regime","SSE","2017-12-12",{"$f":"VLOOKUP($J302,Lookups!$A$3:$C$19,3,FALSE)","v":"Closed"},"Modification",null,"NTSCMF","Rejected",{"$f":"LOOKUP(J302,Lookups!$A$3:$A$20,Lookups!$B$3:$B$20)","v":"End of process"},"2018-12-20",null,null,"National Grid NTS","n/a",null,null,null," ",null,null,null,"No"]
["0621","A","Amendments to Gas Transmission Charging Regime","Storengy UK Ltd","2017-12-12",{"$f":"VLOOKUP($J303,Lookups!$A$3:$C$19,3,FALSE)","v":"Closed"},"Modification",null,"NTSCMF","Rejected",{"$f":"LOOKUP(J303,Lookups!$A$3:$A$20,Lookups!$B$3:$B$20)","v":"End of process"},"2018-12-20",null,null,"National Grid NTS","n/a","Text provided with mod","2017-06-05","2017-06-05","Y",null,null,null,{"$f":"IF(AND(F305=\"Live\",K305=\"Ofgem decision\"),\"Yes\",\"No\")","v":"No"}]
["0621",null,"Amendments to Gas Transmission Charging Regime","National Grid NTS","2017-06-05",{"$f":"VLOOKUP($J304,Lookups!$A$3:$C$19,3,FALSE)","v":"Closed"},"Modification",null,"NTSCMF","Rejected",{"$f":"LOOKUP(J304,Lookups!$A$3:$A$20,Lookups!$B$3:$B$20)","v":"End of process"},"2018-12-20",null,null,"n/a",7,"Panel Requested Text 21/12/17","2018-01-16","2018-01-16","Y",null,null,null,"No"]
["0621","G","Amendments to Gas Transmission Charging Regime","Vitol SA Geneva","2018-03-02",{"$f":"VLOOKUP($J305,Lookups!$A$3:$C$20,3,FALSE)","v":"Closed"},"Modification",null,"NTSCMF","Withdrawn",{"$f":"LOOKUP(J305,Lookups!$A$3:$A$20,Lookups!$B$3:$B$20)","v":"End of process"},"2018-04-20",null,null,"National Grid NTS","n/a",null,null,null," ",null,null,null,"No"]
["0620","S","Deferral of the UK Link Manual delivery date (further revision)","Cadent","2017-06-02",{"$f":"VLOOKUP($J306,Lookups!$A$3:$C$19,3,FALSE)","v":"Closed"},"Self-Governance",null,"Distribution","Implemented",{"$f":"LOOKUP(J306,Lookups!$A$3:$A$20,Lookups!$B$3:$B$20)","v":"Effective date"},"2017-07-31",null,null,"n/a",7,"Panel Requested Text 21/12/17","2018-01-16","2017-10-27","Y",null,null,null,"No"]
["0619","B","Application of proportionate ratchet charges to daily read sites","Centrica Energy","2017-10-31",{"$f":"VLOOKUP($J307,Lookups!$A$3:$C$19,3,FALSE)","v":"Closed"},"Modification",null,"Distribution","Rejected",{"$f":"LOOKUP(J307,Lookups!$A$3:$A$20,Lookups!$B$3:$B$20)","v":"End of process"},"2018-07-27",null,null,"Wales & West Utilities",7,"Panel Requested Text 21/09/17","2017-10-12","2017-09-20","Y",null,null,null,"No"]
["0619","A","Protection from ratchet charges for daily read customers with an AQ of 732,00kWh and below","Scotia Gas Networks","2017-09-08",{"$f":"VLOOKUP($J308,Lookups!$A$3:$C$19,3,FALSE)","v":"Closed"},"Modification",null,"Distribution","Rejected",{"$f":"LOOKUP(J308,Lookups!$A$3:$A$20,Lookups!$B$3:$B$20)","v":"End of process"},"2018-07-27",null,null,"Wales & West Utilities","n/a","Text provided with mod","2017-05-05","2017-05-05","Y",null,null,null,"No"]
["0619",null,"Application of proportionate ratchet charges to daily read sites ","Gazprom","2017-05-10",{"$f":"VLOOKUP($J309,Lookups!$A$3:$C$19,3,FALSE)","v":"Closed"},"Modification",null,"Distribution","Rejected",{"$f":"LOOKUP(J309,Lookups!$A$3:$A$20,Lookups!$B$3:$B$20)","v":"End of process"},"2018-07-27",null,null,"Wales & West Utilities","n/a","Text provided with mod","2017-04-20","2017-04-20","Y",null,null,null,"No"]
["0618",null,"Extension of Invoicing Contingency Arrangements in case of Project Nexus defect","Wales & West Utilities","2017-05-03",{"$f":"VLOOKUP($J310,Lookups!$A$3:$C$19,3,FALSE)","v":"Closed"},"Urgent",null,"Distribution","Implemented",{"$f":"LOOKUP(J310,Lookups!$A$3:$A$20,Lookups!$B$3:$B$20)","v":"Effective date"},"2017-06-01",null,null,"Wales & West Utilities","n/a","Panel Requested Text 17/08/17","2017-09-08","2017-09-07","Y",null,null,null,"No"]
["0617","S","Revised UK Link Manual delivery date","Cadent","2017-04-07",{"$f":"VLOOKUP($J311,Lookups!$A$3:$C$19,3,FALSE)","v":"Closed"},"Self-Governance",null,"Distribution","Implemented",{"$f":"LOOKUP(J311,Lookups!$A$3:$A$20,Lookups!$B$3:$B$20)","v":"Effective date"},"2017-06-01",null,null,"Cadent",6,"Panel Requested Text 15/06/2017","2017-07-06","2017-06-21","Y",null,null,null,"No"]
["0616","S","Capacity Conversion Mechanism for Interconnection Points","National Grid NTS","2017-04-06",{"$f":"VLOOKUP($J312,Lookups!$A$3:$C$19,3,FALSE)","v":"Closed"},"Self-Governance",null,"Transmission","Implemented",{"$f":"LOOKUP(J312,Lookups!$A$3:$A$20,Lookups!$B$3:$B$20)","v":"Effective date"},"2017-11-10","National Grid Gas Distribution","n/a","National Grid NTS","n/a","No Text req'd - enabling Mod",null,null," ",null,null,null,"No"]
["0615","S","Representation on DSC Committees – amendment to include mid-year appointments","E.ON UK","2017-03-31",{"$f":"VLOOKUP($J313,Lookups!$A$3:$C$19,3,FALSE)","v":"Closed"},"Self-Governance",null,"Distribution","Implemented",{"$f":"LOOKUP(J313,Lookups!$A$3:$A$20,Lookups!$B$3:$B$20)","v":"Effective date"},"2017-09-11","National Grid Gas Distribution","n/a","Cadent","n/a","Panel Requested Text 20/07/17","2017-08-10","2017-08-09","Y",null,null,null,"No"]
["0614",null,"Introducing IHD (In-Home Display) Installed Status of Failed ","EDF Energy","2017-03-08",{"$f":"VLOOKUP($J314,Lookups!$A$3:$C$20,3,FALSE)","v":"Closed"},"Modification",null,"Distribution","Withdrawn",{"$f":"LOOKUP(J314,Lookups!$A$3:$A$20,Lookups!$B$3:$B$20)","v":"End of process"},"2017-06-14","National Grid Gas Distribution","n/a","n/a","n/a","No Text req'd - Request",null,null," ",null,null,"n/a","No"]
["0613","S","Revised UK Link Manual CDSP Data Services Document","Cadent","2017-03-07",{"$f":"VLOOKUP($J315,Lookups!$A$3:$C$19,3,FALSE)","v":"Closed"},"Self-Governance",null,"Distribution","Implemented",{"$f":"LOOKUP(J315,Lookups!$A$3:$A$20,Lookups!$B$3:$B$20)","v":"Effective date"},"2017-10-13","Scotia Gas Networks","n/a","Cadent","n/a","Panel Requested Text 18/05/17","2017-06-09","2017-05-26","Y",null,null,"n/a","No"]
["0612","R","Project Management and Assurance provisions for gas industry changes ","Scotia Gas Networks","2017-02-06",{"$f":"VLOOKUP($J316,Lookups!$A$3:$C$20,3,FALSE)","v":"Closed"},"Request",null,"None","Withdrawn",{"$f":"LOOKUP(J316,Lookups!$A$3:$A$20,Lookups!$B$3:$B$20)","v":"End of process"},"2017-03-21",null,null,"Scotia Gas Networks","n/a","Panel Requested Text 16/02/17","2017-03-09","2017-02-17","Y",null,null,"n/a","No"]
["0611","S","Amendments to the firm capacity payable price at Interconnection Points","National Grid NTS","2017-02-03",{"$f":"VLOOKUP($J317,Lookups!$A$3:$C$19,3,FALSE)","v":"Closed"},"Self-Governance",null,"Transmission","Implemented",{"$f":"LOOKUP(J317,Lookups!$A$3:$A$20,Lookups!$B$3:$B$20)","v":"Effective date"},"2017-08-11",null,null,"National Grid NTS","n/a","Panel Requested Text 16/02/17","2017-03-09","2017-02-17","Y",null,null,null,"No"]
["0610","S","Project Nexus - Miscellaneous Requirements","Cadent","2017-01-11",{"$f":"VLOOKUP($J318,Lookups!$A$3:$C$19,3,FALSE)","v":"Closed"},"Self-Governance",null,"Distribution","Implemented",{"$f":"LOOKUP(J318,Lookups!$A$3:$A$20,Lookups!$B$3:$B$20)","v":"Effective date"},"2017-06-07",null,null,"Cadent","n/a","Panel Requested Text 19/01/17","2017-02-09","2017-02-17","N",null,null,"n/a","No"]
["0609",null,"Transitional arrangements for gas settlement and replacement of Meter Readings (Project Nexus transitional modification)","Cadent","2017-01-09",{"$f":"VLOOKUP($J319,Lookups!$A$3:$C$19,3,FALSE)","v":"Closed"},"Modification",null,"Distribution","Implemented",{"$f":"LOOKUP(J319,Lookups!$A$3:$A$20,Lookups!$B$3:$B$20)","v":"Effective date"},"2017-05-22",null,null,"Cadent","n/a","No Text req'd - enabling Mod",null,null," ",null,null,null,"No"]
["0609","A","Transitional arrangements for gas settlement and replacement of Meter Readings, retaining AQ2017\n(Project Nexus transitional modification)","British Gas","2017-02-08",{"$f":"VLOOKUP($J320,Lookups!$A$3:$C$20,3,FALSE)","v":"Closed"},"Modification",null,"Distribution","Withdrawn",{"$f":"LOOKUP(J320,Lookups!$A$3:$A$20,Lookups!$B$3:$B$20)","v":"End of process"},"2017-03-10",null,null,"Cadent","n/a","Panel Requested Text 19/01/17","2017-02-09","2017-02-01","Y",null,null,"n/a","No"]
["0608","S","Implementation of 'single service provision' arrangements for iGT connected system exit points (Project Nexus transitional modification)","Cadent","2017-01-09",{"$f":"VLOOKUP($J321,Lookups!$A$3:$C$19,3,FALSE)","v":"Closed"},"Self-Governance",null,"Distribution","Implemented",{"$f":"LOOKUP(J321,Lookups!$A$3:$A$20,Lookups!$B$3:$B$20)","v":"Effective date"},"2017-05-15",null,null,"Cadent","n/a","Panel Requested Text 19/01/17","2017-02-09","2017-01-20","Y",null,null,"n/a","No"]
["0607",null,"Amendment to Gas Quality NTS Entry Specification at the St Fergus NSMP System Entry Point","BP","2016-12-07",{"$f":"VLOOKUP($J322,Lookups!$A$3:$C$19,3,FALSE)","v":"Closed"},"Modification",null,"Transmission","Implemented",{"$f":"LOOKUP(J322,Lookups!$A$3:$A$20,Lookups!$B$3:$B$20)","v":"Effective date"},"2018-02-28",null,null,"National Grid NTS","n/a","Panel Requested Text 19/01/17","2017-02-09","2017-01-19","Y",null,null,"n/a","No"]
["0606","S","National Grid Gas plc and National Grid Gas Distribution Limited transitional invoicing arrangement post Project Nexus implementation","Cadent","2016-12-05",{"$f":"VLOOKUP($J323,Lookups!$A$3:$C$19,3,FALSE)","v":"Closed"},"Self-Governance",null,"Distribution","Implemented",{"$f":"LOOKUP(J323,Lookups!$A$3:$A$20,Lookups!$B$3:$B$20)","v":"Effective date"},"Nexus Imp Date",null,null,"Cadent","n/a","Panel Requested Text 16/02/17","2017-03-09","2017-02-16","Y",null,null,"n/a","No"]
["0605","S","Amendments to TPD Section K - Additional Methods to Procure and Dispose of Operating Margins Gas","National Grid NTS","2016-12-02",{"$f":"VLOOKUP($J324,Lookups!$A$3:$C$19,3,FALSE)","v":"Closed"},"Self-Governance",null,"Transmission","Implemented",{"$f":"LOOKUP(J324,Lookups!$A$3:$A$20,Lookups!$B$3:$B$20)","v":"Effective date"},"2017-08-11",null,null,"National Grid NTS","n/a","Text provided with mod","2016-12-15","2016-12-15","Y",null,null,"n/a","No"]
["0604","S","Central Data Services Provider – Arrangements following implementation of Project Nexus","Cadent","2016-11-30",{"$f":"VLOOKUP($J325,Lookups!$A$3:$C$19,3,FALSE)","v":"Closed"},"Self-Governance",null,"Other","Implemented",{"$f":"LOOKUP(J325,Lookups!$A$3:$A$20,Lookups!$B$3:$B$20)","v":"Effective date"},"Nexus Imp Date",null,null,"Cadent","n/a","Panel Requested Text 19/01/17","2017-01-19","2017-01-19","Y",null,null,"n/a","No"]
["0603","S","Removal of liability for members of Performance Assurance Committee","Wales & West Utilities","2016-11-08",{"$f":"VLOOKUP($J326,Lookups!$A$3:$C$19,3,FALSE)","v":"Closed"},"Self-Governance",null,"Distribution","Implemented",{"$f":"LOOKUP(J326,Lookups!$A$3:$A$20,Lookups!$B$3:$B$20)","v":"Effective date"},"2017-01-11",null,null,"Wales & West Utilities","n/a","Panel Requested Text 15/12/16","2017-01-10","2017-01-12","N",null,null,"n/a","No"]
["0602","A","Implementation of Non Effective Days and Variant Non-Business Days for Project Nexus Implementation, maintaining a minimum of two Supply Point Business Days (Project Nexus transitional modification) ","RWE Npower","2016-12-23",{"$f":"VLOOKUP($J327,Lookups!$A$3:$C$19,3,FALSE)","v":"Closed"},"Modification",null,"Distribution","Implemented",{"$f":"LOOKUP(J327,Lookups!$A$3:$A$20,Lookups!$B$3:$B$20)","v":"Effective date"},"2017-02-20",null,null,"Cadent","n/a","FT - text provided with mod ","2016-11-17","2016-11-17","Y",null,null,"n/a","No"]
["0602",null,"Implementation of Non Effective Days and Variant Non-Business Days for Project Nexus Implementation (Project Nexus transitional modification) ","Cadent","2016-11-07",{"$f":"VLOOKUP($J328,Lookups!$A$3:$C$19,3,FALSE)","v":"Closed"},"Modification",null,"Distribution","Rejected",{"$f":"LOOKUP(J328,Lookups!$A$3:$A$20,Lookups!$B$3:$B$20)","v":"End of process"},"2017-02-17",null,null,"Cadent","n/a","Panel Requested Text 20/10/16","2016-11-10","2016-11-10","Y",null,null,"n/a","No"]
["0601","FT","Revision of National Grid Gas plc’s Individual Network Code to reflect the correct company name","National Grid NTS","2016-11-01",{"$f":"VLOOKUP($J329,Lookups!$A$3:$C$19,3,FALSE)","v":"Closed"},"Fast Track",null,"Transmission","Implemented",{"$f":"LOOKUP(J329,Lookups!$A$3:$A$20,Lookups!$B$3:$B$20)","v":"Effective date"},"2016-12-09","National Grid NTS","n/a","National Grid NTS","n/a","Mod withdrawn"," ",null," ",null,null,"n/a","No"]
["0600","S","Amend obligation for the acceptance of EPDQD revisions made after D+5 ","National Grid NTS","2016-10-10",{"$f":"VLOOKUP($J330,Lookups!$A$3:$C$19,3,FALSE)","v":"Closed"},"Self-Governance",null,"Transmission","Implemented",{"$f":"LOOKUP(J330,Lookups!$A$3:$A$20,Lookups!$B$3:$B$20)","v":"Effective date"},"2017-04-07","National Grid NTS","n/a","National Grid NTS","n/a","Panel Requested Text 15/12/16","2017-01-10","2016-12-16",{"$f":"IF(ISBLANK(S330),\" \",IF(S330<=R330,\"Y\",\"N\"))","v":"Y"},null,null,"n/a","No"]
["0599",null,"Amendments to Capacity Allocations Mechanisms (Interruptible) to comply with EU Capacity Regulations ","National Grid NTS","2016-10-10",{"$f":"VLOOKUP($J331,Lookups!$A$3:$C$20,3,FALSE)","v":"Closed"},"Modification",null,"European","Withdrawn",{"$f":"LOOKUP(J331,Lookups!$A$3:$A$20,Lookups!$B$3:$B$20)","v":"End of process"},"2016-11-16","National Grid NTS","n/a","National Grid NTS","n/a","Panel Requested Text 15/12/16","2017-01-10","2016-12-23","Y",null,null,"n/a","No"]
["0598","S","Amendments to Capacity Allocations Mechanisms to comply with EU Capacity Regulations ","National Grid NTS","2016-10-10",{"$f":"VLOOKUP($J332,Lookups!$A$3:$C$19,3,FALSE)","v":"Closed"},"Self-Governance",null,"Transmission","Implemented",{"$f":"LOOKUP(J332,Lookups!$A$3:$A$20,Lookups!$B$3:$B$20)","v":"Effective date"},"2017-04-06","National Grid NTS","n/a","National Grid NTS","n/a","Panel Requested Text 20/10/16","2016-11-10","2016-10-20","Y",null,null,"n/a","No"]
["0597",null,"Rules for the release of incremental capacity at Interconnection Points","National Grid NTS","2016-10-10",{"$f":"VLOOKUP($J333,Lookups!$A$3:$C$19,3,FALSE)","v":"Closed"},"Modification",null,"Transmission","Implemented",{"$f":"LOOKUP(J333,Lookups!$A$3:$A$20,Lookups!$B$3:$B$20)","v":"Effective date"},"2017-04-06","National Grid NTS","n/a","National Grid NTS","n/a","No Text req'd - enabling Mod",null,null," ",null,null,"n/a","No"]
["0596",null,"Implementing CGR3 decisions on Significant Code Reviews and self-governance","Wales & West Utilities","2016-10-07",{"$f":"VLOOKUP($J334,Lookups!$A$3:$C$19,3,FALSE)","v":"Closed"},"Modification",null,"Governance","Implemented",{"$f":"LOOKUP(J334,Lookups!$A$3:$A$20,Lookups!$B$3:$B$20)","v":"Effective date"},"2017-02-17","National Grid NTS","n/a","Wales & West Utilities ","n/a","No Text req'd - Request",null,null," ",null,null,"n/a","No"]
["0595","S","Amendment to the Arrangements between National Grid NTS and GNI at the Moffat IP to Provide for Interruption of Virtual Reverse Flow","National Grid NTS","2016-09-02",{"$f":"VLOOKUP($J335,Lookups!$A$3:$C$19,3,FALSE)","v":"Closed"},"Self-Governance",null,"Transmission","Implemented",{"$f":"LOOKUP(J335,Lookups!$A$3:$A$20,Lookups!$B$3:$B$20)","v":"Effective date"},"2016-12-09","National Grid NTS","n/a","n/a","n/a","Panel Requested Text 15/09/2016","2016-10-06","2016-10-07","N",null,null,"n/a","No"]
["0594","R","Meter Reading Submission for Advanced & Smart Metering  ","Gazprom","2016-09-02",{"$f":"VLOOKUP($J336,Lookups!$A$3:$C$19,3,FALSE)","v":"Closed"},"Request",null,"Distribution","Request Closed",{"$f":"LOOKUP(J336,Lookups!$A$3:$A$20,Lookups!$B$3:$B$20)","v":"End of process"},"2017-12-21","National Grid NTS","n/a","N/A - Request","n/a","Panel Requested Text 15/09/2016","2016-10-06","2016-10-07","N",null,null,"n/a","No"]
["0593","V","Provision of access to Domestic Consumer data for Price Comparison Websites and Third Party Intermediaries","Northern Gas Networks","2017-07-20",{"$f":"VLOOKUP($J337,Lookups!$A$3:$C$19,3,FALSE)","v":"Closed"},"Modification",null,"Distribution","Implemented",{"$f":"LOOKUP(J337,Lookups!$A$3:$A$20,Lookups!$B$3:$B$20)","v":"Effective date"},"2017-12-15","National Grid NTS","n/a","Northern Gas Networks","n/a","Panel Requested Text 21/07/2016","2016-08-11","2016-08-05","Y",null,null,"n/a","No"]
["0593",null,"Provision of access to Domestic Consumer data for Price Comparison Websites and Third Party Intermediaries","Northern Gas Networks","2016-08-08",{"$f":"VLOOKUP($J338,Lookups!$A$3:$C$20,3,FALSE)","v":"Closed"},"Modification",null,"Distribution","Withdrawn",{"$f":"LOOKUP(J338,Lookups!$A$3:$A$20,Lookups!$B$3:$B$20)","v":"End of process"},"2017-07-20","National Grid NTS","n/a","Northern Gas Networks","n/a","Text provided with mod","2016-07-21","2016-07-21","Y",null,null,"n/a","No"]
["0592","S","Separation of National Grid Transmission and Distribution owned networks - Transitional invoicing arrangements","Cadent","2016-07-13",{"$f":"VLOOKUP($J339,Lookups!$A$3:$C$19,3,FALSE)","v":"Closed"},"Self-Governance",null,"Distribution","Implemented",{"$f":"LOOKUP(J339,Lookups!$A$3:$A$20,Lookups!$B$3:$B$20)","v":"Effective date"},"2016-09-30","National Grid NTS","n/a","Cadent","n/a","No Text req'd - Request",null,null," ",null,null,null,"No"]
["0591","S","DSR - Removal of 7 day rolling profile functionality","National Grid NTS","2016-07-13",{"$f":"VLOOKUP($J340,Lookups!$A$3:$C$19,3,FALSE)","v":"Closed"},"Self-Governance",null,"Demand Side Response","Implemented",{"$f":"LOOKUP(J340,Lookups!$A$3:$A$20,Lookups!$B$3:$B$20)","v":"Effective date"},"2016-09-12","National Grid NTS","n/a","National Grid NTS",5,"Panel Requested Text 21/07/2016","2016-08-11","2016-08-08","Y",null,null,"n/a","No"]
["0590","R","Review the options to remove the use of Fax machines within the UNC","E.ON UK","2016-06-27",{"$f":"VLOOKUP($J341,Lookups!$A$3:$C$20,3,FALSE)","v":"Closed"},"Request",null,"Distribution","Withdrawn",{"$f":"LOOKUP(J341,Lookups!$A$3:$A$20,Lookups!$B$3:$B$20)","v":"End of process"},"2016-08-16","National Grid NTS","n/a","n/a","n/a","No Text req'd - Request",null,null," ",null,null,null,"No"]
["0589","S","Inclusion of CSEP Supply Meter Points within NDM Sampling Arrangements","E.ON UK","2016-06-27",{"$f":"VLOOKUP($J342,Lookups!$A$3:$C$19,3,FALSE)","v":"Closed"},"Self-Governance",null,"Distribution","Implemented",{"$f":"LOOKUP(J342,Lookups!$A$3:$A$20,Lookups!$B$3:$B$20)","v":"Effective date"},"Nexus Imp Date","National Grid NTS","n/a","Scotia Gas Networks","n/a","Panel Requested Text 18/08/2016","2016-09-09","2016-09-09","Y",null,null,"Yes","No"]
["0588","R","Review UNC arrangements relating to the connection to and operation of gas fired generation on DN networks ","Wales & West Utilities","2016-06-06",{"$f":"VLOOKUP($J343,Lookups!$A$3:$C$20,3,FALSE)","v":"Closed"},"Request",null,"Transmission","Withdrawn",{"$f":"LOOKUP(J343,Lookups!$A$3:$A$20,Lookups!$B$3:$B$20)","v":"End of process"},"2016-08-05","National Grid NTS","n/a","n/a","n/a","Text provided with mod","2016-06-16","2016-06-16","Y",null,null,"n/a","No"]
["0587",null,"Seasonal Energy Balancing Credit Cover","Opus Energy","2016-06-06",{"$f":"VLOOKUP($J344,Lookups!$A$3:$C$19,3,FALSE)","v":"Closed"},"Modification",null,"Transmission","Implemented",{"$f":"LOOKUP(J344,Lookups!$A$3:$A$20,Lookups!$B$3:$B$20)","v":"Effective date"},"2017-05-01","National Grid NTS","n/a","National Grid NTS","n/a","Panel Requested Text 16/06/2016","2016-07-07","2016-06-30","Y",null,null,"n/a","No"]
["0586","FT","Resolution of minor legal text drafting conflicts arising from UNC Modification 0432","Cadent","2016-06-06",{"$f":"VLOOKUP($J345,Lookups!$A$3:$C$19,3,FALSE)","v":"Closed"},"Fast Track",null,"Distribution","Implemented",{"$f":"LOOKUP(J345,Lookups!$A$3:$A$20,Lookups!$B$3:$B$20)","v":"Effective date"},"Nexus Imp Date","National Grid NTS","n/a","Cadent","n/a","Text provided with mod","2016-06-16","2016-06-16","Y",null,null,"n/a","No"]
["0585",null,"Separation of NTS and National Grid owned networks – Calculation of Code Credit Limit and Value at Risk","Cadent","2016-06-06",{"$f":"VLOOKUP($J346,Lookups!$A$3:$C$20,3,FALSE)","v":"Closed"},"Modification",null,"Distribution","Withdrawn",{"$f":"LOOKUP(J346,Lookups!$A$3:$A$20,Lookups!$B$3:$B$20)","v":"End of process"},"2016-08-03","National Grid NTS","n/a","Cadent","n/a","Panel Requested Text 19/05/2016","2016-06-10","2016-06-10","Y",null,null,"n/a","No"]
["0584","S","Energy Theft Tip-Off Service (ETTOS) – Release of Supplier identity","Northern Gas Networks","2016-06-01",{"$f":"VLOOKUP($J347,Lookups!$A$3:$C$19,3,FALSE)","v":"Closed"},"Self-Governance",null,"Distribution","Implemented",{"$f":"LOOKUP(J347,Lookups!$A$3:$A$20,Lookups!$B$3:$B$20)","v":"Effective date"},"2016-08-12","National Grid NTS","n/a","Northern Gas Networks","n/a","Panel Requested Text 19/05/2016","2016-05-19","2016-05-19","Y",null,null,"n/a","No"]
["0583","S","Requiring an Opening Meter Reading at same User Confirmation","Cadent","2016-05-10",{"$f":"VLOOKUP($J348,Lookups!$A$3:$C$19,3,FALSE)","v":"Closed"},"Self-Governance",null,"Distribution","Implemented",{"$f":"LOOKUP(J348,Lookups!$A$3:$A$20,Lookups!$B$3:$B$20)","v":"Effective date"},"Nexus Imp Date","National Grid NTS","n/a","Cadent","n/a","No Text req'd - enabling Mod",null,null," ",null,null,"n/a","No"]
["0582","S","Amendments to reflect separation in legal ownership of NTS and National Grid owned LDZs to facilitate the sale of National Grid's Gas Distribution Business","Cadent","2016-05-09",{"$f":"VLOOKUP($J349,Lookups!$A$3:$C$19,3,FALSE)","v":"Closed"},"Self-Governance",null,"Distribution","Implemented",{"$f":"LOOKUP(J349,Lookups!$A$3:$A$20,Lookups!$B$3:$B$20)","v":"Effective date"},"2016-09-12","National Grid NTS","n/a","Cadent","n/a","Text provided with mod","2016-05-19","2016-05-19","Y",null,null,null,"No"]
["0581","S","Amending the Oxygen content limit specified in the Network Entry Agreement at Grain LNG","British Gas Trading","2016-04-08",{"$f":"VLOOKUP($J350,Lookups!$A$3:$C$19,3,FALSE)","v":"Closed"},"Self-Governance",null,"Transmission","Implemented",{"$f":"LOOKUP(J350,Lookups!$A$3:$A$20,Lookups!$B$3:$B$20)","v":"Effective date"},"2016-08-12","National Grid NTS","n/a","n/a","n/a","Text provided with mod","2016-05-19","2016-05-19","Y",null,null,null,"No"]
["0580","VS","Implementation of Non Effective Days to enable Annual AQ Review (independent of Nexus transition)","Scotia Gas Networks","2016-07-21",{"$f":"VLOOKUP($J351,Lookups!$A$3:$C$19,3,FALSE)","v":"Closed"},"Self-Governance",null,"Distribution","Implemented",{"$f":"LOOKUP(J351,Lookups!$A$3:$A$20,Lookups!$B$3:$B$20)","v":"Effective date"},"2016-08-12","National Grid NTS","n/a","Scotia Gas Networks",4,"FT - Text provided with mod","2016-04-21","2016-04-21","Y",null,null,"n/a","No"]
["0580","S","Implementation of Non Effective Days to enable Annual AQ Review (independent of Nexus transition)","Scotia Gas Networks","2016-04-07",{"$f":"VLOOKUP($J352,Lookups!$A$3:$C$20,3,FALSE)","v":"Closed"},"Self-Governance",null,"Distribution","Withdrawn",{"$f":"LOOKUP(J352,Lookups!$A$3:$A$20,Lookups!$B$3:$B$20)","v":"End of process"},"2016-07-21","National Grid NTS","n/a","Scotia Gas Networks","n/a","Panel Requested Text 21/04/2016","2016-05-13","2016-05-13","Y",null,null,null,"No"]
["0579","FT","Updating code to reflect the correct ‘Designated Person’","British Gas","2016-04-04",{"$f":"VLOOKUP($J353,Lookups!$A$3:$C$19,3,FALSE)","v":"Closed"},"Fast Track",null,"Governance","Implemented",{"$f":"LOOKUP(J353,Lookups!$A$3:$A$20,Lookups!$B$3:$B$20)","v":"Effective date"},"2016-05-16","National Grid NTS","n/a","Cadent","n/a","Text provided with mod","2016-03-17","2016-03-17","Y",null,null,null,"No"]
["0578",null,"Implementation of Retrospective Invoice Adjustment arrangements (Project Nexus transitional modification)","Cadent","2016-03-09",{"$f":"VLOOKUP($J354,Lookups!$A$3:$C$19,3,FALSE)","v":"Closed"},"Modification",null,"Nexus","Implemented",{"$f":"LOOKUP(J354,Lookups!$A$3:$A$20,Lookups!$B$3:$B$20)","v":"Effective date"},"2016-08-18","National Grid NTS","n/a","Cadent","n/a","Panel Requested Text 21/04/2016","2016-05-13","2016-05-13","Y",null,null,null,"No"]
["0577","S","Aligning UNC to the indirect clearing model operated by ICE Endex","National Grid NTS","2016-03-09",{"$f":"VLOOKUP($J355,Lookups!$A$3:$C$19,3,FALSE)","v":"Closed"},"Self-Governance",null,"Transmission","Implemented",{"$f":"LOOKUP(J355,Lookups!$A$3:$A$20,Lookups!$B$3:$B$20)","v":"Effective date"},"2016-05-16","National Grid NTS","n/a","National Grid NTS","n/a","No Text req'd - Request",null,null," ",null,null,null,"No"]
["0576",null,"Generation of an estimated Meter Reading at the Code Cut Off Date in the absence of an actual Meter Reading","Cadent","2016-03-09",{"$f":"VLOOKUP($J356,Lookups!$A$3:$C$19,3,FALSE)","v":"Closed"},"Modification",null,"Nexus","Implemented",{"$f":"LOOKUP(J356,Lookups!$A$3:$A$20,Lookups!$B$3:$B$20)","v":"Effective date"},"Nexus Imp Date","National Grid NTS","n/a","Cadent",3,"Panel Requested Text 16/06/2016","2016-07-07","2016-07-13","N",null,null,null,"No"]
["0575","R","Consider the Performance Assurance Reporting Requirements for Transporters","Scottish Power","2016-03-03",{"$f":"VLOOKUP($J357,Lookups!$A$3:$C$19,3,FALSE)","v":"Closed"},"Request",null,"Offtake","Request Closed",{"$f":"LOOKUP(J357,Lookups!$A$3:$A$20,Lookups!$B$3:$B$20)","v":"End of process"},"2016-08-18",null,null,"n/a","n/a","Urgent - text provided with mod"," ",null," ",null,null,null,"No"]
["0574",null,"Creating the permission to release supply point data to the Theft Risk Assessment Service (TRAS)","RWE Npower","2016-02-08",{"$f":"VLOOKUP($J358,Lookups!$A$3:$C$19,3,FALSE)","v":"Closed"},"Modification",null,"Distribution","Implemented",{"$f":"LOOKUP(J358,Lookups!$A$3:$A$20,Lookups!$B$3:$B$20)","v":"Effective date"},"2016-12-09","National Grid NTS","n/a","Northern Gas Networks",1,"Panel Requested Text 18/02/16","2016-03-10","2016-03-04","Y",null,null,null,"No"]
["0573",null,"Project Nexus – deferral of implementation of elements of Retrospective Adjustment arrangements","Cadent","2016-02-08",{"$f":"VLOOKUP($J359,Lookups!$A$3:$C$19,3,FALSE)","v":"Closed"},"Urgent",null,"Distribution","Implemented",{"$f":"LOOKUP(J359,Lookups!$A$3:$A$20,Lookups!$B$3:$B$20)","v":"Effective date"},"Nexus Imp Date","National Grid NTS","n/a","Cadent","n/a","Panel Requested Text 16/06/2016","2016-07-07","2016-06-22","Y",null,null,null,"No"]
["0572",null,"Amendment to the definition of AUG Year within UNC TPD Section E ","British Gas","2016-01-08",{"$f":"VLOOKUP($J360,Lookups!$A$3:$C$19,3,FALSE)","v":"Closed"},"Modification",null,"Distribution","Implemented",{"$f":"LOOKUP(J360,Lookups!$A$3:$A$20,Lookups!$B$3:$B$20)","v":"Effective date"},"Nexus Imp Date","National Grid Distribution",6,"Scotia Gas Networks",8,"Panel Requested Text 16/06/2016","2016-07-07","2016-06-22","Y",null,null,null,"No"]
["0571","A","Application of Ratchet Charges to Class 1 Supply Points and Class 2 with an AQ above 73,200kWhs","E.ON UK","2016-05-05",{"$f":"VLOOKUP($J361,Lookups!$A$3:$C$20,3,FALSE)","v":"Closed"},"Modification",null,"Distribution","Withdrawn",{"$f":"LOOKUP(J361,Lookups!$A$3:$A$20,Lookups!$B$3:$B$20)","v":"End of process"},"2017-05-11","National Grid Distribution",6,"Cadent",6,"Panel Requested Text 15/06/2017","2017-07-06","2017-05-23","Y",null,null,null,"No"]
["0571",null,"Application of Ratchets Charges to Class 1 Supply Points Only","Gazprom","2015-12-24",{"$f":"VLOOKUP($J362,Lookups!$A$3:$C$20,3,FALSE)","v":"Closed"},"Modification",null,"Distribution","Withdrawn",{"$f":"LOOKUP(J362,Lookups!$A$3:$A$20,Lookups!$B$3:$B$20)","v":"End of process"},"2017-05-10","National Grid Distribution",6,"Cadent","n/a","Panel Requested Text 21/01/16","2016-02-11","2016-01-21","Y",null,null,"n/a","No"]
["0570",null,"Obligation on Shippers to provide at least one valid meter reading per meter point into settlement once per annum","Scottish Power","2015-12-03",{"$f":"VLOOKUP($J363,Lookups!$A$3:$C$19,3,FALSE)","v":"Closed"},"Modification",null,"Distribution","Implemented",{"$f":"LOOKUP(J363,Lookups!$A$3:$A$20,Lookups!$B$3:$B$20)","v":"Effective date"},"2017-11-03","National Grid NTS","n/a","Cadent","n/a","Panel Requested Text 21/01/16","2016-02-11","2016-01-29","Y",null,null,null,"No"]
["0569","S","Removal of the minimum security requirement from the Energy Balancing Credit Rules","Locus Energy","2015-12-03",{"$f":"VLOOKUP($J364,Lookups!$A$3:$C$19,3,FALSE)","v":"Closed"},"Self-Governance",null,"Transmission","Implemented",{"$f":"LOOKUP(J364,Lookups!$A$3:$A$20,Lookups!$B$3:$B$20)","v":"Effective date"},"2016-03-11",null,null,"National Grid NTS","n/a","No Text req'd - enabling Mod",null,null," ",null,null,null,"No"]
["0568",null,"Security Requirements and Invoice Payment Settlement Cycle for the Trading System Clearer","ICE Endex ","2015-11-06",{"$f":"VLOOKUP($J365,Lookups!$A$3:$C$19,3,FALSE)","v":"Closed"},"Modification",null,"Transmission","Implemented",{"$f":"LOOKUP(J365,Lookups!$A$3:$A$20,Lookups!$B$3:$B$20)","v":"Effective date"},"2016-08-01",null,null,"National Grid NTS","n/a","Panel Requested Text 17/12/15","2016-01-12","2015-12-17","Y",null,null,null,"No"]
["0567","S","Amendment to reference temperature conditions within the National Grid NTS – IUK Interconnection Agreement","National Grid NTS","2015-11-06",{"$f":"VLOOKUP($J366,Lookups!$A$3:$C$19,3,FALSE)","v":"Closed"},"Self-Governance",null,"Transmission","Implemented",{"$f":"LOOKUP(J366,Lookups!$A$3:$A$20,Lookups!$B$3:$B$20)","v":"Effective date"},"2016-02-12",null,null,"n/a","n/a","Pane Requested Text 28/10/16","2016-11-18","2016-11-02","Y",null,null,"n/a","No"]
["0566","S","UNC modification stakeholder engagement and Guidelines","Scotia Gas Networks","2015-11-06",{"$f":"VLOOKUP($J367,Lookups!$A$3:$C$19,3,FALSE)","v":"Closed"},"Self-Governance",null,"Governance","Implemented",{"$f":"LOOKUP(J367,Lookups!$A$3:$A$20,Lookups!$B$3:$B$20)","v":"Effective date"},"2016-02-12",null,null,"Scotia Gas Networks","n/a","Panel Requested Text 20/10/16","2016-11-10","2016-11-02","Y",null,null,"n/a",{"$f":"IF(AND(F369=\"Live\",K369=\"Ofgem decision\"),\"Yes\",\"No\")","v":"No"}]
["0565","A","Central Data Service Provider: General framework and obligations","E.ON UK","2016-10-10",{"$f":"VLOOKUP($J368,Lookups!$A$3:$C$19,3,FALSE)","v":"Closed"},"Modification",null,"Other","Implemented",{"$f":"LOOKUP(J368,Lookups!$A$3:$A$20,Lookups!$B$3:$B$20)","v":"Effective date"},"2017-04-01",null,null,"National Grid Distribution","n/a","No Text req'd - Request",null,null," ",null,null,null,"No"]
["0565","B","Central Data Service Provider: General framework and obligations","Scotia Gas Networks","2016-10-26",{"$f":"VLOOKUP($J369,Lookups!$A$3:$C$19,3,FALSE)","v":"Closed"},"Modification",null,"Other","Rejected",{"$f":"LOOKUP(J369,Lookups!$A$3:$A$20,Lookups!$B$3:$B$20)","v":"End of process"},"2017-01-19",null,null,"National Grid Distribution","n/a","Panel Requested Text 20/10/16","2016-11-10","2016-11-02","Y",null,null,"n/a","No"]
["0565",null,"Central Data Service Provider: General framework and obligations","National Grid Distribution","2015-11-05",{"$f":"VLOOKUP($J370,Lookups!$A$3:$C$19,3,FALSE)","v":"Closed"},"Modification",null,"Other","Rejected",{"$f":"LOOKUP(J370,Lookups!$A$3:$A$20,Lookups!$B$3:$B$20)","v":"End of process"},"2017-01-19",null,null,"National Grid Distribution","n/a","Panel Requested Text 17/12/15","2016-01-12","2015-12-17","Y",null,null,null,"No"]
["0564","R","Review of Annual Read Meter Reading requirements","National Grid Distribution","2015-10-14",{"$f":"VLOOKUP($J371,Lookups!$A$3:$C$19,3,FALSE)","v":"Closed"},"Request",null,"Distribution","Request Closed",{"$f":"LOOKUP(J371,Lookups!$A$3:$A$20,Lookups!$B$3:$B$20)","v":"End of process"},"2016-06-16",null,null,"n/a","n/a","FT - text provided with mod","2015-10-15","2015-10-15","Y",null,null,"n/a","No"]
["0563","S","Moving the NTS Optional Commodity Charge Formula into the UNC","SSE","2015-10-12",{"$f":"VLOOKUP($J372,Lookups!$A$3:$C$19,3,FALSE)","v":"Closed"},"Self-Governance",null,"NTSCMF","Implemented",{"$f":"LOOKUP(J372,Lookups!$A$3:$A$20,Lookups!$B$3:$B$20)","v":"Effective date"},"2016-02-12",null,null,"National Grid NTS","n/a","No Text req'd - enabling Mod",null,null," ",null,null,"n/a","No"]
["0562","FT","Amendment to the Effective Date of Modification 0519 ‘Harmonisation of Reference Conditions at Interconnection Points’","National Grid NTS","2015-10-02",{"$f":"VLOOKUP($J373,Lookups!$A$3:$C$19,3,FALSE)","v":"Closed"},"Fast Track",null,"None","Implemented",{"$f":"LOOKUP(J373,Lookups!$A$3:$A$20,Lookups!$B$3:$B$20)","v":"Effective date"},"2015-11-06",null,null,"National Grid NTS","n/a","Urgent Mod","2015-11-10","2015-11-09","Y",null,null,"n/a","No"]
["0561","S","Amendment to the oxygen limit within the BBL / NTS Interconnection Agreement","National Grid NTS","2015-10-02",{"$f":"VLOOKUP($J374,Lookups!$A$3:$C$19,3,FALSE)","v":"Closed"},"Self-Governance",null,"Transmission","Implemented",{"$f":"LOOKUP(J374,Lookups!$A$3:$A$20,Lookups!$B$3:$B$20)","v":"Effective date"},"2015-12-11","National Grid NTS","n/a","n/a","n/a","FT - text provided with mod","2015-10-15","2015-10-15","Y",null,null,"n/a","No"]
["0560",null,"Addressing under-allocation of flows from BBL arising from misalignment of reference conditions","GasTerra","2015-09-30",{"$f":"VLOOKUP($J375,Lookups!$A$3:$C$19,3,FALSE)","v":"Closed"},"Urgent",null,"Transmission","Implemented",{"$f":"LOOKUP(J375,Lookups!$A$3:$A$20,Lookups!$B$3:$B$20)","v":"Effective date"},"2015-12-08",null,null,"National Grid NTS",5,"Mod withdrawn"," ",null," ",null,null,"n/a","No"]
["0559","FT","Correction of a minor legal text reference related to Information Provision changes","National Grid NTS","2015-09-28",{"$f":"VLOOKUP($J376,Lookups!$A$3:$C$19,3,FALSE)","v":"Closed"},"Fast Track",null,"None","Implemented",{"$f":"LOOKUP(J376,Lookups!$A$3:$A$20,Lookups!$B$3:$B$20)","v":"Effective date"},"2015-11-06",null,null,"National Grid NTS",4,"Mod withdrawn"," ",null," ",null,null,"n/a","No"]
["0558",null,"Standardisation of Industry Payment Terms","RWE Npower","2015-09-04",{"$f":"VLOOKUP($J377,Lookups!$A$3:$C$20,3,FALSE)","v":"Closed"},"Modification",null,"Distribution","Withdrawn",{"$f":"LOOKUP(J377,Lookups!$A$3:$A$20,Lookups!$B$3:$B$20)","v":"End of process"},"2015-11-05",null,null,"Scotia Gas Networks","n/a","FT - text provided with mod ","2015-09-17","2015-09-17","Y",null,null,"n/a","No"]
["0557",null,"Notice Period for Changes to Transportation Charges resulting from Uncertain costs allowed expenditure - financial adjustments","E.ON UK","2015-09-04",{"$f":"VLOOKUP($J378,Lookups!$A$3:$C$20,3,FALSE)","v":"Closed"},"Modification",null,"DNCMF","Withdrawn",{"$f":"LOOKUP(J378,Lookups!$A$3:$A$20,Lookups!$B$3:$B$20)","v":"End of process"},"2015-11-13",null,null,"National Grid Distribution","n/a","No Text req'd - Request"," ",null," ",null,null,"n/a","No"]
["0556","FT","Amendment to the Legal Text provided for “Modification 0548 Project Nexus – deferral of Implementation Date”","National Grid Distribution","2015-09-04",{"$f":"VLOOKUP($J379,Lookups!$A$3:$C$19,3,FALSE)","v":"Closed"},"Fast Track",null,"None","Implemented",{"$f":"LOOKUP(J379,Lookups!$A$3:$A$20,Lookups!$B$3:$B$20)","v":"Effective date"},"2015-10-09",null,null,"National Grid Distribution","n/a","FT - text provided with mod ","2015-09-17","2015-09-17","Y",null,null,"n/a","No"]
["0555","R","Review of the Market Operator (OCM) Provisions","National Grid NTS","2015-09-04",{"$f":"VLOOKUP($J380,Lookups!$A$3:$C$19,3,FALSE)","v":"Closed"},"Request",null,"Market Operator","Request Closed",{"$f":"LOOKUP(J380,Lookups!$A$3:$A$20,Lookups!$B$3:$B$20)","v":"End of process"},"2016-03-17",null,null,"n/a","n/a","Panel Requested Text 17/09/2015","2015-10-08","2015-09-30","Y",null,null,"n/a","No"]
["0554","FT","Gender-neutral terms within the UNC","Scotia Gas Networks","2015-08-26",{"$f":"VLOOKUP($J381,Lookups!$A$3:$C$19,3,FALSE)","v":"Closed"},"Fast Track",null,"None","Implemented",{"$f":"LOOKUP(J381,Lookups!$A$3:$A$20,Lookups!$B$3:$B$20)","v":"Effective date"},"2015-10-09",null,null,"Scotia Gas Networks","n/a","Panel Requested Text 20/08/2015","2015-09-10","2015-08-07","Y",null,null,"n/a","No"]
["0553","S","Removal of National Grid LNG Storage UNC TPD Section Z obligations and associated cross-references","National Grid LNG Storage","2015-08-07",{"$f":"VLOOKUP($J382,Lookups!$A$3:$C$19,3,FALSE)","v":"Closed"},"Self-Governance",null,"Transmission","Implemented",{"$f":"LOOKUP(J382,Lookups!$A$3:$A$20,Lookups!$B$3:$B$20)","v":"Effective date"},"2015-12-11",null,null,"National Grid NTS",3,"Panel Requested Text 17/09/2015","2015-10-08","2015-10-05","Y",null,null,"n/a","No"]
["0552","S","UNC Section Y Housekeeping","National Grid NTS","2015-08-07",{"$f":"VLOOKUP($J383,Lookups!$A$3:$C$19,3,FALSE)","v":"Closed"},"Self-Governance",null,"None","Implemented",{"$f":"LOOKUP(J383,Lookups!$A$3:$A$20,Lookups!$B$3:$B$20)","v":"Effective date"},"2015-10-09",null,null,"National Grid NTS",2,"Panel Requested Text 21/01/16","2016-02-11","2016-01-29","Y",null,null,"n/a","No"]
["0551",null,"Protecting consumers who are disaggregated under Modification 0428 from Ratchet charges for Winter 2015","Gazprom","2015-08-06",{"$f":"VLOOKUP($J384,Lookups!$A$3:$C$19,3,FALSE)","v":"Closed"},"Modification",null,"Distribution","Rejected",{"$f":"LOOKUP(J384,Lookups!$A$3:$A$20,Lookups!$B$3:$B$20)","v":"End of process"},"2016-03-21",null,null,"Northern Gas Networks",1,"Mod withdrawn"," ",null," ",null,null,"n/a","No"]
["0550",null,"Project Nexus: Incentivising Central Project Delivery","RWE Npower","2015-08-04",{"$f":"VLOOKUP($J385,Lookups!$A$3:$C$19,3,FALSE)","v":"Closed"},"Modification",null,"Governance","Rejected",{"$f":"LOOKUP(J385,Lookups!$A$3:$A$20,Lookups!$B$3:$B$20)","v":"End of process"},"2016-05-27",null,null,"National Grid Distribution","n/a","Urgent - text provided with mod"," ",null," ",null,null,"n/a","No"]
["0549",null,"Improving Arrangements for Managing Major Industry Changes","Gazprom","2015-07-14",{"$f":"VLOOKUP($J386,Lookups!$A$3:$C$20,3,FALSE)","v":"Closed"},"Modification",null,"Governance","Withdrawn",{"$f":"LOOKUP(J386,Lookups!$A$3:$A$20,Lookups!$B$3:$B$20)","v":"End of process"},"22-0ct-15",null,null,"Scotia Gas Networks","n/a","Panel Requested Text 16/07/2015","2015-08-06","2015-08-06","Y",null,null,"n/a","No","NOTE: Rotation 6 & 7 missed due to previous text allocations"]
["0548",null,"Project Nexus – deferral of Implementation Date","National Grid Distribution","2015-07-14",{"$f":"VLOOKUP($J387,Lookups!$A$3:$C$19,3,FALSE)","v":"Closed"},"Urgent",null,"Nexus","Implemented",{"$f":"LOOKUP(J387,Lookups!$A$3:$A$20,Lookups!$B$3:$B$20)","v":"Effective date"},"2015-08-14",null,null,"National Grid Distribution","n/a","Panel Requested Text 16/07/2015","2015-08-06","2015-08-05","Y",null,null,"n/a","No"]
["0547","S","Corrections to the EID arising from implementation of Modifications 0493/0500","National Grid NTS","2015-07-03",{"$f":"VLOOKUP($J388,Lookups!$A$3:$C$19,3,FALSE)","v":"Closed"},"Self-Governance",null,"Transmission","Implemented",{"$f":"LOOKUP(J388,Lookups!$A$3:$A$20,Lookups!$B$3:$B$20)","v":"Effective date"},"2015-10-09",null,null,"National Grid NTS","n/a","Panel Requested Text 20/08/2015","2015-09-10","2015-08-18","Y",null,null,"n/a","No"]
["0546","S","Reduction of the Minimum Eligible Quantity (100,000kWh) for European IP capacity","National Grid NTS","2015-07-03",{"$f":"VLOOKUP($J389,Lookups!$A$3:$C$19,3,FALSE)","v":"Closed"},"Self-Governance",null,"Transmission","Implemented",{"$f":"LOOKUP(J389,Lookups!$A$3:$A$20,Lookups!$B$3:$B$20)","v":"Effective date"},"2015-10-09",null,null,"National Grid NTS",8,"Mod withdrawn"," ",null," ",null,null,"n/a","No"]
["0545","S","Changes to GDN MOD186 Publication dates","Northern Gas Networks","2015-07-02",{"$f":"VLOOKUP($J390,Lookups!$A$3:$C$19,3,FALSE)","v":"Closed"},"Self-Governance",null,"DNCMF","Implemented",{"$f":"LOOKUP(J390,Lookups!$A$3:$A$20,Lookups!$B$3:$B$20)","v":"Effective date"},"2015-11-06",null,null,"Northern Gas Networks","n/a","Mod withdrawn"," ",null," ",null,null,"n/a","No"]
["0544",null,"Amendment to charging under Modification 0428 - Single Meter Supply Points","Gazprom","2015-06-30",{"$f":"VLOOKUP($J391,Lookups!$A$3:$C$20,3,FALSE)","v":"Closed"},"Urgent",null,"Distribution","Withdrawn",{"$f":"LOOKUP(J391,Lookups!$A$3:$A$20,Lookups!$B$3:$B$20)","v":"End of process"},"2015-07-02",null,null,"National Grid Distribution","n/a","Mod withdrawn"," ",null," ",null,null,"n/a","No"]
["0543",null,"Ex-post removal of uncontrollable UNC charges at ASEPs which include sub-terminals operating on a 06.00 to 06.00 Gas Day","Gazprom","2015-06-23",{"$f":"VLOOKUP($J392,Lookups!$A$3:$C$19,3,FALSE)","v":"Closed"},"Modification",null,"Transmission","Renumbered",{"$f":"LOOKUP(J392,Lookups!$A$3:$A$20,Lookups!$B$3:$B$20)","v":"End of process"},"2015-07-16",null,null,"National Grid NTS","n/a","Panel Requested Text 21/01/16","2016-02-11","2016-02-11","Y",null,null,"n/a","No"]
["0542",null,"Ex-ante removal of uncontrollable UNC charges at ASEPs which include sub-terminals operating on a 06.00 to 06.00 Gas Day","BP","2015-06-23",{"$f":"VLOOKUP($J393,Lookups!$A$3:$C$19,3,FALSE)","v":"Closed"},"Modification",null,"Transmission","Renumbered",{"$f":"LOOKUP(J393,Lookups!$A$3:$A$20,Lookups!$B$3:$B$20)","v":"End of process"},"2015-07-16",null,null,"National Grid NTS","n/a","Panel Requested Text 21/01/16","2016-02-11","2016-02-11","Y",null,null,"n/a","No"]
["0541","B","Ex-post removal of uncontrollable UNC charges at ASEPs which include sub-terminals operating on a 06.00 to 06.00 Gas Day","Gazprom","2015-07-16",{"$f":"VLOOKUP($J394,Lookups!$A$3:$C$19,3,FALSE)","v":"Closed"},"Modification",null,"Transmission","Rejected",{"$f":"LOOKUP(J394,Lookups!$A$3:$A$20,Lookups!$B$3:$B$20)","v":"End of process"},"2016-05-26","National Grid NTS","n/a","National Grid NTS","n/a","Mod withdrawn"," ",null,{"$f":"IF(ISBLANK(S394),\" \",IF(S394<=R394,\"Y\",\"N\"))","v":" "},null,null,"n/a","No"]
["0541","A","Ex-ante removal of uncontrollable UNC charges at ASEPs which include sub-terminals operating on a 06.00 to 06.00 Gas Day","BP","2015-07-16",{"$f":"VLOOKUP($J395,Lookups!$A$3:$C$19,3,FALSE)","v":"Closed"},"Modification",null,"Transmission","Rejected",{"$f":"LOOKUP(J395,Lookups!$A$3:$A$20,Lookups!$B$3:$B$20)","v":"End of process"},"2016-05-26","National Grid NTS","n/a","National Grid NTS","n/a","FT - text provided with mod ","2015-07-16","2015-07-16","Y",null,null,"n/a","No"]
["0541",null,"Removal of uncontrollable UNC charges at ASEPs which include sub-terminals operating on a 06.00 to 06.00 Gas Day via an ex-ante, quantity adjustment","EDF Trading","2015-06-23",{"$f":"VLOOKUP($J396,Lookups!$A$3:$C$20,3,FALSE)","v":"Closed"},"Modification",null,"Transmission","Withdrawn",{"$f":"LOOKUP(J396,Lookups!$A$3:$A$20,Lookups!$B$3:$B$20)","v":"End of process"},"2015-12-15",null,null,"National Grid NTS",5,"Deemed Text Request 17/09/15","2015-09-17","2015-09-17","Y",null,null,"n/a","No"]
["0540","FT","Amendment to TPD Section G2.15","Scotia Gas Networks","2015-06-10",{"$f":"VLOOKUP($J397,Lookups!$A$3:$C$19,3,FALSE)","v":"Closed"},"Fast Track",null,"Distribution","Implemented",{"$f":"LOOKUP(J397,Lookups!$A$3:$A$20,Lookups!$B$3:$B$20)","v":"Effective date"},"2015-08-07",null,null,"Scotia Gas Networks","n/a","FT - text provided with mod ","2015-06-18","2015-06-18","Y",null,null,"n/a","No"]
["0539",null,"Removal of NTS Exit Commodity Charges for Distributed Gas","Barrow Shipping Ltd","2015-06-05",{"$f":"VLOOKUP($J398,Lookups!$A$3:$C$19,3,FALSE)","v":"Closed"},"Modification",null,"DNCMF","Rejected",{"$f":"LOOKUP(J398,Lookups!$A$3:$A$20,Lookups!$B$3:$B$20)","v":"End of process"},"2015-11-19",null,null,"Scotia Gas Networks","n/a","Mod withdrawn"," ",null," ",null,null,"n/a","No"]
["0538","FT","Correcting legal text errors – gas Security of Supply Significant Code Review","National Grid NTS","2015-06-04",{"$f":"VLOOKUP($J399,Lookups!$A$3:$C$19,3,FALSE)","v":"Closed"},"Fast Track",null,"Transmission","Implemented",{"$f":"LOOKUP(J399,Lookups!$A$3:$A$20,Lookups!$B$3:$B$20)","v":"Effective date"},"2015-10-01",null,null,"National Grid NTS","n/a","Mod withdrawn"," ",null," ",null,null,"n/a","No"]
["0537",null,"Change of Project Nexus Implementation Date to 1st April 2016 ","Total Gas and Power","2015-04-27",{"$f":"VLOOKUP($J400,Lookups!$A$3:$C$20,3,FALSE)","v":"Closed"},"Modification",null,"Nexus","Withdrawn",{"$f":"LOOKUP(J400,Lookups!$A$3:$A$20,Lookups!$B$3:$B$20)","v":"End of process"},"2015-06-18",null,null,"National Grid Distribution","n/a","Panel Requested Text 16/04/2015","2015-05-07","2015-05-07","Y",null,null,"TBC","No"]
["0536",null,"Project Nexus – deferral of implementation of elements of Retrospective Adjustment arrangements","National Grid Distribution","2015-04-24",{"$f":"VLOOKUP($J401,Lookups!$A$3:$C$20,3,FALSE)","v":"Closed"},"Modification",null,"Nexus","Withdrawn",{"$f":"LOOKUP(J401,Lookups!$A$3:$A$20,Lookups!$B$3:$B$20)","v":"End of process"},"2015-07-24",null,null,"National Grid Distribution","n/a","Panel Requested Text 16/07/2015","2015-08-06","2015-07-23","Y",null,null,"TBC","No"]
["0535",null,"Implementation of Non-Effective Days to enable Annual AQ Review (independent of Nexus transition)","Scotia Gas Networks","2015-03-06",{"$f":"VLOOKUP($J402,Lookups!$A$3:$C$19,3,FALSE)","v":"Closed"},"Modification",null,"Nexus","Implemented",{"$f":"LOOKUP(J402,Lookups!$A$3:$A$20,Lookups!$B$3:$B$20)","v":"Effective date"},"2015-07-24",null,null,"Scotia Gas Networks","n/a","No Text req'd - enabling Mod"," ",null," ",null,null,"n/a","No"]
["0534",null,"Maintaining the Efficacy of the NTS Optional Commodity ('shorthaul') Tariff at Bacton Entry Points","Gazprom","2015-03-06",{"$f":"VLOOKUP($J403,Lookups!$A$3:$C$19,3,FALSE)","v":"Closed"},"Modification",null,"Transmission","Implemented",{"$f":"LOOKUP(J403,Lookups!$A$3:$A$20,Lookups!$B$3:$B$20)","v":"Effective date"},"2016-08-01",null,null,"National Grid NTS","n/a","Panel Requested Text 19/11/2015","2015-12-10","2015-12-03","Y",null,null,"n/a","No"]
["0533","S","Corrections to Network Entry Provisions in the National Grid NTS-BBL Interconnection Agreement","National Grid NTS","2015-03-06",{"$f":"VLOOKUP($J404,Lookups!$A$3:$C$19,3,FALSE)","v":"Closed"},"Self-Governance",null,"Transmission","Implemented",{"$f":"LOOKUP(J404,Lookups!$A$3:$A$20,Lookups!$B$3:$B$20)","v":"Effective date"},"2015-06-15",null,null,"National Grid NTS",4,"Panel Requested Text 21/04/2016","2016-05-13","2016-05-06","Y",null,null,"n/a","No"]
["0532",null,"Implementation of Non-Effective Days (Project Nexus transitional modification)","National Grid Distribution","2015-03-06",{"$f":"VLOOKUP($J405,Lookups!$A$3:$C$19,3,FALSE)","v":"Closed"},"Modification",null,"Nexus","Rejected",{"$f":"LOOKUP(J405,Lookups!$A$3:$A$20,Lookups!$B$3:$B$20)","v":"End of process"},"2016-06-30",null,null,"National Grid Distribution","n/a","Mod withdrawn"," ",null," ",null,null,"n/a","No"]
["0531",null,"Provision of an Industry User Test System","SSE","2015-02-09",{"$f":"VLOOKUP($J406,Lookups!$A$3:$C$19,3,FALSE)","v":"Closed"},"Modification",null,"Nexus","Rejected",{"$f":"LOOKUP(J406,Lookups!$A$3:$A$20,Lookups!$B$3:$B$20)","v":"End of process"},"2016-10-20",null,null,"National Grid Distribution","n/a","Panel Requested Text 21/05/15","2015-06-11","2015-05-21","Y",null,null,"n/a","No"]
["0530",null,"Use of Supply Point Register data for Project Nexus 'Market Trials' Testing Phase","National Grid Distribution","2015-02-06",{"$f":"VLOOKUP($J407,Lookups!$A$3:$C$20,3,FALSE)","v":"Closed"},"Modification",null,"Nexus","Withdrawn",{"$f":"LOOKUP(J407,Lookups!$A$3:$A$20,Lookups!$B$3:$B$20)","v":"End of process"},"2015-02-18",null,null,"National Grid Distribution","n/a","Panel Requested Text 16/04/2015","2015-05-07","2015-04-16","Y",null,null,"n/a","No"]
["0529",null,"Implementation of Retrospective Adjustment arrangements (Project Nexus transitional modification)","National Grid Distribution","2015-02-06",{"$f":"VLOOKUP($J408,Lookups!$A$3:$C$19,3,FALSE)","v":"Closed"},"Modification",null,"Nexus","Rejected",{"$f":"LOOKUP(J408,Lookups!$A$3:$A$20,Lookups!$B$3:$B$20)","v":"End of process"},"2016-02-10",null,null,"National Grid Distribution","n/a","Panel Requested Text 16/04/2015","2015-05-07","2015-04-16","Y",null,null,"n/a","No"]
["0528","V","Implementation of Supply Point Administration, gas allocation and settlement arrangements (Project Nexus transitional modification)","National Grid Distribution","2015-08-20",{"$f":"VLOOKUP($J409,Lookups!$A$3:$C$19,3,FALSE)","v":"Closed"},"Modification",null,"Nexus","Implemented",{"$f":"LOOKUP(J409,Lookups!$A$3:$A$20,Lookups!$B$3:$B$20)","v":"Effective date"},"2016-02-11",null,null,"National Grid Distribution","n/a","Panel Requested Text 16/04/2015","2015-05-07","2015-04-16","Y",null,null,"n/a","No"]
["0528",null,"Implementation of Supply Point Administration, gas allocation and settlement arrangements (Project Nexus transitional modification)","National Grid Distribution","2015-02-06",{"$f":"VLOOKUP($J410,Lookups!$A$3:$C$20,3,FALSE)","v":"Closed"},"Modification",null,"Nexus","Withdrawn",{"$f":"LOOKUP(J410,Lookups!$A$3:$A$20,Lookups!$B$3:$B$20)","v":"End of process"},"2015-08-20",null,null,"National Grid Distribution",3,"Panel Requested Text 21/04/2016","2016-05-13","2016-05-13","Y",null,null,"n/a","No"]
["0527",null,"Implementation of Annual Quantity arrangements (Project Nexus transitional modification)","National Grid Distribution","2015-02-06",{"$f":"VLOOKUP($J411,Lookups!$A$3:$C$19,3,FALSE)","v":"Closed"},"Modification",null,"Nexus","Implemented",{"$f":"LOOKUP(J411,Lookups!$A$3:$A$20,Lookups!$B$3:$B$20)","v":"Effective date"},"2016-02-11",null,null,"National Grid Distribution","n/a","Panel Requested Text 21/05/15"," 12/06/15","2015-06-04","Y",null,null,"n/a","No"]
["0526","S","Identification of Supply Meter Point pressure tier","E.ON UK","2015-02-06",{"$f":"VLOOKUP($J412,Lookups!$A$3:$C$19,3,FALSE)","v":"Closed"},"Self-Governance",null,"Distribution","Rejected",{"$f":"LOOKUP(J412,Lookups!$A$3:$A$20,Lookups!$B$3:$B$20)","v":"End of process"},"2016-06-16",null,null,"Northern Gas Networks","n/a","Mod withdrawn",null,null," ",null,null,"n/a","No"]
["0525",null,"Enabling EU Compliant Interconnection Agreements","National Grid NTS","2015-02-04",{"$f":"VLOOKUP($J413,Lookups!$A$3:$C$19,3,FALSE)","v":"Closed"},"Modification",null,"European","Implemented",{"$f":"LOOKUP(J413,Lookups!$A$3:$A$20,Lookups!$B$3:$B$20)","v":"Effective date"},"2015-10-01",null,null,"National Grid NTS","n/a","Panel Requested Text 21/05/15","2015-06-12","2015-05-21","Y",null,null,"n/a","No"]
["0524",null,"Enabling the Use of Pre Nexus Meter Reads for the purposes of Post Nexus Rolling AQ Calculation","Gazprom","2015-01-23",{"$f":"VLOOKUP($J414,Lookups!$A$3:$C$20,3,FALSE)","v":"Closed"},"Modification",null,"Nexus","Withdrawn",{"$f":"LOOKUP(J414,Lookups!$A$3:$A$20,Lookups!$B$3:$B$20)","v":"End of process"},"2015-02-11",null,null,"National Grid Distribution","n/a","Panel Requested Text 19/11/15","2015-12-10","2015-11-18","Y",null,null,"n/a","No"]
["0523","S","Supply Point Registration – Facilitation of ‘faster switching’ for Shared Supply Meter Points ","National Grid Distribution","2015-01-07",{"$f":"VLOOKUP($J415,Lookups!$A$3:$C$19,3,FALSE)","v":"Closed"},"Self-Governance",null,"Distribution","Implemented",{"$f":"LOOKUP(J415,Lookups!$A$3:$A$20,Lookups!$B$3:$B$20)","v":"Effective date"},"Nexus Imp Date",null,null,"National Grid Distribution","n/a","Panel requested text 18/12/14","2015-01-14","2014-12-18","Y",null,null,"n/a","No"]
["0522","S","Governance of the use of email as a valid UNC communication","E.ON UK","2014-08-08",{"$f":"VLOOKUP($J416,Lookups!$A$3:$C$19,3,FALSE)","v":"Closed"},"Self-Governance",null,"Distribution","Rejected",{"$f":"LOOKUP(J416,Lookups!$A$3:$A$20,Lookups!$B$3:$B$20)","v":"End of process"},"2015-12-17",null,null,"Northern Gas Networks","n/a","Panel Requested Text 19/11/2015","2015-12-10","2015-12-08","Y",null,null,"TBC","No"]
["0521",null,"Revision of User Admission Criteria to include Transporter verification of its ability to transact with the Applicant User","National Grid NTS","2014-12-10",{"$f":"VLOOKUP($J417,Lookups!$A$3:$C$19,3,FALSE)","v":"Closed"},"Modification",null,"NTSCMF","Rejected",{"$f":"LOOKUP(J417,Lookups!$A$3:$A$20,Lookups!$B$3:$B$20)","v":"End of process"},"2015-05-11",null,null,"National Grid NTS","n/a","Panel requested Text 20/08/15","2015-09-10","2015-09-04","Y",null,null,"TBC","No"]
["0520","A","Performance Assurance Reporting","E.ON UK","2015-10-02",{"$f":"VLOOKUP($J418,Lookups!$A$3:$C$19,3,FALSE)","v":"Closed"},"Modification",null,"Distribution","Implemented",{"$f":"LOOKUP(J418,Lookups!$A$3:$A$20,Lookups!$B$3:$B$20)","v":"Effective date"},"2017-01-01",null,null,"Wales & West Utilities","n/a","Panel Requested Text 15/01/15","2015-02-05","2015-01-16","Y",null,null,"n/a","No"]
["0520",null,"Performance Assurance Reporting","British Gas","2014-11-25",{"$f":"VLOOKUP($J419,Lookups!$A$3:$C$19,3,FALSE)","v":"Closed"},"Modification",null,"Distribution","Rejected",{"$f":"LOOKUP(J419,Lookups!$A$3:$A$20,Lookups!$B$3:$B$20)","v":"End of process"},"2016-04-25",null,null,"Wales & West Utilities","n/a","Panel Requested Text 21/05/15","2015-06-12","2015-05-21","Y",null,null,"n/a","No"]
["0519",null,"Harmonisation of Reference Conditions at Interconnection Points","National Grid NTS","2014-11-07",{"$f":"VLOOKUP($J420,Lookups!$A$3:$C$19,3,FALSE)","v":"Closed"},"Modification",null,"European","Implemented",{"$f":"LOOKUP(J420,Lookups!$A$3:$A$20,Lookups!$B$3:$B$20)","v":"Effective date"},"2015-10-01",null,null,"National Grid NTS","n/a","Deemed Text Request 18/06/15","2015-07-09","2015-06-18","Y",null,null,"n/a","No"]
["0518","S","Shipper Verification of meter and address details following system meter removals.","Scotia Gas Networks","2014-10-31",{"$f":"VLOOKUP($J421,Lookups!$A$3:$C$19,3,FALSE)","v":"Closed"},"Self-Governance",null,"Distribution","Implemented",{"$f":"LOOKUP(J421,Lookups!$A$3:$A$20,Lookups!$B$3:$B$20)","v":"Effective date"},"2017-09-01",null,null,"Scotia Gas Networks","n/a","Panel requested text 18/12/14","2015-01-14","2015-01-06","Y",null,null,"n/a","No"]
["0517","B","Review of the Supply Matching Merit Order in Setting Capacity Charges, Rolling Average to Reduce Volatility in Annual Charges","SSE","2014-12-16",{"$f":"VLOOKUP($J422,Lookups!$A$3:$C$19,3,FALSE)","v":"Closed"},"Modification",null,"NTSCMF","Rejected",{"$f":"LOOKUP(J422,Lookups!$A$3:$A$20,Lookups!$B$3:$B$20)","v":"End of process"},"2015-09-25",null,null,"National Grid NTS","n/a","Panel requested text 18/12/14","2015-01-14","2015-01-06","Y",null,null,"n/a","No"]
["0517","A","Review of the Supply Matching Merit Order in Setting Capacity Charges and Timing of Resultant Price Changes","Wales & West Utilities","2014-12-11",{"$f":"VLOOKUP($J423,Lookups!$A$3:$C$19,3,FALSE)","v":"Closed"},"Modification",null,"NTSCMF","Rejected",{"$f":"LOOKUP(J423,Lookups!$A$3:$A$20,Lookups!$B$3:$B$20)","v":"End of process"},"2015-09-25",null,null,"National Grid NTS","n/a","Panel requested text 19/02/15","2015-03-12","2015-02-19","Y",null,null,"n/a","No"]
["0517",null,"Review of the Supply Matching Merit Order in Setting Capacity Charges ","National Grid NTS","2014-10-03",{"$f":"VLOOKUP($J424,Lookups!$A$3:$C$19,3,FALSE)","v":"Closed"},"Modification",null,"NTSCMF","Rejected",{"$f":"LOOKUP(J424,Lookups!$A$3:$A$20,Lookups!$B$3:$B$20)","v":"End of process"},"2015-09-25",null,null,"National Grid NTS","n/a","Panel Requested Text 20/11/14","2014-12-11","2014-12-04","Y",null,null,"n/a","No"]
["0516","S","Information provision by large Customers to aid understanding of site characteristics","Wingas","2014-09-16",{"$f":"VLOOKUP($J425,Lookups!$A$3:$C$19,3,FALSE)","v":"Closed"},"Self-Governance",null,"Distribution","Implemented",{"$f":"LOOKUP(J425,Lookups!$A$3:$A$20,Lookups!$B$3:$B$20)","v":"Effective date"},"Nexus Imp Date",null,null,"Scotia Gas Networks","n/a","Panel Requested Text 20/11/14","2014-11-20","2014-11-20","Y",null,null,"n/a","No"]
["0515","S","Resolution timescales for SRVs and USRVs following Project Nexus Implementation","National Grid Distribution","2014-08-27",{"$f":"VLOOKUP($J426,Lookups!$A$3:$C$19,3,FALSE)","v":"Closed"},"Self-Governance",null,"Nexus","Implemented",{"$f":"LOOKUP(J426,Lookups!$A$3:$A$20,Lookups!$B$3:$B$20)","v":"Effective date"},"2015-03-13",null,null,"National Grid Distribution","n/a","None Required",null,null," ",null,null,"Yes","No"]
["0514",null,"Extending the Daily Metered ‘voluntary’ service to Project Nexus Implementation Date plus six months","National Grid Distribution","2014-08-27",{"$f":"VLOOKUP($J427,Lookups!$A$3:$C$19,3,FALSE)","v":"Closed"},"Modification",null,"Nexus","Implemented",{"$f":"LOOKUP(J427,Lookups!$A$3:$A$20,Lookups!$B$3:$B$20)","v":"Effective date"},"Nexus Imp Date",null,null,"National Grid Distribution",2,"Panel requested text 18/12/14","2015-01-14","2014-12-18","Y",null,null,"n/a","No"]
["0513",null,"UK Link Programme (Project Nexus) - independent project assurance for Users","National Grid Distribution","2014-08-20",{"$f":"VLOOKUP($J428,Lookups!$A$3:$C$19,3,FALSE)","v":"Closed"},"Urgent",null,"Nexus","Implemented",{"$f":"LOOKUP(J428,Lookups!$A$3:$A$20,Lookups!$B$3:$B$20)","v":"Effective date"},"2015-10-27",null,null,"National Grid Distribution","n/a","Mod withdrawn",null,null," ",null,null,"n/a","No"]
["0512","S","Amendment to Section M to be consistent with Faster Switching proposals ","British Gas","2014-08-20",{"$f":"VLOOKUP($J429,Lookups!$A$3:$C$19,3,FALSE)","v":"Closed"},"Self-Governance",null,"Distribution","Implemented",{"$f":"LOOKUP(J429,Lookups!$A$3:$A$20,Lookups!$B$3:$B$20)","v":"Effective date"},"2015-03-13",null,null,"National Grid Distribution","n/a","Panel Requested Text 16/07/15","2015-08-06","2015-07-16","Y",null,null,"n/a","No"]
["0511",null,"Introduction of an Enduring Solution for managing Advanced Meters in central systems post Nexus","Gazprom","2014-08-18",{"$f":"VLOOKUP($J430,Lookups!$A$3:$C$20,3,FALSE)","v":"Closed"},"Modification",null,"Nexus","Withdrawn",{"$f":"LOOKUP(J430,Lookups!$A$3:$A$20,Lookups!$B$3:$B$20)","v":"End of process"},"2015-01-23",null,null,"Northern Gas Networks","n/a","Panel Requested Text 15/01/15","2015-02-05","2015-01-19","Y",null,null,"n/a","No"]
["0510","V","Reform of Gas Allocation Regime at GB Interconnection Points","National Grid NTS","2015-07-16",{"$f":"VLOOKUP($J431,Lookups!$A$3:$C$19,3,FALSE)","v":"Closed"},"Modification",null,"European","Implemented",{"$f":"LOOKUP(J431,Lookups!$A$3:$A$20,Lookups!$B$3:$B$20)","v":"Effective date"},"2015-10-01","National Grid NTS","n/a","National Grid NTS",1,"Mod withdrawn",null,null," ",null,null,"n/a",{"$f":"IF(AND(F433=\"Live\",K433=\"Ofgem decision\"),\"Yes\",\"No\")","v":"No"}]
["0510",null,"Reform of Gas Allocation Regime at GB Interconnection Points","National Grid NTS","2014-08-08",{"$f":"VLOOKUP($J432,Lookups!$A$3:$C$20,3,FALSE)","v":"Closed"},"Modification",null,"European","Withdrawn",{"$f":"LOOKUP(J432,Lookups!$A$3:$A$20,Lookups!$B$3:$B$20)","v":"End of process"},"2015-07-16",null,null,"National Grid NTS","n/a","Mod withdrawn",null,null," ",null,null,"n/a","No"]
["0509",null,"Permission to release Protected Information to an Authorised Third Party for Performance Assurance settlement risk analysis","E.ON UK","2014-08-08",{"$f":"VLOOKUP($J433,Lookups!$A$3:$C$20,3,FALSE)","v":"Closed"},"Modification",null,"Governance","Withdrawn",{"$f":"LOOKUP(J433,Lookups!$A$3:$A$20,Lookups!$B$3:$B$20)","v":"End of process"},"2015-06-24",null,null,"Scotia Gas Networks",8,"Panel Requested Text 21/08/13","2014-09-11","2014-08-21","Y",null,null,"n/a","No"]
["0508",null,"Revised Distributed Gas Charging Arrangements","National Grid Distribution","2014-07-04",{"$f":"VLOOKUP($J434,Lookups!$A$3:$C$20,3,FALSE)","v":"Closed"},"Modification",null,"DNCMF","Withdrawn",{"$f":"LOOKUP(J434,Lookups!$A$3:$A$20,Lookups!$B$3:$B$20)","v":"End of process"},"2014-10-24",null,null,"National Grid Distribution","n/a","Panel Requested Text 19/11/15","2015-12-10","2015-11-19","Y",null,null,"n/a","No"]
["0507",null,"Changing The Effective Date of 0451AV","Winchester Gas","2014-07-01",{"$f":"VLOOKUP($J435,Lookups!$A$3:$C$19,3,FALSE)","v":"Closed"},"Modification",null,"Distribution","Implemented",{"$f":"LOOKUP(J435,Lookups!$A$3:$A$20,Lookups!$B$3:$B$20)","v":"Effective date"},"2014-11-01",null,null,"National Grid Distribution","n/a","Panel Requested Text 18/06/15","2015-07-09","2015-06-30","Y",null,null,"n/a","No"]
["0506","V","Gas Performance Assurance Framework and Governance Arrangements","Scottish Power","2015-11-19",{"$f":"VLOOKUP($J436,Lookups!$A$3:$C$19,3,FALSE)","v":"Closed"},"Modification",null,"Performance Assurance ","Implemented",{"$f":"LOOKUP(J436,Lookups!$A$3:$A$20,Lookups!$B$3:$B$20)","v":"Effective date"},"2016-01-29",null,null,"Wales & West Utilities","n/a","Mod withdrawn","2014-07-10","2014-06-30",null,null,null,"n/a","No"]
["0506","AV","Gas Performance Assurance Framework and Governance Arrangements","SSE","2015-11-19",{"$f":"VLOOKUP($J437,Lookups!$A$3:$C$19,3,FALSE)","v":"Closed"},"Modification",null,"Performance Assurance ","Rejected",{"$f":"LOOKUP(J437,Lookups!$A$3:$A$20,Lookups!$B$3:$B$20)","v":"End of process"},"2015-12-17",null,null,"Wales & West Utilities",7,"Panel Requested Text 19/11/15","2015-12-10","2015-11-19",{"$f":"IF(ISBLANK(S437),\" \",IF(S437<=R437,\"Y\",\"N\"))","v":"Y"},null,null,"n/a","No"]
["0506","A","Gas Performance Assurance Framework and Governance Arrangements","SSE","2015-01-02",{"$f":"VLOOKUP($J438,Lookups!$A$3:$C$20,3,FALSE)","v":"Closed"},"Modification",null,"Performance Assurance ","Withdrawn",{"$f":"LOOKUP(J438,Lookups!$A$3:$A$20,Lookups!$B$3:$B$20)","v":"End of process"},"2015-11-19",null,null,"Wales & West Utilities",7,"Panel Requested Text 18/06/15","2015-07-09","2015-06-30","Y",null,null,"n/a","No"]
["0506",null,"Gas Performance Assurance Framework and Governance Arrangements","Scottish Power","2014-06-12",{"$f":"VLOOKUP($J439,Lookups!$A$3:$C$20,3,FALSE)","v":"Closed"},"Modification",null,"Performance Assurance ","Withdrawn",{"$f":"LOOKUP(J439,Lookups!$A$3:$A$20,Lookups!$B$3:$B$20)","v":"End of process"},"2015-11-19",null,null,"Wales & West Utilities","n/a","Panel Requested Text 19/11/15","2015-12-10","2015-11-19","Y",null,null,"n/a","No"]
["0505","S","Update to UNC TPD Section G & M to correct anomalies arising from the implementation of UNC Modification 0463S","Scotia Gas Networks","2014-06-06",{"$f":"VLOOKUP($J440,Lookups!$A$3:$C$20,3,FALSE)","v":"Closed"},"Self-Governance",null,"Distribution","Withdrawn",{"$f":"LOOKUP(J440,Lookups!$A$3:$A$20,Lookups!$B$3:$B$20)","v":"End of process"},"2014-10-22",null,null,"Scotia Gas Networks","n/a","FT Mod - Text provided with the Mod","2014-07-18","2014-07-18","Y",null,null,"n/a","No"]
["0504",null,"Demand Side Response (DSR) Methodology Implementation","National Grid NTS","2014-06-04",{"$f":"VLOOKUP($J441,Lookups!$A$3:$C$19,3,FALSE)","v":"Closed"},"Modification",null,"Demand Side Response","Implemented",{"$f":"LOOKUP(J441,Lookups!$A$3:$A$20,Lookups!$B$3:$B$20)","v":"Effective date"},"2016-03-01",null,null,"National Grid NTS","n/a","No Text req'd - enabling Mod",null,null," ",null,null,"n/a","No"]
["0503","FT","Update of Transporter Procedure Document references within Network Code","E.ON UK","2014-06-02",{"$f":"VLOOKUP($J442,Lookups!$A$3:$C$19,3,FALSE)","v":"Closed"},"Fast Track",null,"Distribution","Implemented",{"$f":"LOOKUP(J442,Lookups!$A$3:$A$20,Lookups!$B$3:$B$20)","v":"Effective date"},"2014-08-08",null,null,"(Proposed as  FT - Text included)","n/a","Panel requested text 18/12/14","2015-01-14","2015-01-14","Y",null,null,"n/a","No"]
["0502",null,"Amendment to Gas Quality NTS Entry Specification at the px Teesside System Entry Point","Energy24 Limited","2014-05-01",{"$f":"VLOOKUP($J443,Lookups!$A$3:$C$19,3,FALSE)","v":"Closed"},"Modification",null,"Transmission","Implemented",{"$f":"LOOKUP(J443,Lookups!$A$3:$A$20,Lookups!$B$3:$B$20)","v":"Effective date"},"2015-09-28",null,null,"National Grid NTS","n/a","Panel Requested Text 16/10/14","2014-11-06","2014-10-17","Y",null,null,"Yes","No"]
["0501","V","Treatment of Existing Entry Capacity Rights at the Bacton ASEP to comply with EU Capacity Regulations","National Grid NTS","2015-05-01",{"$f":"VLOOKUP($J444,Lookups!$A$3:$C$19,3,FALSE)","v":"Closed"},"Modification",null,"European","Implemented",{"$f":"LOOKUP(J444,Lookups!$A$3:$A$20,Lookups!$B$3:$B$20)","v":"Effective date"},"2015-07-21",null,null,"National Grid NTS","n/a","Panel Requested Text 18/09/14","2014-10-09","2014-10-02","Y",null,null,"n/a","No"]
["0501","CV","Treatment of Existing Entry Capacity Rights at the Bacton ASEP to comply with EU Capacity Regulations,  including a capped capacity return option and an aggregate overrun regime.","Eni","2015-05-01",{"$f":"VLOOKUP($J445,Lookups!$A$3:$C$19,3,FALSE)","v":"Closed"},"Modification",null,"European","Rejected",{"$f":"LOOKUP(J445,Lookups!$A$3:$A$20,Lookups!$B$3:$B$20)","v":"End of process"},"2015-07-20",null,null,"National Grid NTS","n/a","Panel Requested Text 18/09/14","2014-10-09","2014-10-02","Y",null,null,"n/a","No"]
["0501","BV","Treatment of Existing Entry Capacity Rights at the Bacton ASEP to comply with EU Capacity Regulations, including a restricted capacity return option.","Centrica Storage","2015-05-01",{"$f":"VLOOKUP($J446,Lookups!$A$3:$C$19,3,FALSE)","v":"Closed"},"Modification",null,"European","Rejected",{"$f":"LOOKUP(J446,Lookups!$A$3:$A$20,Lookups!$B$3:$B$20)","v":"End of process"},"2015-07-20",null,null,"National Grid NTS","n/a","Panel Requested Text 18/09/14","2014-10-09","2014-10-02","Y",null,null,"n/a","No"]
["0501","AV","Treatment of Existing Entry Capacity Rights at the Bacton ASEP to comply with EU Capacity Regulations, including capacity return option.","Centrica Energy","2015-05-01",{"$f":"VLOOKUP($J447,Lookups!$A$3:$C$19,3,FALSE)","v":"Closed"},"Modification",null,"European","Rejected",{"$f":"LOOKUP(J447,Lookups!$A$3:$A$20,Lookups!$B$3:$B$20)","v":"End of process"},"2015-07-20",null,null,"National Grid NTS","n/a","Panel Requested Text 18/09/14","2014-10-09","2014-10-02","Y",null,null,"n/a","No"]
["0501","C","Treatment of Existing Entry Capacity Rights at the Bacton ASEP to comply with EU Capacity Regulations,  including a capped capacity return option and an aggregate overrun regime.","Eni","2014-11-07",{"$f":"VLOOKUP($J448,Lookups!$A$3:$C$20,3,FALSE)","v":"Closed"},"Modification",null,"European","Withdrawn",{"$f":"LOOKUP(J448,Lookups!$A$3:$A$20,Lookups!$B$3:$B$20)","v":"End of process"},"2015-05-01",null,null,"National Grid NTS","n/a","Panel Requested Text 18/09/14","2014-10-09","2014-10-02","Y",null,null,"n/a","No"]
["0501","B","Treatment of Existing Entry Capacity Rights at the Bacton ASEP to comply with EU Capacity Regulations, including a restricted capacity return option.","Centrica Storage","2014-10-10",{"$f":"VLOOKUP($J449,Lookups!$A$3:$C$20,3,FALSE)","v":"Closed"},"Modification",null,"European","Withdrawn",{"$f":"LOOKUP(J449,Lookups!$A$3:$A$20,Lookups!$B$3:$B$20)","v":"End of process"},"2015-05-01",null,null,"National Grid NTS","n/a","Panel Requested Text 18/09/14","2014-10-09","2014-10-02","Y",null,null,"n/a","No"]
["0501","A","Treatment of Existing Entry Capacity Rights at the Bacton ASEP to comply with EU Capacity Regulations, including capacity return option.","Centrica Energy","2014-07-23",{"$f":"VLOOKUP($J450,Lookups!$A$3:$C$20,3,FALSE)","v":"Closed"},"Modification",null,"European","Withdrawn",{"$f":"LOOKUP(J450,Lookups!$A$3:$A$20,Lookups!$B$3:$B$20)","v":"End of process"},"2015-05-01",null,null,"National Grid NTS","n/a","Panel Requested Text 18/09/14","2014-10-09","2014-10-02","Y",null,null,"n/a","No"]
["0501",null,"Treatment of Existing Entry Capacity Rights at the Bacton ASEP to comply with EU Capacity Regulations","National Grid NTS","2014-05-01",{"$f":"VLOOKUP($J451,Lookups!$A$3:$C$20,3,FALSE)","v":"Closed"},"Modification",null,"European","Withdrawn",{"$f":"LOOKUP(J451,Lookups!$A$3:$A$20,Lookups!$B$3:$B$20)","v":"End of process"},"2015-05-01",null,null,"National Grid NTS","n/a","FT - text provided with mod ","2014-09-18","2014-09-18","Y",null,null,"n/a","No"]
["0500",null,"EU Capacity Regulations – Capacity Allocation Mechanisms with Congestion Management Procedures","National Grid NTS","2014-05-01",{"$f":"VLOOKUP($J452,Lookups!$A$3:$C$19,3,FALSE)","v":"Closed"},"Modification",null,"European","Implemented",{"$f":"LOOKUP(J452,Lookups!$A$3:$A$20,Lookups!$B$3:$B$20)","v":"Effective date"},"2015-06-19",null,null,"National Grid NTS","n/a","No Text req'd - enabling Mod",null,null," ",null,null,"n/a","No"]
["0499","FT","Amendment to TPD Section G1.6.13(e)(iv)","National Grid Distribution","2014-04-10",{"$f":"VLOOKUP($J453,Lookups!$A$3:$C$19,3,FALSE)","v":"Closed"},"Fast Track",null,"Distribution","Implemented",{"$f":"LOOKUP(J453,Lookups!$A$3:$A$20,Lookups!$B$3:$B$20)","v":"Effective date"},"2014-10-01",null,null,"National Grid Distribution",6,"Panel Requested Text 21/08/13","2014-09-11","2014-08-21","Y",null,null,"n/a","No"]
["0498",null,"Amendment to Gas Quality NTS Entry Specification at BP Teesside System Entry Point","BP Gas Marketing","2014-04-04",{"$f":"VLOOKUP($J454,Lookups!$A$3:$C$19,3,FALSE)","v":"Closed"},"Modification",null,"Transmission","Implemented",{"$f":"LOOKUP(J454,Lookups!$A$3:$A$20,Lookups!$B$3:$B$20)","v":"Effective date"},"2015-09-28",null,null,"National Grid NTS","n/a","FT - text provided with mod ","2014-04-17","2014-04-17","Y",null,null,"n/a","No"]
["0497",null,"Removal of the CSEP NExA table held within Annex A part 8 ","RWE Npower","2014-04-04",{"$f":"VLOOKUP($J455,Lookups!$A$3:$C$19,3,FALSE)","v":"Closed"},"Modification",null,"Distribution","Implemented",{"$f":"LOOKUP(J455,Lookups!$A$3:$A$20,Lookups!$B$3:$B$20)","v":"Effective date"},"2015-02-27",null,null,"National Grid Distribution",5,"Mod withdrawn",null,null," ",null,null,"n/a","No"]
["0496","FT","Reinstatement of Calendar Days as a measure in Section G2.5.8(b)","Scotia Gas Networks","2014-04-04",{"$f":"VLOOKUP($J456,Lookups!$A$3:$C$19,3,FALSE)","v":"Closed"},"Fast Track",null,"Governance","Implemented",{"$f":"LOOKUP(J456,Lookups!$A$3:$A$20,Lookups!$B$3:$B$20)","v":"Effective date"},"2014-05-14",null,null,"Scotia Gas Networks","n/a","Panel requested Text 19/06/14","2014-07-10","2014-06-19","Y",null,null,"n/a","No"]
["0495",null,"Introduction of a Change Board for the UNC","E.ON UK","2014-04-04",{"$f":"VLOOKUP($J457,Lookups!$A$3:$C$20,3,FALSE)","v":"Closed"},"Modification",null,"Governance","Withdrawn",{"$f":"LOOKUP(J457,Lookups!$A$3:$A$20,Lookups!$B$3:$B$20)","v":"End of process"},"2014-11-04",null,null,"Scotia Gas Networks","n/a","Panel Requested Text 18/09/14","2014-10-09","2014-09-19","Y",null,null,"n/a","No"]
["0494",null,"Imbalance Charge amendments required to align the UNC with the Network Code on Gas Balancing of Transmission Networks","National Grid NTS","2014-04-04",{"$f":"VLOOKUP($J458,Lookups!$A$3:$C$19,3,FALSE)","v":"Closed"},"Modification",null,"European","Implemented",{"$f":"LOOKUP(J458,Lookups!$A$3:$A$20,Lookups!$B$3:$B$20)","v":"Effective date"},"2015-10-01",null,null,"National Grid NTS","n/a","FT - text provided with mod ","2014-06-09","2014-05-15","Y",null,null,"n/a","No"]
["0493",null,"EU Gas Balancing Code - Daily Nominations at Interconnection Points (IP)","National Grid NTS","2014-04-04",{"$f":"VLOOKUP($J459,Lookups!$A$3:$C$19,3,FALSE)","v":"Closed"},"Modification",null,"European","Implemented",{"$f":"LOOKUP(J459,Lookups!$A$3:$A$20,Lookups!$B$3:$B$20)","v":"Effective date"},"2015-06-19",null,null,"National Grid NTS","n/a","Sugg Text was confirmed as formal Text at Panel 11/03/14","2014-04-01","2014-03-11","Y",null,null,"n/a","No"]
["0492","FT","Governance change - update to Mod Rules following Consumers' Representative's name change","National Grid NTS","2014-04-04",{"$f":"VLOOKUP($J460,Lookups!$A$3:$C$19,3,FALSE)","v":"Closed"},"Fast Track",null,"Governance","Implemented",{"$f":"LOOKUP(J460,Lookups!$A$3:$A$20,Lookups!$B$3:$B$20)","v":"Effective date"},"2014-06-09",null,null,"National Grid NTS","n/a","FT - text provided with mod ","2014-05-15","2014-05-15","Y",null,null,"n/a","No"]
["0491",null,"Change Implementation Date of Project Nexus to 1st April 2016","National Grid NTS","2014-03-10",{"$f":"VLOOKUP($J461,Lookups!$A$3:$C$19,3,FALSE)","v":"Closed"},"Modification",null,"Distribution","Rejected",{"$f":"LOOKUP(J461,Lookups!$A$3:$A$20,Lookups!$B$3:$B$20)","v":"End of process"},"2014-05-16",null,null,"National Grid NTS","n/a","Panel requested Text 19/06/14","2014-07-10","2014-06-19","Y",null,null,"n/a","No"]
["0490","S","Updates to UNC TPD Section B to correct anomalies arising from the implementation of UNC Modification 0376S “Increased Choice when Applying for NTS Exit Capacity","National Grid NTS","2014-03-07",{"$f":"VLOOKUP($J462,Lookups!$A$3:$C$19,3,FALSE)","v":"Closed"},"Self-Governance",null,"Transmission","Implemented",{"$f":"LOOKUP(J462,Lookups!$A$3:$A$20,Lookups!$B$3:$B$20)","v":"Effective date"},"2014-05-14",null,null,"National Grid NTS",4,"Panel requested text 15/05/14","2014-06-09","2014-05-15","Y",null,null,"n/a","No"]
["0489",null,"EU Gas Balancing Code - Information Provision changes required to align the UNC with the EU Code","National Grid NTS","2014-03-07",{"$f":"VLOOKUP($J463,Lookups!$A$3:$C$19,3,FALSE)","v":"Closed"},"Modification",null,"European","Implemented",{"$f":"LOOKUP(J463,Lookups!$A$3:$A$20,Lookups!$B$3:$B$20)","v":"Effective date"},"2015-10-01",null,null,"National Grid NTS",3,"Panel requested text 17/07/14, NGN 'stop' note 12/08/14","2014-09-05","2014-09-05","Y",null,null,"Yes","No"]
["0488","S"," Additional Changes to the Mod 81 Reports","Scottish Power","2014-03-07",{"$f":"VLOOKUP($J464,Lookups!$A$3:$C$19,3,FALSE)","v":"Closed"},"Self-Governance",null,"Distribution","Implemented",{"$f":"LOOKUP(J464,Lookups!$A$3:$A$20,Lookups!$B$3:$B$20)","v":"Effective date"},"2014-07-01",null,null,"National Grid Distribution",3,"Panel requested text 17/07/14, NGN 'stop' note 12/08/14","2014-09-05","2014-09-05","Y",null,null,"n/a","No"]
["0487","V","Introduction of an Advanced Meter Reader (AMR) Service Provider (ASP) Identifier (ASP ID) and Advanced Meter Indicator","Gazprom","2014-10-16",{"$f":"VLOOKUP($J465,Lookups!$A$3:$C$19,3,FALSE)","v":"Closed"},"Self-Governance",null,"Distribution","Implemented",{"$f":"LOOKUP(J465,Lookups!$A$3:$A$20,Lookups!$B$3:$B$20)","v":"Effective date"},"2015-04-01",null,null,"Northern Gas Networks",2,"Withdrawn",null,null," ",null,null,"n/a","No"]
["0487","S","Introduction of Advanced Meter Indicator and Advanced Meter Reader (AMR) Service Provider Identifier in advance of Project Nexus Go Live","Gazprom","2014-03-05",{"$f":"VLOOKUP($J466,Lookups!$A$3:$C$20,3,FALSE)","v":"Closed"},"Self-Governance",null,"Distribution","Withdrawn",{"$f":"LOOKUP(J466,Lookups!$A$3:$A$20,Lookups!$B$3:$B$20)","v":"End of process"},"2014-10-16",null,null,"Northern Gas Networks","n/a","Panel requested text 15/05/14","2014-06-05","2014-05-30","Y",null,null,"n/a","No"]
["0486",null," Use of the Pre-Payment Profile For IGTs","Winchester Gas","2014-02-25",{"$f":"VLOOKUP($J467,Lookups!$A$3:$C$20,3,FALSE)","v":"Closed"},"Modification",null,"Distribution","Withdrawn",{"$f":"LOOKUP(J467,Lookups!$A$3:$A$20,Lookups!$B$3:$B$20)","v":"End of process"},"2014-07-04",null,null,"National Grid Distribution",1,"Panel requested text 20/02/14","2014-03-14","2014-03-14","Y",null,null,"n/a","No"]
["0485",null,"Introduction of the Long-term use-it-or-lose-it mechanism to facilitate compliance with the EU Congestion Management Procedures","National Grid NTS","2014-02-07",{"$f":"VLOOKUP($J468,Lookups!$A$3:$C$19,3,FALSE)","v":"Closed"},"Modification",null,"European","Implemented",{"$f":"LOOKUP(J468,Lookups!$A$3:$A$20,Lookups!$B$3:$B$20)","v":"Effective date"},"2014-09-30",null,null,"National Grid NTS",8,"Mod withdrawn",null,null," ",null,null,"n/a","No"]
["0484","S","Guidance for the production of legal text","Gazprom","2014-02-07",{"$f":"VLOOKUP($J469,Lookups!$A$3:$C$19,3,FALSE)","v":"Closed"},"Self-Governance",null,"Governance","Implemented",{"$f":"LOOKUP(J469,Lookups!$A$3:$A$20,Lookups!$B$3:$B$20)","v":"Effective date"},"2014-07-11",null,null,"Scotia Gas Networks",7,"Panel requested text 20/02/14","2014-03-13","2014-04-30",{"$f":"IF(ISBLANK(S469),\" \",IF(S469<=R469,\"Y\",\"N\"))","v":"N"},null,null,"n/a","No"]
["0483",null,"Performance Assurance Framework Incentive Regime","British Gas","2014-02-07",{"$f":"VLOOKUP($J470,Lookups!$A$3:$C$20,3,FALSE)","v":"Closed"},"Modification",null,"Performance Assurance ","Withdrawn",{"$f":"LOOKUP(J470,Lookups!$A$3:$A$20,Lookups!$B$3:$B$20)","v":"End of process"},"2015-03-06",null,null,"National Grid Distribution transferred to WWU",null,"04/02/14 CW confirmed none required for UNC",null,null," ",null,null,"n/a","No"]
["0482","S","Proposed Changes to Mod 81 Reports to be effective from 01/7/14","Scottish Power","2014-02-06",{"$f":"VLOOKUP($J471,Lookups!$A$3:$C$19,3,FALSE)","v":"Closed"},"Self-Governance",null,"Distribution","Implemented",{"$f":"LOOKUP(J471,Lookups!$A$3:$A$20,Lookups!$B$3:$B$20)","v":"Effective date"},"2014-07-01",null,null,"Wales & West Utilities",null,"FT - text provided with mod ","2014-03-14","2014-03-14","Y",null,null,"n/a","No"]
["0481",null,"Amendment to AQ Values Present Within Annex A of the CSEP NExA AQ Table Following the 2013 AQ Review","SSE","2014-02-03",{"$f":"VLOOKUP($J472,Lookups!$A$3:$C$19,3,FALSE)","v":"Closed"},"Modification",null,"Distribution","Implemented",{"$f":"LOOKUP(J472,Lookups!$A$3:$A$20,Lookups!$B$3:$B$20)","v":"Effective date"},"2014-10-01",null,null,"National Grid Distribution",null,"Panel Requested Text 20/11/14","2014-12-11","2014-12-02","Y",null,null,"n/a","No"]
["0480","FT","Minor update to UNC General Terms Section B","Northern Gas Networks","2014-01-27",{"$f":"VLOOKUP($J473,Lookups!$A$3:$C$19,3,FALSE)","v":"Closed"},"Fast Track",null,"Distribution","Implemented",{"$f":"LOOKUP(J473,Lookups!$A$3:$A$20,Lookups!$B$3:$B$20)","v":"Effective date"},"2014-03-14",null,null,"Northern Gas Networks",null,"Sugg Text was confirmed as formal Text at Panel 20/02/14",null,null," ",null,null,"n/a","No"]
["0479","S","Inclusion of email as a valid UNC communication’","Northern Gas Networks","2014-01-27",{"$f":"VLOOKUP($J474,Lookups!$A$3:$C$19,3,FALSE)","v":"Closed"},"Self-Governance",null,"Distribution","Implemented",{"$f":"LOOKUP(J474,Lookups!$A$3:$A$20,Lookups!$B$3:$B$20)","v":"Effective date"},"2015-03-13",null,null,"Northern Gas Networks",null,"Panel requested text 20/02/14",null,null," ",null,null,"Yes","No"]
["0478",null,"Filling the gap for SOQ reductions below BSSOQ until Project Nexus","Northern Gas Networks","2014-01-27",{"$f":"VLOOKUP($J475,Lookups!$A$3:$C$19,3,FALSE)","v":"Closed"},"Modification",null,"Distribution","Implemented",{"$f":"LOOKUP(J475,Lookups!$A$3:$A$20,Lookups!$B$3:$B$20)","v":"Effective date"},"2014-10-01",null,null,"Northern Gas Networks",null,"Sugg Text was confirmed as formal Text at Panel 16/01/13",null,null," ",null,null,"n/a","No"]
["0477",null,"Supply Point Registration - Facilitation of Faster Switching","British Gas","2014-01-03",{"$f":"VLOOKUP($J476,Lookups!$A$3:$C$19,3,FALSE)","v":"Closed"},"Modification",null,"Distribution","Implemented",{"$f":"LOOKUP(J476,Lookups!$A$3:$A$20,Lookups!$B$3:$B$20)","v":"Effective date"},"2014-11-07",null,null,"Scotia Gas Networks",null,"Panel requested text 15/05/14","2014-06-09","2014-04-08","Y",null,null,"n/a","No"]
["0476","S","Alignment of DN Charging Methodology with RIIO-GD1 Arrangements","National Grid Distribution","2013-12-30",{"$f":"VLOOKUP($J477,Lookups!$A$3:$C$19,3,FALSE)","v":"Closed"},"Self-Governance",null,"DNCMF","Implemented",{"$f":"LOOKUP(J477,Lookups!$A$3:$A$20,Lookups!$B$3:$B$20)","v":"Effective date"},"2014-04-01",null,null,"National Grid Distribution",null,"Panel requested text 19/12/13",null,null," ",null,null,"Yes","No"]
["0475","S","Update to Section G, Annex G3 (Prospective Erroneous Large AQ Calculation Proforma)","Scottish Power","2013-12-23",{"$f":"VLOOKUP($J478,Lookups!$A$3:$C$19,3,FALSE)","v":"Closed"},"Self-Governance",null,"Distribution","Implemented",{"$f":"LOOKUP(J478,Lookups!$A$3:$A$20,Lookups!$B$3:$B$20)","v":"Effective date"},"2014-07-11",null,null,"National Grid Distribution",null,"Panel requested text 16/10/14","2014-11-06","2014-11-12","N",null,null,"Yes","No"]
["0474","S","Inclusion of the guidelines relating to the \"Customer Settlement Error Claims Process\" within UNC governance and introduction of the User Pays charges associated with such claims","National Grid Distribution","2013-12-10",{"$f":"VLOOKUP($J479,Lookups!$A$3:$C$19,3,FALSE)","v":"Closed"},"Self-Governance",null,"Distribution","Implemented",{"$f":"LOOKUP(J479,Lookups!$A$3:$A$20,Lookups!$B$3:$B$20)","v":"Effective date"},"2014-06-09",null,null,"National Grid Distribution",null,"Panel requested text 17/04/14","2014-05-13","2014-05-14","N",null,null,"Yes","No"]
["0473",null,"Project Nexus – Allocation of Unidentified Gas","Gazprom","2013-11-18",{"$f":"VLOOKUP($J480,Lookups!$A$3:$C$19,3,FALSE)","v":"Closed"},"Modification",null,"Nexus","Implemented",{"$f":"LOOKUP(J480,Lookups!$A$3:$A$20,Lookups!$B$3:$B$20)","v":"Effective date"},"Nexus Imp Date",null,null,"Northern Gas Networks",null,"Panel requested text 21/11/13",null,null," ",null,null,"Yes","No"]
["0473","A","Project Nexus – Allocation of Unidentified Gas","British Gas","2014-05-01",{"$f":"VLOOKUP($J481,Lookups!$A$3:$C$19,3,FALSE)","v":"Closed"},"Modification",null,"Nexus","Rejected",{"$f":"LOOKUP(J481,Lookups!$A$3:$A$20,Lookups!$B$3:$B$20)","v":"End of process"},"2014-11-20",null,null,"Northern Gas Networks",null,"Panel requested text 19/06/2014","2014-07-10","2014-07-08","Y",null,null,"n/a","No"]
["0472","S","Reporting the number of registration attempts by a Gas Shipper","RWE Npower","2013-11-11",{"$f":"VLOOKUP($J482,Lookups!$A$3:$C$19,3,FALSE)","v":"Closed"},"Self-Governance",null,"Distribution","Implemented",{"$f":"LOOKUP(J482,Lookups!$A$3:$A$20,Lookups!$B$3:$B$20)","v":"Effective date"},"2014-09-15",null,null,"National Grid Distribution",null,"Withdrawn 16/09/14",null,null," ",null,null,"n/a","No"]
["0471","S","Amending the start time that a Day-ahead Market Offer can be accepted","EDF Energy","2013-11-08",{"$f":"VLOOKUP($J483,Lookups!$A$3:$C$19,3,FALSE)","v":"Closed"},"Self-Governance",null,"Transmission","Implemented",{"$f":"LOOKUP(J483,Lookups!$A$3:$A$20,Lookups!$B$3:$B$20)","v":"Effective date"},"2014-04-29",null,null,"National Grid NTS",null,"Panel requested text 16/10/14","2014-11-06","2014-10-22","Y",null,null,"n/a","No"]
["0470",null,"Notification of Minimal Safety operating gas needs of large customers","Wingas","2013-10-04",{"$f":"VLOOKUP($J484,Lookups!$A$3:$C$20,3,FALSE)","v":"Closed"},"Modification",null,"Distribution","Withdrawn",{"$f":"LOOKUP(J484,Lookups!$A$3:$A$20,Lookups!$B$3:$B$20)","v":"End of process"},"2014-09-16",null,null,"Scotia Gas Networks",null," Withdrawn 21/12/15",null,null," ",null,null,"n/a","No"]
["0469","S","Transporter Gas Safety Visit Reporting","British Gas","2013-10-04",{"$f":"VLOOKUP($J485,Lookups!$A$3:$C$19,3,FALSE)","v":"Closed"},"Self-Governance",null,"Distribution","Implemented",{"$f":"LOOKUP(J485,Lookups!$A$3:$A$20,Lookups!$B$3:$B$20)","v":"Effective date"},"2015-01-14",null,null,"National Grid Distribution",null,"Panel requested text 17/10/13","2013-11-07","2014-02-04","N",null,null,"n/a","No"]
["0468",null,"Unique Property Reference Number (UPRN) Population by Gas Transporters","E.ON UK","2013-10-01",{"$f":"VLOOKUP($J486,Lookups!$A$3:$C$20,3,FALSE)","v":"Closed"},"Modification",null,"Distribution","Withdrawn",{"$f":"LOOKUP(J486,Lookups!$A$3:$A$20,Lookups!$B$3:$B$20)","v":"End of process"},"2015-12-21",null,null,"National Grid Distribution",null,"(Panel Requested Text for 0466A 18/09/14 - Mod withdrawn/replaced by 0466AV)","2014-10-09","2014-08-26","Y",null,null,"n/a","No","Legal Text Delivery not actively tracked prior to this date"]
["0467",null,"Project Nexus - iGT Single Service Provision; data preparation","National Grid Distribution","2013-10-01",{"$f":"VLOOKUP($J487,Lookups!$A$3:$C$19,3,FALSE)","v":"Closed"},"Modification",null,"Nexus","Implemented",{"$f":"LOOKUP(J487,Lookups!$A$3:$A$20,Lookups!$B$3:$B$20)","v":"Effective date"},"2015-01-16",null,null,"National Grid Distribution",null,"Panel Requested Text 18/09/14","2014-10-09","2014-08-26","Y",null,null,"Yes","No"]
["0466","AV","Daily Meter Reading Simplification with improved within day data provision","Wingas","2014-06-23",{"$f":"VLOOKUP($J488,Lookups!$A$3:$C$19,3,FALSE)","v":"Closed"},"Modification",null,"Distribution","Implemented",{"$f":"LOOKUP(J488,Lookups!$A$3:$A$20,Lookups!$B$3:$B$20)","v":"Effective date"},"2016-04-01",null,null,"National Grid Distribution",null,"Panel requested text 15/05/14","2014-06-05","2014-05-19","Y",null,null,"n/a",{"$f":"IF(AND(F490=\"Live\",K490=\"Ofgem decision\"),\"Yes\",\"No\")","v":"No"}]
["0466",null,"Daily Meter Reading Simplification ","National Grid Distribution","2013-10-01",{"$f":"VLOOKUP($J489,Lookups!$A$3:$C$19,3,FALSE)","v":"Closed"},"Modification",null,"Distribution","Rejected",{"$f":"LOOKUP(J489,Lookups!$A$3:$A$20,Lookups!$B$3:$B$20)","v":"End of process"},"2015-03-26",null,null,"National Grid Distribution",null,"Text was confirmed as formal Text at Panel 17/10/13",null,null," ",null,null,"n/a","No"]
["0466","A","Daily Meter Reading Simplification with improved within day data provision","Wingas","2014-06-23",{"$f":"VLOOKUP($J490,Lookups!$A$3:$C$20,3,FALSE)","v":"Closed"},"Modification",null,"Distribution","Withdrawn",{"$f":"LOOKUP(J490,Lookups!$A$3:$A$20,Lookups!$B$3:$B$20)","v":"End of process"},"2015-02-19",null,null,"National Grid Distribution",null,"Sugg Text was confirmed as formal Text at Panel 17/10/13",null,null," ",null,null,"n/a","No"]
["0465","V","Introduction of the Planning and Advanced Reservation of Capacity Agreement (PARCA), Weighted Average PARCA Security","SSE","2013-09-27",{"$f":"VLOOKUP($J491,Lookups!$A$3:$C$19,3,FALSE)","v":"Closed"},"Modification",null,"Transmission","Implemented",{"$f":"LOOKUP(J491,Lookups!$A$3:$A$20,Lookups!$B$3:$B$20)","v":"Effective date"},"2015-02-02",null,null,"National Grid NTS",null,"Panel requested text 21/11/13",null,null," ",null,null,"n/a","No"]
["0464",null,"Alternative LNG supply to the Scottish Independent Networks (SINs)","Scotia Gas Networks","2013-09-06",{"$f":"VLOOKUP($J492,Lookups!$A$3:$C$19,3,FALSE)","v":"Closed"},"Urgent",null,"Distribution","Implemented",{"$f":"LOOKUP(J492,Lookups!$A$3:$A$20,Lookups!$B$3:$B$20)","v":"Effective date"},"2013-10-31",null,null,"Scotia Gas Networks",null,"Panel requested text 21/11/13",null,null," ",null,null,"n/a","No"]
["0463","S","Recognition of the ‘2nd January’ Scottish Bank Holiday as a Business Day for Supply Point related transactions","SSE","2013-08-02",{"$f":"VLOOKUP($J493,Lookups!$A$3:$C$19,3,FALSE)","v":"Closed"},"Self-Governance",null,"Distribution","Implemented",{"$f":"LOOKUP(J493,Lookups!$A$3:$A$20,Lookups!$B$3:$B$20)","v":"Effective date"},"2014-03-14",null,null,"Scotia Gas Networks",null,"Panel requested text 21/11/13",null,null," ",null,null,"n/a","No"]
["0462",null,"Introducing Fast Track Self Governance into the Uniform Network Code","Scotia Gas Networks","2013-08-01",{"$f":"VLOOKUP($J494,Lookups!$A$3:$C$19,3,FALSE)","v":"Closed"},"Modification",null,"Governance","Implemented",{"$f":"LOOKUP(J494,Lookups!$A$3:$A$20,Lookups!$B$3:$B$20)","v":"Effective date"},"2013-12-31",null,null,"Scotia Gas Networks",null,"2013-06-20",null,null," ",null,null,"n/a","No"]
["0461",null,"Changing the UNC Gas Day to Align with the Gas Day in EU Network Codes","National Grid NTS","2013-06-07",{"$f":"VLOOKUP($J495,Lookups!$A$3:$C$19,3,FALSE)","v":"Closed"},"Modification",null,"Transmission","Implemented",{"$f":"LOOKUP(J495,Lookups!$A$3:$A$20,Lookups!$B$3:$B$20)","v":"Effective date"},"2015-10-01",null,null,"National Grid NTS",null,"2013-06-20",null,null," ",null,null,"n/a","No"]
["0460","S","Alignment of capacity and revenue treatment within the NTS Charging Methodology with RIIO-T1 arrangements","National Grid NTS","2013-06-07",{"$f":"VLOOKUP($J496,Lookups!$A$3:$C$19,3,FALSE)","v":"Closed"},"Self-Governance",null,"NTSCMF","Implemented",{"$f":"LOOKUP(J496,Lookups!$A$3:$A$20,Lookups!$B$3:$B$20)","v":"Effective date"},"2013-10-11",null,null,"National Grid NTS",null,"Panel requested text 21/11/13",null,null," ",null,null,"n/a","No"]
["0459","S","Amendments to the 'K' revenue adjustment factor based on RIIO-T1","National Grid NTS","2013-06-07",{"$f":"VLOOKUP($J497,Lookups!$A$3:$C$19,3,FALSE)","v":"Closed"},"Self-Governance",null,"NTSCMF","Implemented",{"$f":"LOOKUP(J497,Lookups!$A$3:$A$20,Lookups!$B$3:$B$20)","v":"Effective date"},"2013-09-09",null,null,"National Grid NTS",null,"2013-09-19",null,null," ",null,null,"n/a","No"]
["0458",null,"Seasonal LDZ System Capacity\nRights.","Scotia Gas Networks","2013-06-07",{"$f":"VLOOKUP($J498,Lookups!$A$3:$C$19,3,FALSE)","v":"Closed"},"Modification",null,"Distribution","Implemented",{"$f":"LOOKUP(J498,Lookups!$A$3:$A$20,Lookups!$B$3:$B$20)","v":"Effective date"},"2015-02-28",null,null,"Scotia Gas Networks",null,"03/06/13 (Ofgem)",null,null," ",null,null,"n/a","No"]
["0457","S","Extending the use of the UK Link Network (Information Exchange (IX)) to Meter Asset Provider (MAP) organisations","National Grid Distribution","2013-06-04",{"$f":"VLOOKUP($J499,Lookups!$A$3:$C$19,3,FALSE)","v":"Closed"},"Self-Governance",null,"Distribution","Implemented",{"$f":"LOOKUP(J499,Lookups!$A$3:$A$20,Lookups!$B$3:$B$20)","v":"Effective date"},"2013-12-13",null,null,"National Grid Distribution",null,"Panel requested text 21/11/13",null,null," ",null,null,"Yes","No"]
["0456",null,"Revision to the treatment of Allocation of Unidentified Gas for the 2013/14 AUG Year","British Gas","2013-05-24",{"$f":"VLOOKUP($J500,Lookups!$A$3:$C$19,3,FALSE)","v":"Closed"},"Urgent",null,"Distribution","Rejected",{"$f":"LOOKUP(J500,Lookups!$A$3:$A$20,Lookups!$B$3:$B$20)","v":"End of process"},"2013-06-28",null,null,"National Grid Distribution",null,"2013-09-19",null,null," ",null,null,"Yes","No"]
["0455",null,"Updating of Meter Information by the Transporter","National Grid Distribution","2013-05-21",{"$f":"VLOOKUP($J501,Lookups!$A$3:$C$19,3,FALSE)","v":"Closed"},"Modification",null,"Distribution","Implemented",{"$f":"LOOKUP(J501,Lookups!$A$3:$A$20,Lookups!$B$3:$B$20)","v":"Effective date"},"2014-05-27",null,null,"National Grid Distribution",null,"19/09/2013 (mod withdrawn 18/10/13)",null,null,{"$f":"IF(ISBLANK(S501),\" \",IF(S501<=R501,\"Y\",\"N\"))","v":" "},null,null,"n/a","No"]
["0454",null,"Introduction of a Long Term Non Firm Capacity Product","National Grid NTS","2013-05-02",{"$f":"VLOOKUP($J502,Lookups!$A$3:$C$19,3,FALSE)","v":"Closed"},"Modification",null,"Transmission","Rejected",{"$f":"LOOKUP(J502,Lookups!$A$3:$A$20,Lookups!$B$3:$B$20)","v":"End of process"},"2014-06-20",null,null,"National Grid NTS",null,"Sugg Text was confirmed as formal Text at Panel 17/10/13",null,null," ",null,null,"n/a","No"]
["0453",null,"Project Nexus - Demand Estimation","National Grid Distribution","2013-04-23",{"$f":"VLOOKUP($J503,Lookups!$A$3:$C$20,3,FALSE)","v":"Closed"},"Modification",null,"Nexus","Withdrawn",{"$f":"LOOKUP(J503,Lookups!$A$3:$A$20,Lookups!$B$3:$B$20)","v":"End of process"},"2013-10-18",null,null,"National Grid Distribution",null,"18/07/2013 (0451A); 0451AV provided 22/12/13",null,null," ",null,null,"n/a","No"]
["0452","V","Introduction of the Planning and Advanced Reservation of Capacity Agreement (PARCA) ","National Grid NTS","2013-04-05",{"$f":"VLOOKUP($J504,Lookups!$A$3:$C$19,3,FALSE)","v":"Closed"},"Modification",null,"Transmission","Rejected",{"$f":"LOOKUP(J504,Lookups!$A$3:$A$20,Lookups!$B$3:$B$20)","v":"End of process"},"2014-12-05",null,null,"National Grid NTS",null,"20/06/2013(0451); revised text for 0451V 10/01/14",null,null," ",null,null,"Yes","No"]
["0451","AV","Individual Settlements For Pre-Payment & Smart Meters","E.ON UK","2013-07-04",{"$f":"VLOOKUP($J505,Lookups!$A$3:$C$19,3,FALSE)","v":"Closed"},"Modification",null,"Distribution","Implemented",{"$f":"LOOKUP(J505,Lookups!$A$3:$A$20,Lookups!$B$3:$B$20)","v":"Effective date"},"2014-02-01",null,null,"Northern Gas Networks"]
["0451","V","Individual Settlements For Pre-Payment & Smart Meters","Winchester Gas","2013-03-27",{"$f":"VLOOKUP($J506,Lookups!$A$3:$C$19,3,FALSE)","v":"Closed"},"Urgent",null,"Distribution","Rejected",{"$f":"LOOKUP(J506,Lookups!$A$3:$A$20,Lookups!$B$3:$B$20)","v":"End of process"},"2014-01-31",null,null,"Northern Gas Networks"]

{"sheet":"Legal Text Rotation","index":1,"n_rows":24,"n_cols":4,"rows_kept":24,"cut":false,"hidden":false,"merged":[[18,1,18,2],[1,1,1,6]]}
[null,"UNC Text Allocation Register "]
[null,"This Register identifies the Legal Text provider, in column O, for each Modification. Column P 'Rotation' shows who is next using the numerical order in the Transporter list. \n\nTransporter raised Modifications are not subject to this rota and are shown 'n/a (unless they are related to a transmission area in which case the legal text provider is National Gas) as are certain other Modifications not requiring text (e.g Fast Track Modificaitons with Shipper-supplied text and Requests). \n\nColumns P-S on the Register track the delivery of the Legal Text."]
[]
[null,"Rotation","Transporter"]
[null,1,"Scotia Gas Networks"]
[null,2,"Cadent"]
[null,3,"Northern Gas Networks","skipped 3 at 0855 (NGN to take next Shipper Mod [0856?])"]
[null,4,"Cadent"]
[null,5,"Scotia Gas Networks"]
[null,6,"Cadent"]
[null,7,"Wales & West Utilities"]
[null,8,"Cadent"]
[null,null,"National Gas Transmission"]
[null,null,"N/A - Enabling Modification"]
[null,null,"N/A - Request"]
[]
[]
[]
[null,"For Modification details"]
[null,"David Mitchell","david.mitchell@sgn.co.uk","07799 343082"]
[null,"Edward Allard","Edward.Allard@cadentgas.com","07891 670444"]
[null,"Tracey Saunders","trsaunders@northerngas.co.uk","07580 215743"]
[null,"Richard Pomroy","richard.pomroy@wwutilities.co.uk","07812 973337"]
[null,"Malcolm Montgomery","Malcolm.Montgomery@nationalgas.com","07970 114460"]

{"sheet":"Lookups","index":2,"n_rows":78,"n_cols":8,"rows_kept":78,"cut":false,"hidden":false,"merged":[[0,0,0,2],[48,0,48,2],[22,0,22,2],[23,0,23,2]]}
["Automated Status Path (must be alphabetical do not edit) "]
["Current Status","Next Stage","Live/Closed",null,"Proposing Organisation List","Category List","Workgroup","Next Stage"]
["Allocated to Workgroup","Report to Panel","Live",null,"Barrow Shipping Ltd","Modification","Distribution","Consultation End"]
["Appeal","Panel Consideration","Live",null,"BG","Request","European","Effective Date"]
["Awaiting Implementation","Implemented","Live",null,"BP","Review","Governance","End of Process"]
["Awaiting Ofgem decision","Ofgem decision","Live",null,"British Gas","Self-Governance","Offtake","Ofgem Decision"]
["Consultation Closed","Final Mod Report","Live",null,"British Gas Trading","Significant Code Review","Performance Assurance ","Report to Panel"]
["Final Mod Report","Panel Consideration","Live",null,"Brook Green Trading","Suspended SCR","Nexus"]
["Final Mod Report Sent Back by Ofgem","Panel Consideration","Live",null,"BUUK","Urgent","Transmission"]
["Implemented","Effective date","Closed",null,"Cadent","Timetable Directed","NTSCMF"]
["New Proposal","Panel Consideration","Live",null,"Centrica","Fast Track","DNCMF"]
["Panel did not recommend implementation","Ofgem decision","Live",null,"Centrica Storage Ltd",null,"Demand Side Response"]
["Panel recommended implementation","Ofgem decision","Live",null,"ConocoPhillips",null,"Market Operator"]
["Rejected","End of process","Closed",null,"Contract Natural Gas Ltd",null,"None"]
["Renumbered","End of process","Closed",null,"Corona Energy",null,"Other"]
["Representations invited","Final Mod Report","Live",null,"E.ON Next",null,"UIG"]
["Request Closed","End of process","Closed",null,"E.ON UK",null,"Distribution and Transmission"]
["Sent to Ofgem","Urgency decision","Live",null,"EDF Energy"]
["Withdrawn","End of process","Closed",null,"EDF Trading"]
[null,null,null,null,"Electricity Supply Board"]
[null,null,null,null,"Energy 24"]
[null,null,null,null,"energywatch"]
["SUGGESTED STATUS PATH",null,null,null,"ENI"]
[" Reference Purpsoses ONLY",null,null,null,"Exxon Mobil"]
["Current Status","Next Stage","Live/Closed",null,"first:utility"]
["New Proposal","Panel Consideration","Live",null,"GasTerra"]
["Allocated to Workgroup","Report to Panel","Live",null,"Gaz de France"]
["Legal Text being prepared?","Report to Panel","Live",null,"Gazprom Energy"]
["Representations invited","Consultation end","Live",null,"GTC Pipelines Ltd"]
["Consultation Closed","Final Mod Report","Live",null,"ICE Endex "]
["Final Mod Report","Panel Consideration","Live",null,"Locus Energy"]
["Panel did not recommend implementation","Ofgem decision (date in red)","Live",null,"Macquarie Bank"]
["Panel recommended implementation","Ofgem decision (date in red)","Live",null,"National Gas Transmission"]
["Implemented","Effective date","Closed",null,"National Grid Gas Distribution"]
["Final Mod Report Sent Back by Ofgem","Panel Consideration","Live",null,"National Grid LNG Storage"]
["Renumbered","End of process","Closed",null,"National Grid NTS"]
["Withdrawn","End of process","Closed",null,"Northern Gas Networks"]
["Lapsed?","End of process","Closed",null,"Npower"]
["Rejected","End of process","Closed",null,"Ofgem"]
["Sent to Ofgem","Ofgem decision","Live",null,"Opus Energy"]
["Urgent Status Requested?","Ofgem decision or Panel Consideration","Live",null,"OVO Energy"]
["? Denotes no longer used",null,null,null,"OVO Gas Limited "]
[null,null,null,null,"Pavilion Energy Spain"]
[null,null,null,null,"RWE Npower"]
[null,null,null,null,"RWE Trading GmbH"]
[null,null,null,null,"SAGE North Sea Limited"]
[null,null,null,null,"Scottish Power"]
[null,null,null,null,"Scottish&Southern Energy"]
["Suggested Validation Look Ups Lists (pre automation)",null,null,null,"SEFE Energy Limited"]
["Current Status","Next Stage","Live/Closed",null,"SGN"]
["New Proposal","Panel Consideration","Live",null,"Shell"]
["Rejected","Report to Panel","Closed",null,"South Hook Gas Company Ltd"]
["Allocated to Workgroup","Consultation end",null,null,"Spark Energy"]
["Representations invited","Final Mod Report",null,null,"SSE"]
["Consultation Closed","Panel recommendation",null,null,"Statoil UK"]
["Final Mod Report","Ofgem decision",null,null,"Storengy UK Ltd"]
["Panel recommended implementation","Ofgem decision on urgency",null,null,"Total Gas and Power"]
["Panel did not recommend implementation","None",null,null,"Totalenergies Gas & Power"]
["Implemented","Effective date",null,null,"Utilita Energy Limited"]
["Final Mod Report Sent Back by Ofgem","End of process",null,null,"Vermilion Energy Ireland Ltd"]
["Renumbered","Renumbered",null,null,"Wales & West Utilities"]
["Withdrawn",null,null,null,"Winchester Gas"]
["Sent to Ofgem",null,null,null,"Wingas"]
[]
[]
["Other Codes"]
["IGT"]
["IGT UNC"]
["Multiple"]
["None"]
["BSC"]
["CUSC"]
["DCUSA"]
["Distribution Code"]
["MRA"]
["SEC"]
["SPAA"]
["STC"]

{"sheet":"Category KPI","index":3,"n_rows":41,"n_cols":17,"rows_kept":41,"cut":false,"hidden":false,"merged":[]}
["*Automated KPI - Do not change anything on this page (including print set) without approval*"]
[]
["Live Modifications YTD Overview Report (Detailed)",null,null,null,null,null,null,null,null,"Live Modifications YTD Overview Report (Summary)"]
[]
["Workgroup","Fast Track","Authority Direction","Request","Self-Governance","Significant Code Review","Urgent","Total",null,"Gas Year","Fast Track","Authority Direction","Request","Self-Governance","Significant Code Review","Urgent","Total"]
["2022-01-01",{"$f":"COUNTIFS('Modification Proposals Register'!$E$3:$E$1083,\">=01/01/2022\",'Modification Proposals Register'!$E$3:$E$1083,\"<=31/01/2022\",'Modification Proposals Register'!$G$3:$G$1083,B$5,'Modification Proposals Register'!$F$3:$F$1083,\"Live\")","v":0},{"$f":"COUNTIFS('Modification Proposals Register'!$E$3:$E$1083,\">=01/01/2022\",'Modification Proposals Register'!$E$3:$E$1083,\"<=31/01/2022\",'Modification Proposals Register'!$G$3:$G$1083,C$5,'Modification Proposals Register'!$F$3:$F$1083,\"Live\")","v":0},{"$f":"COUNTIFS('Modification Proposals Register'!$E$3:$E$1083,\">=01/01/2022\",'Modification Proposals Register'!$E$3:$E$1083,\"<=31/01/2022\",'Modification Proposals Register'!$G$3:$G$1083,D$5,'Modification Proposals Register'!$F$3:$F$1083,\"Live\")","v":0},{"$f":"COUNTIFS('Modification Proposals Register'!$E$3:$E$1083,\">=01/01/2022\",'Modification Proposals Register'!$E$3:$E$1083,\"<=31/01/2022\",'Modification Proposals Register'!$G$3:$G$1083,E$5,'Modification Proposals Register'!$F$3:$F$1083,\"Live\")","v":0},{"$f":"COUNTIFS('Modification Proposals Register'!$E$3:$E$1083,\">=01/01/2022\",'Modification Proposals Register'!$E$3:$E$1083,\"<=31/01/2022\",'Modification Proposals Register'!$G$3:$G$1083,F$5,'Modification Proposals Register'!$F$3:$F$1083,\"Live\")","v":0},{"$f":"COUNTIFS('Modification Proposals Register'!$E$3:$E$1083,\">=01/01/2022\",'Modification Proposals Register'!$E$3:$E$1083,\"<=31/01/2022\",'Modification Proposals Register'!$G$3:$G$1083,G$5,'Modification Proposals Register'!$F$3:$F$1083,\"Live\")","v":0},{"$f":"SUM(B6:G6)","v":0},null,"2021-22",{"$f":"SUM(B6:B14)","v":0},{"$f":"SUM(C6:C14)","v":0},0,0,0,0,{"$f":"SUM(K6:P6)","v":0}]
["2022-02-01",{"$f":"COUNTIFS('Modification Proposals Register'!$E$3:$E$1083,\">=01/02/2022\",'Modification Proposals Register'!$E$3:$E$1083,\"<=28/02/2022\",'Modification Proposals Register'!$G$3:$G$1083,B$5,'Modification Proposals Register'!$F$3:$F$1083,\"Live\")","v":0},{"$f":"COUNTIFS('Modification Proposals Register'!$E$3:$E$1083,\">=01/02/2022\",'Modification Proposals Register'!$E$3:$E$1083,\"<=28/02/2022\",'Modification Proposals Register'!$G$3:$G$1083,C$5,'Modification Proposals Register'!$F$3:$F$1083,\"Live\")","v":0},{"$f":"COUNTIFS('Modification Proposals Register'!$E$3:$E$1083,\">=01/02/2022\",'Modification Proposals Register'!$E$3:$E$1083,\"<=28/02/2022\",'Modification Proposals Register'!$G$3:$G$1083,D$5,'Modification Proposals Register'!$F$3:$F$1083,\"Live\")","v":0},{"$f":"COUNTIFS('Modification Proposals Register'!$E$3:$E$1083,\">=01/02/2022\",'Modification Proposals Register'!$E$3:$E$1083,\"<=28/02/2022\",'Modification Proposals Register'!$G$3:$G$1083,E$5,'Modification Proposals Register'!$F$3:$F$1083,\"Live\")","v":0},{"$f":"COUNTIFS('Modification Proposals Register'!$E$3:$E$1083,\">=01/02/2022\",'Modification Proposals Register'!$E$3:$E$1083,\"<=28/02/2022\",'Modification Proposals Register'!$G$3:$G$1083,F$5,'Modification Proposals Register'!$F$3:$F$1083,\"Live\")","v":0},{"$f":"COUNTIFS('Modification Proposals Register'!$E$3:$E$1083,\">=01/02/2022\",'Modification Proposals Register'!$E$3:$E$1083,\"<=28/02/2022\",'Modification Proposals Register'!$G$3:$G$1083,G$5,'Modification Proposals Register'!$F$3:$F$1083,\"Live\")","v":0},0,null,"2022-23",{"$f":"SUM(B15:B26)","v":0},{"$f":"SUM(C15:C26)","v":0},2,0,0,0,{"$f":"SUM(K7:P7)","v":2}]
["2022-03-01",{"$f":"COUNTIFS('Modification Proposals Register'!$E$3:$E$1083,\">=01/03/2022\",'Modification Proposals Register'!$E$3:$E$1083,\"<=31/03/2022\",'Modification Proposals Register'!$G$3:$G$1083,B$5,'Modification Proposals Register'!$F$3:$F$1083,\"Live\")","v":0},{"$f":"COUNTIFS('Modification Proposals Register'!$E$3:$E$1083,\">=01/03/2022\",'Modification Proposals Register'!$E$3:$E$1083,\"<=31/03/2022\",'Modification Proposals Register'!$G$3:$G$1083,C$5,'Modification Proposals Register'!$F$3:$F$1083,\"Live\")","v":0},{"$f":"COUNTIFS('Modification Proposals Register'!$E$3:$E$1083,\">=01/03/2022\",'Modification Proposals Register'!$E$3:$E$1083,\"<=31/03/2022\",'Modification Proposals Register'!$G$3:$G$1083,D$5,'Modification Proposals Register'!$F$3:$F$1083,\"Live\")","v":0},{"$f":"COUNTIFS('Modification Proposals Register'!$E$3:$E$1083,\">=01/03/2022\",'Modification Proposals Register'!$E$3:$E$1083,\"<=31/03/2022\",'Modification Proposals Register'!$G$3:$G$1083,E$5,'Modification Proposals Register'!$F$3:$F$1083,\"Live\")","v":0},{"$f":"COUNTIFS('Modification Proposals Register'!$E$3:$E$1083,\">=01/03/2022\",'Modification Proposals Register'!$E$3:$E$1083,\"<=31/03/2022\",'Modification Proposals Register'!$G$3:$G$1083,F$5,'Modification Proposals Register'!$F$3:$F$1083,\"Live\")","v":0},{"$f":"COUNTIFS('Modification Proposals Register'!$E$3:$E$1083,\">=01/03/2022\",'Modification Proposals Register'!$E$3:$E$1083,\"<=31/03/2022\",'Modification Proposals Register'!$G$3:$G$1083,G$5,'Modification Proposals Register'!$F$3:$F$1083,\"Live\")","v":0},0,null,"2023-24",{"$f":"SUM(B27:B38)","v":0},{"$f":"SUM(C27:C38)","v":0},0,5,0,0,{"$f":"SUM(K8:P8)","v":5}]
["2022-04-01",{"$f":"COUNTIFS('Modification Proposals Register'!$E$3:$E$1083,\">=01/04/2022\",'Modification Proposals Register'!$E$3:$E$1083,\"<=30/04/2022\",'Modification Proposals Register'!$G$3:$G$1083,B$5,'Modification Proposals Register'!$F$3:$F$1083,\"Live\")","v":0},{"$f":"COUNTIFS('Modification Proposals Register'!$E$3:$E$1083,\">=01/04/2022\",'Modification Proposals Register'!$E$3:$E$1083,\"<=30/04/2022\",'Modification Proposals Register'!$G$3:$G$1083,C$5,'Modification Proposals Register'!$F$3:$F$1083,\"Live\")","v":0},{"$f":"COUNTIFS('Modification Proposals Register'!$E$3:$E$1083,\">=01/04/2022\",'Modification Proposals Register'!$E$3:$E$1083,\"<=30/04/2022\",'Modification Proposals Register'!$G$3:$G$1083,D$5,'Modification Proposals Register'!$F$3:$F$1083,\"Live\")","v":0},{"$f":"COUNTIFS('Modification Proposals Register'!$E$3:$E$1083,\">=01/04/2022\",'Modification Proposals Register'!$E$3:$E$1083,\"<=30/04/2022\",'Modification Proposals Register'!$G$3:$G$1083,E$5,'Modification Proposals Register'!$F$3:$F$1083,\"Live\")","v":0},{"$f":"COUNTIFS('Modification Proposals Register'!$E$3:$E$1083,\">=01/04/2022\",'Modification Proposals Register'!$E$3:$E$1083,\"<=30/04/2022\",'Modification Proposals Register'!$G$3:$G$1083,F$5,'Modification Proposals Register'!$F$3:$F$1083,\"Live\")","v":0},{"$f":"COUNTIFS('Modification Proposals Register'!$E$3:$E$1083,\">=01/04/2022\",'Modification Proposals Register'!$E$3:$E$1083,\"<=30/04/2022\",'Modification Proposals Register'!$G$3:$G$1083,G$5,'Modification Proposals Register'!$F$3:$F$1083,\"Live\")","v":0},0,null,null,{"$f":"SUM(K6:K8)","v":0},{"$f":"SUM(L6:L8)","v":0},2,5,0,0,{"$f":"SUM(Q6:Q8)","v":7}]
["2022-05-01",{"$f":"COUNTIFS('Modification Proposals Register'!$E$3:$E$1083,\">=01/05/2022\",'Modification Proposals Register'!$E$3:$E$1083,\"<=31/05/2022\",'Modification Proposals Register'!$G$3:$G$1083,B$5,'Modification Proposals Register'!$F$3:$F$1083,\"Live\")","v":0},{"$f":"COUNTIFS('Modification Proposals Register'!$E$3:$E$1083,\">=01/05/2022\",'Modification Proposals Register'!$E$3:$E$1083,\"<=31/05/2022\",'Modification Proposals Register'!$G$3:$G$1083,C$5,'Modification Proposals Register'!$F$3:$F$1083,\"Live\")","v":0},{"$f":"COUNTIFS('Modification Proposals Register'!$E$3:$E$1083,\">=01/05/2022\",'Modification Proposals Register'!$E$3:$E$1083,\"<=31/05/2022\",'Modification Proposals Register'!$G$3:$G$1083,D$5,'Modification Proposals Register'!$F$3:$F$1083,\"Live\")","v":0},{"$f":"COUNTIFS('Modification Proposals Register'!$E$3:$E$1083,\">=01/05/2022\",'Modification Proposals Register'!$E$3:$E$1083,\"<=31/05/2022\",'Modification Proposals Register'!$G$3:$G$1083,E$5,'Modification Proposals Register'!$F$3:$F$1083,\"Live\")","v":0},{"$f":"COUNTIFS('Modification Proposals Register'!$E$3:$E$1083,\">=01/05/2022\",'Modification Proposals Register'!$E$3:$E$1083,\"<=31/05/2022\",'Modification Proposals Register'!$G$3:$G$1083,F$5,'Modification Proposals Register'!$F$3:$F$1083,\"Live\")","v":0},{"$f":"COUNTIFS('Modification Proposals Register'!$E$3:$E$1083,\">=01/05/2022\",'Modification Proposals Register'!$E$3:$E$1083,\"<=31/05/2022\",'Modification Proposals Register'!$G$3:$G$1083,G$5,'Modification Proposals Register'!$F$3:$F$1083,\"Live\")","v":0},0]
["2022-06-01",{"$f":"COUNTIFS('Modification Proposals Register'!$E$3:$E$1083,\">=01/06/2022\",'Modification Proposals Register'!$E$3:$E$1083,\"<=30/06/2022\",'Modification Proposals Register'!$G$3:$G$1083,B$5,'Modification Proposals Register'!$F$3:$F$1083,\"Live\")","v":0},{"$f":"COUNTIFS('Modification Proposals Register'!$E$3:$E$1083,\">=01/06/2022\",'Modification Proposals Register'!$E$3:$E$1083,\"<=30/06/2022\",'Modification Proposals Register'!$G$3:$G$1083,C$5,'Modification Proposals Register'!$F$3:$F$1083,\"Live\")","v":0},{"$f":"COUNTIFS('Modification Proposals Register'!$E$3:$E$1083,\">=01/06/2022\",'Modification Proposals Register'!$E$3:$E$1083,\"<=30/06/2022\",'Modification Proposals Register'!$G$3:$G$1083,D$5,'Modification Proposals Register'!$F$3:$F$1083,\"Live\")","v":0},{"$f":"COUNTIFS('Modification Proposals Register'!$E$3:$E$1083,\">=01/06/2022\",'Modification Proposals Register'!$E$3:$E$1083,\"<=30/06/2022\",'Modification Proposals Register'!$G$3:$G$1083,E$5,'Modification Proposals Register'!$F$3:$F$1083,\"Live\")","v":0},{"$f":"COUNTIFS('Modification Proposals Register'!$E$3:$E$1083,\">=01/06/2022\",'Modification Proposals Register'!$E$3:$E$1083,\"<=30/06/2022\",'Modification Proposals Register'!$G$3:$G$1083,F$5,'Modification Proposals Register'!$F$3:$F$1083,\"Live\")","v":0},{"$f":"COUNTIFS('Modification Proposals Register'!$E$3:$E$1083,\">=01/06/2022\",'Modification Proposals Register'!$E$3:$E$1083,\"<=30/06/2022\",'Modification Proposals Register'!$G$3:$G$1083,G$5,'Modification Proposals Register'!$F$3:$F$1083,\"Live\")","v":0},0]
["2022-07-01",{"$f":"COUNTIFS('Modification Proposals Register'!$E$3:$E$1083,\">=01/07/2022\",'Modification Proposals Register'!$E$3:$E$1083,\"<=31/07/2022\",'Modification Proposals Register'!$G$3:$G$1083,B$5,'Modification Proposals Register'!$F$3:$F$1083,\"Live\")","v":0},{"$f":"COUNTIFS('Modification Proposals Register'!$E$3:$E$1083,\">=01/07/2022\",'Modification Proposals Register'!$E$3:$E$1083,\"<=31/07/2022\",'Modification Proposals Register'!$G$3:$G$1083,C$5,'Modification Proposals Register'!$F$3:$F$1083,\"Live\")","v":0},{"$f":"COUNTIFS('Modification Proposals Register'!$E$3:$E$1083,\">=01/07/2022\",'Modification Proposals Register'!$E$3:$E$1083,\"<=31/07/2022\",'Modification Proposals Register'!$G$3:$G$1083,D$5,'Modification Proposals Register'!$F$3:$F$1083,\"Live\")","v":0},{"$f":"COUNTIFS('Modification Proposals Register'!$E$3:$E$1083,\">=01/07/2022\",'Modification Proposals Register'!$E$3:$E$1083,\"<=31/07/2022\",'Modification Proposals Register'!$G$3:$G$1083,E$5,'Modification Proposals Register'!$F$3:$F$1083,\"Live\")","v":0},{"$f":"COUNTIFS('Modification Proposals Register'!$E$3:$E$1083,\">=01/07/2022\",'Modification Proposals Register'!$E$3:$E$1083,\"<=31/07/2022\",'Modification Proposals Register'!$G$3:$G$1083,F$5,'Modification Proposals Register'!$F$3:$F$1083,\"Live\")","v":0},{"$f":"COUNTIFS('Modification Proposals Register'!$E$3:$E$1083,\">=01/07/2022\",'Modification Proposals Register'!$E$3:$E$1083,\"<=31/07/2022\",'Modification Proposals Register'!$G$3:$G$1083,G$5,'Modification Proposals Register'!$F$3:$F$1083,\"Live\")","v":0},0]
["2022-08-01",{"$f":"COUNTIFS('Modification Proposals Register'!$E$3:$E$1083,\">=01/08/2022\",'Modification Proposals Register'!$E$3:$E$1083,\"<=31/08/2022\",'Modification Proposals Register'!$G$3:$G$1083,B$5,'Modification Proposals Register'!$F$3:$F$1083,\"Live\")","v":0},{"$f":"COUNTIFS('Modification Proposals Register'!$E$3:$E$1083,\">=01/08/2022\",'Modification Proposals Register'!$E$3:$E$1083,\"<=31/08/2022\",'Modification Proposals Register'!$G$3:$G$1083,C$5,'Modification Proposals Register'!$F$3:$F$1083,\"Live\")","v":0},{"$f":"COUNTIFS('Modification Proposals Register'!$E$3:$E$1083,\">=01/08/2022\",'Modification Proposals Register'!$E$3:$E$1083,\"<=31/08/2022\",'Modification Proposals Register'!$G$3:$G$1083,D$5,'Modification Proposals Register'!$F$3:$F$1083,\"Live\")","v":0},{"$f":"COUNTIFS('Modification Proposals Register'!$E$3:$E$1083,\">=01/08/2022\",'Modification Proposals Register'!$E$3:$E$1083,\"<=31/08/2022\",'Modification Proposals Register'!$G$3:$G$1083,E$5,'Modification Proposals Register'!$F$3:$F$1083,\"Live\")","v":0},{"$f":"COUNTIFS('Modification Proposals Register'!$E$3:$E$1083,\">=01/08/2022\",'Modification Proposals Register'!$E$3:$E$1083,\"<=31/08/2022\",'Modification Proposals Register'!$G$3:$G$1083,F$5,'Modification Proposals Register'!$F$3:$F$1083,\"Live\")","v":0},{"$f":"COUNTIFS('Modification Proposals Register'!$E$3:$E$1083,\">=01/08/2022\",'Modification Proposals Register'!$E$3:$E$1083,\"<=31/08/2022\",'Modification Proposals Register'!$G$3:$G$1083,G$5,'Modification Proposals Register'!$F$3:$F$1083,\"Live\")","v":0},0]
["2022-09-01",{"$f":"COUNTIFS('Modification Proposals Register'!$E$3:$E$1083,\">=01/09/2022\",'Modification Proposals Register'!$E$3:$E$1083,\"<=30/09/2022\",'Modification Proposals Register'!$G$3:$G$1083,B$5,'Modification Proposals Register'!$F$3:$F$1083,\"Live\")","v":0},{"$f":"COUNTIFS('Modification Proposals Register'!$E$3:$E$1083,\">=01/09/2022\",'Modification Proposals Register'!$E$3:$E$1083,\"<=30/09/2022\",'Modification Proposals Register'!$G$3:$G$1083,C$5,'Modification Proposals Register'!$F$3:$F$1083,\"Live\")","v":0},{"$f":"COUNTIFS('Modification Proposals Register'!$E$3:$E$1083,\">=01/09/2022\",'Modification Proposals Register'!$E$3:$E$1083,\"<=30/09/2022\",'Modification Proposals Register'!$G$3:$G$1083,D$5,'Modification Proposals Register'!$F$3:$F$1083,\"Live\")","v":0},{"$f":"COUNTIFS('Modification Proposals Register'!$E$3:$E$1083,\">=01/09/2022\",'Modification Proposals Register'!$E$3:$E$1083,\"<=30/09/2022\",'Modification Proposals Register'!$G$3:$G$1083,E$5,'Modification Proposals Register'!$F$3:$F$1083,\"Live\")","v":0},{"$f":"COUNTIFS('Modification Proposals Register'!$E$3:$E$1083,\">=01/09/2022\",'Modification Proposals Register'!$E$3:$E$1083,\"<=30/09/2022\",'Modification Proposals Register'!$G$3:$G$1083,F$5,'Modification Proposals Register'!$F$3:$F$1083,\"Live\")","v":0},{"$f":"COUNTIFS('Modification Proposals Register'!$E$3:$E$1083,\">=01/09/2022\",'Modification Proposals Register'!$E$3:$E$1083,\"<=30/09/2022\",'Modification Proposals Register'!$G$3:$G$1083,G$5,'Modification Proposals Register'!$F$3:$F$1083,\"Live\")","v":0},0]
["2022-10-01",{"$f":"COUNTIFS('Modification Proposals Register'!$E$3:$E$1083,\">=01/10/2022\",'Modification Proposals Register'!$E$3:$E$1083,\"<=31/10/2022\",'Modification Proposals Register'!$G$3:$G$1083,B$5,'Modification Proposals Register'!$F$3:$F$1083,\"Live\")","v":0},{"$f":"COUNTIFS('Modification Proposals Register'!$E$3:$E$1083,\">=01/10/2022\",'Modification Proposals Register'!$E$3:$E$1083,\"<=31/10/2022\",'Modification Proposals Register'!$G$3:$G$1083,C$5,'Modification Proposals Register'!$F$3:$F$1083,\"Live\")","v":0},{"$f":"COUNTIFS('Modification Proposals Register'!$E$3:$E$1083,\">=01/10/2022\",'Modification Proposals Register'!$E$3:$E$1083,\"<=31/10/2022\",'Modification Proposals Register'!$G$3:$G$1083,D$5,'Modification Proposals Register'!$F$3:$F$1083,\"Live\")","v":0},{"$f":"COUNTIFS('Modification Proposals Register'!$E$3:$E$1083,\">=01/10/2022\",'Modification Proposals Register'!$E$3:$E$1083,\"<=31/10/2022\",'Modification Proposals Register'!$G$3:$G$1083,E$5,'Modification Proposals Register'!$F$3:$F$1083,\"Live\")","v":0},{"$f":"COUNTIFS('Modification Proposals Register'!$E$3:$E$1083,\">=01/10/2022\",'Modification Proposals Register'!$E$3:$E$1083,\"<=31/10/2022\",'Modification Proposals Register'!$G$3:$G$1083,F$5,'Modification Proposals Register'!$F$3:$F$1083,\"Live\")","v":0},{"$f":"COUNTIFS('Modification Proposals Register'!$E$3:$E$1083,\">=01/10/2022\",'Modification Proposals Register'!$E$3:$E$1083,\"<=31/10/2022\",'Modification Proposals Register'!$G$3:$G$1083,G$5,'Modification Proposals Register'!$F$3:$F$1083,\"Live\")","v":0},{"$f":"SUM(B15:G15)","v":0}]
["2022-11-01",{"$f":"COUNTIFS('Modification Proposals Register'!$E$3:$E$1083,\">=01/11/2022\",'Modification Proposals Register'!$E$3:$E$1083,\"<=30/11/2022\",'Modification Proposals Register'!$G$3:$G$1083,B$5,'Modification Proposals Register'!$F$3:$F$1083,\"Live\")","v":0},{"$f":"COUNTIFS('Modification Proposals Register'!$E$3:$E$1083,\">=01/11/2022\",'Modification Proposals Register'!$E$3:$E$1083,\"<=30/11/2022\",'Modification Proposals Register'!$G$3:$G$1083,C$5,'Modification Proposals Register'!$F$3:$F$1083,\"Live\")","v":0},{"$f":"COUNTIFS('Modification Proposals Register'!$E$3:$E$1083,\">=01/11/2022\",'Modification Proposals Register'!$E$3:$E$1083,\"<=30/11/2022\",'Modification Proposals Register'!$G$3:$G$1083,D$5,'Modification Proposals Register'!$F$3:$F$1083,\"Live\")","v":0},{"$f":"COUNTIFS('Modification Proposals Register'!$E$3:$E$1083,\">=01/11/2022\",'Modification Proposals Register'!$E$3:$E$1083,\"<=30/11/2022\",'Modification Proposals Register'!$G$3:$G$1083,E$5,'Modification Proposals Register'!$F$3:$F$1083,\"Live\")","v":0},{"$f":"COUNTIFS('Modification Proposals Register'!$E$3:$E$1083,\">=01/11/2022\",'Modification Proposals Register'!$E$3:$E$1083,\"<=30/11/2022\",'Modification Proposals Register'!$G$3:$G$1083,F$5,'Modification Proposals Register'!$F$3:$F$1083,\"Live\")","v":0},{"$f":"COUNTIFS('Modification Proposals Register'!$E$3:$E$1083,\">=01/11/2022\",'Modification Proposals Register'!$E$3:$E$1083,\"<=30/11/2022\",'Modification Proposals Register'!$G$3:$G$1083,G$5,'Modification Proposals Register'!$F$3:$F$1083,\"Live\")","v":0},{"$f":"SUM(B16:G16)","v":0}]
["2022-12-01",{"$f":"COUNTIFS('Modification Proposals Register'!$E$3:$E$1083,\">=01/12/2022\",'Modification Proposals Register'!$E$3:$E$1083,\"<=31/12/2022\",'Modification Proposals Register'!$G$3:$G$1083,B$5,'Modification Proposals Register'!$F$3:$F$1083,\"Live\")","v":0},{"$f":"COUNTIFS('Modification Proposals Register'!$E$3:$E$1083,\">=01/12/2022\",'Modification Proposals Register'!$E$3:$E$1083,\"<=31/12/2022\",'Modification Proposals Register'!$G$3:$G$1083,C$5,'Modification Proposals Register'!$F$3:$F$1083,\"Live\")","v":0},{"$f":"COUNTIFS('Modification Proposals Register'!$E$3:$E$1083,\">=01/12/2022\",'Modification Proposals Register'!$E$3:$E$1083,\"<=31/12/2022\",'Modification Proposals Register'!$G$3:$G$1083,D$5,'Modification Proposals Register'!$F$3:$F$1083,\"Live\")","v":0},{"$f":"COUNTIFS('Modification Proposals Register'!$E$3:$E$1083,\">=01/12/2022\",'Modification Proposals Register'!$E$3:$E$1083,\"<=31/12/2022\",'Modification Proposals Register'!$G$3:$G$1083,E$5,'Modification Proposals Register'!$F$3:$F$1083,\"Live\")","v":0},{"$f":"COUNTIFS('Modification Proposals Register'!$E$3:$E$1083,\">=01/12/2022\",'Modification Proposals Register'!$E$3:$E$1083,\"<=31/12/2022\",'Modification Proposals Register'!$G$3:$G$1083,F$5,'Modification Proposals Register'!$F$3:$F$1083,\"Live\")","v":0},{"$f":"COUNTIFS('Modification Proposals Register'!$E$3:$E$1083,\">=01/12/2022\",'Modification Proposals Register'!$E$3:$E$1083,\"<=31/12/2022\",'Modification Proposals Register'!$G$3:$G$1083,G$5,'Modification Proposals Register'!$F$3:$F$1083,\"Live\")","v":0},0]
["2023-01-01",{"$f":"COUNTIFS('Modification Proposals Register'!$E$3:$E$1083,\">=01/01/2023\",'Modification Proposals Register'!$E$3:$E$1083,\"<=31/01/2023\",'Modification Proposals Register'!$G$3:$G$1083,B$5,'Modification Proposals Register'!$F$3:$F$1083,\"Live\")","v":0},{"$f":"COUNTIFS('Modification Proposals Register'!$E$3:$E$1083,\">=01/01/2023\",'Modification Proposals Register'!$E$3:$E$1083,\"<=31/01/2023\",'Modification Proposals Register'!$G$3:$G$1083,C$5,'Modification Proposals Register'!$F$3:$F$1083,\"Live\")","v":0},{"$f":"COUNTIFS('Modification Proposals Register'!$E$3:$E$1083,\">=01/01/2023\",'Modification Proposals Register'!$E$3:$E$1083,\"<=31/01/2023\",'Modification Proposals Register'!$G$3:$G$1083,D$5,'Modification Proposals Register'!$F$3:$F$1083,\"Live\")","v":0},{"$f":"COUNTIFS('Modification Proposals Register'!$E$3:$E$1083,\">=01/01/2023\",'Modification Proposals Register'!$E$3:$E$1083,\"<=31/01/2023\",'Modification Proposals Register'!$G$3:$G$1083,E$5,'Modification Proposals Register'!$F$3:$F$1083,\"Live\")","v":0},{"$f":"COUNTIFS('Modification Proposals Register'!$E$3:$E$1083,\">=01/01/2023\",'Modification Proposals Register'!$E$3:$E$1083,\"<=31/01/2023\",'Modification Proposals Register'!$G$3:$G$1083,F$5,'Modification Proposals Register'!$F$3:$F$1083,\"Live\")","v":0},{"$f":"COUNTIFS('Modification Proposals Register'!$E$3:$E$1083,\">=01/01/2023\",'Modification Proposals Register'!$E$3:$E$1083,\"<=31/01/2023\",'Modification Proposals Register'!$G$3:$G$1083,G$5,'Modification Proposals Register'!$F$3:$F$1083,\"Live\")","v":0},0]
["2023-02-01",{"$f":"COUNTIFS('Modification Proposals Register'!$E$3:$E$1083,\">=01/02/2023\",'Modification Proposals Register'!$E$3:$E$1083,\"<=28/02/2023\",'Modification Proposals Register'!$G$3:$G$1083,B$5,'Modification Proposals Register'!$F$3:$F$1083,\"Live\")","v":0},{"$f":"COUNTIFS('Modification Proposals Register'!$E$3:$E$1083,\">=01/02/2023\",'Modification Proposals Register'!$E$3:$E$1083,\"<=28/02/2023\",'Modification Proposals Register'!$G$3:$G$1083,C$5,'Modification Proposals Register'!$F$3:$F$1083,\"Live\")","v":0},{"$f":"COUNTIFS('Modification Proposals Register'!$E$3:$E$1083,\">=01/02/2023\",'Modification Proposals Register'!$E$3:$E$1083,\"<=28/02/2023\",'Modification Proposals Register'!$G$3:$G$1083,D$5,'Modification Proposals Register'!$F$3:$F$1083,\"Live\")","v":0},{"$f":"COUNTIFS('Modification Proposals Register'!$E$3:$E$1083,\">=01/02/2023\",'Modification Proposals Register'!$E$3:$E$1083,\"<=28/02/2023\",'Modification Proposals Register'!$G$3:$G$1083,E$5,'Modification Proposals Register'!$F$3:$F$1083,\"Live\")","v":0},{"$f":"COUNTIFS('Modification Proposals Register'!$E$3:$E$1083,\">=01/02/2023\",'Modification Proposals Register'!$E$3:$E$1083,\"<=28/02/2023\",'Modification Proposals Register'!$G$3:$G$1083,F$5,'Modification Proposals Register'!$F$3:$F$1083,\"Live\")","v":0},{"$f":"COUNTIFS('Modification Proposals Register'!$E$3:$E$1083,\">=01/02/2023\",'Modification Proposals Register'!$E$3:$E$1083,\"<=28/02/2023\",'Modification Proposals Register'!$G$3:$G$1083,G$5,'Modification Proposals Register'!$F$3:$F$1083,\"Live\")","v":0},0]
["2023-03-01",{"$f":"COUNTIFS('Modification Proposals Register'!$E$3:$E$1083,\">=01/03/2023\",'Modification Proposals Register'!$E$3:$E$1083,\"<=31/03/2023\",'Modification Proposals Register'!$G$3:$G$1083,B$5,'Modification Proposals Register'!$F$3:$F$1083,\"Live\")","v":0},{"$f":"COUNTIFS('Modification Proposals Register'!$E$3:$E$1083,\">=01/03/2023\",'Modification Proposals Register'!$E$3:$E$1083,\"<=31/03/2023\",'Modification Proposals Register'!$G$3:$G$1083,C$5,'Modification Proposals Register'!$F$3:$F$1083,\"Live\")","v":0},{"$f":"COUNTIFS('Modification Proposals Register'!$E$3:$E$1083,\">=01/03/2023\",'Modification Proposals Register'!$E$3:$E$1083,\"<=31/03/2023\",'Modification Proposals Register'!$G$3:$G$1083,D$5,'Modification Proposals Register'!$F$3:$F$1083,\"Live\")","v":0},{"$f":"COUNTIFS('Modification Proposals Register'!$E$3:$E$1083,\">=01/03/2023\",'Modification Proposals Register'!$E$3:$E$1083,\"<=31/03/2023\",'Modification Proposals Register'!$G$3:$G$1083,E$5,'Modification Proposals Register'!$F$3:$F$1083,\"Live\")","v":0},{"$f":"COUNTIFS('Modification Proposals Register'!$E$3:$E$1083,\">=01/03/2023\",'Modification Proposals Register'!$E$3:$E$1083,\"<=31/03/2023\",'Modification Proposals Register'!$G$3:$G$1083,F$5,'Modification Proposals Register'!$F$3:$F$1083,\"Live\")","v":0},{"$f":"COUNTIFS('Modification Proposals Register'!$E$3:$E$1083,\">=01/03/2023\",'Modification Proposals Register'!$E$3:$E$1083,\"<=31/03/2023\",'Modification Proposals Register'!$G$3:$G$1083,G$5,'Modification Proposals Register'!$F$3:$F$1083,\"Live\")","v":0},0]
["2023-04-01",{"$f":"COUNTIFS('Modification Proposals Register'!$E$3:$E$1083,\">=01/04/2023\",'Modification Proposals Register'!$E$3:$E$1083,\"<=30/04/2023\",'Modification Proposals Register'!$G$3:$G$1083,B$5,'Modification Proposals Register'!$F$3:$F$1083,\"Live\")","v":0},{"$f":"COUNTIFS('Modification Proposals Register'!$E$3:$E$1083,\">=01/04/2023\",'Modification Proposals Register'!$E$3:$E$1083,\"<=30/04/2023\",'Modification Proposals Register'!$G$3:$G$1083,C$5,'Modification Proposals Register'!$F$3:$F$1083,\"Live\")","v":0},{"$f":"COUNTIFS('Modification Proposals Register'!$E$3:$E$1083,\">=01/04/2023\",'Modification Proposals Register'!$E$3:$E$1083,\"<=30/04/2023\",'Modification Proposals Register'!$G$3:$G$1083,D$5,'Modification Proposals Register'!$F$3:$F$1083,\"Live\")","v":0},{"$f":"COUNTIFS('Modification Proposals Register'!$E$3:$E$1083,\">=01/04/2023\",'Modification Proposals Register'!$E$3:$E$1083,\"<=30/04/2023\",'Modification Proposals Register'!$G$3:$G$1083,E$5,'Modification Proposals Register'!$F$3:$F$1083,\"Live\")","v":0},{"$f":"COUNTIFS('Modification Proposals Register'!$E$3:$E$1083,\">=01/04/2023\",'Modification Proposals Register'!$E$3:$E$1083,\"<=30/04/2023\",'Modification Proposals Register'!$G$3:$G$1083,F$5,'Modification Proposals Register'!$F$3:$F$1083,\"Live\")","v":0},{"$f":"COUNTIFS('Modification Proposals Register'!$E$3:$E$1083,\">=01/04/2023\",'Modification Proposals Register'!$E$3:$E$1083,\"<=30/04/2023\",'Modification Proposals Register'!$G$3:$G$1083,G$5,'Modification Proposals Register'!$F$3:$F$1083,\"Live\")","v":0},{"$f":"SUM(B21:G21)","v":0}]
["2023-05-01",{"$f":"COUNTIFS('Modification Proposals Register'!$E$3:$E$1083,\">=01/05/2023\",'Modification Proposals Register'!$E$3:$E$1083,\"<=31/05/2023\",'Modification Proposals Register'!$G$3:$G$1083,B$5,'Modification Proposals Register'!$F$3:$F$1083,\"Live\")","v":0},{"$f":"COUNTIFS('Modification Proposals Register'!$E$3:$E$1083,\">=01/05/2023\",'Modification Proposals Register'!$E$3:$E$1083,\"<=31/05/2023\",'Modification Proposals Register'!$G$3:$G$1083,C$5,'Modification Proposals Register'!$F$3:$F$1083,\"Live\")","v":0},{"$f":"COUNTIFS('Modification Proposals Register'!$E$3:$E$1083,\">=01/05/2023\",'Modification Proposals Register'!$E$3:$E$1083,\"<=31/05/2023\",'Modification Proposals Register'!$G$3:$G$1083,D$5,'Modification Proposals Register'!$F$3:$F$1083,\"Live\")","v":1},{"$f":"COUNTIFS('Modification Proposals Register'!$E$3:$E$1083,\">=01/05/2023\",'Modification Proposals Register'!$E$3:$E$1083,\"<=31/05/2023\",'Modification Proposals Register'!$G$3:$G$1083,E$5,'Modification Proposals Register'!$F$3:$F$1083,\"Live\")","v":0},{"$f":"COUNTIFS('Modification Proposals Register'!$E$3:$E$1083,\">=01/05/2023\",'Modification Proposals Register'!$E$3:$E$1083,\"<=31/05/2023\",'Modification Proposals Register'!$G$3:$G$1083,F$5,'Modification Proposals Register'!$F$3:$F$1083,\"Live\")","v":0},{"$f":"COUNTIFS('Modification Proposals Register'!$E$3:$E$1083,\">=01/05/2023\",'Modification Proposals Register'!$E$3:$E$1083,\"<=31/05/2023\",'Modification Proposals Register'!$G$3:$G$1083,G$5,'Modification Proposals Register'!$F$3:$F$1083,\"Live\")","v":0},1]
["2023-06-01",{"$f":"COUNTIFS('Modification Proposals Register'!$E$3:$E$1083,\">=01/06/2023\",'Modification Proposals Register'!$E$3:$E$1083,\"<=30/06/2023\",'Modification Proposals Register'!$G$3:$G$1083,B$5,'Modification Proposals Register'!$F$3:$F$1083,\"Live\")","v":0},{"$f":"COUNTIFS('Modification Proposals Register'!$E$3:$E$1083,\">=01/06/2023\",'Modification Proposals Register'!$E$3:$E$1083,\"<=30/06/2023\",'Modification Proposals Register'!$G$3:$G$1083,C$5,'Modification Proposals Register'!$F$3:$F$1083,\"Live\")","v":0},{"$f":"COUNTIFS('Modification Proposals Register'!$E$3:$E$1083,\">=01/06/2023\",'Modification Proposals Register'!$E$3:$E$1083,\"<=30/06/2023\",'Modification Proposals Register'!$G$3:$G$1083,D$5,'Modification Proposals Register'!$F$3:$F$1083,\"Live\")","v":0},{"$f":"COUNTIFS('Modification Proposals Register'!$E$3:$E$1083,\">=01/06/2023\",'Modification Proposals Register'!$E$3:$E$1083,\"<=30/06/2023\",'Modification Proposals Register'!$G$3:$G$1083,E$5,'Modification Proposals Register'!$F$3:$F$1083,\"Live\")","v":0},{"$f":"COUNTIFS('Modification Proposals Register'!$E$3:$E$1083,\">=01/06/2023\",'Modification Proposals Register'!$E$3:$E$1083,\"<=30/06/2023\",'Modification Proposals Register'!$G$3:$G$1083,F$5,'Modification Proposals Register'!$F$3:$F$1083,\"Live\")","v":0},{"$f":"COUNTIFS('Modification Proposals Register'!$E$3:$E$1083,\">=01/06/2023\",'Modification Proposals Register'!$E$3:$E$1083,\"<=30/06/2023\",'Modification Proposals Register'!$G$3:$G$1083,G$5,'Modification Proposals Register'!$F$3:$F$1083,\"Live\")","v":0},0]
["2023-07-01",{"$f":"COUNTIFS('Modification Proposals Register'!$E$3:$E$1083,\">=01/07/2023\",'Modification Proposals Register'!$E$3:$E$1083,\"<=31/07/2023\",'Modification Proposals Register'!$G$3:$G$1083,B$5,'Modification Proposals Register'!$F$3:$F$1083,\"Live\")","v":0},{"$f":"COUNTIFS('Modification Proposals Register'!$E$3:$E$1083,\">=01/07/2023\",'Modification Proposals Register'!$E$3:$E$1083,\"<=31/07/2023\",'Modification Proposals Register'!$G$3:$G$1083,C$5,'Modification Proposals Register'!$F$3:$F$1083,\"Live\")","v":0},{"$f":"COUNTIFS('Modification Proposals Register'!$E$3:$E$1083,\">=01/07/2023\",'Modification Proposals Register'!$E$3:$E$1083,\"<=31/07/2023\",'Modification Proposals Register'!$G$3:$G$1083,D$5,'Modification Proposals Register'!$F$3:$F$1083,\"Live\")","v":1},{"$f":"COUNTIFS('Modification Proposals Register'!$E$3:$E$1083,\">=01/07/2023\",'Modification Proposals Register'!$E$3:$E$1083,\"<=31/07/2023\",'Modification Proposals Register'!$G$3:$G$1083,E$5,'Modification Proposals Register'!$F$3:$F$1083,\"Live\")","v":0},{"$f":"COUNTIFS('Modification Proposals Register'!$E$3:$E$1083,\">=01/07/2023\",'Modification Proposals Register'!$E$3:$E$1083,\"<=31/07/2023\",'Modification Proposals Register'!$G$3:$G$1083,F$5,'Modification Proposals Register'!$F$3:$F$1083,\"Live\")","v":0},{"$f":"COUNTIFS('Modification Proposals Register'!$E$3:$E$1083,\">=01/07/2023\",'Modification Proposals Register'!$E$3:$E$1083,\"<=31/07/2023\",'Modification Proposals Register'!$G$3:$G$1083,G$5,'Modification Proposals Register'!$F$3:$F$1083,\"Live\")","v":0},1]
["2023-08-01",{"$f":"COUNTIFS('Modification Proposals Register'!$E$3:$E$1083,\">=01/08/2023\",'Modification Proposals Register'!$E$3:$E$1083,\"<=31/08/2023\",'Modification Proposals Register'!$G$3:$G$1083,B$5,'Modification Proposals Register'!$F$3:$F$1083,\"Live\")","v":0},{"$f":"COUNTIFS('Modification Proposals Register'!$E$3:$E$1083,\">=01/08/2023\",'Modification Proposals Register'!$E$3:$E$1083,\"<=31/08/2023\",'Modification Proposals Register'!$G$3:$G$1083,C$5,'Modification Proposals Register'!$F$3:$F$1083,\"Live\")","v":0},{"$f":"COUNTIFS('Modification Proposals Register'!$E$3:$E$1083,\">=01/08/2023\",'Modification Proposals Register'!$E$3:$E$1083,\"<=31/08/2023\",'Modification Proposals Register'!$G$3:$G$1083,D$5,'Modification Proposals Register'!$F$3:$F$1083,\"Live\")","v":0},{"$f":"COUNTIFS('Modification Proposals Register'!$E$3:$E$1083,\">=01/08/2023\",'Modification Proposals Register'!$E$3:$E$1083,\"<=31/08/2023\",'Modification Proposals Register'!$G$3:$G$1083,E$5,'Modification Proposals Register'!$F$3:$F$1083,\"Live\")","v":0},{"$f":"COUNTIFS('Modification Proposals Register'!$E$3:$E$1083,\">=01/08/2023\",'Modification Proposals Register'!$E$3:$E$1083,\"<=31/08/2023\",'Modification Proposals Register'!$G$3:$G$1083,F$5,'Modification Proposals Register'!$F$3:$F$1083,\"Live\")","v":0},{"$f":"COUNTIFS('Modification Proposals Register'!$E$3:$E$1083,\">=01/08/2023\",'Modification Proposals Register'!$E$3:$E$1083,\"<=31/08/2023\",'Modification Proposals Register'!$G$3:$G$1083,G$5,'Modification Proposals Register'!$F$3:$F$1083,\"Live\")","v":0},0]
["2023-09-01",{"$f":"COUNTIFS('Modification Proposals Register'!$E$3:$E$1083,\">=01/09/2023\",'Modification Proposals Register'!$E$3:$E$1083,\"<=30/09/2023\",'Modification Proposals Register'!$G$3:$G$1083,B$5,'Modification Proposals Register'!$F$3:$F$1083,\"Live\")","v":0},{"$f":"COUNTIFS('Modification Proposals Register'!$E$3:$E$1083,\">=01/09/2023\",'Modification Proposals Register'!$E$3:$E$1083,\"<=30/09/2023\",'Modification Proposals Register'!$G$3:$G$1083,C$5,'Modification Proposals Register'!$F$3:$F$1083,\"Live\")","v":0},{"$f":"COUNTIFS('Modification Proposals Register'!$E$3:$E$1083,\">=01/09/2023\",'Modification Proposals Register'!$E$3:$E$1083,\"<=30/09/2023\",'Modification Proposals Register'!$G$3:$G$1083,D$5,'Modification Proposals Register'!$F$3:$F$1083,\"Live\")","v":0},{"$f":"COUNTIFS('Modification Proposals Register'!$E$3:$E$1083,\">=01/09/2023\",'Modification Proposals Register'!$E$3:$E$1083,\"<=30/09/2023\",'Modification Proposals Register'!$G$3:$G$1083,E$5,'Modification Proposals Register'!$F$3:$F$1083,\"Live\")","v":0},{"$f":"COUNTIFS('Modification Proposals Register'!$E$3:$E$1083,\">=01/09/2023\",'Modification Proposals Register'!$E$3:$E$1083,\"<=30/09/2023\",'Modification Proposals Register'!$G$3:$G$1083,F$5,'Modification Proposals Register'!$F$3:$F$1083,\"Live\")","v":0},{"$f":"COUNTIFS('Modification Proposals Register'!$E$3:$E$1083,\">=01/09/2023\",'Modification Proposals Register'!$E$3:$E$1083,\"<=30/09/2023\",'Modification Proposals Register'!$G$3:$G$1083,G$5,'Modification Proposals Register'!$F$3:$F$1083,\"Live\")","v":0},0]
["2023-10-01",{"$f":"COUNTIFS('Modification Proposals Register'!$E$3:$E$1083,\">=01/10/2023\",'Modification Proposals Register'!$E$3:$E$1083,\"<=31/10/2023\",'Modification Proposals Register'!$G$3:$G$1083,B$5,'Modification Proposals Register'!$F$3:$F$1083,\"Live\")","v":0},{"$f":"COUNTIFS('Modification Proposals Register'!$E$3:$E$1083,\">=01/10/2023\",'Modification Proposals Register'!$E$3:$E$1083,\"<=31/10/2023\",'Modification Proposals Register'!$G$3:$G$1083,C$5,'Modification Proposals Register'!$F$3:$F$1083,\"Live\")","v":0},{"$f":"COUNTIFS('Modification Proposals Register'!$E$3:$E$1083,\">=01/10/2023\",'Modification Proposals Register'!$E$3:$E$1083,\"<=31/10/2023\",'Modification Proposals Register'!$G$3:$G$1083,D$5,'Modification Proposals Register'!$F$3:$F$1083,\"Live\")","v":0},{"$f":"COUNTIFS('Modification Proposals Register'!$E$3:$E$1083,\">=01/10/2023\",'Modification Proposals Register'!$E$3:$E$1083,\"<=31/10/2023\",'Modification Proposals Register'!$G$3:$G$1083,E$5,'Modification Proposals Register'!$F$3:$F$1083,\"Live\")","v":3},{"$f":"COUNTIFS('Modification Proposals Register'!$E$3:$E$1083,\">=01/10/2023\",'Modification Proposals Register'!$E$3:$E$1083,\"<=31/10/2023\",'Modification Proposals Register'!$G$3:$G$1083,F$5,'Modification Proposals Register'!$F$3:$F$1083,\"Live\")","v":0},{"$f":"COUNTIFS('Modification Proposals Register'!$E$3:$E$1083,\">=01/10/2023\",'Modification Proposals Register'!$E$3:$E$1083,\"<=31/10/2023\",'Modification Proposals Register'!$G$3:$G$1083,G$5,'Modification Proposals Register'!$F$3:$F$1083,\"Live\")","v":0},3]
["2023-11-01",{"$f":"COUNTIFS('Modification Proposals Register'!$E$3:$E$1083,\">=01/11/2023\",'Modification Proposals Register'!$E$3:$E$1083,\"<=30/11/2023\",'Modification Proposals Register'!$G$3:$G$1083,B$5,'Modification Proposals Register'!$F$3:$F$1083,\"Live\")","v":0},{"$f":"COUNTIFS('Modification Proposals Register'!$E$3:$E$1083,\">=01/11/2023\",'Modification Proposals Register'!$E$3:$E$1083,\"<=30/11/2023\",'Modification Proposals Register'!$G$3:$G$1083,C$5,'Modification Proposals Register'!$F$3:$F$1083,\"Live\")","v":0},{"$f":"COUNTIFS('Modification Proposals Register'!$E$3:$E$1083,\">=01/11/2023\",'Modification Proposals Register'!$E$3:$E$1083,\"<=30/11/2023\",'Modification Proposals Register'!$G$3:$G$1083,D$5,'Modification Proposals Register'!$F$3:$F$1083,\"Live\")","v":0},{"$f":"COUNTIFS('Modification Proposals Register'!$E$3:$E$1083,\">=01/11/2023\",'Modification Proposals Register'!$E$3:$E$1083,\"<=30/11/2023\",'Modification Proposals Register'!$G$3:$G$1083,E$5,'Modification Proposals Register'!$F$3:$F$1083,\"Live\")","v":1},{"$f":"COUNTIFS('Modification Proposals Register'!$E$3:$E$1083,\">=01/11/2023\",'Modification Proposals Register'!$E$3:$E$1083,\"<=30/11/2023\",'Modification Proposals Register'!$G$3:$G$1083,F$5,'Modification Proposals Register'!$F$3:$F$1083,\"Live\")","v":0},{"$f":"COUNTIFS('Modification Proposals Register'!$E$3:$E$1083,\">=01/11/2023\",'Modification Proposals Register'!$E$3:$E$1083,\"<=30/11/2023\",'Modification Proposals Register'!$G$3:$G$1083,G$5,'Modification Proposals Register'!$F$3:$F$1083,\"Live\")","v":0},1]
["2023-12-01",{"$f":"COUNTIFS('Modification Proposals Register'!$E$3:$E$1083,\">=01/12/2023\",'Modification Proposals Register'!$E$3:$E$1083,\"<=31/12/2023\",'Modification Proposals Register'!$G$3:$G$1083,B$5,'Modification Proposals Register'!$F$3:$F$1083,\"Live\")","v":0},{"$f":"COUNTIFS('Modification Proposals Register'!$E$3:$E$1083,\">=01/12/2023\",'Modification Proposals Register'!$E$3:$E$1083,\"<=31/12/2023\",'Modification Proposals Register'!$G$3:$G$1083,C$5,'Modification Proposals Register'!$F$3:$F$1083,\"Live\")","v":0},{"$f":"COUNTIFS('Modification Proposals Register'!$E$3:$E$1083,\">=01/12/2023\",'Modification Proposals Register'!$E$3:$E$1083,\"<=31/12/2023\",'Modification Proposals Register'!$G$3:$G$1083,D$5,'Modification Proposals Register'!$F$3:$F$1083,\"Live\")","v":0},{"$f":"COUNTIFS('Modification Proposals Register'!$E$3:$E$1083,\">=01/12/2023\",'Modification Proposals Register'!$E$3:$E$1083,\"<=31/12/2023\",'Modification Proposals Register'!$G$3:$G$1083,E$5,'Modification Proposals Register'!$F$3:$F$1083,\"Live\")","v":0},{"$f":"COUNTIFS('Modification Proposals Register'!$E$3:$E$1083,\">=01/12/2023\",'Modification Proposals Register'!$E$3:$E$1083,\"<=31/12/2023\",'Modification Proposals Register'!$G$3:$G$1083,F$5,'Modification Proposals Register'!$F$3:$F$1083,\"Live\")","v":0},{"$f":"COUNTIFS('Modification Proposals Register'!$E$3:$E$1083,\">=01/12/2023\",'Modification Proposals Register'!$E$3:$E$1083,\"<=31/12/2023\",'Modification Proposals Register'!$G$3:$G$1083,G$5,'Modification Proposals Register'!$F$3:$F$1083,\"Live\")","v":0},0]
["2024-01-01",{"$f":"COUNTIFS('Modification Proposals Register'!$E$3:$E$1083,\">=01/01/2024\",'Modification Proposals Register'!$E$3:$E$1083,\"<=31/01/2024\",'Modification Proposals Register'!$G$3:$G$1083,B$5,'Modification Proposals Register'!$F$3:$F$1083,\"Live\")","v":0},{"$f":"COUNTIFS('Modification Proposals Register'!$E$3:$E$1083,\">=01/01/2024\",'Modification Proposals Register'!$E$3:$E$1083,\"<=31/01/2024\",'Modification Proposals Register'!$G$3:$G$1083,C$5,'Modification Proposals Register'!$F$3:$F$1083,\"Live\")","v":0},{"$f":"COUNTIFS('Modification Proposals Register'!$E$3:$E$1083,\">=01/01/2024\",'Modification Proposals Register'!$E$3:$E$1083,\"<=31/01/2024\",'Modification Proposals Register'!$G$3:$G$1083,D$5,'Modification Proposals Register'!$F$3:$F$1083,\"Live\")","v":0},{"$f":"COUNTIFS('Modification Proposals Register'!$E$3:$E$1083,\">=01/01/2024\",'Modification Proposals Register'!$E$3:$E$1083,\"<=31/01/2024\",'Modification Proposals Register'!$G$3:$G$1083,E$5,'Modification Proposals Register'!$F$3:$F$1083,\"Live\")","v":1},{"$f":"COUNTIFS('Modification Proposals Register'!$E$3:$E$1083,\">=01/01/2024\",'Modification Proposals Register'!$E$3:$E$1083,\"<=31/01/2024\",'Modification Proposals Register'!$G$3:$G$1083,F$5,'Modification Proposals Register'!$F$3:$F$1083,\"Live\")","v":0},{"$f":"COUNTIFS('Modification Proposals Register'!$E$3:$E$1083,\">=01/01/2024\",'Modification Proposals Register'!$E$3:$E$1083,\"<=31/01/2024\",'Modification Proposals Register'!$G$3:$G$1083,G$5,'Modification Proposals Register'!$F$3:$F$1083,\"Live\")","v":0},1]
["2024-02-01",{"$f":"COUNTIFS('Modification Proposals Register'!$E$3:$E$1083,\">=01/02/2024\",'Modification Proposals Register'!$E$3:$E$1083,\"<=28/02/2024\",'Modification Proposals Register'!$G$3:$G$1083,B$5,'Modification Proposals Register'!$F$3:$F$1083,\"Live\")","v":0},{"$f":"COUNTIFS('Modification Proposals Register'!$E$3:$E$1083,\">=01/02/2024\",'Modification Proposals Register'!$E$3:$E$1083,\"<=28/02/2024\",'Modification Proposals Register'!$G$3:$G$1083,C$5,'Modification Proposals Register'!$F$3:$F$1083,\"Live\")","v":0},{"$f":"COUNTIFS('Modification Proposals Register'!$E$3:$E$1083,\">=01/02/2024\",'Modification Proposals Register'!$E$3:$E$1083,\"<=28/02/2024\",'Modification Proposals Register'!$G$3:$G$1083,D$5,'Modification Proposals Register'!$F$3:$F$1083,\"Live\")","v":0},{"$f":"COUNTIFS('Modification Proposals Register'!$E$3:$E$1083,\">=01/02/2024\",'Modification Proposals Register'!$E$3:$E$1083,\"<=28/02/2024\",'Modification Proposals Register'!$G$3:$G$1083,E$5,'Modification Proposals Register'!$F$3:$F$1083,\"Live\")","v":0},{"$f":"COUNTIFS('Modification Proposals Register'!$E$3:$E$1083,\">=01/02/2024\",'Modification Proposals Register'!$E$3:$E$1083,\"<=28/02/2024\",'Modification Proposals Register'!$G$3:$G$1083,F$5,'Modification Proposals Register'!$F$3:$F$1083,\"Live\")","v":0},{"$f":"COUNTIFS('Modification Proposals Register'!$E$3:$E$1083,\">=01/02/2024\",'Modification Proposals Register'!$E$3:$E$1083,\"<=28/02/2024\",'Modification Proposals Register'!$G$3:$G$1083,G$5,'Modification Proposals Register'!$F$3:$F$1083,\"Live\")","v":0},0]
["2024-03-01",{"$f":"COUNTIFS('Modification Proposals Register'!$E$3:$E$1083,\">=01/03/2024\",'Modification Proposals Register'!$E$3:$E$1083,\"<=31/03/2024\",'Modification Proposals Register'!$G$3:$G$1083,B$5,'Modification Proposals Register'!$F$3:$F$1083,\"Live\")","v":0},{"$f":"COUNTIFS('Modification Proposals Register'!$E$3:$E$1083,\">=01/03/2024\",'Modification Proposals Register'!$E$3:$E$1083,\"<=31/03/2024\",'Modification Proposals Register'!$G$3:$G$1083,C$5,'Modification Proposals Register'!$F$3:$F$1083,\"Live\")","v":0},{"$f":"COUNTIFS('Modification Proposals Register'!$E$3:$E$1083,\">=01/03/2024\",'Modification Proposals Register'!$E$3:$E$1083,\"<=31/03/2024\",'Modification Proposals Register'!$G$3:$G$1083,D$5,'Modification Proposals Register'!$F$3:$F$1083,\"Live\")","v":0},{"$f":"COUNTIFS('Modification Proposals Register'!$E$3:$E$1083,\">=01/03/2024\",'Modification Proposals Register'!$E$3:$E$1083,\"<=31/03/2024\",'Modification Proposals Register'!$G$3:$G$1083,E$5,'Modification Proposals Register'!$F$3:$F$1083,\"Live\")","v":0},{"$f":"COUNTIFS('Modification Proposals Register'!$E$3:$E$1083,\">=01/03/2024\",'Modification Proposals Register'!$E$3:$E$1083,\"<=31/03/2024\",'Modification Proposals Register'!$G$3:$G$1083,F$5,'Modification Proposals Register'!$F$3:$F$1083,\"Live\")","v":0},{"$f":"COUNTIFS('Modification Proposals Register'!$E$3:$E$1083,\">=01/03/2024\",'Modification Proposals Register'!$E$3:$E$1083,\"<=31/03/2024\",'Modification Proposals Register'!$G$3:$G$1083,G$5,'Modification Proposals Register'!$F$3:$F$1083,\"Live\")","v":0},0]
["2024-04-01",{"$f":"COUNTIFS('Modification Proposals Register'!$E$3:$E$1083,\">=01/04/2024\",'Modification Proposals Register'!$E$3:$E$1083,\"<=30/04/2024\",'Modification Proposals Register'!$G$3:$G$1083,B$5,'Modification Proposals Register'!$F$3:$F$1083,\"Live\")","v":0},{"$f":"COUNTIFS('Modification Proposals Register'!$E$3:$E$1083,\">=01/04/2024\",'Modification Proposals Register'!$E$3:$E$1083,\"<=30/04/2024\",'Modification Proposals Register'!$G$3:$G$1083,C$5,'Modification Proposals Register'!$F$3:$F$1083,\"Live\")","v":0},{"$f":"COUNTIFS('Modification Proposals Register'!$E$3:$E$1083,\">=01/04/2024\",'Modification Proposals Register'!$E$3:$E$1083,\"<=30/04/2024\",'Modification Proposals Register'!$G$3:$G$1083,D$5,'Modification Proposals Register'!$F$3:$F$1083,\"Live\")","v":0},{"$f":"COUNTIFS('Modification Proposals Register'!$E$3:$E$1083,\">=01/04/2024\",'Modification Proposals Register'!$E$3:$E$1083,\"<=30/04/2024\",'Modification Proposals Register'!$G$3:$G$1083,E$5,'Modification Proposals Register'!$F$3:$F$1083,\"Live\")","v":0},{"$f":"COUNTIFS('Modification Proposals Register'!$E$3:$E$1083,\">=01/04/2024\",'Modification Proposals Register'!$E$3:$E$1083,\"<=30/04/2024\",'Modification Proposals Register'!$G$3:$G$1083,F$5,'Modification Proposals Register'!$F$3:$F$1083,\"Live\")","v":0},{"$f":"COUNTIFS('Modification Proposals Register'!$E$3:$E$1083,\">=01/04/2024\",'Modification Proposals Register'!$E$3:$E$1083,\"<=30/04/2024\",'Modification Proposals Register'!$G$3:$G$1083,G$5,'Modification Proposals Register'!$F$3:$F$1083,\"Live\")","v":0},0]
["2024-05-01",{"$f":"COUNTIFS('Modification Proposals Register'!$E$3:$E$1083,\">=01/05/2024\",'Modification Proposals Register'!$E$3:$E$1083,\"<=31/05/2024\",'Modification Proposals Register'!$G$3:$G$1083,B$5,'Modification Proposals Register'!$F$3:$F$1083,\"Live\")","v":0},{"$f":"COUNTIFS('Modification Proposals Register'!$E$3:$E$1083,\">=01/05/2024\",'Modification Proposals Register'!$E$3:$E$1083,\"<=31/05/2024\",'Modification Proposals Register'!$G$3:$G$1083,C$5,'Modification Proposals Register'!$F$3:$F$1083,\"Live\")","v":0},{"$f":"COUNTIFS('Modification Proposals Register'!$E$3:$E$1083,\">=01/05/2024\",'Modification Proposals Register'!$E$3:$E$1083,\"<=31/05/2024\",'Modification Proposals Register'!$G$3:$G$1083,D$5,'Modification Proposals Register'!$F$3:$F$1083,\"Live\")","v":0},{"$f":"COUNTIFS('Modification Proposals Register'!$E$3:$E$1083,\">=01/05/2024\",'Modification Proposals Register'!$E$3:$E$1083,\"<=31/05/2024\",'Modification Proposals Register'!$G$3:$G$1083,E$5,'Modification Proposals Register'!$F$3:$F$1083,\"Live\")","v":0},{"$f":"COUNTIFS('Modification Proposals Register'!$E$3:$E$1083,\">=01/05/2024\",'Modification Proposals Register'!$E$3:$E$1083,\"<=31/05/2024\",'Modification Proposals Register'!$G$3:$G$1083,F$5,'Modification Proposals Register'!$F$3:$F$1083,\"Live\")","v":0},{"$f":"COUNTIFS('Modification Proposals Register'!$E$3:$E$1083,\">=01/05/2024\",'Modification Proposals Register'!$E$3:$E$1083,\"<=31/05/2024\",'Modification Proposals Register'!$G$3:$G$1083,G$5,'Modification Proposals Register'!$F$3:$F$1083,\"Live\")","v":0},0]
["2024-06-01",{"$f":"COUNTIFS('Modification Proposals Register'!$E$3:$E$1083,\">=01/06/2024\",'Modification Proposals Register'!$E$3:$E$1083,\"<=30/06/2024\",'Modification Proposals Register'!$G$3:$G$1083,B$5,'Modification Proposals Register'!$F$3:$F$1083,\"Live\")","v":0},{"$f":"COUNTIFS('Modification Proposals Register'!$E$3:$E$1083,\">=01/06/2024\",'Modification Proposals Register'!$E$3:$E$1083,\"<=30/06/2024\",'Modification Proposals Register'!$G$3:$G$1083,C$5,'Modification Proposals Register'!$F$3:$F$1083,\"Live\")","v":0},{"$f":"COUNTIFS('Modification Proposals Register'!$E$3:$E$1083,\">=01/06/2024\",'Modification Proposals Register'!$E$3:$E$1083,\"<=30/06/2024\",'Modification Proposals Register'!$G$3:$G$1083,D$5,'Modification Proposals Register'!$F$3:$F$1083,\"Live\")","v":0},{"$f":"COUNTIFS('Modification Proposals Register'!$E$3:$E$1083,\">=01/06/2024\",'Modification Proposals Register'!$E$3:$E$1083,\"<=30/06/2024\",'Modification Proposals Register'!$G$3:$G$1083,E$5,'Modification Proposals Register'!$F$3:$F$1083,\"Live\")","v":0},{"$f":"COUNTIFS('Modification Proposals Register'!$E$3:$E$1083,\">=01/06/2024\",'Modification Proposals Register'!$E$3:$E$1083,\"<=30/06/2024\",'Modification Proposals Register'!$G$3:$G$1083,F$5,'Modification Proposals Register'!$F$3:$F$1083,\"Live\")","v":0},{"$f":"COUNTIFS('Modification Proposals Register'!$E$3:$E$1083,\">=01/06/2024\",'Modification Proposals Register'!$E$3:$E$1083,\"<=30/06/2024\",'Modification Proposals Register'!$G$3:$G$1083,G$5,'Modification Proposals Register'!$F$3:$F$1083,\"Live\")","v":0},0]
["2024-07-01",{"$f":"COUNTIFS('Modification Proposals Register'!$E$3:$E$1083,\">=01/07/2024\",'Modification Proposals Register'!$E$3:$E$1083,\"<=31/07/2024\",'Modification Proposals Register'!$G$3:$G$1083,B$5,'Modification Proposals Register'!$F$3:$F$1083,\"Live\")","v":0},{"$f":"COUNTIFS('Modification Proposals Register'!$E$3:$E$1083,\">=01/07/2024\",'Modification Proposals Register'!$E$3:$E$1083,\"<=31/07/2024\",'Modification Proposals Register'!$G$3:$G$1083,C$5,'Modification Proposals Register'!$F$3:$F$1083,\"Live\")","v":0},{"$f":"COUNTIFS('Modification Proposals Register'!$E$3:$E$1083,\">=01/07/2024\",'Modification Proposals Register'!$E$3:$E$1083,\"<=31/07/2024\",'Modification Proposals Register'!$G$3:$G$1083,D$5,'Modification Proposals Register'!$F$3:$F$1083,\"Live\")","v":0},{"$f":"COUNTIFS('Modification Proposals Register'!$E$3:$E$1083,\">=01/07/2024\",'Modification Proposals Register'!$E$3:$E$1083,\"<=31/07/2024\",'Modification Proposals Register'!$G$3:$G$1083,E$5,'Modification Proposals Register'!$F$3:$F$1083,\"Live\")","v":0},{"$f":"COUNTIFS('Modification Proposals Register'!$E$3:$E$1083,\">=01/07/2024\",'Modification Proposals Register'!$E$3:$E$1083,\"<=31/07/2024\",'Modification Proposals Register'!$G$3:$G$1083,F$5,'Modification Proposals Register'!$F$3:$F$1083,\"Live\")","v":0},{"$f":"COUNTIFS('Modification Proposals Register'!$E$3:$E$1083,\">=01/07/2024\",'Modification Proposals Register'!$E$3:$E$1083,\"<=31/07/2024\",'Modification Proposals Register'!$G$3:$G$1083,G$5,'Modification Proposals Register'!$F$3:$F$1083,\"Live\")","v":0},0]
["2024-08-01",{"$f":"COUNTIFS('Modification Proposals Register'!$E$3:$E$1083,\">=01/08/2024\",'Modification Proposals Register'!$E$3:$E$1083,\"<=31/08/2024\",'Modification Proposals Register'!$G$3:$G$1083,B$5,'Modification Proposals Register'!$F$3:$F$1083,\"Live\")","v":0},{"$f":"COUNTIFS('Modification Proposals Register'!$E$3:$E$1083,\">=01/08/2024\",'Modification Proposals Register'!$E$3:$E$1083,\"<=31/08/2024\",'Modification Proposals Register'!$G$3:$G$1083,C$5,'Modification Proposals Register'!$F$3:$F$1083,\"Live\")","v":0},{"$f":"COUNTIFS('Modification Proposals Register'!$E$3:$E$1083,\">=01/08/2024\",'Modification Proposals Register'!$E$3:$E$1083,\"<=31/08/2024\",'Modification Proposals Register'!$G$3:$G$1083,D$5,'Modification Proposals Register'!$F$3:$F$1083,\"Live\")","v":0},{"$f":"COUNTIFS('Modification Proposals Register'!$E$3:$E$1083,\">=01/08/2024\",'Modification Proposals Register'!$E$3:$E$1083,\"<=31/08/2024\",'Modification Proposals Register'!$G$3:$G$1083,E$5,'Modification Proposals Register'!$F$3:$F$1083,\"Live\")","v":0},{"$f":"COUNTIFS('Modification Proposals Register'!$E$3:$E$1083,\">=01/08/2024\",'Modification Proposals Register'!$E$3:$E$1083,\"<=31/08/2024\",'Modification Proposals Register'!$G$3:$G$1083,F$5,'Modification Proposals Register'!$F$3:$F$1083,\"Live\")","v":0},{"$f":"COUNTIFS('Modification Proposals Register'!$E$3:$E$1083,\">=01/08/2024\",'Modification Proposals Register'!$E$3:$E$1083,\"<=31/08/2024\",'Modification Proposals Register'!$G$3:$G$1083,G$5,'Modification Proposals Register'!$F$3:$F$1083,\"Live\")","v":0},0]
["2024-09-01",{"$f":"COUNTIFS('Modification Proposals Register'!$E$3:$E$1083,\">=01/09/2024\",'Modification Proposals Register'!$E$3:$E$1083,\"<=30/09/2024\",'Modification Proposals Register'!$G$3:$G$1083,B$5,'Modification Proposals Register'!$F$3:$F$1083,\"Live\")","v":0},{"$f":"COUNTIFS('Modification Proposals Register'!$E$3:$E$1083,\">=01/09/2024\",'Modification Proposals Register'!$E$3:$E$1083,\"<=30/09/2024\",'Modification Proposals Register'!$G$3:$G$1083,C$5,'Modification Proposals Register'!$F$3:$F$1083,\"Live\")","v":0},{"$f":"COUNTIFS('Modification Proposals Register'!$E$3:$E$1083,\">=01/09/2024\",'Modification Proposals Register'!$E$3:$E$1083,\"<=30/09/2024\",'Modification Proposals Register'!$G$3:$G$1083,D$5,'Modification Proposals Register'!$F$3:$F$1083,\"Live\")","v":0},{"$f":"COUNTIFS('Modification Proposals Register'!$E$3:$E$1083,\">=01/09/2024\",'Modification Proposals Register'!$E$3:$E$1083,\"<=30/09/2024\",'Modification Proposals Register'!$G$3:$G$1083,E$5,'Modification Proposals Register'!$F$3:$F$1083,\"Live\")","v":0},{"$f":"COUNTIFS('Modification Proposals Register'!$E$3:$E$1083,\">=01/09/2024\",'Modification Proposals Register'!$E$3:$E$1083,\"<=30/09/2024\",'Modification Proposals Register'!$G$3:$G$1083,F$5,'Modification Proposals Register'!$F$3:$F$1083,\"Live\")","v":0},{"$f":"COUNTIFS('Modification Proposals Register'!$E$3:$E$1083,\">=01/09/2024\",'Modification Proposals Register'!$E$3:$E$1083,\"<=30/09/2024\",'Modification Proposals Register'!$G$3:$G$1083,G$5,'Modification Proposals Register'!$F$3:$F$1083,\"Live\")","v":0},0]
[]
[]
["YTD Total",{"$f":"SUBTOTAL(9,B6:B38)","v":0},0,2,5,0,0,{"$f":"SUM(Table1[Total])","v":7}]

{"sheet":"KPI","index":4,"n_rows":175,"n_cols":15,"rows_kept":175,"cut":false,"hidden":true,"merged":[[42,0,42,1],[67,0,68,0],[67,1,68,1],[67,13,68,13],[67,12,68,12],[67,11,68,11],[67,10,68,10],[67,9,68,9],[67,8,68,8],[67,7,68,7],[67,6,68,6],[67,5,68,5],[67,4,68,4],[67,3,68,3],[67,2,68,2]]}
["*Automated KPI - Do not change anything on this page (including print set) without approval*"]
[]
["Modification YTD Overview Report "]
[]
["Workgroup","Live Modifications","Oldest"]
["Distribution",{"$f":"COUNTIFS('Modification Proposals Register'!$I$3:$I$1510,A6,'Modification Proposals Register'!$F$3:$F$1510,\"Live\")","v":6},{"$f":"_xlfn.MINIFS('Modification Proposals Register'!$E$3:$E$510,'Modification Proposals Register'!$I$3:$I$510,A6,'Modification Proposals Register'!F$3:F$510,\"Live\")","v":"2022-05-09"},{"$f":"+B6/$B$15","v":0.25}]
["DNCMF",{"$f":"COUNTIFS('Modification Proposals Register'!$I$3:$I$1510,A7,'Modification Proposals Register'!$F$3:$F$1510,\"Live\")","v":0},{"$f":"_xlfn.MINIFS('Modification Proposals Register'!$E$3:$E$510,'Modification Proposals Register'!$I$3:$I$510,A7,'Modification Proposals Register'!F$3:F$510,\"Live\")","v":"00:00:00"},{"$f":"+B7/$B$15","v":0}]
["Transmission",{"$f":"COUNTIFS('Modification Proposals Register'!$I$3:$I$1510,A8,'Modification Proposals Register'!$F$3:$F$1510,\"Live\")","v":6},{"$f":"_xlfn.MINIFS('Modification Proposals Register'!$E$3:$E$510,'Modification Proposals Register'!$I$3:$I$510,A8,'Modification Proposals Register'!F$3:F$510,\"Live\")","v":"2023-07-25"},0.25]
["NTSCMF",{"$f":"COUNTIFS('Modification Proposals Register'!$I$3:$I$1510,A9,'Modification Proposals Register'!$F$3:$F$1510,\"Live\")","v":2},{"$f":"_xlfn.MINIFS('Modification Proposals Register'!$E$3:$E$510,'Modification Proposals Register'!$I$3:$I$510,A9,'Modification Proposals Register'!F$3:F$510,\"Live\")","v":"2023-09-13"},8.3333333333333329E-2]
["Governance",{"$f":"COUNTIFS('Modification Proposals Register'!$I$3:$I$1510,A10,'Modification Proposals Register'!$F$3:$F$1510,\"Live\")","v":1},{"$f":"_xlfn.MINIFS('Modification Proposals Register'!$E$3:$E$510,'Modification Proposals Register'!$I$3:$I$510,A10,'Modification Proposals Register'!F$3:F$510,\"Live\")","v":"2023-03-06"},4.1666666666666664E-2]
["Offtake",{"$f":"COUNTIFS('Modification Proposals Register'!$I$3:$I$1510,A11,'Modification Proposals Register'!$F$3:$F$1510,\"Live\")","v":0},{"$f":"_xlfn.MINIFS('Modification Proposals Register'!$E$3:$E$510,'Modification Proposals Register'!$I$3:$I$510,A11,'Modification Proposals Register'!F$3:F$510,\"Live\")","v":"00:00:00"},0]
["None",{"$f":"COUNTIFS('Modification Proposals Register'!$I$3:$I$1510,A12,'Modification Proposals Register'!$F$3:$F$1510,\"Live\")","v":6},{"$f":"_xlfn.MINIFS('Modification Proposals Register'!$E$3:$E$510,'Modification Proposals Register'!$I$3:$I$510,A12,'Modification Proposals Register'!F$3:F$510,\"Live\")","v":"2023-08-08"},0.25]
["Other",{"$f":"COUNTIFS('Modification Proposals Register'!$I$3:$I$1510,A13,'Modification Proposals Register'!$F$3:$F$1510,\"Live\")","v":3},{"$f":"_xlfn.MINIFS('Modification Proposals Register'!$E$3:$E$510,'Modification Proposals Register'!$I$3:$I$510,A13,'Modification Proposals Register'!F$3:F$510,\"Live\")","v":"2022-01-10"},0.125]
[]
["YTD Total",{"$f":"SUM(B6:B13)","v":24}]
[]
[]
["Modification YTD Status Report "]
[]
["Current Status",{"$f":"TODAY()","v":"2024-03-27"},"Oldest"]
["Allocated to Workgroup",{"$f":"COUNTIFS('Modification Proposals Register'!$F$3:$F$1560,\"live\",'Modification Proposals Register'!$J$3:$J$1560,A21)","v":12},{"$f":"_xlfn.MINIFS('Modification Proposals Register'!$E$3:$E$1560,'Modification Proposals Register'!$J$3:$J$1560,A21,'Modification Proposals Register'!F$3:F$1560,\"Live\")","v":"2023-04-06"},{"$f":"+B21/$B$37","v":0.5}]
["Appeal",{"$f":"COUNTIFS('Modification Proposals Register'!$F$3:$F$1560,\"live\",'Modification Proposals Register'!$J$3:$J$1560,A22)","v":0},{"$f":"_xlfn.MINIFS('Modification Proposals Register'!$E$3:$E$1560,'Modification Proposals Register'!$J$3:$J$1560,A22,'Modification Proposals Register'!F$3:F$1560,\"Live\")","v":"00:00:00"},{"$f":"+B22/$B$37","v":0}]
["Awaiting Implementation",{"$f":"COUNTIFS('Modification Proposals Register'!$F$3:$F$1560,\"live\",'Modification Proposals Register'!$J$3:$J$1560,A23)","v":7},{"$f":"_xlfn.MINIFS('Modification Proposals Register'!$E$3:$E$1560,'Modification Proposals Register'!$J$3:$J$1560,A23,'Modification Proposals Register'!F$3:F$1560,\"Live\")","v":"2022-01-10"},{"$f":"+B23/$B$37","v":0.29166666666666669}]
["Awaiting OfGEM decision",{"$f":"COUNTIFS('Modification Proposals Register'!$F$3:$F$1560,\"live\",'Modification Proposals Register'!$J$3:$J$1560,A24)","v":0},{"$f":"_xlfn.MINIFS('Modification Proposals Register'!$E$3:$E$1560,'Modification Proposals Register'!$J$3:$J$1560,A24,'Modification Proposals Register'!F$3:F$1560,\"Live\")","v":"00:00:00"},0]
["Final Mod Report",{"$f":"COUNTIFS('Modification Proposals Register'!$F$3:$F$1560,\"live\",'Modification Proposals Register'!$J$3:$J$1560,A25)","v":0},{"$f":"_xlfn.MINIFS('Modification Proposals Register'!$E$3:$E$1560,'Modification Proposals Register'!$J$3:$J$1560,A25,'Modification Proposals Register'!F$3:F$1560,\"Live\")","v":"00:00:00"},0]
["Final Mod Report Sent Back by Ofgem",{"$f":"COUNTIFS('Modification Proposals Register'!$F$3:$F$1560,\"live\",'Modification Proposals Register'!$J$3:$J$1560,A26)","v":0},{"$f":"_xlfn.MINIFS('Modification Proposals Register'!$E$3:$E$1560,'Modification Proposals Register'!$J$3:$J$1560,A26,'Modification Proposals Register'!F$3:F$1560,\"Live\")","v":"00:00:00"},0]
["Implemented",{"$f":"COUNTIFS('Modification Proposals Register'!$F$3:$F$1560,\"live\",'Modification Proposals Register'!$J$3:$J$1560,A27)","v":0},{"$f":"_xlfn.MINIFS('Modification Proposals Register'!$E$3:$E$1560,'Modification Proposals Register'!$J$3:$J$1560,A27,'Modification Proposals Register'!F$3:F$1560,\"Live\")","v":"00:00:00"},0]
["New Proposal",{"$f":"COUNTIFS('Modification Proposals Register'!$F$3:$F$1560,\"live\",'Modification Proposals Register'!$J$3:$J$1560,A28)","v":0},{"$f":"_xlfn.MINIFS('Modification Proposals Register'!$E$3:$E$1560,'Modification Proposals Register'!$J$3:$J$1560,A28,'Modification Proposals Register'!F$3:F$1560,\"Live\")","v":"00:00:00"},0]
["Panel recommended implementation",{"$f":"COUNTIFS('Modification Proposals Register'!$F$3:$F$1560,\"live\",'Modification Proposals Register'!$J$3:$J$1560,A29)","v":5},{"$f":"_xlfn.MINIFS('Modification Proposals Register'!$E$3:$E$1560,'Modification Proposals Register'!$J$3:$J$1560,A29,'Modification Proposals Register'!F$3:F$1560,\"Live\")","v":"2023-03-06"},0.20833333333333334]
["Panel did not recommend implementation",{"$f":"COUNTIFS('Modification Proposals Register'!$F$3:$F$1560,\"live\",'Modification Proposals Register'!$J$3:$J$1560,A30)","v":0},{"$f":"_xlfn.MINIFS('Modification Proposals Register'!$E$3:$E$1560,'Modification Proposals Register'!$J$3:$J$1560,A30,'Modification Proposals Register'!F$3:F$1560,\"Live\")","v":"00:00:00"},0]
["Representations invited",{"$f":"COUNTIFS('Modification Proposals Register'!$F$3:$F$1560,\"live\",'Modification Proposals Register'!$J$3:$J$1560,A31)","v":0},{"$f":"_xlfn.MINIFS('Modification Proposals Register'!$E$3:$E$1560,'Modification Proposals Register'!$J$3:$J$1560,A31,'Modification Proposals Register'!F$3:F$1560,\"Live\")","v":"00:00:00"},0]
["Renumbered",{"$f":"COUNTIFS('Modification Proposals Register'!$F$3:$F$1560,\"live\",'Modification Proposals Register'!$J$3:$J$1560,A32)","v":0},{"$f":"_xlfn.MINIFS('Modification Proposals Register'!$E$3:$E$1560,'Modification Proposals Register'!$J$3:$J$1560,A32,'Modification Proposals Register'!F$3:F$1560,\"Live\")","v":"00:00:00"},0]
["Request closed",{"$f":"COUNTIFS('Modification Proposals Register'!$F$3:$F$1560,\"live\",'Modification Proposals Register'!$J$3:$J$1560,A33)","v":0},{"$f":"_xlfn.MINIFS('Modification Proposals Register'!$E$3:$E$1560,'Modification Proposals Register'!$J$3:$J$1560,A33,'Modification Proposals Register'!F$3:F$1560,\"Live\")","v":"00:00:00"},0]
["Sent to Ofgem",{"$f":"COUNTIFS('Modification Proposals Register'!$F$3:$F$1560,\"live\",'Modification Proposals Register'!$J$3:$J$1560,A34)","v":0},{"$f":"_xlfn.MINIFS('Modification Proposals Register'!$E$3:$E$1560,'Modification Proposals Register'!$J$3:$J$1560,A34,'Modification Proposals Register'!F$3:F$1560,\"Live\")","v":"00:00:00"},0]
["Withdrawn",{"$f":"COUNTIFS('Modification Proposals Register'!$F$3:$F$1560,\"live\",'Modification Proposals Register'!$J$3:$J$1560,A35)","v":0},{"$f":"_xlfn.MINIFS('Modification Proposals Register'!$E$3:$E$1560,'Modification Proposals Register'!$J$3:$J$1560,A35,'Modification Proposals Register'!F$3:F$1560,\"Live\")","v":"00:00:00"},{"$f":"+B35/$B$37","v":0}]
[]
["YTD Total",{"$f":"SUM(B21:B35)","v":24}]
[]
[]
[]
["Next Steps Report"]
[]
["Modifications"]
["Report to Panel",{"$f":"COUNTIFS('Modification Proposals Register'!$F$3:$F$1510,\"live\",'Modification Proposals Register'!$K$3:$K$1510,A44)","v":12}]
["Panel Consideration",{"$f":"COUNTIFS('Modification Proposals Register'!$F$3:$F$1510,\"live\",'Modification Proposals Register'!$K$3:$K$1510,A45)","v":0}]
["Implemented",{"$f":"COUNTIFS('Modification Proposals Register'!$F$3:$F$1510,\"live\",'Modification Proposals Register'!$K$3:$K$1510,A46)","v":6}]
["Ofgem decision",{"$f":"COUNTIFS('Modification Proposals Register'!$F$3:$F$1510,\"live\",'Modification Proposals Register'!$K$3:$K$1510,A47)","v":5}]
["Final Mod Report",{"$f":"COUNTIFS('Modification Proposals Register'!$F$3:$F$1510,\"live\",'Modification Proposals Register'!$K$3:$K$1510,A48)","v":0}]
["Effective date",{"$f":"COUNTIFS('Modification Proposals Register'!$F$3:$F$1510,\"live\",'Modification Proposals Register'!$K$3:$K$1510,A49)","v":1}]
["End of process",{"$f":"COUNTIFS('Modification Proposals Register'!$F$3:$F$1510,\"live\",'Modification Proposals Register'!$K$3:$K$1510,A50)","v":0}]
["Consultation end",{"$f":"COUNTIFS('Modification Proposals Register'!$F$3:$F$1510,\"live\",'Modification Proposals Register'!$K$3:$K$1510,A51)","v":0}]
["Waiting for Implementation",{"$f":"COUNTIFS('Modification Proposals Register'!$F$3:$F$1510,\"live\",'Modification Proposals Register'!$K$3:$K$1510,A52)","v":0}]
[null,{"$f":"COUNTIFS('Modification Proposals Register'!$F$3:$F$1510,\"live\",'Modification Proposals Register'!$K$3:$K$1510,\"Report to panel\",'Modification Proposals Register'!$L$3:$L$1510,\"14/09/2023\")","v":0}]
[null,{"$f":"COUNTIFS('Modification Proposals Register'!$F$3:$F$1510,\"live\",'Modification Proposals Register'!$K$3:$K$1510,\"Report to panel\",'Modification Proposals Register'!$L$3:$L$1510,\"19/10/2023\")","v":0}]
[]
[null,{"$f":"SUM(B44:B55)","v":24}]
[]
[]
[]
["Panel MI"]
[]
["Monthly Panel Call"]
[]
["Category","2024-01-01","2024-02-01","2024-03-01","2024-04-01","2024-05-01","2024-06-01","2024-07-01","2024-08-01","2024-09-01","2024-10-01","2024-11-01","2024-12-01","YTD"]
["New Modification",{"$f":"COUNTIFS('Modification Proposals Register'!$F$3:$F$510,\"live\",'Modification Proposals Register'!$J$3:$J$510,\"New Proposal\",'Modification Proposals Register'!$L$3:$L$510,\">15/12/2023\",'Modification Proposals Register'!$L$3:$L$510,\"<19/01/2024\")","v":0},{"$f":"COUNTIFS('Modification Proposals Register'!$F$3:$F$510,\"live\",'Modification Proposals Register'!$J$3:$J$510,\"New Proposal\",'Modification Proposals Register'!$L$3:$L$510,\">18/01/2024\",'Modification Proposals Register'!$L$3:$L$510,\"<15/02/2024\")","v":0},{"$f":"COUNTIFS('Modification Proposals Register'!$F$3:$F$510,\"live\",'Modification Proposals Register'!$J$3:$J$510,\"New Proposal\",'Modification Proposals Register'!$L$3:$L$510,\">15/02/2024\",'Modification Proposals Register'!$L$3:$L$510,\"<21/03/2024\")","v":0},{"$f":"COUNTIFS('Modification Proposals Register'!$F$3:$F$510,\"live\",'Modification Proposals Register'!$J$3:$J$510,\"New Proposal\",'Modification Proposals Register'!$L$3:$L$510,\">21/3/2024\",'Modification Proposals Register'!$L$3:$L$510,\"<18/4/2024\")","v":0},{"$f":"COUNTIFS('Modification Proposals Register'!$F$3:$F$510,\"live\",'Modification Proposals Register'!$J$3:$J$510,\"New Proposal\",'Modification Proposals Register'!$L$3:$L$510,\">18/4/2024\",'Modification Proposals Register'!$L$3:$L$510,\"<16/5/2024\")","v":0},{"$f":"COUNTIFS('Modification Proposals Register'!$F$3:$F$510,\"live\",'Modification Proposals Register'!$J$3:$J$510,\"New Proposal\",'Modification Proposals Register'!$L$3:$L$510,\">16/5/2024\",'Modification Proposals Register'!$L$3:$L$510,\"<20/6/2024\")","v":0},{"$f":"COUNTIFS('Modification Proposals Register'!$F$3:$F$510,\"live\",'Modification Proposals Register'!$J$3:$J$510,\"New Proposal\",'Modification Proposals Register'!$L$3:$L$510,\">20/6/2024\",'Modification Proposals Register'!$L$3:$L$510,\"<18/7/2024\")","v":0},{"$f":"COUNTIFS('Modification Proposals Register'!$F$3:$F$510,\"live\",'Modification Proposals Register'!$J$3:$J$510,\"New Proposal\",'Modification Proposals Register'!$L$3:$L$510,\">18/7/2024\",'Modification Proposals Register'!$L$3:$L$510,\"<15/8/2024\")","v":0},{"$f":"COUNTIFS('Modification Proposals Register'!$F$3:$F$510,\"live\",'Modification Proposals Register'!$J$3:$J$510,\"New Proposal\",'Modification Proposals Register'!$L$3:$L$510,\">15/8/2024\",'Modification Proposals Register'!$L$3:$L$510,\"<19/9/2024\")","v":0},{"$f":"COUNTIFS('Modification Proposals Register'!$F$3:$F$510,\"live\",'Modification Proposals Register'!$J$3:$J$510,\"New Proposal\",'Modification Proposals Register'!$L$3:$L$510,\">19/9/2024\",'Modification Proposals Register'!$L$3:$L$510,\"<17/10/2024\")","v":0},{"$f":"COUNTIFS('Modification Proposals Register'!$F$3:$F$510,\"live\",'Modification Proposals Register'!$J$3:$J$510,\"New Proposal\",'Modification Proposals Register'!$L$3:$L$510,\">17/10/2024\",'Modification Proposals Register'!$L$3:$L$510,\"<21/11/2024\")","v":0},{"$f":"COUNTIFS('Modification Proposals Register'!$F$3:$F$510,\"live\",'Modification Proposals Register'!$J$3:$J$510,\"New Proposal\",'Modification Proposals Register'!$L$3:$L$510,\">21/11/2024\",'Modification Proposals Register'!$L$3:$L$510,\"<19/12/2024\")","v":0},{"$f":"SUM(B65:M65)","v":0}]
["Workgroup Report",{"$f":"COUNTIFS('Modification Proposals Register'!$F$3:$F$510,\"live\",'Modification Proposals Register'!$J$3:$J$510,\"Allocated to Workgroup\",'Modification Proposals Register'!$K$3:$K$510,\"*Panel*\",'Modification Proposals Register'!$L$3:$L$510,\"18/01/2024\")","v":0},{"$f":"COUNTIFS('Modification Proposals Register'!$F$3:$F$510,\"live\",'Modification Proposals Register'!$J$3:$J$510,\"Allocated to Workgroup\",'Modification Proposals Register'!$K$3:$K$510,\"*Panel*\",'Modification Proposals Register'!$L$3:$L$510,\"15/2/24\")","v":0},{"$f":"COUNTIFS('Modification Proposals Register'!$F$3:$F$510,\"live\",'Modification Proposals Register'!$J$3:$J$510,\"Allocated to Workgroup\",'Modification Proposals Register'!$K$3:$K$510,\"*Panel*\",'Modification Proposals Register'!$L$3:$L$510,\"21/3/2024\")","v":0},{"$f":"COUNTIFS('Modification Proposals Register'!$F$3:$F$510,\"live\",'Modification Proposals Register'!$J$3:$J$510,\"Allocated to Workgroup\",'Modification Proposals Register'!$K$3:$K$510,\"*Panel*\",'Modification Proposals Register'!$L$3:$L$510,\"18/4/2024\")","v":0},{"$f":"COUNTIFS('Modification Proposals Register'!$F$3:$F$510,\"live\",'Modification Proposals Register'!$J$3:$J$510,\"Allocated to Workgroup\",'Modification Proposals Register'!$K$3:$K$510,\"*Panel*\",'Modification Proposals Register'!$L$3:$L$510,\"16/5/2024\")","v":3},{"$f":"COUNTIFS('Modification Proposals Register'!$F$3:$F$510,\"live\",'Modification Proposals Register'!$J$3:$J$510,\"Allocated to Workgroup\",'Modification Proposals Register'!$K$3:$K$510,\"*Panel*\",'Modification Proposals Register'!$L$3:$L$510,\"20/6/2024\")","v":1},{"$f":"COUNTIFS('Modification Proposals Register'!$F$3:$F$510,\"live\",'Modification Proposals Register'!$J$3:$J$510,\"Allocated to Workgroup\",'Modification Proposals Register'!$K$3:$K$510,\"*Panel*\",'Modification Proposals Register'!$L$3:$L$510,\"18/7/2024\")","v":3},{"$f":"COUNTIFS('Modification Proposals Register'!$F$3:$F$510,\"live\",'Modification Proposals Register'!$J$3:$J$510,\"Allocated to Workgroup\",'Modification Proposals Register'!$K$3:$K$510,\"*Panel*\",'Modification Proposals Register'!$L$3:$L$510,\"15/8/2024\")","v":1},{"$f":"COUNTIFS('Modification Proposals Register'!$F$3:$F$510,\"live\",'Modification Proposals Register'!$J$3:$J$510,\"Allocated to Workgroup\",'Modification Proposals Register'!$K$3:$K$510,\"*Panel*\",'Modification Proposals Register'!$L$3:$L$510,\"19/9/2024\")","v":3},{"$f":"COUNTIFS('Modification Proposals Register'!$F$3:$F$510,\"live\",'Modification Proposals Register'!$J$3:$J$510,\"Allocated to Workgroup\",'Modification Proposals Register'!$K$3:$K$510,\"*Panel*\",'Modification Proposals Register'!$L$3:$L$510,\"17/10/2024\")","v":0},{"$f":"COUNTIFS('Modification Proposals Register'!$F$3:$F$510,\"live\",'Modification Proposals Register'!$J$3:$J$510,\"Allocated to Workgroup\",'Modification Proposals Register'!$K$3:$K$510,\"*Panel*\",'Modification Proposals Register'!$L$3:$L$510,\"21/11/2024\")","v":0},{"$f":"COUNTIFS('Modification Proposals Register'!$F$3:$F$510,\"live\",'Modification Proposals Register'!$J$3:$J$510,\"Allocated to Workgroup\",'Modification Proposals Register'!$K$3:$K$510,\"*Panel*\",'Modification Proposals Register'!$L$3:$L$510,\"19/12/2024\")","v":0},{"$f":"SUM(B66:M66)","v":11}]
["Final Modification Report",{"$f":"COUNTIFS('Modification Proposals Register'!$F$3:$F$510,\"live\",'Modification Proposals Register'!$J$3:$J$510,\"Final Mod Report\",'Modification Proposals Register'!$K$3:$K$510,\"*Panel*\",'Modification Proposals Register'!$L$3:$L$510,\"18/01/2024\")","v":0},{"$f":"COUNTIFS('Modification Proposals Register'!$F$3:$F$510,\"live\",'Modification Proposals Register'!$J$3:$J$510,\"Final Mod Report\",'Modification Proposals Register'!$K$3:$K$510,\"*Panel*\",'Modification Proposals Register'!$L$3:$L$510,\"15/02/2024\")","v":0},{"$f":"COUNTIFS('Modification Proposals Register'!$F$3:$F$510,\"live\",'Modification Proposals Register'!$J$3:$J$510,\"Final Mod Report\",'Modification Proposals Register'!$K$3:$K$510,\"*Panel*\",'Modification Proposals Register'!$L$3:$L$510,\"21/03/2024\")","v":0},{"$f":"COUNTIFS('Modification Proposals Register'!$F$3:$F$510,\"live\",'Modification Proposals Register'!$J$3:$J$510,\"Final Mod Report\",'Modification Proposals Register'!$K$3:$K$510,\"*Panel*\",'Modification Proposals Register'!$L$3:$L$510,\"18/4/2024\")","v":0},{"$f":"COUNTIFS('Modification Proposals Register'!$F$3:$F$510,\"live\",'Modification Proposals Register'!$J$3:$J$510,\"Final Mod Report\",'Modification Proposals Register'!$K$3:$K$510,\"*Panel*\",'Modification Proposals Register'!$L$3:$L$510,\"16/5/2024\")","v":0},{"$f":"COUNTIFS('Modification Proposals Register'!$F$3:$F$510,\"live\",'Modification Proposals Register'!$J$3:$J$510,\"Final Mod Report\",'Modification Proposals Register'!$K$3:$K$510,\"*Panel*\",'Modification Proposals Register'!$L$3:$L$510,\"20/6/2024\")","v":0},{"$f":"COUNTIFS('Modification Proposals Register'!$F$3:$F$510,\"live\",'Modification Proposals Register'!$J$3:$J$510,\"Final Mod Report\",'Modification Proposals Register'!$K$3:$K$510,\"*Panel*\",'Modification Proposals Register'!$L$3:$L$510,\"18/7/2024\")","v":0},{"$f":"COUNTIFS('Modification Proposals Register'!$F$3:$F$510,\"live\",'Modification Proposals Register'!$J$3:$J$510,\"Final Mod Report\",'Modification Proposals Register'!$K$3:$K$510,\"*Panel*\",'Modification Proposals Register'!$L$3:$L$510,\"15/8/2024\")","v":0},{"$f":"COUNTIFS('Modification Proposals Register'!$F$3:$F$510,\"live\",'Modification Proposals Register'!$J$3:$J$510,\"Final Mod Report\",'Modification Proposals Register'!$K$3:$K$510,\"*Panel*\",'Modification Proposals Register'!$L$3:$L$510,\"19/9/2024\")","v":0},{"$f":"COUNTIFS('Modification Proposals Register'!$F$3:$F$510,\"live\",'Modification Proposals Register'!$J$3:$J$510,\"Final Mod Report\",'Modification Proposals Register'!$K$3:$K$510,\"*Panel*\",'Modification Proposals Register'!$L$3:$L$510,\"17/10/2024\")","v":0},{"$f":"COUNTIFS('Modification Proposals Register'!$F$3:$F$510,\"live\",'Modification Proposals Register'!$J$3:$J$510,\"Final Mod Report\",'Modification Proposals Register'!$K$3:$K$510,\"*Panel*\",'Modification Proposals Register'!$L$3:$L$510,\"21/11/2024\")","v":0},{"$f":"COUNTIFS('Modification Proposals Register'!$F$3:$F$510,\"live\",'Modification Proposals Register'!$J$3:$J$510,\"Final Mod Report\",'Modification Proposals Register'!$K$3:$K$510,\"*Panel*\",'Modification Proposals Register'!$L$3:$L$510,\"19/12/2024\")","v":0},0]
["YTD Total",{"$f":"SUM(B65:B67)","v":0},0,0,0,3,1,3,1,3,0,0,0,11]
[]
[]
[]
[]
[]
[]
[]
[]
[]
[]
[]
[]
[]
[]
[]
[]
[]
[]
[]
[]
[]
[]
[]
[]
[]
[]
["Awaiting OfGEM Decision"]
[]
["Current Status",{"$f":"TODAY()","v":"2024-03-27"},"Oldest Sent Date"]
["Awaiting Ofgem decision",{"$f":"COUNTIFS('Modification Proposals Register'!$F$9:$F$510,\"live\",'Modification Proposals Register'!$J$9:$J$510,A98)","v":0},{"$f":"_xlfn.MINIFS('Modification Proposals Register'!$L$9:$L$1510,'Modification Proposals Register'!F9:$F$1510,\"live\",'Modification Proposals Register'!$J$9:$J$1510,\"Awaiting*\")","v":"2024-04-16"}]
[]
[]
[]
[]
["Modifications Received"]
[]
["Workgroup Report","Jan","Feb","Mar","Apr","May","Jun","Jul","Aug","Sep","Oct","Nov","Dec","Annual Total","Gas Year Total"]
[2016,{"$f":"COUNTIFS('Modification Proposals Register'!$E$3:$E$410,\">=01/01/2016\",'Modification Proposals Register'!$E$3:$E$410,\"<=30/01/2016\")","v":1},{"$f":"COUNTIFS('Modification Proposals Register'!$E$3:$E$410,\">=01/02/2016\",'Modification Proposals Register'!$E$3:$E$410,\"<=28/02/2016\")","v":2},{"$f":"COUNTIFS('Modification Proposals Register'!$E$3:$E$410,\">=01/03/2016\",'Modification Proposals Register'!$E$3:$E$410,\"<=31/03/2016\")","v":4},{"$f":"COUNTIFS('Modification Proposals Register'!$E$3:$E$410,\">=01/04/2016\",'Modification Proposals Register'!$E$3:$E$410,\"<=30/04/2016\")","v":3},{"$f":"COUNTIFS('Modification Proposals Register'!$E$3:$E$410,\">=01/05/2016\",'Modification Proposals Register'!$E$3:$E$410,\"<=31/05/2016\")","v":3},{"$f":"COUNTIFS('Modification Proposals Register'!$E$3:$E$410,\">=01/06/2016\",'Modification Proposals Register'!$E$3:$E$410,\"<=30/06/2016\")","v":7},{"$f":"COUNTIFS('Modification Proposals Register'!$E$3:$E$410,\">=01/07/2016\",'Modification Proposals Register'!$E$3:$E$410,\"<=31/07/2016\")","v":3},{"$f":"COUNTIFS('Modification Proposals Register'!$E$3:$E$410,\">=01/08/2016\",'Modification Proposals Register'!$E$3:$E$410,\"<=31/08/2016\")","v":1},{"$f":"COUNTIFS('Modification Proposals Register'!$E$3:$E$410,\">=01/09/2016\",'Modification Proposals Register'!$E$3:$E$410,\"<=30/09/2016\")","v":2},{"$f":"COUNTIFS('Modification Proposals Register'!$E$3:$E$410,\">=01/10/2016\",'Modification Proposals Register'!$E$3:$E$410,\"<=31/10/2016\")","v":7},{"$f":"COUNTIFS('Modification Proposals Register'!$E$3:$E$410,\">=01/11/2016\",'Modification Proposals Register'!$E$3:$E$410,\"<=30/11/2016\")","v":4},{"$f":"COUNTIFS('Modification Proposals Register'!$E$3:$E$410,\">=01/12/2016\",'Modification Proposals Register'!$E$3:$E$410,\"<=31/12/2016\")","v":4},{"$f":"SUM(B106:M106)","v":41}]
[2017,{"$f":"COUNTIFS('Modification Proposals Register'!$E$3:$E$410,\">=01/01/2017\",'Modification Proposals Register'!$E$3:$E$410,\"<=30/01/2017\")","v":3},{"$f":"COUNTIFS('Modification Proposals Register'!$E$3:$E$410,\">=01/02/2017\",'Modification Proposals Register'!$E$3:$E$410,\"<=28/02/2017\")","v":3},{"$f":"COUNTIFS('Modification Proposals Register'!$E$3:$E$410,\">=01/03/2017\",'Modification Proposals Register'!$E$3:$E$410,\"<=31/03/2017\")","v":3},{"$f":"COUNTIFS('Modification Proposals Register'!$E$3:$E$410,\">=01/04/2017\",'Modification Proposals Register'!$E$3:$E$410,\"<=30/04/2017\")","v":2},{"$f":"COUNTIFS('Modification Proposals Register'!$E$3:$E$410,\">=01/05/2017\",'Modification Proposals Register'!$E$3:$E$410,\"<=31/05/2017\")","v":2},{"$f":"COUNTIFS('Modification Proposals Register'!$E$3:$E$410,\">=01/06/2017\",'Modification Proposals Register'!$E$3:$E$410,\"<=30/06/2017\")","v":3},{"$f":"COUNTIFS('Modification Proposals Register'!$E$3:$E$410,\">=01/07/2017\",'Modification Proposals Register'!$E$3:$E$410,\"<=31/07/2017\")","v":3},{"$f":"COUNTIFS('Modification Proposals Register'!$E$3:$E$410,\">=01/08/2017\",'Modification Proposals Register'!$E$3:$E$410,\"<=31/08/2017\")","v":1},{"$f":"COUNTIFS('Modification Proposals Register'!$E$3:$E$410,\">=01/09/2017\",'Modification Proposals Register'!$E$3:$E$410,\"<=30/09/2017\")","v":3},{"$f":"COUNTIFS('Modification Proposals Register'!$E$3:$E$410,\">=01/10/2017\",'Modification Proposals Register'!$E$3:$E$410,\"<=31/10/2017\")","v":12},{"$f":"COUNTIFS('Modification Proposals Register'!$E$3:$E$410,\">=01/11/2017\",'Modification Proposals Register'!$E$3:$E$410,\"<=30/11/2017\")","v":0},{"$f":"COUNTIFS('Modification Proposals Register'!$E$3:$E$410,\">=01/12/2017\",'Modification Proposals Register'!$E$3:$E$410,\"<=31/12/2017\")","v":11},{"$f":"SUM(B107:M107)","v":46},{"$f":"SUM(K106:M106,B107:J107)","v":38}]
[2018,{"$f":"COUNTIFS('Modification Proposals Register'!$E$3:$E$410,\">=01/01/2018\",'Modification Proposals Register'!$E$3:$E$410,\"<=30/01/2018\")","v":5},{"$f":"COUNTIFS('Modification Proposals Register'!$E$3:$E$410,\">=01/02/2018\",'Modification Proposals Register'!$E$3:$E$410,\"<=28/02/2018\")","v":9},{"$f":"COUNTIFS('Modification Proposals Register'!$E$3:$E$410,\">=01/03/2018\",'Modification Proposals Register'!$E$3:$E$410,\"<=31/03/2018\")","v":8},{"$f":"COUNTIFS('Modification Proposals Register'!$E$3:$E$410,\">=01/04/2018\",'Modification Proposals Register'!$E$3:$E$410,\"<=30/04/2018\")","v":6},{"$f":"COUNTIFS('Modification Proposals Register'!$E$3:$E$410,\">=01/05/2018\",'Modification Proposals Register'!$E$3:$E$410,\"<=31/05/2018\")","v":2},{"$f":"COUNTIFS('Modification Proposals Register'!$E$3:$E$410,\">=01/06/2018\",'Modification Proposals Register'!$E$3:$E$410,\"<=30/06/2018\")","v":3},{"$f":"COUNTIFS('Modification Proposals Register'!$E$3:$E$410,\">=01/07/2018\",'Modification Proposals Register'!$E$3:$E$410,\"<=31/07/2018\")","v":1},{"$f":"COUNTIFS('Modification Proposals Register'!$E$3:$E$410,\">=01/08/2018\",'Modification Proposals Register'!$E$3:$E$410,\"<=31/08/2018\")","v":3},{"$f":"COUNTIFS('Modification Proposals Register'!$E$3:$E$410,\">=01/09/2018\",'Modification Proposals Register'!$E$3:$E$410,\"<=30/09/2018\")","v":3},{"$f":"COUNTIFS('Modification Proposals Register'!$E$3:$E$410,\">=01/10/2018\",'Modification Proposals Register'!$E$3:$E$410,\"<=31/10/2018\")","v":4},{"$f":"COUNTIFS('Modification Proposals Register'!$E$3:$E$410,\">=01/11/2018\",'Modification Proposals Register'!$E$3:$E$410,\"<=30/11/2018\")","v":1},{"$f":"COUNTIFS('Modification Proposals Register'!$E$3:$E$410,\">=01/12/2018\",'Modification Proposals Register'!$E$3:$E$410,\"<=31/12/2018\")","v":2},47,63]
[2019,{"$f":"COUNTIFS('Modification Proposals Register'!$E$3:$E$410,\">=01/01/2019\",'Modification Proposals Register'!$E$3:$E$410,\"<=30/01/2019\")","v":4},{"$f":"COUNTIFS('Modification Proposals Register'!$E$3:$E$410,\">=01/02/2019\",'Modification Proposals Register'!$E$3:$E$410,\"<=28/02/2019\")","v":9},{"$f":"COUNTIFS('Modification Proposals Register'!$E$3:$E$410,\">=01/03/2019\",'Modification Proposals Register'!$E$3:$E$410,\"<=31/03/2019\")","v":5},{"$f":"COUNTIFS('Modification Proposals Register'!$E$3:$E$410,\">=01/04/2019\",'Modification Proposals Register'!$E$3:$E$410,\"<=30/04/2019\")","v":7},{"$f":"COUNTIFS('Modification Proposals Register'!$E$3:$E$410,\">=01/05/2019\",'Modification Proposals Register'!$E$3:$E$410,\"<=31/05/2019\")","v":3},{"$f":"COUNTIFS('Modification Proposals Register'!$E$3:$E$410,\">=01/06/2019\",'Modification Proposals Register'!$E$3:$E$410,\"<=30/06/2019\")","v":3},{"$f":"COUNTIFS('Modification Proposals Register'!$E$3:$E$410,\">=01/07/2019\",'Modification Proposals Register'!$E$3:$E$410,\"<=31/07/2019\")","v":4},{"$f":"COUNTIFS('Modification Proposals Register'!$E$3:$E$410,\">=01/08/2019\",'Modification Proposals Register'!$E$3:$E$410,\"<=31/08/2019\")","v":2},{"$f":"COUNTIFS('Modification Proposals Register'!$E$3:$E$410,\">=01/09/2019\",'Modification Proposals Register'!$E$3:$E$410,\"<=30/09/2019\")","v":1},{"$f":"COUNTIFS('Modification Proposals Register'!$E$3:$E$410,\">=01/10/2019\",'Modification Proposals Register'!$E$3:$E$410,\"<=31/10/2019\")","v":4},{"$f":"COUNTIFS('Modification Proposals Register'!$E$3:$E$410,\">=01/11/2019\",'Modification Proposals Register'!$E$3:$E$410,\"<=30/11/2019\")","v":7},{"$f":"COUNTIFS('Modification Proposals Register'!$E$3:$E$410,\">=01/12/2019\",'Modification Proposals Register'!$E$3:$E$410,\"<=31/12/2019\")","v":1},50,45]
[2020,{"$f":"COUNTIFS('Modification Proposals Register'!$E$3:$E$410,\">=01/01/2020\",'Modification Proposals Register'!$E$3:$E$410,\"<=30/01/2020\")","v":1},{"$f":"COUNTIFS('Modification Proposals Register'!$E$3:$E$410,\">=01/02/2020\",'Modification Proposals Register'!$E$3:$E$410,\"<=28/02/2020\")","v":2},{"$f":"COUNTIFS('Modification Proposals Register'!$E$3:$E$410,\">=01/03/2020\",'Modification Proposals Register'!$E$3:$E$410,\"<=31/03/2020\")","v":8},{"$f":"COUNTIFS('Modification Proposals Register'!$E$3:$E$410,\">=01/04/2020\",'Modification Proposals Register'!$E$3:$E$410,\"<=30/04/2020\")","v":5},{"$f":"COUNTIFS('Modification Proposals Register'!$E$3:$E$410,\">=01/05/2020\",'Modification Proposals Register'!$E$3:$E$410,\"<=31/05/2020\")","v":1},{"$f":"COUNTIFS('Modification Proposals Register'!$E$3:$E$410,\">=01/06/2020\",'Modification Proposals Register'!$E$3:$E$410,\"<=30/06/2020\")","v":9},{"$f":"COUNTIFS('Modification Proposals Register'!$E$3:$E$410,\">=01/07/2020\",'Modification Proposals Register'!$E$3:$E$410,\"<=31/07/2020\")","v":0},{"$f":"COUNTIFS('Modification Proposals Register'!$E$3:$E$410,\">=01/08/2020\",'Modification Proposals Register'!$E$3:$E$410,\"<=31/08/2020\")","v":4},{"$f":"COUNTIFS('Modification Proposals Register'!$E$3:$E$410,\">=01/09/2020\",'Modification Proposals Register'!$E$3:$E$410,\"<=30/09/2020\")","v":6},{"$f":"COUNTIFS('Modification Proposals Register'!$E$3:$E$410,\">=01/10/2020\",'Modification Proposals Register'!$E$3:$E$410,\"<=31/10/2020\")","v":4},{"$f":"COUNTIFS('Modification Proposals Register'!$E$3:$E$410,\">=01/11/2020\",'Modification Proposals Register'!$E$3:$E$410,\"<=30/11/2020\")","v":5},{"$f":"COUNTIFS('Modification Proposals Register'!$E$3:$E$410,\">=01/12/2020\",'Modification Proposals Register'!$E$3:$E$410,\"<=31/12/2020\")","v":5},50,48]
[2021,{"$f":"COUNTIFS('Modification Proposals Register'!$E$3:$E$410,\">=01/01/2021\",'Modification Proposals Register'!$E$3:$E$410,\"<=30/01/2021\")","v":4},{"$f":"COUNTIFS('Modification Proposals Register'!$E$3:$E$410,\">=01/02/2021\",'Modification Proposals Register'!$E$3:$E$410,\"<=28/02/2021\")","v":4},{"$f":"COUNTIFS('Modification Proposals Register'!$E$3:$E$410,\">=01/03/2021\",'Modification Proposals Register'!$E$3:$E$410,\"<=31/03/2021\")","v":6},{"$f":"COUNTIFS('Modification Proposals Register'!$E$3:$E$410,\">=01/04/2021\",'Modification Proposals Register'!$E$3:$E$410,\"<=30/04/2021\")","v":3},{"$f":"COUNTIFS('Modification Proposals Register'!$E$3:$E$410,\">=01/05/2021\",'Modification Proposals Register'!$E$3:$E$410,\"<=31/05/2021\")","v":2},{"$f":"COUNTIFS('Modification Proposals Register'!$E$3:$E$410,\">=01/06/2021\",'Modification Proposals Register'!$E$3:$E$410,\"<=30/06/2021\")","v":5},{"$f":"COUNTIFS('Modification Proposals Register'!$E$3:$E$410,\">=01/07/2021\",'Modification Proposals Register'!$E$3:$E$410,\"<=31/07/2021\")","v":4},{"$f":"COUNTIFS('Modification Proposals Register'!$E$3:$E$410,\">=01/08/2021\",'Modification Proposals Register'!$E$3:$E$410,\"<=31/08/2021\")","v":4},{"$f":"COUNTIFS('Modification Proposals Register'!$E$3:$E$410,\">=01/09/2021\",'Modification Proposals Register'!$E$3:$E$410,\"<=30/09/2021\")","v":3},{"$f":"COUNTIFS('Modification Proposals Register'!$E$3:$E$410,\">=01/10/2021\",'Modification Proposals Register'!$E$3:$E$410,\"<=31/10/2021\")","v":7},{"$f":"COUNTIFS('Modification Proposals Register'!$E$3:$E$410,\">=01/11/2021\",'Modification Proposals Register'!$E$3:$E$410,\"<=30/11/2021\")","v":1},{"$f":"COUNTIFS('Modification Proposals Register'!$E$3:$E$410,\">=01/12/2021\",'Modification Proposals Register'!$E$3:$E$410,\"<=31/12/2021\")","v":8},51,49]
[2022,{"$f":"COUNTIFS('Modification Proposals Register'!$E$3:$E$410,\">=01/01/2022\",'Modification Proposals Register'!$E$3:$E$410,\"<=30/01/2022\")","v":2},{"$f":"COUNTIFS('Modification Proposals Register'!$E$3:$E$410,\">=01/02/2022\",'Modification Proposals Register'!$E$3:$E$410,\"<=28/02/2022\")","v":5},{"$f":"COUNTIFS('Modification Proposals Register'!$E$3:$E$410,\">=01/03/2022\",'Modification Proposals Register'!$E$3:$E$410,\"<=31/03/2022\")","v":2},{"$f":"COUNTIFS('Modification Proposals Register'!$E$3:$E$410,\">=01/04/2022\",'Modification Proposals Register'!$E$3:$E$410,\"<=30/04/2022\")","v":1},{"$f":"COUNTIFS('Modification Proposals Register'!$E$3:$E$410,\">=01/05/2022\",'Modification Proposals Register'!$E$3:$E$410,\"<=31/05/2022\")","v":1},{"$f":"COUNTIFS('Modification Proposals Register'!$E$3:$E$410,\">=01/06/2022\",'Modification Proposals Register'!$E$3:$E$410,\"<=30/06/2022\")","v":3},{"$f":"COUNTIFS('Modification Proposals Register'!$E$3:$E$410,\">=01/07/2022\",'Modification Proposals Register'!$E$3:$E$410,\"<=31/07/2022\")","v":3},{"$f":"COUNTIFS('Modification Proposals Register'!$E$3:$E$410,\">=01/08/2022\",'Modification Proposals Register'!$E$3:$E$410,\"<=31/08/2022\")","v":4},{"$f":"COUNTIFS('Modification Proposals Register'!$E$3:$E$410,\">=01/09/2022\",'Modification Proposals Register'!$E$3:$E$410,\"<=30/09/2022\")","v":6},{"$f":"COUNTIFS('Modification Proposals Register'!$E$3:$E$410,\">=01/10/2022\",'Modification Proposals Register'!$E$3:$E$410,\"<=31/10/2022\")","v":3},{"$f":"COUNTIFS('Modification Proposals Register'!$E$3:$E$410,\">=01/11/2022\",'Modification Proposals Register'!$E$3:$E$410,\"<=30/11/2022\")","v":6},{"$f":"COUNTIFS('Modification Proposals Register'!$E$3:$E$410,\">=01/12/2022\",'Modification Proposals Register'!$E$3:$E$410,\"<=31/12/2022\")","v":0},36,43]
[2023,{"$f":"COUNTIFS('Modification Proposals Register'!$E$3:$E$410,\">=01/01/2023\",'Modification Proposals Register'!$E$3:$E$410,\"<=30/01/2023\")","v":1},{"$f":"COUNTIFS('Modification Proposals Register'!$E$3:$E$410,\">=01/02/2023\",'Modification Proposals Register'!$E$3:$E$410,\"<=28/02/2023\")","v":4},{"$f":"COUNTIFS('Modification Proposals Register'!$E$3:$E$410,\">=01/03/2023\",'Modification Proposals Register'!$E$3:$E$410,\"<=31/03/2023\")","v":5},{"$f":"COUNTIFS('Modification Proposals Register'!$E$3:$E$410,\">=01/04/2023\",'Modification Proposals Register'!$E$3:$E$410,\"<=30/04/2023\")","v":3},{"$f":"COUNTIFS('Modification Proposals Register'!$E$3:$E$410,\">=01/05/2023\",'Modification Proposals Register'!$E$3:$E$410,\"<=31/05/2023\")","v":4},{"$f":"COUNTIFS('Modification Proposals Register'!$E$3:$E$410,\">=01/06/2023\",'Modification Proposals Register'!$E$3:$E$410,\"<=30/06/2023\")","v":0},{"$f":"COUNTIFS('Modification Proposals Register'!$E$3:$E$410,\">=01/07/2023\",'Modification Proposals Register'!$E$3:$E$410,\"<=31/07/2023\")","v":4},{"$f":"COUNTIFS('Modification Proposals Register'!$E$3:$E$410,\">=01/08/2023\",'Modification Proposals Register'!$E$3:$E$410,\"<=31/08/2023\")","v":2},{"$f":"COUNTIFS('Modification Proposals Register'!$E$3:$E$410,\">=01/09/2023\",'Modification Proposals Register'!$E$3:$E$410,\"<=30/09/2023\")","v":4},{"$f":"COUNTIFS('Modification Proposals Register'!$E$3:$E$410,\">=01/10/2023\",'Modification Proposals Register'!$E$3:$E$410,\"<=31/10/2023\")","v":5},{"$f":"COUNTIFS('Modification Proposals Register'!$E$3:$E$410,\">=01/11/2023\",'Modification Proposals Register'!$E$3:$E$410,\"<=30/11/2023\")","v":1},{"$f":"COUNTIFS('Modification Proposals Register'!$E$3:$E$410,\">=01/12/2023\",'Modification Proposals Register'!$E$3:$E$410,\"<=31/12/2023\")","v":1},34,36]
[2024,{"$f":"COUNTIFS('Modification Proposals Register'!$E$3:$E$410,\">=01/01/2024\",'Modification Proposals Register'!$E$3:$E$410,\"<=30/01/2024\")","v":2},{"$f":"COUNTIFS('Modification Proposals Register'!$E$3:$E$410,\">=01/02/2024\",'Modification Proposals Register'!$E$3:$E$410,\"<=28/02/2024\")","v":1},{"$f":"COUNTIFS('Modification Proposals Register'!$E$3:$E$410,\">=01/03/2024\",'Modification Proposals Register'!$E$3:$E$410,\"<=31/03/2024\")","v":2},{"$f":"COUNTIFS('Modification Proposals Register'!$E$3:$E$410,\">=01/04/2024\",'Modification Proposals Register'!$E$3:$E$410,\"<=30/04/2024\")","v":0},{"$f":"COUNTIFS('Modification Proposals Register'!$E$3:$E$410,\">=01/05/2024\",'Modification Proposals Register'!$E$3:$E$410,\"<=31/05/2024\")","v":0},{"$f":"COUNTIFS('Modification Proposals Register'!$E$3:$E$410,\">=01/06/2024\",'Modification Proposals Register'!$E$3:$E$410,\"<=30/06/2024\")","v":0},{"$f":"COUNTIFS('Modification Proposals Register'!$E$3:$E$410,\">=01/07/2024\",'Modification Proposals Register'!$E$3:$E$410,\"<=31/07/2024\")","v":0},{"$f":"COUNTIFS('Modification Proposals Register'!$E$3:$E$410,\">=01/08/2024\",'Modification Proposals Register'!$E$3:$E$410,\"<=31/08/2024\")","v":0},{"$f":"COUNTIFS('Modification Proposals Register'!$E$3:$E$410,\">=01/09/2024\",'Modification Proposals Register'!$E$3:$E$410,\"<=30/09/2024\")","v":0},{"$f":"COUNTIFS('Modification Proposals Register'!$E$3:$E$410,\">=01/10/2024\",'Modification Proposals Register'!$E$3:$E$410,\"<=31/10/2024\")","v":0},{"$f":"COUNTIFS('Modification Proposals Register'!$E$3:$E$410,\">=01/11/2024\",'Modification Proposals Register'!$E$3:$E$410,\"<=30/11/2024\")","v":0},{"$f":"COUNTIFS('Modification Proposals Register'!$E$3:$E$410,\">=01/12/2024\",'Modification Proposals Register'!$E$3:$E$410,\"<=31/12/2024\")","v":0},5,12]
[]
[]
[]
[]
[]
[]
[]
[]
[]
[]
[]
[]
[]
[]
[]
[]
[]
[]
[]
[]
[]
[]
[]
[]
[]
[]
[]
[]
[]
[]
[]
[]
[]
[]
[]
[]
[]
[]
[]
["Modifications Received - By Type"]
[]
["Modifications Report","Fast Track","Authority Direction","Request","Self-Governance","Urgent","Significant Code Review","Gas Year Total"]
["2012-13",{"$f":"COUNTIFS('Modification Proposals Register'!$E$3:$E$1005,\">=01/10/2012\",'Modification Proposals Register'!$E$3:$E$1005,\"<=30/09/2013\",'Modification Proposals Register'!$G$3:$G$1005,B$156)","v":0},{"$f":"COUNTIFS('Modification Proposals Register'!$E$3:$E$1005,\">=01/10/2012\",'Modification Proposals Register'!$E$3:$E$1005,\"<=30/09/2013\",'Modification Proposals Register'!$G$3:$G$1005,C$156)","v":0},{"$f":"COUNTIFS('Modification Proposals Register'!$E$3:$E$1005,\">=01/10/2012\",'Modification Proposals Register'!$E$3:$E$1005,\"<=30/09/2013\",'Modification Proposals Register'!$G$3:$G$1005,D$156)","v":0},{"$f":"COUNTIFS('Modification Proposals Register'!$E$3:$E$1005,\">=01/10/2012\",'Modification Proposals Register'!$E$3:$E$1005,\"<=30/09/2013\",'Modification Proposals Register'!$G$3:$G$1005,E$156)","v":4},{"$f":"COUNTIFS('Modification Proposals Register'!$E$3:$E$1005,\">=01/10/2012\",'Modification Proposals Register'!$E$3:$E$1005,\"<=30/09/2013\",'Modification Proposals Register'!$G$3:$G$1005,F$156)","v":3},{"$f":"COUNTIFS('Modification Proposals Register'!$E$3:$E$1005,\">=01/10/2012\",'Modification Proposals Register'!$E$3:$E$1005,\"<=30/09/2013\",'Modification Proposals Register'!$G$3:$G$1005,G$156)","v":0},{"$f":"SUM(B157:G157)","v":7}]
["2013-14",{"$f":"COUNTIFS('Modification Proposals Register'!$E$3:$E$1005,\">=01/10/2013\",'Modification Proposals Register'!$E$3:$E$1005,\"<=30/09/2014\",'Modification Proposals Register'!$G$3:$G$1005,B$156)","v":5},{"$f":"COUNTIFS('Modification Proposals Register'!$E$3:$E$1005,\">=01/10/2013\",'Modification Proposals Register'!$E$3:$E$1005,\"<=30/09/2014\",'Modification Proposals Register'!$G$3:$G$1005,C$156)","v":0},{"$f":"COUNTIFS('Modification Proposals Register'!$E$3:$E$1005,\">=01/10/2013\",'Modification Proposals Register'!$E$3:$E$1005,\"<=30/09/2014\",'Modification Proposals Register'!$G$3:$G$1005,D$156)","v":0},{"$f":"COUNTIFS('Modification Proposals Register'!$E$3:$E$1005,\">=01/10/2013\",'Modification Proposals Register'!$E$3:$E$1005,\"<=30/09/2014\",'Modification Proposals Register'!$G$3:$G$1005,E$156)","v":17},{"$f":"COUNTIFS('Modification Proposals Register'!$E$3:$E$1005,\">=01/10/2013\",'Modification Proposals Register'!$E$3:$E$1005,\"<=30/09/2014\",'Modification Proposals Register'!$G$3:$G$1005,F$156)","v":1},{"$f":"COUNTIFS('Modification Proposals Register'!$E$3:$E$1005,\">=01/10/2013\",'Modification Proposals Register'!$E$3:$E$1005,\"<=30/09/2014\",'Modification Proposals Register'!$G$3:$G$1005,G$156)","v":0},{"$f":"SUM(B158:G158)","v":23}]
["2014-15",{"$f":"COUNTIFS('Modification Proposals Register'!$E$3:$E$1005,\">=01/10/2014\",'Modification Proposals Register'!$E$3:$E$1005,\"<=30/09/2015\",'Modification Proposals Register'!$G$3:$G$1005,B$156)","v":5},{"$f":"COUNTIFS('Modification Proposals Register'!$E$3:$E$1005,\">=01/10/2014\",'Modification Proposals Register'!$E$3:$E$1005,\"<=30/09/2015\",'Modification Proposals Register'!$G$3:$G$1005,C$156)","v":0},{"$f":"COUNTIFS('Modification Proposals Register'!$E$3:$E$1005,\">=01/10/2014\",'Modification Proposals Register'!$E$3:$E$1005,\"<=30/09/2015\",'Modification Proposals Register'!$G$3:$G$1005,D$156)","v":1},{"$f":"COUNTIFS('Modification Proposals Register'!$E$3:$E$1005,\">=01/10/2014\",'Modification Proposals Register'!$E$3:$E$1005,\"<=30/09/2015\",'Modification Proposals Register'!$G$3:$G$1005,E$156)","v":10},{"$f":"COUNTIFS('Modification Proposals Register'!$E$3:$E$1005,\">=01/10/2014\",'Modification Proposals Register'!$E$3:$E$1005,\"<=30/09/2015\",'Modification Proposals Register'!$G$3:$G$1005,F$156)","v":3},{"$f":"COUNTIFS('Modification Proposals Register'!$E$3:$E$1005,\">=01/10/2014\",'Modification Proposals Register'!$E$3:$E$1005,\"<=30/09/2015\",'Modification Proposals Register'!$G$3:$G$1005,G$156)","v":0},19]
["2015-16",{"$f":"COUNTIFS('Modification Proposals Register'!$E$3:$E$1005,\">=01/10/2015\",'Modification Proposals Register'!$E$3:$E$1005,\"<=30/09/2016\",'Modification Proposals Register'!$G$3:$G$1005,B$156)","v":3},{"$f":"COUNTIFS('Modification Proposals Register'!$E$3:$E$1005,\">=01/10/2015\",'Modification Proposals Register'!$E$3:$E$1005,\"<=30/09/2016\",'Modification Proposals Register'!$G$3:$G$1005,C$156)","v":0},{"$f":"COUNTIFS('Modification Proposals Register'!$E$3:$E$1005,\">=01/10/2015\",'Modification Proposals Register'!$E$3:$E$1005,\"<=30/09/2016\",'Modification Proposals Register'!$G$3:$G$1005,D$156)","v":5},{"$f":"COUNTIFS('Modification Proposals Register'!$E$3:$E$1005,\">=01/10/2015\",'Modification Proposals Register'!$E$3:$E$1005,\"<=30/09/2016\",'Modification Proposals Register'!$G$3:$G$1005,E$156)","v":16},{"$f":"COUNTIFS('Modification Proposals Register'!$E$3:$E$1005,\">=01/10/2015\",'Modification Proposals Register'!$E$3:$E$1005,\"<=30/09/2016\",'Modification Proposals Register'!$G$3:$G$1005,F$156)","v":1},{"$f":"COUNTIFS('Modification Proposals Register'!$E$3:$E$1005,\">=01/10/2015\",'Modification Proposals Register'!$E$3:$E$1005,\"<=30/09/2016\",'Modification Proposals Register'!$G$3:$G$1005,G$156)","v":0},25]
["2016-17",{"$f":"COUNTIFS('Modification Proposals Register'!$E$3:$E$1005,\">=01/10/2016\",'Modification Proposals Register'!$E$3:$E$1005,\"<=30/09/2017\",'Modification Proposals Register'!$G$3:$G$1005,B$156)","v":2},{"$f":"COUNTIFS('Modification Proposals Register'!$E$3:$E$1005,\">=01/10/2016\",'Modification Proposals Register'!$E$3:$E$1005,\"<=30/09/2017\",'Modification Proposals Register'!$G$3:$G$1005,C$156)","v":0},{"$f":"COUNTIFS('Modification Proposals Register'!$E$3:$E$1005,\">=01/10/2016\",'Modification Proposals Register'!$E$3:$E$1005,\"<=30/09/2017\",'Modification Proposals Register'!$G$3:$G$1005,D$156)","v":2},{"$f":"COUNTIFS('Modification Proposals Register'!$E$3:$E$1005,\">=01/10/2016\",'Modification Proposals Register'!$E$3:$E$1005,\"<=30/09/2017\",'Modification Proposals Register'!$G$3:$G$1005,E$156)","v":15},{"$f":"COUNTIFS('Modification Proposals Register'!$E$3:$E$1005,\">=01/10/2016\",'Modification Proposals Register'!$E$3:$E$1005,\"<=30/09/2017\",'Modification Proposals Register'!$G$3:$G$1005,F$156)","v":1},{"$f":"COUNTIFS('Modification Proposals Register'!$E$3:$E$1005,\">=01/10/2016\",'Modification Proposals Register'!$E$3:$E$1005,\"<=30/09/2017\",'Modification Proposals Register'!$G$3:$G$1005,G$156)","v":0},{"$f":"SUM(B161:G161)","v":20}]
["2017-18",{"$f":"COUNTIFS('Modification Proposals Register'!$E$3:$E$1005,\">=01/10/2017\",'Modification Proposals Register'!$E$3:$E$1005,\"<=30/09/2018\",'Modification Proposals Register'!$G$3:$G$1005,B$156)","v":1},{"$f":"COUNTIFS('Modification Proposals Register'!$E$3:$E$1005,\">=01/10/2017\",'Modification Proposals Register'!$E$3:$E$1005,\"<=30/09/2018\",'Modification Proposals Register'!$G$3:$G$1005,C$156)","v":0},{"$f":"COUNTIFS('Modification Proposals Register'!$E$3:$E$1005,\">=01/10/2017\",'Modification Proposals Register'!$E$3:$E$1005,\"<=30/09/2018\",'Modification Proposals Register'!$G$3:$G$1005,D$156)","v":6},{"$f":"COUNTIFS('Modification Proposals Register'!$E$3:$E$1005,\">=01/10/2017\",'Modification Proposals Register'!$E$3:$E$1005,\"<=30/09/2018\",'Modification Proposals Register'!$G$3:$G$1005,E$156)","v":16},{"$f":"COUNTIFS('Modification Proposals Register'!$E$3:$E$1005,\">=01/10/2017\",'Modification Proposals Register'!$E$3:$E$1005,\"<=30/09/2018\",'Modification Proposals Register'!$G$3:$G$1005,F$156)","v":6},{"$f":"COUNTIFS('Modification Proposals Register'!$E$3:$E$1005,\">=01/10/2017\",'Modification Proposals Register'!$E$3:$E$1005,\"<=30/09/2018\",'Modification Proposals Register'!$G$3:$G$1005,G$156)","v":0},29]
["2018-19",{"$f":"COUNTIFS('Modification Proposals Register'!$E$3:$E$1005,\">=01/10/2018\",'Modification Proposals Register'!$E$3:$E$1005,\"<=30/09/2019\",'Modification Proposals Register'!$G$3:$G$1005,B$156)","v":0},{"$f":"COUNTIFS('Modification Proposals Register'!$E$3:$E$1005,\">=01/10/2018\",'Modification Proposals Register'!$E$3:$E$1005,\"<=30/09/2019\",'Modification Proposals Register'!$G$3:$G$1005,C$156)","v":0},{"$f":"COUNTIFS('Modification Proposals Register'!$E$3:$E$1005,\">=01/10/2018\",'Modification Proposals Register'!$E$3:$E$1005,\"<=30/09/2019\",'Modification Proposals Register'!$G$3:$G$1005,D$156)","v":5},{"$f":"COUNTIFS('Modification Proposals Register'!$E$3:$E$1005,\">=01/10/2018\",'Modification Proposals Register'!$E$3:$E$1005,\"<=30/09/2019\",'Modification Proposals Register'!$G$3:$G$1005,E$156)","v":13},{"$f":"COUNTIFS('Modification Proposals Register'!$E$3:$E$1005,\">=01/10/2018\",'Modification Proposals Register'!$E$3:$E$1005,\"<=30/09/2019\",'Modification Proposals Register'!$G$3:$G$1005,F$156)","v":14},{"$f":"COUNTIFS('Modification Proposals Register'!$E$3:$E$1005,\">=01/10/2018\",'Modification Proposals Register'!$E$3:$E$1005,\"<=30/09/2019\",'Modification Proposals Register'!$G$3:$G$1005,G$156)","v":0},32]
["2019-20",{"$f":"COUNTIFS('Modification Proposals Register'!$E$3:$E$1005,\">=01/10/2019\",'Modification Proposals Register'!$E$3:$E$1005,\"<=30/09/2020\",'Modification Proposals Register'!$G$3:$G$1005,B$156)","v":3},{"$f":"COUNTIFS('Modification Proposals Register'!$E$3:$E$1005,\">=01/10/2019\",'Modification Proposals Register'!$E$3:$E$1005,\"<=30/09/2020\",'Modification Proposals Register'!$G$3:$G$1005,C$156)","v":0},{"$f":"COUNTIFS('Modification Proposals Register'!$E$3:$E$1005,\">=01/10/2019\",'Modification Proposals Register'!$E$3:$E$1005,\"<=30/09/2020\",'Modification Proposals Register'!$G$3:$G$1005,D$156)","v":3},{"$f":"COUNTIFS('Modification Proposals Register'!$E$3:$E$1005,\">=01/10/2019\",'Modification Proposals Register'!$E$3:$E$1005,\"<=30/09/2020\",'Modification Proposals Register'!$G$3:$G$1005,E$156)","v":15},{"$f":"COUNTIFS('Modification Proposals Register'!$E$3:$E$1005,\">=01/10/2019\",'Modification Proposals Register'!$E$3:$E$1005,\"<=30/09/2020\",'Modification Proposals Register'!$G$3:$G$1005,F$156)","v":12},{"$f":"COUNTIFS('Modification Proposals Register'!$E$3:$E$1005,\">=01/10/2019\",'Modification Proposals Register'!$E$3:$E$1005,\"<=30/09/2020\",'Modification Proposals Register'!$G$3:$G$1005,G$156)","v":0},33]
["2020-21",{"$f":"COUNTIFS('Modification Proposals Register'!$E$3:$E$1005,\">=01/10/2020\",'Modification Proposals Register'!$E$3:$E$1005,\"<=30/09/2021\",'Modification Proposals Register'!$G$3:$G$1005,B$156)","v":6},{"$f":"COUNTIFS('Modification Proposals Register'!$E$3:$E$1005,\">=01/10/2020\",'Modification Proposals Register'!$E$3:$E$1005,\"<=30/09/2021\",'Modification Proposals Register'!$G$3:$G$1005,C$156)","v":0},{"$f":"COUNTIFS('Modification Proposals Register'!$E$3:$E$1005,\">=01/10/2020\",'Modification Proposals Register'!$E$3:$E$1005,\"<=30/09/2021\",'Modification Proposals Register'!$G$3:$G$1005,D$156)","v":5},{"$f":"COUNTIFS('Modification Proposals Register'!$E$3:$E$1005,\">=01/10/2020\",'Modification Proposals Register'!$E$3:$E$1005,\"<=30/09/2021\",'Modification Proposals Register'!$G$3:$G$1005,E$156)","v":16},{"$f":"COUNTIFS('Modification Proposals Register'!$E$3:$E$1005,\">=01/10/2020\",'Modification Proposals Register'!$E$3:$E$1005,\"<=30/09/2021\",'Modification Proposals Register'!$G$3:$G$1005,F$156)","v":2},{"$f":"COUNTIFS('Modification Proposals Register'!$E$3:$E$1005,\">=01/10/2020\",'Modification Proposals Register'!$E$3:$E$1005,\"<=30/09/2021\",'Modification Proposals Register'!$G$3:$G$1005,G$156)","v":1},30]
["2021-22",{"$f":"COUNTIFS('Modification Proposals Register'!$E$3:$E$1005,\">=01/10/2021\",'Modification Proposals Register'!$E$3:$E$1005,\"<=30/09/2022\",'Modification Proposals Register'!$G$3:$G$1005,B$156)","v":3},{"$f":"COUNTIFS('Modification Proposals Register'!$E$3:$E$1005,\">=01/10/2021\",'Modification Proposals Register'!$E$3:$E$1005,\"<=30/09/2022\",'Modification Proposals Register'!$G$3:$G$1005,C$156)","v":0},{"$f":"COUNTIFS('Modification Proposals Register'!$E$3:$E$1005,\">=01/10/2021\",'Modification Proposals Register'!$E$3:$E$1005,\"<=30/09/2022\",'Modification Proposals Register'!$G$3:$G$1005,D$156)","v":2},{"$f":"COUNTIFS('Modification Proposals Register'!$E$3:$E$1005,\">=01/10/2021\",'Modification Proposals Register'!$E$3:$E$1005,\"<=30/09/2022\",'Modification Proposals Register'!$G$3:$G$1005,E$156)","v":13},{"$f":"COUNTIFS('Modification Proposals Register'!$E$3:$E$1005,\">=01/10/2021\",'Modification Proposals Register'!$E$3:$E$1005,\"<=30/09/2022\",'Modification Proposals Register'!$G$3:$G$1005,F$156)","v":9},{"$f":"COUNTIFS('Modification Proposals Register'!$E$3:$E$1005,\">=01/10/2021\",'Modification Proposals Register'!$E$3:$E$1005,\"<=30/09/2022\",'Modification Proposals Register'!$G$3:$G$1005,G$156)","v":1},28]
["2022-23",{"$f":"COUNTIFS('Modification Proposals Register'!$E$3:$E$1005,\">=01/10/2022\",'Modification Proposals Register'!$E$3:$E$1005,\"<=30/09/2023\",'Modification Proposals Register'!$G$3:$G$1005,B$156)","v":1},{"$f":"COUNTIFS('Modification Proposals Register'!$E$3:$E$1005,\">=01/10/2022\",'Modification Proposals Register'!$E$3:$E$1005,\"<=30/09/2023\",'Modification Proposals Register'!$G$3:$G$1005,C$156)","v":0},{"$f":"COUNTIFS('Modification Proposals Register'!$E$3:$E$1005,\">=01/10/2022\",'Modification Proposals Register'!$E$3:$E$1005,\"<=30/09/2023\",'Modification Proposals Register'!$G$3:$G$1005,D$156)","v":4},{"$f":"COUNTIFS('Modification Proposals Register'!$E$3:$E$1005,\">=01/10/2022\",'Modification Proposals Register'!$E$3:$E$1005,\"<=30/09/2023\",'Modification Proposals Register'!$G$3:$G$1005,E$156)","v":9},{"$f":"COUNTIFS('Modification Proposals Register'!$E$3:$E$1005,\">=01/10/2022\",'Modification Proposals Register'!$E$3:$E$1005,\"<=30/09/2023\",'Modification Proposals Register'!$G$3:$G$1005,F$156)","v":3},{"$f":"COUNTIFS('Modification Proposals Register'!$E$3:$E$1005,\">=01/10/2022\",'Modification Proposals Register'!$E$3:$E$1005,\"<=30/09/2023\",'Modification Proposals Register'!$G$3:$G$1005,G$156)","v":0},17]
["2023-24",{"$f":"COUNTIFS('Modification Proposals Register'!$E$3:$E$1005,\">=01/10/2023\",'Modification Proposals Register'!$E$3:$E$1005,\"<=30/09/2024\",'Modification Proposals Register'!$G$3:$G$1005,B$156)","v":0},{"$f":"COUNTIFS('Modification Proposals Register'!$E$3:$E$1005,\">=01/10/2023\",'Modification Proposals Register'!$E$3:$E$1005,\"<=30/09/2024\",'Modification Proposals Register'!$G$3:$G$1005,C$156)","v":0},{"$f":"COUNTIFS('Modification Proposals Register'!$E$3:$E$1005,\">=01/10/2023\",'Modification Proposals Register'!$E$3:$E$1005,\"<=30/09/2024\",'Modification Proposals Register'!$G$3:$G$1005,D$156)","v":0},{"$f":"COUNTIFS('Modification Proposals Register'!$E$3:$E$1005,\">=01/10/2023\",'Modification Proposals Register'!$E$3:$E$1005,\"<=30/09/2024\",'Modification Proposals Register'!$G$3:$G$1005,E$156)","v":6},{"$f":"COUNTIFS('Modification Proposals Register'!$E$3:$E$1005,\">=01/10/2023\",'Modification Proposals Register'!$E$3:$E$1005,\"<=30/09/2024\",'Modification Proposals Register'!$G$3:$G$1005,F$156)","v":0},{"$f":"COUNTIFS('Modification Proposals Register'!$E$3:$E$1005,\">=01/10/2023\",'Modification Proposals Register'!$E$3:$E$1005,\"<=30/09/2024\",'Modification Proposals Register'!$G$3:$G$1005,G$156)","v":0},6]
[]
[null,{"$f":"SUM(B161:B168)","v":16},0,27,103,47,2,{"$f":"SUM(H157:H168)","v":269}]
[]
[null,null,null,null,null,null,"Live",{"$f":"COUNTIF('Modification Proposals Register'!F9:F1005,\"Live\")","v":19}]
[null,null,null,null,null,null,"Closed",{"$f":"COUNTIF('Modification Proposals Register'!F9:F1005,\"Closed\")","v":479}]
[]
[null,null,null,null,null,null,null,{"$f":"SUM(H172:H173)","v":498}]

{"sheet":"Annual Report KPI","index":5,"n_rows":126,"n_cols":20,"rows_kept":126,"cut":false,"hidden":true,"merged":[]}
["*Automated KPI - Do not change anything on this page (including print set) without approval*"]
["Annual Report KPIs"]
[]
[]
["Category","2019-20","2020-21","2021-22","2022-23","2023-24","Total",null,null,null,null,null,null,"Mods by Proposing Organisation","2019-20","2020-21","2021-22","2022-23","2023-24","Total"]
["Fast Track",{"$f":"COUNTIFS('Modification Proposals Register'!$E:$E,\">=01/10/19\",'Modification Proposals Register'!$E:$E,\"<=30/09/20\",'Modification Proposals Register'!$G:$G,$A6)","v":3},{"$f":"COUNTIFS('Modification Proposals Register'!$E:$E,\">=01/10/20\",'Modification Proposals Register'!$E:$E,\"<=30/09/21\",'Modification Proposals Register'!$G:$G,$A6)","v":6},{"$f":"COUNTIFS('Modification Proposals Register'!$E:$E,\">=01/10/21\",'Modification Proposals Register'!$E:$E,\"<=30/09/22\",'Modification Proposals Register'!$G:$G,$A6)","v":3},{"$f":"COUNTIFS('Modification Proposals Register'!$E:$E,\">=01/10/22\",'Modification Proposals Register'!$E:$E,\"<=30/09/23\",'Modification Proposals Register'!$G:$G,$A6)","v":1},{"$f":"COUNTIFS('Modification Proposals Register'!$E:$E,\">=01/10/23\",'Modification Proposals Register'!$E:$E,\"<=30/09/24\",'Modification Proposals Register'!$G:$G,$A6)","v":0},{"$f":"SUM(B6:F6)","v":13},null,null,null,null,null,null,"Aughinish Alumina",{"$f":"COUNTIFS('Modification Proposals Register'!$E:$E,\">=01/10/19\",'Modification Proposals Register'!$E:$E,\"<=30/09/20\",'Modification Proposals Register'!$D:$D,$N6)","v":0},{"$f":"COUNTIFS('Modification Proposals Register'!$E:$E,\">=01/10/20\",'Modification Proposals Register'!$E:$E,\"<=30/09/21\",'Modification Proposals Register'!$D:$D,$N6)","v":0},{"$f":"COUNTIFS('Modification Proposals Register'!$E:$E,\">=01/10/21\",'Modification Proposals Register'!$E:$E,\"<=30/09/22\",'Modification Proposals Register'!$D:$D,$N6)","v":0},{"$f":"COUNTIFS('Modification Proposals Register'!$E:$E,\">=01/10/22\",'Modification Proposals Register'!$E:$E,\"<=30/09/23\",'Modification Proposals Register'!$D:$D,$N6)","v":0},{"$f":"COUNTIFS('Modification Proposals Register'!$E:$E,\">=01/10/23\",'Modification Proposals Register'!$E:$E,\"<=30/09/24\",'Modification Proposals Register'!$D:$D,$N6)","v":0},{"$f":"SUM(O6:S6)","v":0}]
["Modification",{"$f":"COUNTIFS('Modification Proposals Register'!$E:$E,\">=01/10/19\",'Modification Proposals Register'!$E:$E,\"<=30/09/20\",'Modification Proposals Register'!$G:$G,$A7)","v":15},{"$f":"COUNTIFS('Modification Proposals Register'!$E:$E,\">=01/10/20\",'Modification Proposals Register'!$E:$E,\"<=30/09/21\",'Modification Proposals Register'!$G:$G,$A7)","v":19},{"$f":"COUNTIFS('Modification Proposals Register'!$E:$E,\">=01/10/21\",'Modification Proposals Register'!$E:$E,\"<=30/09/22\",'Modification Proposals Register'!$G:$G,$A7)","v":15},{"$f":"COUNTIFS('Modification Proposals Register'!$E:$E,\">=01/10/22\",'Modification Proposals Register'!$E:$E,\"<=30/09/23\",'Modification Proposals Register'!$G:$G,$A7)","v":19},{"$f":"COUNTIFS('Modification Proposals Register'!$E:$E,\">=01/10/23\",'Modification Proposals Register'!$E:$E,\"<=30/09/24\",'Modification Proposals Register'!$G:$G,$A7)","v":6},74,null,null,null,null,null,null,"Barrow Shipping Ltd",{"$f":"COUNTIFS('Modification Proposals Register'!$E:$E,\">=01/10/19\",'Modification Proposals Register'!$E:$E,\"<=30/09/20\",'Modification Proposals Register'!$D:$D,$N7)","v":0},{"$f":"COUNTIFS('Modification Proposals Register'!$E:$E,\">=01/10/20\",'Modification Proposals Register'!$E:$E,\"<=30/09/21\",'Modification Proposals Register'!$D:$D,$N7)","v":2},{"$f":"COUNTIFS('Modification Proposals Register'!$E:$E,\">=01/10/21\",'Modification Proposals Register'!$E:$E,\"<=30/09/22\",'Modification Proposals Register'!$D:$D,$N7)","v":1},{"$f":"COUNTIFS('Modification Proposals Register'!$E:$E,\">=01/10/22\",'Modification Proposals Register'!$E:$E,\"<=30/09/23\",'Modification Proposals Register'!$D:$D,$N7)","v":0},{"$f":"COUNTIFS('Modification Proposals Register'!$E:$E,\">=01/10/23\",'Modification Proposals Register'!$E:$E,\"<=30/09/24\",'Modification Proposals Register'!$D:$D,$N7)","v":0},3]
["Request",{"$f":"COUNTIFS('Modification Proposals Register'!$E:$E,\">=01/10/19\",'Modification Proposals Register'!$E:$E,\"<=30/09/20\",'Modification Proposals Register'!$G:$G,$A8)","v":3},{"$f":"COUNTIFS('Modification Proposals Register'!$E:$E,\">=01/10/20\",'Modification Proposals Register'!$E:$E,\"<=30/09/21\",'Modification Proposals Register'!$G:$G,$A8)","v":5},{"$f":"COUNTIFS('Modification Proposals Register'!$E:$E,\">=01/10/21\",'Modification Proposals Register'!$E:$E,\"<=30/09/22\",'Modification Proposals Register'!$G:$G,$A8)","v":2},{"$f":"COUNTIFS('Modification Proposals Register'!$E:$E,\">=01/10/22\",'Modification Proposals Register'!$E:$E,\"<=30/09/23\",'Modification Proposals Register'!$G:$G,$A8)","v":4},{"$f":"COUNTIFS('Modification Proposals Register'!$E:$E,\">=01/10/23\",'Modification Proposals Register'!$E:$E,\"<=30/09/24\",'Modification Proposals Register'!$G:$G,$A8)","v":0},14,null,null,null,null,null,null,"BP",{"$f":"COUNTIFS('Modification Proposals Register'!$E:$E,\">=01/10/19\",'Modification Proposals Register'!$E:$E,\"<=30/09/20\",'Modification Proposals Register'!$D:$D,$N8)","v":0},{"$f":"COUNTIFS('Modification Proposals Register'!$E:$E,\">=01/10/20\",'Modification Proposals Register'!$E:$E,\"<=30/09/21\",'Modification Proposals Register'!$D:$D,$N8)","v":0},{"$f":"COUNTIFS('Modification Proposals Register'!$E:$E,\">=01/10/21\",'Modification Proposals Register'!$E:$E,\"<=30/09/22\",'Modification Proposals Register'!$D:$D,$N8)","v":0},{"$f":"COUNTIFS('Modification Proposals Register'!$E:$E,\">=01/10/22\",'Modification Proposals Register'!$E:$E,\"<=30/09/23\",'Modification Proposals Register'!$D:$D,$N8)","v":0},{"$f":"COUNTIFS('Modification Proposals Register'!$E:$E,\">=01/10/23\",'Modification Proposals Register'!$E:$E,\"<=30/09/24\",'Modification Proposals Register'!$D:$D,$N8)","v":0},0]
["Self-Governance",{"$f":"COUNTIFS('Modification Proposals Register'!$E:$E,\">=01/10/19\",'Modification Proposals Register'!$E:$E,\"<=30/09/20\",'Modification Proposals Register'!$G:$G,$A9)","v":15},{"$f":"COUNTIFS('Modification Proposals Register'!$E:$E,\">=01/10/20\",'Modification Proposals Register'!$E:$E,\"<=30/09/21\",'Modification Proposals Register'!$G:$G,$A9)","v":16},{"$f":"COUNTIFS('Modification Proposals Register'!$E:$E,\">=01/10/21\",'Modification Proposals Register'!$E:$E,\"<=30/09/22\",'Modification Proposals Register'!$G:$G,$A9)","v":13},{"$f":"COUNTIFS('Modification Proposals Register'!$E:$E,\">=01/10/22\",'Modification Proposals Register'!$E:$E,\"<=30/09/23\",'Modification Proposals Register'!$G:$G,$A9)","v":9},{"$f":"COUNTIFS('Modification Proposals Register'!$E:$E,\">=01/10/23\",'Modification Proposals Register'!$E:$E,\"<=30/09/24\",'Modification Proposals Register'!$G:$G,$A9)","v":6},59,null,null,null,null,null,null,"BP Gas Marketing",{"$f":"COUNTIFS('Modification Proposals Register'!$E:$E,\">=01/10/19\",'Modification Proposals Register'!$E:$E,\"<=30/09/20\",'Modification Proposals Register'!$D:$D,$N9)","v":0},{"$f":"COUNTIFS('Modification Proposals Register'!$E:$E,\">=01/10/20\",'Modification Proposals Register'!$E:$E,\"<=30/09/21\",'Modification Proposals Register'!$D:$D,$N9)","v":0},{"$f":"COUNTIFS('Modification Proposals Register'!$E:$E,\">=01/10/21\",'Modification Proposals Register'!$E:$E,\"<=30/09/22\",'Modification Proposals Register'!$D:$D,$N9)","v":0},{"$f":"COUNTIFS('Modification Proposals Register'!$E:$E,\">=01/10/22\",'Modification Proposals Register'!$E:$E,\"<=30/09/23\",'Modification Proposals Register'!$D:$D,$N9)","v":0},{"$f":"COUNTIFS('Modification Proposals Register'!$E:$E,\">=01/10/23\",'Modification Proposals Register'!$E:$E,\"<=30/09/24\",'Modification Proposals Register'!$D:$D,$N9)","v":0},0]
["Urgent",{"$f":"COUNTIFS('Modification Proposals Register'!$E:$E,\">=01/10/19\",'Modification Proposals Register'!$E:$E,\"<=30/09/20\",'Modification Proposals Register'!$G:$G,$A10)","v":12},{"$f":"COUNTIFS('Modification Proposals Register'!$E:$E,\">=01/10/20\",'Modification Proposals Register'!$E:$E,\"<=30/09/21\",'Modification Proposals Register'!$G:$G,$A10)","v":2},{"$f":"COUNTIFS('Modification Proposals Register'!$E:$E,\">=01/10/21\",'Modification Proposals Register'!$E:$E,\"<=30/09/22\",'Modification Proposals Register'!$G:$G,$A10)","v":9},{"$f":"COUNTIFS('Modification Proposals Register'!$E:$E,\">=01/10/22\",'Modification Proposals Register'!$E:$E,\"<=30/09/23\",'Modification Proposals Register'!$G:$G,$A10)","v":3},{"$f":"COUNTIFS('Modification Proposals Register'!$E:$E,\">=01/10/23\",'Modification Proposals Register'!$E:$E,\"<=30/09/24\",'Modification Proposals Register'!$G:$G,$A10)","v":0},26,null,null,null,null,null,null,"British Gas",{"$f":"COUNTIFS('Modification Proposals Register'!$E:$E,\">=01/10/19\",'Modification Proposals Register'!$E:$E,\"<=30/09/20\",'Modification Proposals Register'!$D:$D,$N10)","v":0},{"$f":"COUNTIFS('Modification Proposals Register'!$E:$E,\">=01/10/20\",'Modification Proposals Register'!$E:$E,\"<=30/09/21\",'Modification Proposals Register'!$D:$D,$N10)","v":0},{"$f":"COUNTIFS('Modification Proposals Register'!$E:$E,\">=01/10/21\",'Modification Proposals Register'!$E:$E,\"<=30/09/22\",'Modification Proposals Register'!$D:$D,$N10)","v":1},{"$f":"COUNTIFS('Modification Proposals Register'!$E:$E,\">=01/10/22\",'Modification Proposals Register'!$E:$E,\"<=30/09/23\",'Modification Proposals Register'!$D:$D,$N10)","v":0},{"$f":"COUNTIFS('Modification Proposals Register'!$E:$E,\">=01/10/23\",'Modification Proposals Register'!$E:$E,\"<=30/09/24\",'Modification Proposals Register'!$D:$D,$N10)","v":0},1]
["Significant Code Review",{"$f":"COUNTIFS('Modification Proposals Register'!$E:$E,\">=01/10/19\",'Modification Proposals Register'!$E:$E,\"<=30/09/20\",'Modification Proposals Register'!$G:$G,$A11)","v":0},{"$f":"COUNTIFS('Modification Proposals Register'!$E:$E,\">=01/10/20\",'Modification Proposals Register'!$E:$E,\"<=30/09/21\",'Modification Proposals Register'!$G:$G,$A11)","v":1},{"$f":"COUNTIFS('Modification Proposals Register'!$E:$E,\">=01/10/21\",'Modification Proposals Register'!$E:$E,\"<=30/09/22\",'Modification Proposals Register'!$G:$G,$A11)","v":1},{"$f":"COUNTIFS('Modification Proposals Register'!$E:$E,\">=01/10/22\",'Modification Proposals Register'!$E:$E,\"<=30/09/23\",'Modification Proposals Register'!$G:$G,$A11)","v":0},{"$f":"COUNTIFS('Modification Proposals Register'!$E:$E,\">=01/10/23\",'Modification Proposals Register'!$E:$E,\"<=30/09/24\",'Modification Proposals Register'!$G:$G,$A11)","v":0},2,null,null,null,null,null,null,"British Gas Trading",{"$f":"COUNTIFS('Modification Proposals Register'!$E:$E,\">=01/10/19\",'Modification Proposals Register'!$E:$E,\"<=30/09/20\",'Modification Proposals Register'!$D:$D,$N11)","v":0},{"$f":"COUNTIFS('Modification Proposals Register'!$E:$E,\">=01/10/20\",'Modification Proposals Register'!$E:$E,\"<=30/09/21\",'Modification Proposals Register'!$D:$D,$N11)","v":0},{"$f":"COUNTIFS('Modification Proposals Register'!$E:$E,\">=01/10/21\",'Modification Proposals Register'!$E:$E,\"<=30/09/22\",'Modification Proposals Register'!$D:$D,$N11)","v":0},{"$f":"COUNTIFS('Modification Proposals Register'!$E:$E,\">=01/10/22\",'Modification Proposals Register'!$E:$E,\"<=30/09/23\",'Modification Proposals Register'!$D:$D,$N11)","v":0},{"$f":"COUNTIFS('Modification Proposals Register'!$E:$E,\">=01/10/23\",'Modification Proposals Register'!$E:$E,\"<=30/09/24\",'Modification Proposals Register'!$D:$D,$N11)","v":0},0]
[null,null,null,null,null,null,null,null,null,null,null,null,null,"Brook Green Trading",{"$f":"COUNTIFS('Modification Proposals Register'!$E:$E,\">=01/10/19\",'Modification Proposals Register'!$E:$E,\"<=30/09/20\",'Modification Proposals Register'!$D:$D,$N12)","v":0},{"$f":"COUNTIFS('Modification Proposals Register'!$E:$E,\">=01/10/20\",'Modification Proposals Register'!$E:$E,\"<=30/09/21\",'Modification Proposals Register'!$D:$D,$N12)","v":0},{"$f":"COUNTIFS('Modification Proposals Register'!$E:$E,\">=01/10/21\",'Modification Proposals Register'!$E:$E,\"<=30/09/22\",'Modification Proposals Register'!$D:$D,$N12)","v":0},{"$f":"COUNTIFS('Modification Proposals Register'!$E:$E,\">=01/10/22\",'Modification Proposals Register'!$E:$E,\"<=30/09/23\",'Modification Proposals Register'!$D:$D,$N12)","v":1},{"$f":"COUNTIFS('Modification Proposals Register'!$E:$E,\">=01/10/23\",'Modification Proposals Register'!$E:$E,\"<=30/09/24\",'Modification Proposals Register'!$D:$D,$N12)","v":0},1]
["Yearly Total",{"$f":"SUM(B6:B11)","v":48},{"$f":"SUM(C6:C11)","v":49},43,36,12,{"$f":"SUM(G6:G11)","v":188},null,null,null,null,null,null,"Cadent",{"$f":"COUNTIFS('Modification Proposals Register'!$E:$E,\">=01/10/19\",'Modification Proposals Register'!$E:$E,\"<=30/09/20\",'Modification Proposals Register'!$D:$D,$N13)","v":1},{"$f":"COUNTIFS('Modification Proposals Register'!$E:$E,\">=01/10/20\",'Modification Proposals Register'!$E:$E,\"<=30/09/21\",'Modification Proposals Register'!$D:$D,$N13)","v":1},{"$f":"COUNTIFS('Modification Proposals Register'!$E:$E,\">=01/10/21\",'Modification Proposals Register'!$E:$E,\"<=30/09/22\",'Modification Proposals Register'!$D:$D,$N13)","v":3},{"$f":"COUNTIFS('Modification Proposals Register'!$E:$E,\">=01/10/22\",'Modification Proposals Register'!$E:$E,\"<=30/09/23\",'Modification Proposals Register'!$D:$D,$N13)","v":3},{"$f":"COUNTIFS('Modification Proposals Register'!$E:$E,\">=01/10/23\",'Modification Proposals Register'!$E:$E,\"<=30/09/24\",'Modification Proposals Register'!$D:$D,$N13)","v":0},8]
[null,null,null,null,null,null,null,null,null,null,null,null,null,"Centrica",{"$f":"COUNTIFS('Modification Proposals Register'!$E:$E,\">=01/10/19\",'Modification Proposals Register'!$E:$E,\"<=30/09/20\",'Modification Proposals Register'!$D:$D,$N14)","v":2},{"$f":"COUNTIFS('Modification Proposals Register'!$E:$E,\">=01/10/20\",'Modification Proposals Register'!$E:$E,\"<=30/09/21\",'Modification Proposals Register'!$D:$D,$N14)","v":1},{"$f":"COUNTIFS('Modification Proposals Register'!$E:$E,\">=01/10/21\",'Modification Proposals Register'!$E:$E,\"<=30/09/22\",'Modification Proposals Register'!$D:$D,$N14)","v":1},{"$f":"COUNTIFS('Modification Proposals Register'!$E:$E,\">=01/10/22\",'Modification Proposals Register'!$E:$E,\"<=30/09/23\",'Modification Proposals Register'!$D:$D,$N14)","v":4},{"$f":"COUNTIFS('Modification Proposals Register'!$E:$E,\">=01/10/23\",'Modification Proposals Register'!$E:$E,\"<=30/09/24\",'Modification Proposals Register'!$D:$D,$N14)","v":0},8]
[null,null,null,null,null,null,null,null,null,null,null,null,null,"Centrica Energy",{"$f":"COUNTIFS('Modification Proposals Register'!$E:$E,\">=01/10/19\",'Modification Proposals Register'!$E:$E,\"<=30/09/20\",'Modification Proposals Register'!$D:$D,$N15)","v":0},{"$f":"COUNTIFS('Modification Proposals Register'!$E:$E,\">=01/10/20\",'Modification Proposals Register'!$E:$E,\"<=30/09/21\",'Modification Proposals Register'!$D:$D,$N15)","v":0},{"$f":"COUNTIFS('Modification Proposals Register'!$E:$E,\">=01/10/21\",'Modification Proposals Register'!$E:$E,\"<=30/09/22\",'Modification Proposals Register'!$D:$D,$N15)","v":0},{"$f":"COUNTIFS('Modification Proposals Register'!$E:$E,\">=01/10/22\",'Modification Proposals Register'!$E:$E,\"<=30/09/23\",'Modification Proposals Register'!$D:$D,$N15)","v":0},{"$f":"COUNTIFS('Modification Proposals Register'!$E:$E,\">=01/10/23\",'Modification Proposals Register'!$E:$E,\"<=30/09/24\",'Modification Proposals Register'!$D:$D,$N15)","v":0},0]
[null,null,null,null,null,null,null,null,null,null,null,null,null,"Centrica Storage",{"$f":"COUNTIFS('Modification Proposals Register'!$E:$E,\">=01/10/19\",'Modification Proposals Register'!$E:$E,\"<=30/09/20\",'Modification Proposals Register'!$D:$D,$N16)","v":0},{"$f":"COUNTIFS('Modification Proposals Register'!$E:$E,\">=01/10/20\",'Modification Proposals Register'!$E:$E,\"<=30/09/21\",'Modification Proposals Register'!$D:$D,$N16)","v":0},{"$f":"COUNTIFS('Modification Proposals Register'!$E:$E,\">=01/10/21\",'Modification Proposals Register'!$E:$E,\"<=30/09/22\",'Modification Proposals Register'!$D:$D,$N16)","v":0},{"$f":"COUNTIFS('Modification Proposals Register'!$E:$E,\">=01/10/22\",'Modification Proposals Register'!$E:$E,\"<=30/09/23\",'Modification Proposals Register'!$D:$D,$N16)","v":0},{"$f":"COUNTIFS('Modification Proposals Register'!$E:$E,\">=01/10/23\",'Modification Proposals Register'!$E:$E,\"<=30/09/24\",'Modification Proposals Register'!$D:$D,$N16)","v":0},0]
[null,null,null,null,null,null,null,null,null,null,null,null,null,"Contract Natural Gas Ltd",{"$f":"COUNTIFS('Modification Proposals Register'!$E:$E,\">=01/10/19\",'Modification Proposals Register'!$E:$E,\"<=30/09/20\",'Modification Proposals Register'!$D:$D,$N17)","v":1},{"$f":"COUNTIFS('Modification Proposals Register'!$E:$E,\">=01/10/20\",'Modification Proposals Register'!$E:$E,\"<=30/09/21\",'Modification Proposals Register'!$D:$D,$N17)","v":0},{"$f":"COUNTIFS('Modification Proposals Register'!$E:$E,\">=01/10/21\",'Modification Proposals Register'!$E:$E,\"<=30/09/22\",'Modification Proposals Register'!$D:$D,$N17)","v":0},{"$f":"COUNTIFS('Modification Proposals Register'!$E:$E,\">=01/10/22\",'Modification Proposals Register'!$E:$E,\"<=30/09/23\",'Modification Proposals Register'!$D:$D,$N17)","v":0},{"$f":"COUNTIFS('Modification Proposals Register'!$E:$E,\">=01/10/23\",'Modification Proposals Register'!$E:$E,\"<=30/09/24\",'Modification Proposals Register'!$D:$D,$N17)","v":0},1]
[null,null,null,null,null,null,null,null,null,null,null,null,null,"Corona Energy",{"$f":"COUNTIFS('Modification Proposals Register'!$E:$E,\">=01/10/19\",'Modification Proposals Register'!$E:$E,\"<=30/09/20\",'Modification Proposals Register'!$D:$D,$N18)","v":0},{"$f":"COUNTIFS('Modification Proposals Register'!$E:$E,\">=01/10/20\",'Modification Proposals Register'!$E:$E,\"<=30/09/21\",'Modification Proposals Register'!$D:$D,$N18)","v":2},{"$f":"COUNTIFS('Modification Proposals Register'!$E:$E,\">=01/10/21\",'Modification Proposals Register'!$E:$E,\"<=30/09/22\",'Modification Proposals Register'!$D:$D,$N18)","v":1},{"$f":"COUNTIFS('Modification Proposals Register'!$E:$E,\">=01/10/22\",'Modification Proposals Register'!$E:$E,\"<=30/09/23\",'Modification Proposals Register'!$D:$D,$N18)","v":0},{"$f":"COUNTIFS('Modification Proposals Register'!$E:$E,\">=01/10/23\",'Modification Proposals Register'!$E:$E,\"<=30/09/24\",'Modification Proposals Register'!$D:$D,$N18)","v":0},3]
[null,null,null,null,null,null,null,null,null,null,null,null,null,"E.ON Next",{"$f":"COUNTIFS('Modification Proposals Register'!$E:$E,\">=01/10/19\",'Modification Proposals Register'!$E:$E,\"<=30/09/20\",'Modification Proposals Register'!$D:$D,$N19)","v":0},{"$f":"COUNTIFS('Modification Proposals Register'!$E:$E,\">=01/10/20\",'Modification Proposals Register'!$E:$E,\"<=30/09/21\",'Modification Proposals Register'!$D:$D,$N19)","v":0},{"$f":"COUNTIFS('Modification Proposals Register'!$E:$E,\">=01/10/21\",'Modification Proposals Register'!$E:$E,\"<=30/09/22\",'Modification Proposals Register'!$D:$D,$N19)","v":1},{"$f":"COUNTIFS('Modification Proposals Register'!$E:$E,\">=01/10/22\",'Modification Proposals Register'!$E:$E,\"<=30/09/23\",'Modification Proposals Register'!$D:$D,$N19)","v":0},{"$f":"COUNTIFS('Modification Proposals Register'!$E:$E,\">=01/10/23\",'Modification Proposals Register'!$E:$E,\"<=30/09/24\",'Modification Proposals Register'!$D:$D,$N19)","v":0},1]
[null,null,null,null,null,null,null,null,null,null,null,null,null,"E.ON UK",{"$f":"COUNTIFS('Modification Proposals Register'!$E:$E,\">=01/10/19\",'Modification Proposals Register'!$E:$E,\"<=30/09/20\",'Modification Proposals Register'!$D:$D,$N20)","v":0},{"$f":"COUNTIFS('Modification Proposals Register'!$E:$E,\">=01/10/20\",'Modification Proposals Register'!$E:$E,\"<=30/09/21\",'Modification Proposals Register'!$D:$D,$N20)","v":2},{"$f":"COUNTIFS('Modification Proposals Register'!$E:$E,\">=01/10/21\",'Modification Proposals Register'!$E:$E,\"<=30/09/22\",'Modification Proposals Register'!$D:$D,$N20)","v":0},{"$f":"COUNTIFS('Modification Proposals Register'!$E:$E,\">=01/10/22\",'Modification Proposals Register'!$E:$E,\"<=30/09/23\",'Modification Proposals Register'!$D:$D,$N20)","v":0},{"$f":"COUNTIFS('Modification Proposals Register'!$E:$E,\">=01/10/23\",'Modification Proposals Register'!$E:$E,\"<=30/09/24\",'Modification Proposals Register'!$D:$D,$N20)","v":0},2]
["Workgroup","2019-20","2020-21","2021-22","2022-23","2023-24","Total",null,null,null,null,null,null,"EDF Energy",{"$f":"COUNTIFS('Modification Proposals Register'!$E:$E,\">=01/10/19\",'Modification Proposals Register'!$E:$E,\"<=30/09/20\",'Modification Proposals Register'!$D:$D,$N21)","v":0},{"$f":"COUNTIFS('Modification Proposals Register'!$E:$E,\">=01/10/20\",'Modification Proposals Register'!$E:$E,\"<=30/09/21\",'Modification Proposals Register'!$D:$D,$N21)","v":0},{"$f":"COUNTIFS('Modification Proposals Register'!$E:$E,\">=01/10/21\",'Modification Proposals Register'!$E:$E,\"<=30/09/22\",'Modification Proposals Register'!$D:$D,$N21)","v":0},{"$f":"COUNTIFS('Modification Proposals Register'!$E:$E,\">=01/10/22\",'Modification Proposals Register'!$E:$E,\"<=30/09/23\",'Modification Proposals Register'!$D:$D,$N21)","v":1},{"$f":"COUNTIFS('Modification Proposals Register'!$E:$E,\">=01/10/23\",'Modification Proposals Register'!$E:$E,\"<=30/09/24\",'Modification Proposals Register'!$D:$D,$N21)","v":0},1]
["Demand Side Response",{"$f":"COUNTIFS('Modification Proposals Register'!$E:$E,\">=01/10/19\",'Modification Proposals Register'!$E:$E,\"<=30/09/20\",'Modification Proposals Register'!$I:$I,$A22)","v":0},{"$f":"COUNTIFS('Modification Proposals Register'!$E:$E,\">=01/10/20\",'Modification Proposals Register'!$E:$E,\"<=30/09/21\",'Modification Proposals Register'!$I:$I,$A22)","v":0},{"$f":"COUNTIFS('Modification Proposals Register'!$E:$E,\">=01/10/21\",'Modification Proposals Register'!$E:$E,\"<=30/09/22\",'Modification Proposals Register'!$I:$I,$A22)","v":0},{"$f":"COUNTIFS('Modification Proposals Register'!$E:$E,\">=01/10/22\",'Modification Proposals Register'!$E:$E,\"<=30/09/23\",'Modification Proposals Register'!$I:$I,$A22)","v":0},{"$f":"COUNTIFS('Modification Proposals Register'!$E:$E,\">=01/10/23\",'Modification Proposals Register'!$E:$E,\"<=30/09/24\",'Modification Proposals Register'!$I:$I,$A22)","v":0},{"$f":"SUM(B22:F22)","v":0},null,null,null,null,null,null,"EDF Trading",{"$f":"COUNTIFS('Modification Proposals Register'!$E:$E,\">=01/10/19\",'Modification Proposals Register'!$E:$E,\"<=30/09/20\",'Modification Proposals Register'!$D:$D,$N22)","v":0},{"$f":"COUNTIFS('Modification Proposals Register'!$E:$E,\">=01/10/20\",'Modification Proposals Register'!$E:$E,\"<=30/09/21\",'Modification Proposals Register'!$D:$D,$N22)","v":0},{"$f":"COUNTIFS('Modification Proposals Register'!$E:$E,\">=01/10/21\",'Modification Proposals Register'!$E:$E,\"<=30/09/22\",'Modification Proposals Register'!$D:$D,$N22)","v":0},{"$f":"COUNTIFS('Modification Proposals Register'!$E:$E,\">=01/10/22\",'Modification Proposals Register'!$E:$E,\"<=30/09/23\",'Modification Proposals Register'!$D:$D,$N22)","v":0},{"$f":"COUNTIFS('Modification Proposals Register'!$E:$E,\">=01/10/23\",'Modification Proposals Register'!$E:$E,\"<=30/09/24\",'Modification Proposals Register'!$D:$D,$N22)","v":0},0]
["Distribution",{"$f":"COUNTIFS('Modification Proposals Register'!$E:$E,\">=01/10/19\",'Modification Proposals Register'!$E:$E,\"<=30/09/20\",'Modification Proposals Register'!$I:$I,$A23)","v":18},{"$f":"COUNTIFS('Modification Proposals Register'!$E:$E,\">=01/10/20\",'Modification Proposals Register'!$E:$E,\"<=30/09/21\",'Modification Proposals Register'!$I:$I,$A23)","v":11},{"$f":"COUNTIFS('Modification Proposals Register'!$E:$E,\">=01/10/21\",'Modification Proposals Register'!$E:$E,\"<=30/09/22\",'Modification Proposals Register'!$I:$I,$A23)","v":9},{"$f":"COUNTIFS('Modification Proposals Register'!$E:$E,\">=01/10/22\",'Modification Proposals Register'!$E:$E,\"<=30/09/23\",'Modification Proposals Register'!$I:$I,$A23)","v":10},{"$f":"COUNTIFS('Modification Proposals Register'!$E:$E,\">=01/10/23\",'Modification Proposals Register'!$E:$E,\"<=30/09/24\",'Modification Proposals Register'!$I:$I,$A23)","v":2},50,null,null,null,null,null,null,"Energy24 Limited",{"$f":"COUNTIFS('Modification Proposals Register'!$E:$E,\">=01/10/19\",'Modification Proposals Register'!$E:$E,\"<=30/09/20\",'Modification Proposals Register'!$D:$D,$N23)","v":0},{"$f":"COUNTIFS('Modification Proposals Register'!$E:$E,\">=01/10/20\",'Modification Proposals Register'!$E:$E,\"<=30/09/21\",'Modification Proposals Register'!$D:$D,$N23)","v":0},{"$f":"COUNTIFS('Modification Proposals Register'!$E:$E,\">=01/10/21\",'Modification Proposals Register'!$E:$E,\"<=30/09/22\",'Modification Proposals Register'!$D:$D,$N23)","v":0},{"$f":"COUNTIFS('Modification Proposals Register'!$E:$E,\">=01/10/22\",'Modification Proposals Register'!$E:$E,\"<=30/09/23\",'Modification Proposals Register'!$D:$D,$N23)","v":0},{"$f":"COUNTIFS('Modification Proposals Register'!$E:$E,\">=01/10/23\",'Modification Proposals Register'!$E:$E,\"<=30/09/24\",'Modification Proposals Register'!$D:$D,$N23)","v":0},0]
["Distribution and Transmission",{"$f":"COUNTIFS('Modification Proposals Register'!$E:$E,\">=01/10/19\",'Modification Proposals Register'!$E:$E,\"<=30/09/20\",'Modification Proposals Register'!$I:$I,$A24)","v":1},{"$f":"COUNTIFS('Modification Proposals Register'!$E:$E,\">=01/10/20\",'Modification Proposals Register'!$E:$E,\"<=30/09/21\",'Modification Proposals Register'!$I:$I,$A24)","v":0},{"$f":"COUNTIFS('Modification Proposals Register'!$E:$E,\">=01/10/21\",'Modification Proposals Register'!$E:$E,\"<=30/09/22\",'Modification Proposals Register'!$I:$I,$A24)","v":0},{"$f":"COUNTIFS('Modification Proposals Register'!$E:$E,\">=01/10/22\",'Modification Proposals Register'!$E:$E,\"<=30/09/23\",'Modification Proposals Register'!$I:$I,$A24)","v":0},{"$f":"COUNTIFS('Modification Proposals Register'!$E:$E,\">=01/10/23\",'Modification Proposals Register'!$E:$E,\"<=30/09/24\",'Modification Proposals Register'!$I:$I,$A24)","v":0},1,null,null,null,null,null,null,"ENI",{"$f":"COUNTIFS('Modification Proposals Register'!$E:$E,\">=01/10/19\",'Modification Proposals Register'!$E:$E,\"<=30/09/20\",'Modification Proposals Register'!$D:$D,$N24)","v":1},{"$f":"COUNTIFS('Modification Proposals Register'!$E:$E,\">=01/10/20\",'Modification Proposals Register'!$E:$E,\"<=30/09/21\",'Modification Proposals Register'!$D:$D,$N24)","v":1},{"$f":"COUNTIFS('Modification Proposals Register'!$E:$E,\">=01/10/21\",'Modification Proposals Register'!$E:$E,\"<=30/09/22\",'Modification Proposals Register'!$D:$D,$N24)","v":0},{"$f":"COUNTIFS('Modification Proposals Register'!$E:$E,\">=01/10/22\",'Modification Proposals Register'!$E:$E,\"<=30/09/23\",'Modification Proposals Register'!$D:$D,$N24)","v":0},{"$f":"COUNTIFS('Modification Proposals Register'!$E:$E,\">=01/10/23\",'Modification Proposals Register'!$E:$E,\"<=30/09/24\",'Modification Proposals Register'!$D:$D,$N24)","v":0},2]
["DNCMF",{"$f":"COUNTIFS('Modification Proposals Register'!$E:$E,\">=01/10/19\",'Modification Proposals Register'!$E:$E,\"<=30/09/20\",'Modification Proposals Register'!$I:$I,$A25)","v":0},{"$f":"COUNTIFS('Modification Proposals Register'!$E:$E,\">=01/10/20\",'Modification Proposals Register'!$E:$E,\"<=30/09/21\",'Modification Proposals Register'!$I:$I,$A25)","v":0},{"$f":"COUNTIFS('Modification Proposals Register'!$E:$E,\">=01/10/21\",'Modification Proposals Register'!$E:$E,\"<=30/09/22\",'Modification Proposals Register'!$I:$I,$A25)","v":0},{"$f":"COUNTIFS('Modification Proposals Register'!$E:$E,\">=01/10/22\",'Modification Proposals Register'!$E:$E,\"<=30/09/23\",'Modification Proposals Register'!$I:$I,$A25)","v":0},{"$f":"COUNTIFS('Modification Proposals Register'!$E:$E,\">=01/10/23\",'Modification Proposals Register'!$E:$E,\"<=30/09/24\",'Modification Proposals Register'!$I:$I,$A25)","v":0},0,null,null,null,null,null,null,"EP UK Investments",{"$f":"COUNTIFS('Modification Proposals Register'!$E:$E,\">=01/10/19\",'Modification Proposals Register'!$E:$E,\"<=30/09/20\",'Modification Proposals Register'!$D:$D,$N25)","v":0},{"$f":"COUNTIFS('Modification Proposals Register'!$E:$E,\">=01/10/20\",'Modification Proposals Register'!$E:$E,\"<=30/09/21\",'Modification Proposals Register'!$D:$D,$N25)","v":0},{"$f":"COUNTIFS('Modification Proposals Register'!$E:$E,\">=01/10/21\",'Modification Proposals Register'!$E:$E,\"<=30/09/22\",'Modification Proposals Register'!$D:$D,$N25)","v":0},{"$f":"COUNTIFS('Modification Proposals Register'!$E:$E,\">=01/10/22\",'Modification Proposals Register'!$E:$E,\"<=30/09/23\",'Modification Proposals Register'!$D:$D,$N25)","v":0},{"$f":"COUNTIFS('Modification Proposals Register'!$E:$E,\">=01/10/23\",'Modification Proposals Register'!$E:$E,\"<=30/09/24\",'Modification Proposals Register'!$D:$D,$N25)","v":0},0]
["European",{"$f":"COUNTIFS('Modification Proposals Register'!$E:$E,\">=01/10/19\",'Modification Proposals Register'!$E:$E,\"<=30/09/20\",'Modification Proposals Register'!$I:$I,$A26)","v":0},{"$f":"COUNTIFS('Modification Proposals Register'!$E:$E,\">=01/10/20\",'Modification Proposals Register'!$E:$E,\"<=30/09/21\",'Modification Proposals Register'!$I:$I,$A26)","v":0},{"$f":"COUNTIFS('Modification Proposals Register'!$E:$E,\">=01/10/21\",'Modification Proposals Register'!$E:$E,\"<=30/09/22\",'Modification Proposals Register'!$I:$I,$A26)","v":0},{"$f":"COUNTIFS('Modification Proposals Register'!$E:$E,\">=01/10/22\",'Modification Proposals Register'!$E:$E,\"<=30/09/23\",'Modification Proposals Register'!$I:$I,$A26)","v":0},{"$f":"COUNTIFS('Modification Proposals Register'!$E:$E,\">=01/10/23\",'Modification Proposals Register'!$E:$E,\"<=30/09/24\",'Modification Proposals Register'!$I:$I,$A26)","v":0},0,null,null,null,null,null,null,"first:utility",{"$f":"COUNTIFS('Modification Proposals Register'!$E:$E,\">=01/10/19\",'Modification Proposals Register'!$E:$E,\"<=30/09/20\",'Modification Proposals Register'!$D:$D,$N26)","v":0},{"$f":"COUNTIFS('Modification Proposals Register'!$E:$E,\">=01/10/20\",'Modification Proposals Register'!$E:$E,\"<=30/09/21\",'Modification Proposals Register'!$D:$D,$N26)","v":0},{"$f":"COUNTIFS('Modification Proposals Register'!$E:$E,\">=01/10/21\",'Modification Proposals Register'!$E:$E,\"<=30/09/22\",'Modification Proposals Register'!$D:$D,$N26)","v":0},{"$f":"COUNTIFS('Modification Proposals Register'!$E:$E,\">=01/10/22\",'Modification Proposals Register'!$E:$E,\"<=30/09/23\",'Modification Proposals Register'!$D:$D,$N26)","v":0},{"$f":"COUNTIFS('Modification Proposals Register'!$E:$E,\">=01/10/23\",'Modification Proposals Register'!$E:$E,\"<=30/09/24\",'Modification Proposals Register'!$D:$D,$N26)","v":0},0]
["Governance",{"$f":"COUNTIFS('Modification Proposals Register'!$E:$E,\">=01/10/19\",'Modification Proposals Register'!$E:$E,\"<=30/09/20\",'Modification Proposals Register'!$I:$I,$A27)","v":2},{"$f":"COUNTIFS('Modification Proposals Register'!$E:$E,\">=01/10/20\",'Modification Proposals Register'!$E:$E,\"<=30/09/21\",'Modification Proposals Register'!$I:$I,$A27)","v":4},{"$f":"COUNTIFS('Modification Proposals Register'!$E:$E,\">=01/10/21\",'Modification Proposals Register'!$E:$E,\"<=30/09/22\",'Modification Proposals Register'!$I:$I,$A27)","v":3},{"$f":"COUNTIFS('Modification Proposals Register'!$E:$E,\">=01/10/22\",'Modification Proposals Register'!$E:$E,\"<=30/09/23\",'Modification Proposals Register'!$I:$I,$A27)","v":3},{"$f":"COUNTIFS('Modification Proposals Register'!$E:$E,\">=01/10/23\",'Modification Proposals Register'!$E:$E,\"<=30/09/24\",'Modification Proposals Register'!$I:$I,$A27)","v":0},12,null,null,null,null,null,null,"GasTerra",{"$f":"COUNTIFS('Modification Proposals Register'!$E:$E,\">=01/10/19\",'Modification Proposals Register'!$E:$E,\"<=30/09/20\",'Modification Proposals Register'!$D:$D,$N27)","v":0},{"$f":"COUNTIFS('Modification Proposals Register'!$E:$E,\">=01/10/20\",'Modification Proposals Register'!$E:$E,\"<=30/09/21\",'Modification Proposals Register'!$D:$D,$N27)","v":0},{"$f":"COUNTIFS('Modification Proposals Register'!$E:$E,\">=01/10/21\",'Modification Proposals Register'!$E:$E,\"<=30/09/22\",'Modification Proposals Register'!$D:$D,$N27)","v":0},{"$f":"COUNTIFS('Modification Proposals Register'!$E:$E,\">=01/10/22\",'Modification Proposals Register'!$E:$E,\"<=30/09/23\",'Modification Proposals Register'!$D:$D,$N27)","v":0},{"$f":"COUNTIFS('Modification Proposals Register'!$E:$E,\">=01/10/23\",'Modification Proposals Register'!$E:$E,\"<=30/09/24\",'Modification Proposals Register'!$D:$D,$N27)","v":0},0]
["Individual",{"$f":"COUNTIFS('Modification Proposals Register'!$E:$E,\">=01/10/19\",'Modification Proposals Register'!$E:$E,\"<=30/09/20\",'Modification Proposals Register'!$I:$I,$A28)","v":0},{"$f":"COUNTIFS('Modification Proposals Register'!$E:$E,\">=01/10/20\",'Modification Proposals Register'!$E:$E,\"<=30/09/21\",'Modification Proposals Register'!$I:$I,$A28)","v":0},{"$f":"COUNTIFS('Modification Proposals Register'!$E:$E,\">=01/10/21\",'Modification Proposals Register'!$E:$E,\"<=30/09/22\",'Modification Proposals Register'!$I:$I,$A28)","v":0},{"$f":"COUNTIFS('Modification Proposals Register'!$E:$E,\">=01/10/22\",'Modification Proposals Register'!$E:$E,\"<=30/09/23\",'Modification Proposals Register'!$I:$I,$A28)","v":0},{"$f":"COUNTIFS('Modification Proposals Register'!$E:$E,\">=01/10/23\",'Modification Proposals Register'!$E:$E,\"<=30/09/24\",'Modification Proposals Register'!$I:$I,$A28)","v":0},0,null,null,null,null,null,null,"Gateway LNG Company Ltd",{"$f":"COUNTIFS('Modification Proposals Register'!$E:$E,\">=01/10/19\",'Modification Proposals Register'!$E:$E,\"<=30/09/20\",'Modification Proposals Register'!$D:$D,$N28)","v":0},{"$f":"COUNTIFS('Modification Proposals Register'!$E:$E,\">=01/10/20\",'Modification Proposals Register'!$E:$E,\"<=30/09/21\",'Modification Proposals Register'!$D:$D,$N28)","v":0},{"$f":"COUNTIFS('Modification Proposals Register'!$E:$E,\">=01/10/21\",'Modification Proposals Register'!$E:$E,\"<=30/09/22\",'Modification Proposals Register'!$D:$D,$N28)","v":0},{"$f":"COUNTIFS('Modification Proposals Register'!$E:$E,\">=01/10/22\",'Modification Proposals Register'!$E:$E,\"<=30/09/23\",'Modification Proposals Register'!$D:$D,$N28)","v":0},{"$f":"COUNTIFS('Modification Proposals Register'!$E:$E,\">=01/10/23\",'Modification Proposals Register'!$E:$E,\"<=30/09/24\",'Modification Proposals Register'!$D:$D,$N28)","v":0},0]
["Market Operator",{"$f":"COUNTIFS('Modification Proposals Register'!$E:$E,\">=01/10/19\",'Modification Proposals Register'!$E:$E,\"<=30/09/20\",'Modification Proposals Register'!$I:$I,$A29)","v":0},{"$f":"COUNTIFS('Modification Proposals Register'!$E:$E,\">=01/10/20\",'Modification Proposals Register'!$E:$E,\"<=30/09/21\",'Modification Proposals Register'!$I:$I,$A29)","v":0},{"$f":"COUNTIFS('Modification Proposals Register'!$E:$E,\">=01/10/21\",'Modification Proposals Register'!$E:$E,\"<=30/09/22\",'Modification Proposals Register'!$I:$I,$A29)","v":0},{"$f":"COUNTIFS('Modification Proposals Register'!$E:$E,\">=01/10/22\",'Modification Proposals Register'!$E:$E,\"<=30/09/23\",'Modification Proposals Register'!$I:$I,$A29)","v":0},{"$f":"COUNTIFS('Modification Proposals Register'!$E:$E,\">=01/10/23\",'Modification Proposals Register'!$E:$E,\"<=30/09/24\",'Modification Proposals Register'!$I:$I,$A29)","v":0},0,null,null,null,null,null,null,"Gateway LNG\nCompany Ltd",{"$f":"COUNTIFS('Modification Proposals Register'!$E:$E,\">=01/10/19\",'Modification Proposals Register'!$E:$E,\"<=30/09/20\",'Modification Proposals Register'!$D:$D,$N29)","v":0},{"$f":"COUNTIFS('Modification Proposals Register'!$E:$E,\">=01/10/20\",'Modification Proposals Register'!$E:$E,\"<=30/09/21\",'Modification Proposals Register'!$D:$D,$N29)","v":0},{"$f":"COUNTIFS('Modification Proposals Register'!$E:$E,\">=01/10/21\",'Modification Proposals Register'!$E:$E,\"<=30/09/22\",'Modification Proposals Register'!$D:$D,$N29)","v":0},{"$f":"COUNTIFS('Modification Proposals Register'!$E:$E,\">=01/10/22\",'Modification Proposals Register'!$E:$E,\"<=30/09/23\",'Modification Proposals Register'!$D:$D,$N29)","v":0},{"$f":"COUNTIFS('Modification Proposals Register'!$E:$E,\">=01/10/23\",'Modification Proposals Register'!$E:$E,\"<=30/09/24\",'Modification Proposals Register'!$D:$D,$N29)","v":0},0]
["Nexus",{"$f":"COUNTIFS('Modification Proposals Register'!$E:$E,\">=01/10/19\",'Modification Proposals Register'!$E:$E,\"<=30/09/20\",'Modification Proposals Register'!$I:$I,$A30)","v":0},{"$f":"COUNTIFS('Modification Proposals Register'!$E:$E,\">=01/10/20\",'Modification Proposals Register'!$E:$E,\"<=30/09/21\",'Modification Proposals Register'!$I:$I,$A30)","v":0},{"$f":"COUNTIFS('Modification Proposals Register'!$E:$E,\">=01/10/21\",'Modification Proposals Register'!$E:$E,\"<=30/09/22\",'Modification Proposals Register'!$I:$I,$A30)","v":0},{"$f":"COUNTIFS('Modification Proposals Register'!$E:$E,\">=01/10/22\",'Modification Proposals Register'!$E:$E,\"<=30/09/23\",'Modification Proposals Register'!$I:$I,$A30)","v":0},{"$f":"COUNTIFS('Modification Proposals Register'!$E:$E,\">=01/10/23\",'Modification Proposals Register'!$E:$E,\"<=30/09/24\",'Modification Proposals Register'!$I:$I,$A30)","v":0},0,null,null,null,null,null,null,"Gazprom",{"$f":"COUNTIFS('Modification Proposals Register'!$E:$E,\">=01/10/19\",'Modification Proposals Register'!$E:$E,\"<=30/09/20\",'Modification Proposals Register'!$D:$D,$N30)","v":1},{"$f":"COUNTIFS('Modification Proposals Register'!$E:$E,\">=01/10/20\",'Modification Proposals Register'!$E:$E,\"<=30/09/21\",'Modification Proposals Register'!$D:$D,$N30)","v":0},{"$f":"COUNTIFS('Modification Proposals Register'!$E:$E,\">=01/10/21\",'Modification Proposals Register'!$E:$E,\"<=30/09/22\",'Modification Proposals Register'!$D:$D,$N30)","v":0},{"$f":"COUNTIFS('Modification Proposals Register'!$E:$E,\">=01/10/22\",'Modification Proposals Register'!$E:$E,\"<=30/09/23\",'Modification Proposals Register'!$D:$D,$N30)","v":0},{"$f":"COUNTIFS('Modification Proposals Register'!$E:$E,\">=01/10/23\",'Modification Proposals Register'!$E:$E,\"<=30/09/24\",'Modification Proposals Register'!$D:$D,$N30)","v":0},1]
["NTSCMF",{"$f":"COUNTIFS('Modification Proposals Register'!$E:$E,\">=01/10/19\",'Modification Proposals Register'!$E:$E,\"<=30/09/20\",'Modification Proposals Register'!$I:$I,$A31)","v":13},{"$f":"COUNTIFS('Modification Proposals Register'!$E:$E,\">=01/10/20\",'Modification Proposals Register'!$E:$E,\"<=30/09/21\",'Modification Proposals Register'!$I:$I,$A31)","v":6},{"$f":"COUNTIFS('Modification Proposals Register'!$E:$E,\">=01/10/21\",'Modification Proposals Register'!$E:$E,\"<=30/09/22\",'Modification Proposals Register'!$I:$I,$A31)","v":5},{"$f":"COUNTIFS('Modification Proposals Register'!$E:$E,\">=01/10/22\",'Modification Proposals Register'!$E:$E,\"<=30/09/23\",'Modification Proposals Register'!$I:$I,$A31)","v":3},{"$f":"COUNTIFS('Modification Proposals Register'!$E:$E,\">=01/10/23\",'Modification Proposals Register'!$E:$E,\"<=30/09/24\",'Modification Proposals Register'!$I:$I,$A31)","v":1},28,null,null,null,null,null,null,"Gazprom Energy",{"$f":"COUNTIFS('Modification Proposals Register'!$E:$E,\">=01/10/19\",'Modification Proposals Register'!$E:$E,\"<=30/09/20\",'Modification Proposals Register'!$D:$D,$N31)","v":7},{"$f":"COUNTIFS('Modification Proposals Register'!$E:$E,\">=01/10/20\",'Modification Proposals Register'!$E:$E,\"<=30/09/21\",'Modification Proposals Register'!$D:$D,$N31)","v":3},{"$f":"COUNTIFS('Modification Proposals Register'!$E:$E,\">=01/10/21\",'Modification Proposals Register'!$E:$E,\"<=30/09/22\",'Modification Proposals Register'!$D:$D,$N31)","v":1},{"$f":"COUNTIFS('Modification Proposals Register'!$E:$E,\">=01/10/22\",'Modification Proposals Register'!$E:$E,\"<=30/09/23\",'Modification Proposals Register'!$D:$D,$N31)","v":0},{"$f":"COUNTIFS('Modification Proposals Register'!$E:$E,\">=01/10/23\",'Modification Proposals Register'!$E:$E,\"<=30/09/24\",'Modification Proposals Register'!$D:$D,$N31)","v":0},11]
["Offtake",{"$f":"COUNTIFS('Modification Proposals Register'!$E:$E,\">=01/10/19\",'Modification Proposals Register'!$E:$E,\"<=30/09/20\",'Modification Proposals Register'!$I:$I,$A32)","v":1},{"$f":"COUNTIFS('Modification Proposals Register'!$E:$E,\">=01/10/20\",'Modification Proposals Register'!$E:$E,\"<=30/09/21\",'Modification Proposals Register'!$I:$I,$A32)","v":0},{"$f":"COUNTIFS('Modification Proposals Register'!$E:$E,\">=01/10/21\",'Modification Proposals Register'!$E:$E,\"<=30/09/22\",'Modification Proposals Register'!$I:$I,$A32)","v":3},{"$f":"COUNTIFS('Modification Proposals Register'!$E:$E,\">=01/10/22\",'Modification Proposals Register'!$E:$E,\"<=30/09/23\",'Modification Proposals Register'!$I:$I,$A32)","v":2},{"$f":"COUNTIFS('Modification Proposals Register'!$E:$E,\">=01/10/23\",'Modification Proposals Register'!$E:$E,\"<=30/09/24\",'Modification Proposals Register'!$I:$I,$A32)","v":0},6,null,null,null,null,null,null,"GTC Pipelines Ltd",{"$f":"COUNTIFS('Modification Proposals Register'!$E:$E,\">=01/10/19\",'Modification Proposals Register'!$E:$E,\"<=30/09/20\",'Modification Proposals Register'!$D:$D,$N32)","v":0},{"$f":"COUNTIFS('Modification Proposals Register'!$E:$E,\">=01/10/20\",'Modification Proposals Register'!$E:$E,\"<=30/09/21\",'Modification Proposals Register'!$D:$D,$N32)","v":1},{"$f":"COUNTIFS('Modification Proposals Register'!$E:$E,\">=01/10/21\",'Modification Proposals Register'!$E:$E,\"<=30/09/22\",'Modification Proposals Register'!$D:$D,$N32)","v":0},{"$f":"COUNTIFS('Modification Proposals Register'!$E:$E,\">=01/10/22\",'Modification Proposals Register'!$E:$E,\"<=30/09/23\",'Modification Proposals Register'!$D:$D,$N32)","v":0},{"$f":"COUNTIFS('Modification Proposals Register'!$E:$E,\">=01/10/23\",'Modification Proposals Register'!$E:$E,\"<=30/09/24\",'Modification Proposals Register'!$D:$D,$N32)","v":0},1]
["Other",{"$f":"COUNTIFS('Modification Proposals Register'!$E:$E,\">=01/10/19\",'Modification Proposals Register'!$E:$E,\"<=30/09/20\",'Modification Proposals Register'!$I:$I,$A33)","v":2},{"$f":"COUNTIFS('Modification Proposals Register'!$E:$E,\">=01/10/20\",'Modification Proposals Register'!$E:$E,\"<=30/09/21\",'Modification Proposals Register'!$I:$I,$A33)","v":4},{"$f":"COUNTIFS('Modification Proposals Register'!$E:$E,\">=01/10/21\",'Modification Proposals Register'!$E:$E,\"<=30/09/22\",'Modification Proposals Register'!$I:$I,$A33)","v":3},{"$f":"COUNTIFS('Modification Proposals Register'!$E:$E,\">=01/10/22\",'Modification Proposals Register'!$E:$E,\"<=30/09/23\",'Modification Proposals Register'!$I:$I,$A33)","v":3},{"$f":"COUNTIFS('Modification Proposals Register'!$E:$E,\">=01/10/23\",'Modification Proposals Register'!$E:$E,\"<=30/09/24\",'Modification Proposals Register'!$I:$I,$A33)","v":1},13,null,null,null,null,null,null,"ICE Endex ",{"$f":"COUNTIFS('Modification Proposals Register'!$E:$E,\">=01/10/19\",'Modification Proposals Register'!$E:$E,\"<=30/09/20\",'Modification Proposals Register'!$D:$D,$N33)","v":0},{"$f":"COUNTIFS('Modification Proposals Register'!$E:$E,\">=01/10/20\",'Modification Proposals Register'!$E:$E,\"<=30/09/21\",'Modification Proposals Register'!$D:$D,$N33)","v":0},{"$f":"COUNTIFS('Modification Proposals Register'!$E:$E,\">=01/10/21\",'Modification Proposals Register'!$E:$E,\"<=30/09/22\",'Modification Proposals Register'!$D:$D,$N33)","v":0},{"$f":"COUNTIFS('Modification Proposals Register'!$E:$E,\">=01/10/22\",'Modification Proposals Register'!$E:$E,\"<=30/09/23\",'Modification Proposals Register'!$D:$D,$N33)","v":0},{"$f":"COUNTIFS('Modification Proposals Register'!$E:$E,\">=01/10/23\",'Modification Proposals Register'!$E:$E,\"<=30/09/24\",'Modification Proposals Register'!$D:$D,$N33)","v":0},0]
["Performance Assurance ",{"$f":"COUNTIFS('Modification Proposals Register'!$E:$E,\">=01/10/19\",'Modification Proposals Register'!$E:$E,\"<=30/09/20\",'Modification Proposals Register'!$I:$I,$A34)","v":0},{"$f":"COUNTIFS('Modification Proposals Register'!$E:$E,\">=01/10/20\",'Modification Proposals Register'!$E:$E,\"<=30/09/21\",'Modification Proposals Register'!$I:$I,$A34)","v":0},{"$f":"COUNTIFS('Modification Proposals Register'!$E:$E,\">=01/10/21\",'Modification Proposals Register'!$E:$E,\"<=30/09/22\",'Modification Proposals Register'!$I:$I,$A34)","v":0},{"$f":"COUNTIFS('Modification Proposals Register'!$E:$E,\">=01/10/22\",'Modification Proposals Register'!$E:$E,\"<=30/09/23\",'Modification Proposals Register'!$I:$I,$A34)","v":0},{"$f":"COUNTIFS('Modification Proposals Register'!$E:$E,\">=01/10/23\",'Modification Proposals Register'!$E:$E,\"<=30/09/24\",'Modification Proposals Register'!$I:$I,$A34)","v":0},0,null,null,null,null,null,null,"Interconnector",{"$f":"COUNTIFS('Modification Proposals Register'!$E:$E,\">=01/10/19\",'Modification Proposals Register'!$E:$E,\"<=30/09/20\",'Modification Proposals Register'!$D:$D,$N34)","v":0},{"$f":"COUNTIFS('Modification Proposals Register'!$E:$E,\">=01/10/20\",'Modification Proposals Register'!$E:$E,\"<=30/09/21\",'Modification Proposals Register'!$D:$D,$N34)","v":0},{"$f":"COUNTIFS('Modification Proposals Register'!$E:$E,\">=01/10/21\",'Modification Proposals Register'!$E:$E,\"<=30/09/22\",'Modification Proposals Register'!$D:$D,$N34)","v":0},{"$f":"COUNTIFS('Modification Proposals Register'!$E:$E,\">=01/10/22\",'Modification Proposals Register'!$E:$E,\"<=30/09/23\",'Modification Proposals Register'!$D:$D,$N34)","v":0},{"$f":"COUNTIFS('Modification Proposals Register'!$E:$E,\">=01/10/23\",'Modification Proposals Register'!$E:$E,\"<=30/09/24\",'Modification Proposals Register'!$D:$D,$N34)","v":0},0]
["Transmission",{"$f":"COUNTIFS('Modification Proposals Register'!$E:$E,\">=01/10/19\",'Modification Proposals Register'!$E:$E,\"<=30/09/20\",'Modification Proposals Register'!$I:$I,$A35)","v":5},{"$f":"COUNTIFS('Modification Proposals Register'!$E:$E,\">=01/10/20\",'Modification Proposals Register'!$E:$E,\"<=30/09/21\",'Modification Proposals Register'!$I:$I,$A35)","v":17},{"$f":"COUNTIFS('Modification Proposals Register'!$E:$E,\">=01/10/21\",'Modification Proposals Register'!$E:$E,\"<=30/09/22\",'Modification Proposals Register'!$I:$I,$A35)","v":8},{"$f":"COUNTIFS('Modification Proposals Register'!$E:$E,\">=01/10/22\",'Modification Proposals Register'!$E:$E,\"<=30/09/23\",'Modification Proposals Register'!$I:$I,$A35)","v":7},{"$f":"COUNTIFS('Modification Proposals Register'!$E:$E,\">=01/10/23\",'Modification Proposals Register'!$E:$E,\"<=30/09/24\",'Modification Proposals Register'!$I:$I,$A35)","v":4},41,null,null,null,null,null,null,"Locus Energy",{"$f":"COUNTIFS('Modification Proposals Register'!$E:$E,\">=01/10/19\",'Modification Proposals Register'!$E:$E,\"<=30/09/20\",'Modification Proposals Register'!$D:$D,$N35)","v":0},{"$f":"COUNTIFS('Modification Proposals Register'!$E:$E,\">=01/10/20\",'Modification Proposals Register'!$E:$E,\"<=30/09/21\",'Modification Proposals Register'!$D:$D,$N35)","v":0},{"$f":"COUNTIFS('Modification Proposals Register'!$E:$E,\">=01/10/21\",'Modification Proposals Register'!$E:$E,\"<=30/09/22\",'Modification Proposals Register'!$D:$D,$N35)","v":0},{"$f":"COUNTIFS('Modification Proposals Register'!$E:$E,\">=01/10/22\",'Modification Proposals Register'!$E:$E,\"<=30/09/23\",'Modification Proposals Register'!$D:$D,$N35)","v":0},{"$f":"COUNTIFS('Modification Proposals Register'!$E:$E,\">=01/10/23\",'Modification Proposals Register'!$E:$E,\"<=30/09/24\",'Modification Proposals Register'!$D:$D,$N35)","v":0},0]
["Transmission ",{"$f":"COUNTIFS('Modification Proposals Register'!$E:$E,\">=01/10/19\",'Modification Proposals Register'!$E:$E,\"<=30/09/20\",'Modification Proposals Register'!$I:$I,$A36)","v":2},{"$f":"COUNTIFS('Modification Proposals Register'!$E:$E,\">=01/10/20\",'Modification Proposals Register'!$E:$E,\"<=30/09/21\",'Modification Proposals Register'!$I:$I,$A36)","v":0},{"$f":"COUNTIFS('Modification Proposals Register'!$E:$E,\">=01/10/21\",'Modification Proposals Register'!$E:$E,\"<=30/09/22\",'Modification Proposals Register'!$I:$I,$A36)","v":0},{"$f":"COUNTIFS('Modification Proposals Register'!$E:$E,\">=01/10/22\",'Modification Proposals Register'!$E:$E,\"<=30/09/23\",'Modification Proposals Register'!$I:$I,$A36)","v":0},{"$f":"COUNTIFS('Modification Proposals Register'!$E:$E,\">=01/10/23\",'Modification Proposals Register'!$E:$E,\"<=30/09/24\",'Modification Proposals Register'!$I:$I,$A36)","v":0},2,null,null,null,null,null,null,"National Gas Transmission",{"$f":"COUNTIFS('Modification Proposals Register'!$E:$E,\">=01/10/19\",'Modification Proposals Register'!$E:$E,\"<=30/09/20\",'Modification Proposals Register'!$D:$D,$N36)","v":0},{"$f":"COUNTIFS('Modification Proposals Register'!$E:$E,\">=01/10/20\",'Modification Proposals Register'!$E:$E,\"<=30/09/21\",'Modification Proposals Register'!$D:$D,$N36)","v":1},{"$f":"COUNTIFS('Modification Proposals Register'!$E:$E,\">=01/10/21\",'Modification Proposals Register'!$E:$E,\"<=30/09/22\",'Modification Proposals Register'!$D:$D,$N36)","v":2},{"$f":"COUNTIFS('Modification Proposals Register'!$E:$E,\">=01/10/22\",'Modification Proposals Register'!$E:$E,\"<=30/09/23\",'Modification Proposals Register'!$D:$D,$N36)","v":13},{"$f":"COUNTIFS('Modification Proposals Register'!$E:$E,\">=01/10/23\",'Modification Proposals Register'!$E:$E,\"<=30/09/24\",'Modification Proposals Register'!$D:$D,$N36)","v":7},23]
["Transmission & Distribution",{"$f":"COUNTIFS('Modification Proposals Register'!$E:$E,\">=01/10/19\",'Modification Proposals Register'!$E:$E,\"<=30/09/20\",'Modification Proposals Register'!$I:$I,$A37)","v":1},{"$f":"COUNTIFS('Modification Proposals Register'!$E:$E,\">=01/10/20\",'Modification Proposals Register'!$E:$E,\"<=30/09/21\",'Modification Proposals Register'!$I:$I,$A37)","v":0},{"$f":"COUNTIFS('Modification Proposals Register'!$E:$E,\">=01/10/21\",'Modification Proposals Register'!$E:$E,\"<=30/09/22\",'Modification Proposals Register'!$I:$I,$A37)","v":0},{"$f":"COUNTIFS('Modification Proposals Register'!$E:$E,\">=01/10/22\",'Modification Proposals Register'!$E:$E,\"<=30/09/23\",'Modification Proposals Register'!$I:$I,$A37)","v":0},{"$f":"COUNTIFS('Modification Proposals Register'!$E:$E,\">=01/10/23\",'Modification Proposals Register'!$E:$E,\"<=30/09/24\",'Modification Proposals Register'!$I:$I,$A37)","v":0},1,null,null,null,null,null,null,"National Grid",{"$f":"COUNTIFS('Modification Proposals Register'!$E:$E,\">=01/10/19\",'Modification Proposals Register'!$E:$E,\"<=30/09/20\",'Modification Proposals Register'!$D:$D,$N37)","v":4},{"$f":"COUNTIFS('Modification Proposals Register'!$E:$E,\">=01/10/20\",'Modification Proposals Register'!$E:$E,\"<=30/09/21\",'Modification Proposals Register'!$D:$D,$N37)","v":0},{"$f":"COUNTIFS('Modification Proposals Register'!$E:$E,\">=01/10/21\",'Modification Proposals Register'!$E:$E,\"<=30/09/22\",'Modification Proposals Register'!$D:$D,$N37)","v":0},{"$f":"COUNTIFS('Modification Proposals Register'!$E:$E,\">=01/10/22\",'Modification Proposals Register'!$E:$E,\"<=30/09/23\",'Modification Proposals Register'!$D:$D,$N37)","v":0},{"$f":"COUNTIFS('Modification Proposals Register'!$E:$E,\">=01/10/23\",'Modification Proposals Register'!$E:$E,\"<=30/09/24\",'Modification Proposals Register'!$D:$D,$N37)","v":0},4]
["UIG",{"$f":"COUNTIFS('Modification Proposals Register'!$E:$E,\">=01/10/19\",'Modification Proposals Register'!$E:$E,\"<=30/09/20\",'Modification Proposals Register'!$I:$I,$A38)","v":0},{"$f":"COUNTIFS('Modification Proposals Register'!$E:$E,\">=01/10/20\",'Modification Proposals Register'!$E:$E,\"<=30/09/21\",'Modification Proposals Register'!$I:$I,$A38)","v":0},{"$f":"COUNTIFS('Modification Proposals Register'!$E:$E,\">=01/10/21\",'Modification Proposals Register'!$E:$E,\"<=30/09/22\",'Modification Proposals Register'!$I:$I,$A38)","v":0},{"$f":"COUNTIFS('Modification Proposals Register'!$E:$E,\">=01/10/22\",'Modification Proposals Register'!$E:$E,\"<=30/09/23\",'Modification Proposals Register'!$I:$I,$A38)","v":0},{"$f":"COUNTIFS('Modification Proposals Register'!$E:$E,\">=01/10/23\",'Modification Proposals Register'!$E:$E,\"<=30/09/24\",'Modification Proposals Register'!$I:$I,$A38)","v":0},0,null,null,null,null,null,null,"National Grid Distribution",{"$f":"COUNTIFS('Modification Proposals Register'!$E:$E,\">=01/10/19\",'Modification Proposals Register'!$E:$E,\"<=30/09/20\",'Modification Proposals Register'!$D:$D,$N38)","v":0},{"$f":"COUNTIFS('Modification Proposals Register'!$E:$E,\">=01/10/20\",'Modification Proposals Register'!$E:$E,\"<=30/09/21\",'Modification Proposals Register'!$D:$D,$N38)","v":0},{"$f":"COUNTIFS('Modification Proposals Register'!$E:$E,\">=01/10/21\",'Modification Proposals Register'!$E:$E,\"<=30/09/22\",'Modification Proposals Register'!$D:$D,$N38)","v":0},{"$f":"COUNTIFS('Modification Proposals Register'!$E:$E,\">=01/10/22\",'Modification Proposals Register'!$E:$E,\"<=30/09/23\",'Modification Proposals Register'!$D:$D,$N38)","v":0},{"$f":"COUNTIFS('Modification Proposals Register'!$E:$E,\">=01/10/23\",'Modification Proposals Register'!$E:$E,\"<=30/09/24\",'Modification Proposals Register'!$D:$D,$N38)","v":0},0]
["None",{"$f":"COUNTIFS('Modification Proposals Register'!$E:$E,\">=01/10/19\",'Modification Proposals Register'!$E:$E,\"<=30/09/20\",'Modification Proposals Register'!$I:$I,$A39)","v":3},{"$f":"COUNTIFS('Modification Proposals Register'!$E:$E,\">=01/10/20\",'Modification Proposals Register'!$E:$E,\"<=30/09/21\",'Modification Proposals Register'!$I:$I,$A39)","v":7},{"$f":"COUNTIFS('Modification Proposals Register'!$E:$E,\">=01/10/21\",'Modification Proposals Register'!$E:$E,\"<=30/09/22\",'Modification Proposals Register'!$I:$I,$A39)","v":12},{"$f":"COUNTIFS('Modification Proposals Register'!$E:$E,\">=01/10/22\",'Modification Proposals Register'!$E:$E,\"<=30/09/23\",'Modification Proposals Register'!$I:$I,$A39)","v":8},{"$f":"COUNTIFS('Modification Proposals Register'!$E:$E,\">=01/10/23\",'Modification Proposals Register'!$E:$E,\"<=30/09/24\",'Modification Proposals Register'!$I:$I,$A39)","v":4},34,null,null,null,null,null,null,"National Grid LNG Storage",{"$f":"COUNTIFS('Modification Proposals Register'!$E:$E,\">=01/10/19\",'Modification Proposals Register'!$E:$E,\"<=30/09/20\",'Modification Proposals Register'!$D:$D,$N39)","v":0},{"$f":"COUNTIFS('Modification Proposals Register'!$E:$E,\">=01/10/20\",'Modification Proposals Register'!$E:$E,\"<=30/09/21\",'Modification Proposals Register'!$D:$D,$N39)","v":0},{"$f":"COUNTIFS('Modification Proposals Register'!$E:$E,\">=01/10/21\",'Modification Proposals Register'!$E:$E,\"<=30/09/22\",'Modification Proposals Register'!$D:$D,$N39)","v":0},{"$f":"COUNTIFS('Modification Proposals Register'!$E:$E,\">=01/10/22\",'Modification Proposals Register'!$E:$E,\"<=30/09/23\",'Modification Proposals Register'!$D:$D,$N39)","v":0},{"$f":"COUNTIFS('Modification Proposals Register'!$E:$E,\">=01/10/23\",'Modification Proposals Register'!$E:$E,\"<=30/09/24\",'Modification Proposals Register'!$D:$D,$N39)","v":0},0]
[null,null,null,null,null,null,null,null,null,null,null,null,null,"National Grid NTS",{"$f":"COUNTIFS('Modification Proposals Register'!$E:$E,\">=01/10/19\",'Modification Proposals Register'!$E:$E,\"<=30/09/20\",'Modification Proposals Register'!$D:$D,$N40)","v":6},{"$f":"COUNTIFS('Modification Proposals Register'!$E:$E,\">=01/10/20\",'Modification Proposals Register'!$E:$E,\"<=30/09/21\",'Modification Proposals Register'!$D:$D,$N40)","v":17},{"$f":"COUNTIFS('Modification Proposals Register'!$E:$E,\">=01/10/21\",'Modification Proposals Register'!$E:$E,\"<=30/09/22\",'Modification Proposals Register'!$D:$D,$N40)","v":15},{"$f":"COUNTIFS('Modification Proposals Register'!$E:$E,\">=01/10/22\",'Modification Proposals Register'!$E:$E,\"<=30/09/23\",'Modification Proposals Register'!$D:$D,$N40)","v":1},{"$f":"COUNTIFS('Modification Proposals Register'!$E:$E,\">=01/10/23\",'Modification Proposals Register'!$E:$E,\"<=30/09/24\",'Modification Proposals Register'!$D:$D,$N40)","v":0},39]
["Yearly Total",{"$f":"SUM(B22:B39)","v":48},49,43,36,12,188,null,null,null,null,null,null,"Northern Gas Networks",{"$f":"COUNTIFS('Modification Proposals Register'!$E:$E,\">=01/10/19\",'Modification Proposals Register'!$E:$E,\"<=30/09/20\",'Modification Proposals Register'!$D:$D,$N41)","v":3},{"$f":"COUNTIFS('Modification Proposals Register'!$E:$E,\">=01/10/20\",'Modification Proposals Register'!$E:$E,\"<=30/09/21\",'Modification Proposals Register'!$D:$D,$N41)","v":3},{"$f":"COUNTIFS('Modification Proposals Register'!$E:$E,\">=01/10/21\",'Modification Proposals Register'!$E:$E,\"<=30/09/22\",'Modification Proposals Register'!$D:$D,$N41)","v":4},{"$f":"COUNTIFS('Modification Proposals Register'!$E:$E,\">=01/10/22\",'Modification Proposals Register'!$E:$E,\"<=30/09/23\",'Modification Proposals Register'!$D:$D,$N41)","v":2},{"$f":"COUNTIFS('Modification Proposals Register'!$E:$E,\">=01/10/23\",'Modification Proposals Register'!$E:$E,\"<=30/09/24\",'Modification Proposals Register'!$D:$D,$N41)","v":0},12]
[null,null,null,null,null,null,null,null,null,null,null,null,null,"Npower",{"$f":"COUNTIFS('Modification Proposals Register'!$E:$E,\">=01/10/19\",'Modification Proposals Register'!$E:$E,\"<=30/09/20\",'Modification Proposals Register'!$D:$D,$N42)","v":0},{"$f":"COUNTIFS('Modification Proposals Register'!$E:$E,\">=01/10/20\",'Modification Proposals Register'!$E:$E,\"<=30/09/21\",'Modification Proposals Register'!$D:$D,$N42)","v":0},{"$f":"COUNTIFS('Modification Proposals Register'!$E:$E,\">=01/10/21\",'Modification Proposals Register'!$E:$E,\"<=30/09/22\",'Modification Proposals Register'!$D:$D,$N42)","v":0},{"$f":"COUNTIFS('Modification Proposals Register'!$E:$E,\">=01/10/22\",'Modification Proposals Register'!$E:$E,\"<=30/09/23\",'Modification Proposals Register'!$D:$D,$N42)","v":0},{"$f":"COUNTIFS('Modification Proposals Register'!$E:$E,\">=01/10/23\",'Modification Proposals Register'!$E:$E,\"<=30/09/24\",'Modification Proposals Register'!$D:$D,$N42)","v":0},0]
[null,null,null,null,null,null,null,null,null,null,null,null,null,"Ofgem",{"$f":"COUNTIFS('Modification Proposals Register'!$E:$E,\">=01/10/19\",'Modification Proposals Register'!$E:$E,\"<=30/09/20\",'Modification Proposals Register'!$D:$D,$N43)","v":0},{"$f":"COUNTIFS('Modification Proposals Register'!$E:$E,\">=01/10/20\",'Modification Proposals Register'!$E:$E,\"<=30/09/21\",'Modification Proposals Register'!$D:$D,$N43)","v":1},{"$f":"COUNTIFS('Modification Proposals Register'!$E:$E,\">=01/10/21\",'Modification Proposals Register'!$E:$E,\"<=30/09/22\",'Modification Proposals Register'!$D:$D,$N43)","v":1},{"$f":"COUNTIFS('Modification Proposals Register'!$E:$E,\">=01/10/22\",'Modification Proposals Register'!$E:$E,\"<=30/09/23\",'Modification Proposals Register'!$D:$D,$N43)","v":0},{"$f":"COUNTIFS('Modification Proposals Register'!$E:$E,\">=01/10/23\",'Modification Proposals Register'!$E:$E,\"<=30/09/24\",'Modification Proposals Register'!$D:$D,$N43)","v":0},2]
[null,null,null,null,null,null,null,null,null,null,null,null,null,"OMV Gas Marketing and Trading GmbH ",{"$f":"COUNTIFS('Modification Proposals Register'!$E:$E,\">=01/10/19\",'Modification Proposals Register'!$E:$E,\"<=30/09/20\",'Modification Proposals Register'!$D:$D,$N44)","v":1},{"$f":"COUNTIFS('Modification Proposals Register'!$E:$E,\">=01/10/20\",'Modification Proposals Register'!$E:$E,\"<=30/09/21\",'Modification Proposals Register'!$D:$D,$N44)","v":0},{"$f":"COUNTIFS('Modification Proposals Register'!$E:$E,\">=01/10/21\",'Modification Proposals Register'!$E:$E,\"<=30/09/22\",'Modification Proposals Register'!$D:$D,$N44)","v":0},{"$f":"COUNTIFS('Modification Proposals Register'!$E:$E,\">=01/10/22\",'Modification Proposals Register'!$E:$E,\"<=30/09/23\",'Modification Proposals Register'!$D:$D,$N44)","v":0},{"$f":"COUNTIFS('Modification Proposals Register'!$E:$E,\">=01/10/23\",'Modification Proposals Register'!$E:$E,\"<=30/09/24\",'Modification Proposals Register'!$D:$D,$N44)","v":0},1]
[null,null,null,null,null,null,null,null,null,null,null,null,null,"Opus Energy",{"$f":"COUNTIFS('Modification Proposals Register'!$E:$E,\">=01/10/19\",'Modification Proposals Register'!$E:$E,\"<=30/09/20\",'Modification Proposals Register'!$D:$D,$N45)","v":0},{"$f":"COUNTIFS('Modification Proposals Register'!$E:$E,\">=01/10/20\",'Modification Proposals Register'!$E:$E,\"<=30/09/21\",'Modification Proposals Register'!$D:$D,$N45)","v":0},{"$f":"COUNTIFS('Modification Proposals Register'!$E:$E,\">=01/10/21\",'Modification Proposals Register'!$E:$E,\"<=30/09/22\",'Modification Proposals Register'!$D:$D,$N45)","v":0},{"$f":"COUNTIFS('Modification Proposals Register'!$E:$E,\">=01/10/22\",'Modification Proposals Register'!$E:$E,\"<=30/09/23\",'Modification Proposals Register'!$D:$D,$N45)","v":0},{"$f":"COUNTIFS('Modification Proposals Register'!$E:$E,\">=01/10/23\",'Modification Proposals Register'!$E:$E,\"<=30/09/24\",'Modification Proposals Register'!$D:$D,$N45)","v":0},0]
[null,null,null,null,null,null,null,null,null,null,null,null,null,"Orsted Sales",{"$f":"COUNTIFS('Modification Proposals Register'!$E:$E,\">=01/10/19\",'Modification Proposals Register'!$E:$E,\"<=30/09/20\",'Modification Proposals Register'!$D:$D,$N46)","v":0},{"$f":"COUNTIFS('Modification Proposals Register'!$E:$E,\">=01/10/20\",'Modification Proposals Register'!$E:$E,\"<=30/09/21\",'Modification Proposals Register'!$D:$D,$N46)","v":0},{"$f":"COUNTIFS('Modification Proposals Register'!$E:$E,\">=01/10/21\",'Modification Proposals Register'!$E:$E,\"<=30/09/22\",'Modification Proposals Register'!$D:$D,$N46)","v":0},{"$f":"COUNTIFS('Modification Proposals Register'!$E:$E,\">=01/10/22\",'Modification Proposals Register'!$E:$E,\"<=30/09/23\",'Modification Proposals Register'!$D:$D,$N46)","v":0},{"$f":"COUNTIFS('Modification Proposals Register'!$E:$E,\">=01/10/23\",'Modification Proposals Register'!$E:$E,\"<=30/09/24\",'Modification Proposals Register'!$D:$D,$N46)","v":0},0]
[null,null,null,null,null,null,null,null,null,null,null,null,null,"OVO Energy",{"$f":"COUNTIFS('Modification Proposals Register'!$E:$E,\">=01/10/19\",'Modification Proposals Register'!$E:$E,\"<=30/09/20\",'Modification Proposals Register'!$D:$D,$N47)","v":0},{"$f":"COUNTIFS('Modification Proposals Register'!$E:$E,\">=01/10/20\",'Modification Proposals Register'!$E:$E,\"<=30/09/21\",'Modification Proposals Register'!$D:$D,$N47)","v":0},{"$f":"COUNTIFS('Modification Proposals Register'!$E:$E,\">=01/10/21\",'Modification Proposals Register'!$E:$E,\"<=30/09/22\",'Modification Proposals Register'!$D:$D,$N47)","v":0},{"$f":"COUNTIFS('Modification Proposals Register'!$E:$E,\">=01/10/22\",'Modification Proposals Register'!$E:$E,\"<=30/09/23\",'Modification Proposals Register'!$D:$D,$N47)","v":3},{"$f":"COUNTIFS('Modification Proposals Register'!$E:$E,\">=01/10/23\",'Modification Proposals Register'!$E:$E,\"<=30/09/24\",'Modification Proposals Register'!$D:$D,$N47)","v":0},3]
[null,null,null,null,null,null,null,null,null,null,null,null,null,"Pavilion Energy Spain",{"$f":"COUNTIFS('Modification Proposals Register'!$E:$E,\">=01/10/19\",'Modification Proposals Register'!$E:$E,\"<=30/09/20\",'Modification Proposals Register'!$D:$D,$N48)","v":0},{"$f":"COUNTIFS('Modification Proposals Register'!$E:$E,\">=01/10/20\",'Modification Proposals Register'!$E:$E,\"<=30/09/21\",'Modification Proposals Register'!$D:$D,$N48)","v":1},{"$f":"COUNTIFS('Modification Proposals Register'!$E:$E,\">=01/10/21\",'Modification Proposals Register'!$E:$E,\"<=30/09/22\",'Modification Proposals Register'!$D:$D,$N48)","v":0},{"$f":"COUNTIFS('Modification Proposals Register'!$E:$E,\">=01/10/22\",'Modification Proposals Register'!$E:$E,\"<=30/09/23\",'Modification Proposals Register'!$D:$D,$N48)","v":0},{"$f":"COUNTIFS('Modification Proposals Register'!$E:$E,\">=01/10/23\",'Modification Proposals Register'!$E:$E,\"<=30/09/24\",'Modification Proposals Register'!$D:$D,$N48)","v":0},1]
[null,null,null,null,null,null,null,null,null,null,null,null,null,"RWE",{"$f":"COUNTIFS('Modification Proposals Register'!$E:$E,\">=01/10/19\",'Modification Proposals Register'!$E:$E,\"<=30/09/20\",'Modification Proposals Register'!$D:$D,$N49)","v":1},{"$f":"COUNTIFS('Modification Proposals Register'!$E:$E,\">=01/10/20\",'Modification Proposals Register'!$E:$E,\"<=30/09/21\",'Modification Proposals Register'!$D:$D,$N49)","v":0},{"$f":"COUNTIFS('Modification Proposals Register'!$E:$E,\">=01/10/21\",'Modification Proposals Register'!$E:$E,\"<=30/09/22\",'Modification Proposals Register'!$D:$D,$N49)","v":0},{"$f":"COUNTIFS('Modification Proposals Register'!$E:$E,\">=01/10/22\",'Modification Proposals Register'!$E:$E,\"<=30/09/23\",'Modification Proposals Register'!$D:$D,$N49)","v":0},{"$f":"COUNTIFS('Modification Proposals Register'!$E:$E,\">=01/10/23\",'Modification Proposals Register'!$E:$E,\"<=30/09/24\",'Modification Proposals Register'!$D:$D,$N49)","v":0},1]
[null,null,null,null,null,null,null,null,null,null,null,null,null,"RWE  ",{"$f":"COUNTIFS('Modification Proposals Register'!$E:$E,\">=01/10/19\",'Modification Proposals Register'!$E:$E,\"<=30/09/20\",'Modification Proposals Register'!$D:$D,$N50)","v":0},{"$f":"COUNTIFS('Modification Proposals Register'!$E:$E,\">=01/10/20\",'Modification Proposals Register'!$E:$E,\"<=30/09/21\",'Modification Proposals Register'!$D:$D,$N50)","v":0},{"$f":"COUNTIFS('Modification Proposals Register'!$E:$E,\">=01/10/21\",'Modification Proposals Register'!$E:$E,\"<=30/09/22\",'Modification Proposals Register'!$D:$D,$N50)","v":0},{"$f":"COUNTIFS('Modification Proposals Register'!$E:$E,\">=01/10/22\",'Modification Proposals Register'!$E:$E,\"<=30/09/23\",'Modification Proposals Register'!$D:$D,$N50)","v":0},{"$f":"COUNTIFS('Modification Proposals Register'!$E:$E,\">=01/10/23\",'Modification Proposals Register'!$E:$E,\"<=30/09/24\",'Modification Proposals Register'!$D:$D,$N50)","v":0},0]
[null,null,null,null,null,null,null,null,null,null,null,null,null,"RWE Npower",{"$f":"COUNTIFS('Modification Proposals Register'!$E:$E,\">=01/10/19\",'Modification Proposals Register'!$E:$E,\"<=30/09/20\",'Modification Proposals Register'!$D:$D,$N51)","v":1},{"$f":"COUNTIFS('Modification Proposals Register'!$E:$E,\">=01/10/20\",'Modification Proposals Register'!$E:$E,\"<=30/09/21\",'Modification Proposals Register'!$D:$D,$N51)","v":0},{"$f":"COUNTIFS('Modification Proposals Register'!$E:$E,\">=01/10/21\",'Modification Proposals Register'!$E:$E,\"<=30/09/22\",'Modification Proposals Register'!$D:$D,$N51)","v":0},{"$f":"COUNTIFS('Modification Proposals Register'!$E:$E,\">=01/10/22\",'Modification Proposals Register'!$E:$E,\"<=30/09/23\",'Modification Proposals Register'!$D:$D,$N51)","v":0},{"$f":"COUNTIFS('Modification Proposals Register'!$E:$E,\">=01/10/23\",'Modification Proposals Register'!$E:$E,\"<=30/09/24\",'Modification Proposals Register'!$D:$D,$N51)","v":0},1]
[null,null,null,null,null,null,null,null,null,null,null,null,null,"RWE Trading GmbH",{"$f":"COUNTIFS('Modification Proposals Register'!$E:$E,\">=01/10/19\",'Modification Proposals Register'!$E:$E,\"<=30/09/20\",'Modification Proposals Register'!$D:$D,$N52)","v":0},{"$f":"COUNTIFS('Modification Proposals Register'!$E:$E,\">=01/10/20\",'Modification Proposals Register'!$E:$E,\"<=30/09/21\",'Modification Proposals Register'!$D:$D,$N52)","v":1},{"$f":"COUNTIFS('Modification Proposals Register'!$E:$E,\">=01/10/21\",'Modification Proposals Register'!$E:$E,\"<=30/09/22\",'Modification Proposals Register'!$D:$D,$N52)","v":1},{"$f":"COUNTIFS('Modification Proposals Register'!$E:$E,\">=01/10/22\",'Modification Proposals Register'!$E:$E,\"<=30/09/23\",'Modification Proposals Register'!$D:$D,$N52)","v":0},{"$f":"COUNTIFS('Modification Proposals Register'!$E:$E,\">=01/10/23\",'Modification Proposals Register'!$E:$E,\"<=30/09/24\",'Modification Proposals Register'!$D:$D,$N52)","v":1},3]
[null,null,null,null,null,null,null,null,null,null,null,null,null,"SAGE North Sea Limited",{"$f":"COUNTIFS('Modification Proposals Register'!$E:$E,\">=01/10/19\",'Modification Proposals Register'!$E:$E,\"<=30/09/20\",'Modification Proposals Register'!$D:$D,$N53)","v":0},{"$f":"COUNTIFS('Modification Proposals Register'!$E:$E,\">=01/10/20\",'Modification Proposals Register'!$E:$E,\"<=30/09/21\",'Modification Proposals Register'!$D:$D,$N53)","v":2},{"$f":"COUNTIFS('Modification Proposals Register'!$E:$E,\">=01/10/21\",'Modification Proposals Register'!$E:$E,\"<=30/09/22\",'Modification Proposals Register'!$D:$D,$N53)","v":0},{"$f":"COUNTIFS('Modification Proposals Register'!$E:$E,\">=01/10/22\",'Modification Proposals Register'!$E:$E,\"<=30/09/23\",'Modification Proposals Register'!$D:$D,$N53)","v":0},{"$f":"COUNTIFS('Modification Proposals Register'!$E:$E,\">=01/10/23\",'Modification Proposals Register'!$E:$E,\"<=30/09/24\",'Modification Proposals Register'!$D:$D,$N53)","v":0},2]
[null,null,null,null,null,null,null,null,null,null,null,null,null,"Scotia Gas Networks",{"$f":"COUNTIFS('Modification Proposals Register'!$E:$E,\">=01/10/19\",'Modification Proposals Register'!$E:$E,\"<=30/09/20\",'Modification Proposals Register'!$D:$D,$N54)","v":0},{"$f":"COUNTIFS('Modification Proposals Register'!$E:$E,\">=01/10/20\",'Modification Proposals Register'!$E:$E,\"<=30/09/21\",'Modification Proposals Register'!$D:$D,$N54)","v":0},{"$f":"COUNTIFS('Modification Proposals Register'!$E:$E,\">=01/10/21\",'Modification Proposals Register'!$E:$E,\"<=30/09/22\",'Modification Proposals Register'!$D:$D,$N54)","v":0},{"$f":"COUNTIFS('Modification Proposals Register'!$E:$E,\">=01/10/22\",'Modification Proposals Register'!$E:$E,\"<=30/09/23\",'Modification Proposals Register'!$D:$D,$N54)","v":0},{"$f":"COUNTIFS('Modification Proposals Register'!$E:$E,\">=01/10/23\",'Modification Proposals Register'!$E:$E,\"<=30/09/24\",'Modification Proposals Register'!$D:$D,$N54)","v":0},{"$f":"SUM(O54:S54)","v":0}]
[null,null,null,null,null,null,null,null,null,null,null,null,null,"Scottish Power",{"$f":"COUNTIFS('Modification Proposals Register'!$E:$E,\">=01/10/19\",'Modification Proposals Register'!$E:$E,\"<=30/09/20\",'Modification Proposals Register'!$D:$D,$N55)","v":0},{"$f":"COUNTIFS('Modification Proposals Register'!$E:$E,\">=01/10/20\",'Modification Proposals Register'!$E:$E,\"<=30/09/21\",'Modification Proposals Register'!$D:$D,$N55)","v":1},{"$f":"COUNTIFS('Modification Proposals Register'!$E:$E,\">=01/10/21\",'Modification Proposals Register'!$E:$E,\"<=30/09/22\",'Modification Proposals Register'!$D:$D,$N55)","v":1},{"$f":"COUNTIFS('Modification Proposals Register'!$E:$E,\">=01/10/22\",'Modification Proposals Register'!$E:$E,\"<=30/09/23\",'Modification Proposals Register'!$D:$D,$N55)","v":0},{"$f":"COUNTIFS('Modification Proposals Register'!$E:$E,\">=01/10/23\",'Modification Proposals Register'!$E:$E,\"<=30/09/24\",'Modification Proposals Register'!$D:$D,$N55)","v":0},2]
[null,null,null,null,null,null,null,null,null,null,null,null,null,"SEFE Energy Limited",{"$f":"COUNTIFS('Modification Proposals Register'!$E:$E,\">=01/10/19\",'Modification Proposals Register'!$E:$E,\"<=30/09/20\",'Modification Proposals Register'!$D:$D,$N56)","v":2},{"$f":"COUNTIFS('Modification Proposals Register'!$E:$E,\">=01/10/20\",'Modification Proposals Register'!$E:$E,\"<=30/09/21\",'Modification Proposals Register'!$D:$D,$N56)","v":2},{"$f":"COUNTIFS('Modification Proposals Register'!$E:$E,\">=01/10/21\",'Modification Proposals Register'!$E:$E,\"<=30/09/22\",'Modification Proposals Register'!$D:$D,$N56)","v":3},{"$f":"COUNTIFS('Modification Proposals Register'!$E:$E,\">=01/10/22\",'Modification Proposals Register'!$E:$E,\"<=30/09/23\",'Modification Proposals Register'!$D:$D,$N56)","v":3},{"$f":"COUNTIFS('Modification Proposals Register'!$E:$E,\">=01/10/23\",'Modification Proposals Register'!$E:$E,\"<=30/09/24\",'Modification Proposals Register'!$D:$D,$N56)","v":3},13]
[null,null,null,null,null,null,null,null,null,null,null,null,null,"SGN",{"$f":"COUNTIFS('Modification Proposals Register'!$E:$E,\">=01/10/19\",'Modification Proposals Register'!$E:$E,\"<=30/09/20\",'Modification Proposals Register'!$D:$D,$N57)","v":2},{"$f":"COUNTIFS('Modification Proposals Register'!$E:$E,\">=01/10/20\",'Modification Proposals Register'!$E:$E,\"<=30/09/21\",'Modification Proposals Register'!$D:$D,$N57)","v":2},{"$f":"COUNTIFS('Modification Proposals Register'!$E:$E,\">=01/10/21\",'Modification Proposals Register'!$E:$E,\"<=30/09/22\",'Modification Proposals Register'!$D:$D,$N57)","v":2},{"$f":"COUNTIFS('Modification Proposals Register'!$E:$E,\">=01/10/22\",'Modification Proposals Register'!$E:$E,\"<=30/09/23\",'Modification Proposals Register'!$D:$D,$N57)","v":1},{"$f":"COUNTIFS('Modification Proposals Register'!$E:$E,\">=01/10/23\",'Modification Proposals Register'!$E:$E,\"<=30/09/24\",'Modification Proposals Register'!$D:$D,$N57)","v":0},7]
[null,null,null,null,null,null,null,null,null,null,null,null,null,"Shell",{"$f":"COUNTIFS('Modification Proposals Register'!$E:$E,\">=01/10/19\",'Modification Proposals Register'!$E:$E,\"<=30/09/20\",'Modification Proposals Register'!$D:$D,$N58)","v":1},{"$f":"COUNTIFS('Modification Proposals Register'!$E:$E,\">=01/10/20\",'Modification Proposals Register'!$E:$E,\"<=30/09/21\",'Modification Proposals Register'!$D:$D,$N58)","v":0},{"$f":"COUNTIFS('Modification Proposals Register'!$E:$E,\">=01/10/21\",'Modification Proposals Register'!$E:$E,\"<=30/09/22\",'Modification Proposals Register'!$D:$D,$N58)","v":0},{"$f":"COUNTIFS('Modification Proposals Register'!$E:$E,\">=01/10/22\",'Modification Proposals Register'!$E:$E,\"<=30/09/23\",'Modification Proposals Register'!$D:$D,$N58)","v":2},{"$f":"COUNTIFS('Modification Proposals Register'!$E:$E,\">=01/10/23\",'Modification Proposals Register'!$E:$E,\"<=30/09/24\",'Modification Proposals Register'!$D:$D,$N58)","v":0},3]
[null,null,null,null,null,null,null,null,null,null,null,null,null,"South Hook Gas",{"$f":"COUNTIFS('Modification Proposals Register'!$E:$E,\">=01/10/19\",'Modification Proposals Register'!$E:$E,\"<=30/09/20\",'Modification Proposals Register'!$D:$D,$N59)","v":2},{"$f":"COUNTIFS('Modification Proposals Register'!$E:$E,\">=01/10/20\",'Modification Proposals Register'!$E:$E,\"<=30/09/21\",'Modification Proposals Register'!$D:$D,$N59)","v":1},{"$f":"COUNTIFS('Modification Proposals Register'!$E:$E,\">=01/10/21\",'Modification Proposals Register'!$E:$E,\"<=30/09/22\",'Modification Proposals Register'!$D:$D,$N59)","v":0},{"$f":"COUNTIFS('Modification Proposals Register'!$E:$E,\">=01/10/22\",'Modification Proposals Register'!$E:$E,\"<=30/09/23\",'Modification Proposals Register'!$D:$D,$N59)","v":0},{"$f":"COUNTIFS('Modification Proposals Register'!$E:$E,\">=01/10/23\",'Modification Proposals Register'!$E:$E,\"<=30/09/24\",'Modification Proposals Register'!$D:$D,$N59)","v":0},3]
[null,null,null,null,null,null,null,null,null,null,null,null,null,"South Hook Gas Company Ltd",{"$f":"COUNTIFS('Modification Proposals Register'!$E:$E,\">=01/10/19\",'Modification Proposals Register'!$E:$E,\"<=30/09/20\",'Modification Proposals Register'!$D:$D,$N60)","v":0},{"$f":"COUNTIFS('Modification Proposals Register'!$E:$E,\">=01/10/20\",'Modification Proposals Register'!$E:$E,\"<=30/09/21\",'Modification Proposals Register'!$D:$D,$N60)","v":0},{"$f":"COUNTIFS('Modification Proposals Register'!$E:$E,\">=01/10/21\",'Modification Proposals Register'!$E:$E,\"<=30/09/22\",'Modification Proposals Register'!$D:$D,$N60)","v":0},{"$f":"COUNTIFS('Modification Proposals Register'!$E:$E,\">=01/10/22\",'Modification Proposals Register'!$E:$E,\"<=30/09/23\",'Modification Proposals Register'!$D:$D,$N60)","v":0},{"$f":"COUNTIFS('Modification Proposals Register'!$E:$E,\">=01/10/23\",'Modification Proposals Register'!$E:$E,\"<=30/09/24\",'Modification Proposals Register'!$D:$D,$N60)","v":0},0]
[null,null,null,null,null,null,null,null,null,null,null,null,null,"South Hook Gas Ltd",{"$f":"COUNTIFS('Modification Proposals Register'!$E:$E,\">=01/10/19\",'Modification Proposals Register'!$E:$E,\"<=30/09/20\",'Modification Proposals Register'!$D:$D,$N61)","v":0},{"$f":"COUNTIFS('Modification Proposals Register'!$E:$E,\">=01/10/20\",'Modification Proposals Register'!$E:$E,\"<=30/09/21\",'Modification Proposals Register'!$D:$D,$N61)","v":0},{"$f":"COUNTIFS('Modification Proposals Register'!$E:$E,\">=01/10/21\",'Modification Proposals Register'!$E:$E,\"<=30/09/22\",'Modification Proposals Register'!$D:$D,$N61)","v":0},{"$f":"COUNTIFS('Modification Proposals Register'!$E:$E,\">=01/10/22\",'Modification Proposals Register'!$E:$E,\"<=30/09/23\",'Modification Proposals Register'!$D:$D,$N61)","v":0},{"$f":"COUNTIFS('Modification Proposals Register'!$E:$E,\">=01/10/23\",'Modification Proposals Register'!$E:$E,\"<=30/09/24\",'Modification Proposals Register'!$D:$D,$N61)","v":0},0]
[null,null,null,null,null,null,null,null,null,null,null,null,null,"SSE",{"$f":"COUNTIFS('Modification Proposals Register'!$E:$E,\">=01/10/19\",'Modification Proposals Register'!$E:$E,\"<=30/09/20\",'Modification Proposals Register'!$D:$D,$N62)","v":1},{"$f":"COUNTIFS('Modification Proposals Register'!$E:$E,\">=01/10/20\",'Modification Proposals Register'!$E:$E,\"<=30/09/21\",'Modification Proposals Register'!$D:$D,$N62)","v":1},{"$f":"COUNTIFS('Modification Proposals Register'!$E:$E,\">=01/10/21\",'Modification Proposals Register'!$E:$E,\"<=30/09/22\",'Modification Proposals Register'!$D:$D,$N62)","v":1},{"$f":"COUNTIFS('Modification Proposals Register'!$E:$E,\">=01/10/22\",'Modification Proposals Register'!$E:$E,\"<=30/09/23\",'Modification Proposals Register'!$D:$D,$N62)","v":1},{"$f":"COUNTIFS('Modification Proposals Register'!$E:$E,\">=01/10/23\",'Modification Proposals Register'!$E:$E,\"<=30/09/24\",'Modification Proposals Register'!$D:$D,$N62)","v":0},4]
[null,null,null,null,null,null,null,null,null,null,null,null,null,"Storengy",{"$f":"COUNTIFS('Modification Proposals Register'!$E:$E,\">=01/10/19\",'Modification Proposals Register'!$E:$E,\"<=30/09/20\",'Modification Proposals Register'!$D:$D,$N63)","v":0},{"$f":"COUNTIFS('Modification Proposals Register'!$E:$E,\">=01/10/20\",'Modification Proposals Register'!$E:$E,\"<=30/09/21\",'Modification Proposals Register'!$D:$D,$N63)","v":0},{"$f":"COUNTIFS('Modification Proposals Register'!$E:$E,\">=01/10/21\",'Modification Proposals Register'!$E:$E,\"<=30/09/22\",'Modification Proposals Register'!$D:$D,$N63)","v":0},{"$f":"COUNTIFS('Modification Proposals Register'!$E:$E,\">=01/10/22\",'Modification Proposals Register'!$E:$E,\"<=30/09/23\",'Modification Proposals Register'!$D:$D,$N63)","v":0},{"$f":"COUNTIFS('Modification Proposals Register'!$E:$E,\">=01/10/23\",'Modification Proposals Register'!$E:$E,\"<=30/09/24\",'Modification Proposals Register'!$D:$D,$N63)","v":0},0]
[null,null,null,null,null,null,null,null,null,null,null,null,null,"Storengy UK ",{"$f":"COUNTIFS('Modification Proposals Register'!$E:$E,\">=01/10/19\",'Modification Proposals Register'!$E:$E,\"<=30/09/20\",'Modification Proposals Register'!$D:$D,$N64)","v":0},{"$f":"COUNTIFS('Modification Proposals Register'!$E:$E,\">=01/10/20\",'Modification Proposals Register'!$E:$E,\"<=30/09/21\",'Modification Proposals Register'!$D:$D,$N64)","v":0},{"$f":"COUNTIFS('Modification Proposals Register'!$E:$E,\">=01/10/21\",'Modification Proposals Register'!$E:$E,\"<=30/09/22\",'Modification Proposals Register'!$D:$D,$N64)","v":0},{"$f":"COUNTIFS('Modification Proposals Register'!$E:$E,\">=01/10/22\",'Modification Proposals Register'!$E:$E,\"<=30/09/23\",'Modification Proposals Register'!$D:$D,$N64)","v":0},{"$f":"COUNTIFS('Modification Proposals Register'!$E:$E,\">=01/10/23\",'Modification Proposals Register'!$E:$E,\"<=30/09/24\",'Modification Proposals Register'!$D:$D,$N64)","v":0},0]
[null,null,null,null,null,null,null,null,null,null,null,null,null,"Storengy UK Limited",{"$f":"COUNTIFS('Modification Proposals Register'!$E:$E,\">=01/10/19\",'Modification Proposals Register'!$E:$E,\"<=30/09/20\",'Modification Proposals Register'!$D:$D,$N65)","v":0},{"$f":"COUNTIFS('Modification Proposals Register'!$E:$E,\">=01/10/20\",'Modification Proposals Register'!$E:$E,\"<=30/09/21\",'Modification Proposals Register'!$D:$D,$N65)","v":0},{"$f":"COUNTIFS('Modification Proposals Register'!$E:$E,\">=01/10/21\",'Modification Proposals Register'!$E:$E,\"<=30/09/22\",'Modification Proposals Register'!$D:$D,$N65)","v":0},{"$f":"COUNTIFS('Modification Proposals Register'!$E:$E,\">=01/10/22\",'Modification Proposals Register'!$E:$E,\"<=30/09/23\",'Modification Proposals Register'!$D:$D,$N65)","v":0},{"$f":"COUNTIFS('Modification Proposals Register'!$E:$E,\">=01/10/23\",'Modification Proposals Register'!$E:$E,\"<=30/09/24\",'Modification Proposals Register'!$D:$D,$N65)","v":0},0]
[null,null,null,null,null,null,null,null,null,null,null,null,null,"Storengy UK Ltd",{"$f":"COUNTIFS('Modification Proposals Register'!$E:$E,\">=01/10/19\",'Modification Proposals Register'!$E:$E,\"<=30/09/20\",'Modification Proposals Register'!$D:$D,$N66)","v":4},{"$f":"COUNTIFS('Modification Proposals Register'!$E:$E,\">=01/10/20\",'Modification Proposals Register'!$E:$E,\"<=30/09/21\",'Modification Proposals Register'!$D:$D,$N66)","v":1},{"$f":"COUNTIFS('Modification Proposals Register'!$E:$E,\">=01/10/21\",'Modification Proposals Register'!$E:$E,\"<=30/09/22\",'Modification Proposals Register'!$D:$D,$N66)","v":0},{"$f":"COUNTIFS('Modification Proposals Register'!$E:$E,\">=01/10/22\",'Modification Proposals Register'!$E:$E,\"<=30/09/23\",'Modification Proposals Register'!$D:$D,$N66)","v":0},{"$f":"COUNTIFS('Modification Proposals Register'!$E:$E,\">=01/10/23\",'Modification Proposals Register'!$E:$E,\"<=30/09/24\",'Modification Proposals Register'!$D:$D,$N66)","v":0},5]
[null,null,null,null,null,null,null,null,null,null,null,null,null,"Total Gas and Power",{"$f":"COUNTIFS('Modification Proposals Register'!$E:$E,\">=01/10/19\",'Modification Proposals Register'!$E:$E,\"<=30/09/20\",'Modification Proposals Register'!$D:$D,$N67)","v":0},{"$f":"COUNTIFS('Modification Proposals Register'!$E:$E,\">=01/10/20\",'Modification Proposals Register'!$E:$E,\"<=30/09/21\",'Modification Proposals Register'!$D:$D,$N67)","v":1},{"$f":"COUNTIFS('Modification Proposals Register'!$E:$E,\">=01/10/21\",'Modification Proposals Register'!$E:$E,\"<=30/09/22\",'Modification Proposals Register'!$D:$D,$N67)","v":1},{"$f":"COUNTIFS('Modification Proposals Register'!$E:$E,\">=01/10/22\",'Modification Proposals Register'!$E:$E,\"<=30/09/23\",'Modification Proposals Register'!$D:$D,$N67)","v":0},{"$f":"COUNTIFS('Modification Proposals Register'!$E:$E,\">=01/10/23\",'Modification Proposals Register'!$E:$E,\"<=30/09/24\",'Modification Proposals Register'!$D:$D,$N67)","v":0},2]
[null,null,null,null,null,null,null,null,null,null,null,null,null,"Uniper Energy",{"$f":"COUNTIFS('Modification Proposals Register'!$E:$E,\">=01/10/19\",'Modification Proposals Register'!$E:$E,\"<=30/09/20\",'Modification Proposals Register'!$D:$D,$N68)","v":0},{"$f":"COUNTIFS('Modification Proposals Register'!$E:$E,\">=01/10/20\",'Modification Proposals Register'!$E:$E,\"<=30/09/21\",'Modification Proposals Register'!$D:$D,$N68)","v":0},{"$f":"COUNTIFS('Modification Proposals Register'!$E:$E,\">=01/10/21\",'Modification Proposals Register'!$E:$E,\"<=30/09/22\",'Modification Proposals Register'!$D:$D,$N68)","v":0},{"$f":"COUNTIFS('Modification Proposals Register'!$E:$E,\">=01/10/22\",'Modification Proposals Register'!$E:$E,\"<=30/09/23\",'Modification Proposals Register'!$D:$D,$N68)","v":0},{"$f":"COUNTIFS('Modification Proposals Register'!$E:$E,\">=01/10/23\",'Modification Proposals Register'!$E:$E,\"<=30/09/24\",'Modification Proposals Register'!$D:$D,$N68)","v":0},0]
[null,null,null,null,null,null,null,null,null,null,null,null,null,"Utilita Energy Limited",{"$f":"COUNTIFS('Modification Proposals Register'!$E:$E,\">=01/10/19\",'Modification Proposals Register'!$E:$E,\"<=30/09/20\",'Modification Proposals Register'!$D:$D,$N69)","v":0},{"$f":"COUNTIFS('Modification Proposals Register'!$E:$E,\">=01/10/20\",'Modification Proposals Register'!$E:$E,\"<=30/09/21\",'Modification Proposals Register'!$D:$D,$N69)","v":1},{"$f":"COUNTIFS('Modification Proposals Register'!$E:$E,\">=01/10/21\",'Modification Proposals Register'!$E:$E,\"<=30/09/22\",'Modification Proposals Register'!$D:$D,$N69)","v":0},{"$f":"COUNTIFS('Modification Proposals Register'!$E:$E,\">=01/10/22\",'Modification Proposals Register'!$E:$E,\"<=30/09/23\",'Modification Proposals Register'!$D:$D,$N69)","v":0},{"$f":"COUNTIFS('Modification Proposals Register'!$E:$E,\">=01/10/23\",'Modification Proposals Register'!$E:$E,\"<=30/09/24\",'Modification Proposals Register'!$D:$D,$N69)","v":0},1]
[null,null,null,null,null,null,null,null,null,null,null,null,null,"Vermilion Energy Ireland Ltd",{"$f":"COUNTIFS('Modification Proposals Register'!$E:$E,\">=01/10/19\",'Modification Proposals Register'!$E:$E,\"<=30/09/20\",'Modification Proposals Register'!$D:$D,$N70)","v":0},{"$f":"COUNTIFS('Modification Proposals Register'!$E:$E,\">=01/10/20\",'Modification Proposals Register'!$E:$E,\"<=30/09/21\",'Modification Proposals Register'!$D:$D,$N70)","v":0},{"$f":"COUNTIFS('Modification Proposals Register'!$E:$E,\">=01/10/21\",'Modification Proposals Register'!$E:$E,\"<=30/09/22\",'Modification Proposals Register'!$D:$D,$N70)","v":0},{"$f":"COUNTIFS('Modification Proposals Register'!$E:$E,\">=01/10/22\",'Modification Proposals Register'!$E:$E,\"<=30/09/23\",'Modification Proposals Register'!$D:$D,$N70)","v":0},{"$f":"COUNTIFS('Modification Proposals Register'!$E:$E,\">=01/10/23\",'Modification Proposals Register'!$E:$E,\"<=30/09/24\",'Modification Proposals Register'!$D:$D,$N70)","v":0},0]
[null,null,null,null,null,null,null,null,null,null,null,null,null,"Vitol S.A. Geneva",{"$f":"COUNTIFS('Modification Proposals Register'!$E:$E,\">=01/10/19\",'Modification Proposals Register'!$E:$E,\"<=30/09/20\",'Modification Proposals Register'!$D:$D,$N71)","v":0},{"$f":"COUNTIFS('Modification Proposals Register'!$E:$E,\">=01/10/20\",'Modification Proposals Register'!$E:$E,\"<=30/09/21\",'Modification Proposals Register'!$D:$D,$N71)","v":0},{"$f":"COUNTIFS('Modification Proposals Register'!$E:$E,\">=01/10/21\",'Modification Proposals Register'!$E:$E,\"<=30/09/22\",'Modification Proposals Register'!$D:$D,$N71)","v":0},{"$f":"COUNTIFS('Modification Proposals Register'!$E:$E,\">=01/10/22\",'Modification Proposals Register'!$E:$E,\"<=30/09/23\",'Modification Proposals Register'!$D:$D,$N71)","v":0},{"$f":"COUNTIFS('Modification Proposals Register'!$E:$E,\">=01/10/23\",'Modification Proposals Register'!$E:$E,\"<=30/09/24\",'Modification Proposals Register'!$D:$D,$N71)","v":0},0]
[null,null,null,null,null,null,null,null,null,null,null,null,null,"Vitol SA Geneva",{"$f":"COUNTIFS('Modification Proposals Register'!$E:$E,\">=01/10/19\",'Modification Proposals Register'!$E:$E,\"<=30/09/20\",'Modification Proposals Register'!$D:$D,$N72)","v":1},{"$f":"COUNTIFS('Modification Proposals Register'!$E:$E,\">=01/10/20\",'Modification Proposals Register'!$E:$E,\"<=30/09/21\",'Modification Proposals Register'!$D:$D,$N72)","v":0},{"$f":"COUNTIFS('Modification Proposals Register'!$E:$E,\">=01/10/21\",'Modification Proposals Register'!$E:$E,\"<=30/09/22\",'Modification Proposals Register'!$D:$D,$N72)","v":1},{"$f":"COUNTIFS('Modification Proposals Register'!$E:$E,\">=01/10/22\",'Modification Proposals Register'!$E:$E,\"<=30/09/23\",'Modification Proposals Register'!$D:$D,$N72)","v":0},{"$f":"COUNTIFS('Modification Proposals Register'!$E:$E,\">=01/10/23\",'Modification Proposals Register'!$E:$E,\"<=30/09/24\",'Modification Proposals Register'!$D:$D,$N72)","v":0},2]
[null,null,null,null,null,null,null,null,null,null,null,null,null,"VPI Immingham LLP",{"$f":"COUNTIFS('Modification Proposals Register'!$E:$E,\">=01/10/19\",'Modification Proposals Register'!$E:$E,\"<=30/09/20\",'Modification Proposals Register'!$D:$D,$N73)","v":1},{"$f":"COUNTIFS('Modification Proposals Register'!$E:$E,\">=01/10/20\",'Modification Proposals Register'!$E:$E,\"<=30/09/21\",'Modification Proposals Register'!$D:$D,$N73)","v":0},{"$f":"COUNTIFS('Modification Proposals Register'!$E:$E,\">=01/10/21\",'Modification Proposals Register'!$E:$E,\"<=30/09/22\",'Modification Proposals Register'!$D:$D,$N73)","v":0},{"$f":"COUNTIFS('Modification Proposals Register'!$E:$E,\">=01/10/22\",'Modification Proposals Register'!$E:$E,\"<=30/09/23\",'Modification Proposals Register'!$D:$D,$N73)","v":0},{"$f":"COUNTIFS('Modification Proposals Register'!$E:$E,\">=01/10/23\",'Modification Proposals Register'!$E:$E,\"<=30/09/24\",'Modification Proposals Register'!$D:$D,$N73)","v":0},1]
[null,null,null,null,null,null,null,null,null,null,null,null,null,"Wales & West Utilities",{"$f":"COUNTIFS('Modification Proposals Register'!$E:$E,\">=01/10/19\",'Modification Proposals Register'!$E:$E,\"<=30/09/20\",'Modification Proposals Register'!$D:$D,$N74)","v":4},{"$f":"COUNTIFS('Modification Proposals Register'!$E:$E,\">=01/10/20\",'Modification Proposals Register'!$E:$E,\"<=30/09/21\",'Modification Proposals Register'!$D:$D,$N74)","v":0},{"$f":"COUNTIFS('Modification Proposals Register'!$E:$E,\">=01/10/21\",'Modification Proposals Register'!$E:$E,\"<=30/09/22\",'Modification Proposals Register'!$D:$D,$N74)","v":2},{"$f":"COUNTIFS('Modification Proposals Register'!$E:$E,\">=01/10/22\",'Modification Proposals Register'!$E:$E,\"<=30/09/23\",'Modification Proposals Register'!$D:$D,$N74)","v":1},{"$f":"COUNTIFS('Modification Proposals Register'!$E:$E,\">=01/10/23\",'Modification Proposals Register'!$E:$E,\"<=30/09/24\",'Modification Proposals Register'!$D:$D,$N74)","v":1},8]
[null,null,null,null,null,null,null,null,null,null,null,null,null,"Wales & West Utilities ",{"$f":"COUNTIFS('Modification Proposals Register'!$E:$E,\">=01/10/19\",'Modification Proposals Register'!$E:$E,\"<=30/09/20\",'Modification Proposals Register'!$D:$D,$N75)","v":1},{"$f":"COUNTIFS('Modification Proposals Register'!$E:$E,\">=01/10/20\",'Modification Proposals Register'!$E:$E,\"<=30/09/21\",'Modification Proposals Register'!$D:$D,$N75)","v":0},{"$f":"COUNTIFS('Modification Proposals Register'!$E:$E,\">=01/10/21\",'Modification Proposals Register'!$E:$E,\"<=30/09/22\",'Modification Proposals Register'!$D:$D,$N75)","v":0},{"$f":"COUNTIFS('Modification Proposals Register'!$E:$E,\">=01/10/22\",'Modification Proposals Register'!$E:$E,\"<=30/09/23\",'Modification Proposals Register'!$D:$D,$N75)","v":0},{"$f":"COUNTIFS('Modification Proposals Register'!$E:$E,\">=01/10/23\",'Modification Proposals Register'!$E:$E,\"<=30/09/24\",'Modification Proposals Register'!$D:$D,$N75)","v":0},1]
[null,null,null,null,null,null,null,null,null,null,null,null,null,"Winchester Gas",{"$f":"COUNTIFS('Modification Proposals Register'!$E:$E,\">=01/10/19\",'Modification Proposals Register'!$E:$E,\"<=30/09/20\",'Modification Proposals Register'!$D:$D,$N76)","v":0},{"$f":"COUNTIFS('Modification Proposals Register'!$E:$E,\">=01/10/20\",'Modification Proposals Register'!$E:$E,\"<=30/09/21\",'Modification Proposals Register'!$D:$D,$N76)","v":0},{"$f":"COUNTIFS('Modification Proposals Register'!$E:$E,\">=01/10/21\",'Modification Proposals Register'!$E:$E,\"<=30/09/22\",'Modification Proposals Register'!$D:$D,$N76)","v":0},{"$f":"COUNTIFS('Modification Proposals Register'!$E:$E,\">=01/10/22\",'Modification Proposals Register'!$E:$E,\"<=30/09/23\",'Modification Proposals Register'!$D:$D,$N76)","v":0},{"$f":"COUNTIFS('Modification Proposals Register'!$E:$E,\">=01/10/23\",'Modification Proposals Register'!$E:$E,\"<=30/09/24\",'Modification Proposals Register'!$D:$D,$N76)","v":0},0]
[null,null,null,null,null,null,null,null,null,null,null,null,null,"Wingas",{"$f":"COUNTIFS('Modification Proposals Register'!$E:$E,\">=01/10/19\",'Modification Proposals Register'!$E:$E,\"<=30/09/20\",'Modification Proposals Register'!$D:$D,$N77)","v":0},{"$f":"COUNTIFS('Modification Proposals Register'!$E:$E,\">=01/10/20\",'Modification Proposals Register'!$E:$E,\"<=30/09/21\",'Modification Proposals Register'!$D:$D,$N77)","v":0},{"$f":"COUNTIFS('Modification Proposals Register'!$E:$E,\">=01/10/21\",'Modification Proposals Register'!$E:$E,\"<=30/09/22\",'Modification Proposals Register'!$D:$D,$N77)","v":0},{"$f":"COUNTIFS('Modification Proposals Register'!$E:$E,\">=01/10/22\",'Modification Proposals Register'!$E:$E,\"<=30/09/23\",'Modification Proposals Register'!$D:$D,$N77)","v":0},{"$f":"COUNTIFS('Modification Proposals Register'!$E:$E,\">=01/10/23\",'Modification Proposals Register'!$E:$E,\"<=30/09/24\",'Modification Proposals Register'!$D:$D,$N77)","v":0},{"$f":"SUM(O77:S77)","v":0}]
[]
[null,null,null,null,null,null,null,null,null,null,null,null,null,"Yearly Total",{"$f":"SUBTOTAL(9,O6:O77)","v":48},49,43,36,12,188]
[]
[]
[]
[]
[]
[]
[]
[]
["All Modification outcomes"]
[]
["Category","2019-20","2020-21","2021-22","2022-23","2023-24","Total"]
["Implemented",{"$f":"COUNTIFS('Modification Proposals Register'!$F:$F,\"Closed\",'Modification Proposals Register'!$J:$J,\"Implemented\",'Modification Proposals Register'!$L:$L,\"<=30/09/20\",'Modification Proposals Register'!$L:$L,\">=01/10/19\")","v":22},{"$f":"COUNTIFS('Modification Proposals Register'!$F:$F,\"Closed\",'Modification Proposals Register'!$J:$J,\"Implemented\",'Modification Proposals Register'!$L:$L,\"<=30/09/21\",'Modification Proposals Register'!$L:$L,\">=01/10/20\")","v":22},{"$f":"COUNTIFS('Modification Proposals Register'!$F:$F,\"Closed\",'Modification Proposals Register'!$J:$J,\"Implemented\",'Modification Proposals Register'!$L:$L,\"<=30/09/22\",'Modification Proposals Register'!$L:$L,\">=01/10/21\")","v":32},{"$f":"COUNTIFS('Modification Proposals Register'!$F:$F,\"Closed\",'Modification Proposals Register'!$J:$J,\"Implemented\",'Modification Proposals Register'!$L:$L,\"<=30/09/23\",'Modification Proposals Register'!$L:$L,\">=01/10/22\")","v":24},{"$f":"COUNTIFS('Modification Proposals Register'!$F:$F,\"Closed\",'Modification Proposals Register'!$J:$J,\"Implemented\",'Modification Proposals Register'!$L:$L,\"<=30/09/24\",'Modification Proposals Register'!$L:$L,\">=01/10/23\")","v":13},{"$f":"SUM(B91:F91)","v":113}]
["Rejected",{"$f":"-COUNTIFS('Modification Proposals Register'!$B:$B,\"<>S\",'Modification Proposals Register'!$F:$F,\"Closed\",'Modification Proposals Register'!$J:$J,\"Rejected\",'Modification Proposals Register'!$L:$L,\"<=30/09/20\",'Modification Proposals Register'!$L:$L,\">=01/10/19\")+COUNTIFS('Modification Proposals Register'!$B:$B,\"<>FT\",'Modification Proposals Register'!$F:$F,\"Closed\",'Modification Proposals Register'!$J:$J,\"Rejected\",'Modification Proposals Register'!$L:$L,\"<=30/09/20\",'Modification Proposals Register'!$L:$L,\">=01/10/19\")+COUNTIFS('Modification Proposals Register'!$B:$B,\"<>VS\",'Modification Proposals Register'!$F:$F,\"Closed\",'Modification Proposals Register'!$J:$J,\"Rejected\",'Modification Proposals Register'!$L:$L,\"<=30/09/20\",'Modification Proposals Register'!$L:$L,\">=01/10/19\")","v":14},{"$f":"+COUNTIFS('Modification Proposals Register'!$F:$F,\"Closed\",'Modification Proposals Register'!$J:$J,\"Rejected\",'Modification Proposals Register'!$L:$L,\"<=30/09/21\",'Modification Proposals Register'!$L:$L,\">=01/10/20\")","v":10},{"$f":"+COUNTIFS('Modification Proposals Register'!$F:$F,\"Closed\",'Modification Proposals Register'!$J:$J,\"Rejected\",'Modification Proposals Register'!$L:$L,\"<=30/09/22\",'Modification Proposals Register'!$L:$L,\">=01/10/21\")","v":7},{"$f":"+COUNTIFS('Modification Proposals Register'!$F:$F,\"Closed\",'Modification Proposals Register'!$J:$J,\"Rejected\",'Modification Proposals Register'!$L:$L,\"<=30/09/23\",'Modification Proposals Register'!$L:$L,\">=01/10/22\")","v":8},{"$f":"+COUNTIFS('Modification Proposals Register'!$F:$F,\"Closed\",'Modification Proposals Register'!$J:$J,\"Rejected\",'Modification Proposals Register'!$L:$L,\"<=30/09/24\",'Modification Proposals Register'!$L:$L,\">=01/10/23\")","v":4},{"$f":"SUM(B92:F92)","v":43}]
["Yearly Total",{"$f":"SUM(B91:B92)","v":36},32,39,32,17,156]
[]
[]
[]
[]
["Implemented","2019-20","2020-21","2021-22","2022-23","2023-24","Total"]
["Self Governance Modifications",{"$f":"COUNTIFS('Modification Proposals Register'!$G:$G,\"Self-Governance\",'Modification Proposals Register'!$F:$F,\"Closed\",'Modification Proposals Register'!$J:$J,\"Implemented\",'Modification Proposals Register'!$L:$L,\"<=30/09/20\",'Modification Proposals Register'!$L:$L,\">=01/10/19\")","v":13},{"$f":"COUNTIFS('Modification Proposals Register'!$G:$G,\"Self-Governance\",'Modification Proposals Register'!$F:$F,\"Closed\",'Modification Proposals Register'!$J:$J,\"Implemented\",'Modification Proposals Register'!$L:$L,\"<=30/09/21\",'Modification Proposals Register'!$L:$L,\">=01/10/20\")","v":10},{"$f":"COUNTIFS('Modification Proposals Register'!$G:$G,\"Self-Governance\",'Modification Proposals Register'!$F:$F,\"Closed\",'Modification Proposals Register'!$J:$J,\"Implemented\",'Modification Proposals Register'!$L:$L,\"<=30/09/22\",'Modification Proposals Register'!$L:$L,\">=01/10/21\")","v":19},{"$f":"COUNTIFS('Modification Proposals Register'!$G:$G,\"Self-Governance\",'Modification Proposals Register'!$F:$F,\"Closed\",'Modification Proposals Register'!$J:$J,\"Implemented\",'Modification Proposals Register'!$L:$L,\"<=30/09/23\",'Modification Proposals Register'!$L:$L,\">=01/10/22\")","v":11},{"$f":"COUNTIFS('Modification Proposals Register'!$G:$G,\"Self-Governance\",'Modification Proposals Register'!$F:$F,\"Closed\",'Modification Proposals Register'!$J:$J,\"Implemented\",'Modification Proposals Register'!$L:$L,\"<=30/09/24\",'Modification Proposals Register'!$L:$L,\">=01/10/23\")","v":6},{"$f":"SUM(B99:F99)","v":59}]
["Fast Track Self Governance Modifications",{"$f":"COUNTIFS('Modification Proposals Register'!$G:$G,\"Fast Track\",'Modification Proposals Register'!$F:$F,\"Closed\",'Modification Proposals Register'!$J:$J,\"Implemented\",'Modification Proposals Register'!$L:$L,\"<=30/09/20\",'Modification Proposals Register'!$L:$L,\">=01/10/19\")","v":2},{"$f":"COUNTIFS('Modification Proposals Register'!$G:$G,\"Fast Track\",'Modification Proposals Register'!$F:$F,\"Closed\",'Modification Proposals Register'!$J:$J,\"Implemented\",'Modification Proposals Register'!$L:$L,\"<=30/09/21\",'Modification Proposals Register'!$L:$L,\">=01/10/20\")","v":6},{"$f":"COUNTIFS('Modification Proposals Register'!$G:$G,\"Fast Track\",'Modification Proposals Register'!$F:$F,\"Closed\",'Modification Proposals Register'!$J:$J,\"Implemented\",'Modification Proposals Register'!$L:$L,\"<=30/09/22\",'Modification Proposals Register'!$L:$L,\">=01/10/21\")","v":1},{"$f":"COUNTIFS('Modification Proposals Register'!$G:$G,\"Fast Track\",'Modification Proposals Register'!$F:$F,\"Closed\",'Modification Proposals Register'!$J:$J,\"Implemented\",'Modification Proposals Register'!$L:$L,\"<=30/09/23\",'Modification Proposals Register'!$L:$L,\">=01/10/22\")","v":3},{"$f":"COUNTIFS('Modification Proposals Register'!$G:$G,\"Fast Track\",'Modification Proposals Register'!$F:$F,\"Closed\",'Modification Proposals Register'!$J:$J,\"Implemented\",'Modification Proposals Register'!$L:$L,\"<=30/09/24\",'Modification Proposals Register'!$L:$L,\">=01/10/23\")","v":1},{"$f":"SUM(B100:F100)","v":13}]
["Authority Direction Modifications",{"$f":"COUNTIFS('Modification Proposals Register'!$G:$G,\"Modification\",'Modification Proposals Register'!$F:$F,\"Closed\",'Modification Proposals Register'!$J:$J,\"Implemented\",'Modification Proposals Register'!$L:$L,\"<=30/09/20\",'Modification Proposals Register'!$L:$L,\">=01/10/19\")","v":3},{"$f":"COUNTIFS('Modification Proposals Register'!$G:$G,\"Modification\",'Modification Proposals Register'!$F:$F,\"Closed\",'Modification Proposals Register'!$J:$J,\"Implemented\",'Modification Proposals Register'!$L:$L,\"<=30/09/21\",'Modification Proposals Register'!$L:$L,\">=01/10/20\")","v":2},{"$f":"COUNTIFS('Modification Proposals Register'!$G:$G,\"Modification\",'Modification Proposals Register'!$F:$F,\"Closed\",'Modification Proposals Register'!$J:$J,\"Implemented\",'Modification Proposals Register'!$L:$L,\"<=30/09/22\",'Modification Proposals Register'!$L:$L,\">=01/10/21\")","v":4},{"$f":"COUNTIFS('Modification Proposals Register'!$G:$G,\"Modification\",'Modification Proposals Register'!$F:$F,\"Closed\",'Modification Proposals Register'!$J:$J,\"Implemented\",'Modification Proposals Register'!$L:$L,\"<=30/09/23\",'Modification Proposals Register'!$L:$L,\">=01/10/22\")","v":7},{"$f":"COUNTIFS('Modification Proposals Register'!$G:$G,\"Modification\",'Modification Proposals Register'!$F:$F,\"Closed\",'Modification Proposals Register'!$J:$J,\"Implemented\",'Modification Proposals Register'!$L:$L,\"<=30/09/24\",'Modification Proposals Register'!$L:$L,\">=01/10/23\")","v":5},{"$f":"SUM(B101:F101)","v":21}]
["Significant Code Review",{"$f":"COUNTIFS('Modification Proposals Register'!$G:$G,\"Significant Code Review\",'Modification Proposals Register'!$F:$F,\"Closed\",'Modification Proposals Register'!$J:$J,\"Implemented\",'Modification Proposals Register'!$L:$L,\"<=30/09/20\",'Modification Proposals Register'!$L:$L,\">=01/10/19\")","v":0},{"$f":"COUNTIFS('Modification Proposals Register'!$G:$G,\"Significant Code Review\",'Modification Proposals Register'!$F:$F,\"Closed\",'Modification Proposals Register'!$J:$J,\"Implemented\",'Modification Proposals Register'!$L:$L,\"<=30/09/21\",'Modification Proposals Register'!$L:$L,\">=01/10/20\")","v":1},{"$f":"COUNTIFS('Modification Proposals Register'!$G:$G,\"Significant Code Review\",'Modification Proposals Register'!$F:$F,\"Closed\",'Modification Proposals Register'!$J:$J,\"Implemented\",'Modification Proposals Register'!$L:$L,\"<=30/09/22\",'Modification Proposals Register'!$L:$L,\">=01/10/21\")","v":1},{"$f":"COUNTIFS('Modification Proposals Register'!$G:$G,\"Significant Code Review\",'Modification Proposals Register'!$F:$F,\"Closed\",'Modification Proposals Register'!$J:$J,\"Implemented\",'Modification Proposals Register'!$L:$L,\"<=30/09/23\",'Modification Proposals Register'!$L:$L,\">=01/10/22\")","v":0},{"$f":"COUNTIFS('Modification Proposals Register'!$G:$G,\"Significant Code Review\",'Modification Proposals Register'!$F:$F,\"Closed\",'Modification Proposals Register'!$J:$J,\"Implemented\",'Modification Proposals Register'!$L:$L,\"<=30/09/24\",'Modification Proposals Register'!$L:$L,\">=01/10/23\")","v":0},{"$f":"SUM(B102:F102)","v":2}]
["Urgent Modifications",{"$f":"COUNTIFS('Modification Proposals Register'!$G:$G,\"Urgent\",'Modification Proposals Register'!$F:$F,\"Closed\",'Modification Proposals Register'!$J:$J,\"Implemented\",'Modification Proposals Register'!$L:$L,\"<=30/09/20\",'Modification Proposals Register'!$L:$L,\">=01/10/19\")","v":4},{"$f":"COUNTIFS('Modification Proposals Register'!$G:$G,\"Urgent\",'Modification Proposals Register'!$F:$F,\"Closed\",'Modification Proposals Register'!$J:$J,\"Implemented\",'Modification Proposals Register'!$L:$L,\"<=30/09/21\",'Modification Proposals Register'!$L:$L,\">=01/10/20\")","v":3},{"$f":"COUNTIFS('Modification Proposals Register'!$G:$G,\"Urgent\",'Modification Proposals Register'!$F:$F,\"Closed\",'Modification Proposals Register'!$J:$J,\"Implemented\",'Modification Proposals Register'!$L:$L,\"<=30/09/22\",'Modification Proposals Register'!$L:$L,\">=01/10/21\")","v":7},{"$f":"COUNTIFS('Modification Proposals Register'!$G:$G,\"Urgent\",'Modification Proposals Register'!$F:$F,\"Closed\",'Modification Proposals Register'!$J:$J,\"Implemented\",'Modification Proposals Register'!$L:$L,\"<=30/09/23\",'Modification Proposals Register'!$L:$L,\">=01/10/22\")","v":3},{"$f":"COUNTIFS('Modification Proposals Register'!$G:$G,\"Urgent\",'Modification Proposals Register'!$F:$F,\"Closed\",'Modification Proposals Register'!$J:$J,\"Implemented\",'Modification Proposals Register'!$L:$L,\"<=30/09/24\",'Modification Proposals Register'!$L:$L,\">=01/10/23\")","v":1},{"$f":"SUM(B103:F103)","v":18}]
["Total",{"$f":"SUM(B99:B103)","v":22},{"$f":"SUM(C99:C103)","v":22},32,24,13,113]
[]
[]
[null,"2019-20","2020-21","2021-22","2022-23","2023-24","Total"]
["Implemented by Modification Panel",{"$f":"+B99+B100","v":15},{"$f":"+C99+C100","v":16},20,14,{"$f":"+F99+F100","v":7},72]
["All Modifications Implemented by the Authority",{"$f":"+B101+B102+B103","v":7},6,12,10,6,41]
["Total",{"$f":"+B108+B109","v":22},{"$f":"+C108+C109","v":22},32,24,13,113]
[]
[]
[]
["Rejected","2019-20","2020-21","2021-22","2022-23","2023-24","Total"]
["Self Governance Modifications",{"$f":"COUNTIFS('Modification Proposals Register'!$G:$G,\"Self-Governance\",'Modification Proposals Register'!$F:$F,\"Closed\",'Modification Proposals Register'!$J:$J,\"Rejected\",'Modification Proposals Register'!$L:$L,\"<=30/09/20\",'Modification Proposals Register'!$L:$L,\">=01/10/19\")","v":0},{"$f":"COUNTIFS('Modification Proposals Register'!$G:$G,\"Self-Governance\",'Modification Proposals Register'!$F:$F,\"Closed\",'Modification Proposals Register'!$J:$J,\"Rejected\",'Modification Proposals Register'!$L:$L,\"<=30/09/21\",'Modification Proposals Register'!$L:$L,\">=01/10/20\")","v":0},{"$f":"COUNTIFS('Modification Proposals Register'!$G:$G,\"Self-Governance\",'Modification Proposals Register'!$F:$F,\"Closed\",'Modification Proposals Register'!$J:$J,\"Rejected\",'Modification Proposals Register'!$L:$L,\"<=30/09/22\",'Modification Proposals Register'!$L:$L,\">=01/10/21\")","v":0},{"$f":"COUNTIFS('Modification Proposals Register'!$G:$G,\"Self-Governance\",'Modification Proposals Register'!$F:$F,\"Closed\",'Modification Proposals Register'!$J:$J,\"Rejected\",'Modification Proposals Register'!$L:$L,\"<=30/09/23\",'Modification Proposals Register'!$L:$L,\">=01/10/22\")","v":0},{"$f":"COUNTIFS('Modification Proposals Register'!$G:$G,\"Self-Governance\",'Modification Proposals Register'!$F:$F,\"Closed\",'Modification Proposals Register'!$J:$J,\"Rejected\",'Modification Proposals Register'!$L:$L,\"<=30/09/24\",'Modification Proposals Register'!$L:$L,\">=01/10/23\")","v":0},{"$f":"SUM(B115:F115)","v":0}]
["Fast Track SG Modifications",{"$f":"COUNTIFS('Modification Proposals Register'!$G:$G,\"Fast Track\",'Modification Proposals Register'!$F:$F,\"Closed\",'Modification Proposals Register'!$J:$J,\"Rejected\",'Modification Proposals Register'!$L:$L,\"<=30/09/20\",'Modification Proposals Register'!$L:$L,\">=01/10/19\")","v":0},{"$f":"COUNTIFS('Modification Proposals Register'!$G:$G,\"Fast Track\",'Modification Proposals Register'!$F:$F,\"Closed\",'Modification Proposals Register'!$J:$J,\"Rejected\",'Modification Proposals Register'!$L:$L,\"<=30/09/21\",'Modification Proposals Register'!$L:$L,\">=01/10/20\")","v":0},{"$f":"COUNTIFS('Modification Proposals Register'!$G:$G,\"Fast Track\",'Modification Proposals Register'!$F:$F,\"Closed\",'Modification Proposals Register'!$J:$J,\"Rejected\",'Modification Proposals Register'!$L:$L,\"<=30/09/22\",'Modification Proposals Register'!$L:$L,\">=01/10/21\")","v":0},{"$f":"COUNTIFS('Modification Proposals Register'!$G:$G,\"Fast Track\",'Modification Proposals Register'!$F:$F,\"Closed\",'Modification Proposals Register'!$J:$J,\"Rejected\",'Modification Proposals Register'!$L:$L,\"<=30/09/23\",'Modification Proposals Register'!$L:$L,\">=01/10/22\")","v":0},{"$f":"COUNTIFS('Modification Proposals Register'!$G:$G,\"Fast Track\",'Modification Proposals Register'!$F:$F,\"Closed\",'Modification Proposals Register'!$J:$J,\"Rejected\",'Modification Proposals Register'!$L:$L,\"<=30/09/24\",'Modification Proposals Register'!$L:$L,\">=01/10/23\")","v":0},{"$f":"SUM(B116:F116)","v":0}]
["AD Modifications",{"$f":"COUNTIFS('Modification Proposals Register'!$G:$G,\"Modification\",'Modification Proposals Register'!$F:$F,\"Closed\",'Modification Proposals Register'!$J:$J,\"Rejected\",'Modification Proposals Register'!$L:$L,\"<=30/09/20\",'Modification Proposals Register'!$L:$L,\">=01/10/19\")","v":2},{"$f":"COUNTIFS('Modification Proposals Register'!$G:$G,\"Modification\",'Modification Proposals Register'!$F:$F,\"Closed\",'Modification Proposals Register'!$J:$J,\"Rejected\",'Modification Proposals Register'!$L:$L,\"<=30/09/21\",'Modification Proposals Register'!$L:$L,\">=01/10/20\")","v":6},{"$f":"COUNTIFS('Modification Proposals Register'!$G:$G,\"Modification\",'Modification Proposals Register'!$F:$F,\"Closed\",'Modification Proposals Register'!$J:$J,\"Rejected\",'Modification Proposals Register'!$L:$L,\"<=30/09/22\",'Modification Proposals Register'!$L:$L,\">=01/10/21\")","v":6},{"$f":"COUNTIFS('Modification Proposals Register'!$G:$G,\"Modification\",'Modification Proposals Register'!$F:$F,\"Closed\",'Modification Proposals Register'!$J:$J,\"Rejected\",'Modification Proposals Register'!$L:$L,\"<=30/09/23\",'Modification Proposals Register'!$L:$L,\">=01/10/22\")","v":8},{"$f":"COUNTIFS('Modification Proposals Register'!$G:$G,\"Modification\",'Modification Proposals Register'!$F:$F,\"Closed\",'Modification Proposals Register'!$J:$J,\"Rejected\",'Modification Proposals Register'!$L:$L,\"<=30/09/24\",'Modification Proposals Register'!$L:$L,\">=01/10/23\")","v":4},{"$f":"SUM(B117:F117)","v":26}]
["Significant Code Review",{"$f":"COUNTIFS('Modification Proposals Register'!$G:$G,\"Significant Code Review\",'Modification Proposals Register'!$F:$F,\"Closed\",'Modification Proposals Register'!$J:$J,\"Rejected\",'Modification Proposals Register'!$L:$L,\"<=30/09/20\",'Modification Proposals Register'!$L:$L,\">=01/10/19\")","v":0},{"$f":"COUNTIFS('Modification Proposals Register'!$G:$G,\"Significant Code Review\",'Modification Proposals Register'!$F:$F,\"Closed\",'Modification Proposals Register'!$J:$J,\"Rejected\",'Modification Proposals Register'!$L:$L,\"<=30/09/21\",'Modification Proposals Register'!$L:$L,\">=01/10/20\")","v":0},{"$f":"COUNTIFS('Modification Proposals Register'!$G:$G,\"Significant Code Review\",'Modification Proposals Register'!$F:$F,\"Closed\",'Modification Proposals Register'!$J:$J,\"Rejected\",'Modification Proposals Register'!$L:$L,\"<=30/09/22\",'Modification Proposals Register'!$L:$L,\">=01/10/21\")","v":0},{"$f":"COUNTIFS('Modification Proposals Register'!$G:$G,\"Significant Code Review\",'Modification Proposals Register'!$F:$F,\"Closed\",'Modification Proposals Register'!$J:$J,\"Rejected\",'Modification Proposals Register'!$L:$L,\"<=30/09/23\",'Modification Proposals Register'!$L:$L,\">=01/10/22\")","v":0},{"$f":"COUNTIFS('Modification Proposals Register'!$G:$G,\"Significant Code Review\",'Modification Proposals Register'!$F:$F,\"Closed\",'Modification Proposals Register'!$J:$J,\"Rejected\",'Modification Proposals Register'!$L:$L,\"<=30/09/24\",'Modification Proposals Register'!$L:$L,\">=01/10/23\")","v":0},{"$f":"SUM(B118:F118)","v":0}]
["Urgent Modifications",{"$f":"COUNTIFS('Modification Proposals Register'!$G:$G,\"Urgent\",'Modification Proposals Register'!$F:$F,\"Closed\",'Modification Proposals Register'!$J:$J,\"Rejected\",'Modification Proposals Register'!$L:$L,\"<=30/09/20\",'Modification Proposals Register'!$L:$L,\">=01/10/19\")","v":12},{"$f":"COUNTIFS('Modification Proposals Register'!$G:$G,\"Urgent\",'Modification Proposals Register'!$F:$F,\"Closed\",'Modification Proposals Register'!$J:$J,\"Rejected\",'Modification Proposals Register'!$L:$L,\"<=30/09/21\",'Modification Proposals Register'!$L:$L,\">=01/10/20\")","v":4},{"$f":"COUNTIFS('Modification Proposals Register'!$G:$G,\"Urgent\",'Modification Proposals Register'!$F:$F,\"Closed\",'Modification Proposals Register'!$J:$J,\"Rejected\",'Modification Proposals Register'!$L:$L,\"<=30/09/22\",'Modification Proposals Register'!$L:$L,\">=01/10/21\")","v":1},{"$f":"COUNTIFS('Modification Proposals Register'!$G:$G,\"Urgent\",'Modification Proposals Register'!$F:$F,\"Closed\",'Modification Proposals Register'!$J:$J,\"Rejected\",'Modification Proposals Register'!$L:$L,\"<=30/09/23\",'Modification Proposals Register'!$L:$L,\">=01/10/22\")","v":0},{"$f":"COUNTIFS('Modification Proposals Register'!$G:$G,\"Urgent\",'Modification Proposals Register'!$F:$F,\"Closed\",'Modification Proposals Register'!$J:$J,\"Rejected\",'Modification Proposals Register'!$L:$L,\"<=30/09/24\",'Modification Proposals Register'!$L:$L,\">=01/10/23\")","v":0},{"$f":"SUM(B119:F119)","v":17}]
["Total",{"$f":"SUM(B115:B119)","v":14},{"$f":"SUM(C115:C119)","v":10},{"$f":"SUM(D115:D119)","v":7},8,4,{"$f":"SUM(G115:G119)","v":43}]
[]
[]
[null,"2019-20","2020-21","2021-22","2022-23","2023-24","Total"]
["Rejected by Modification Panel",{"$f":"+B115+B116","v":0},{"$f":"+C115+C116","v":0},0,0,{"$f":"+F115+F116","v":0},{"$f":"+G115+G116","v":0}]
["Rejected by the Authority",{"$f":"+B117+B118+B119","v":14},{"$f":"+C117+C118+C119","v":10},7,8,{"$f":"+F117+F118+F119","v":4},{"$f":"+G117+G118+G119","v":43}]
["Total",{"$f":"+B124+B125","v":14},{"$f":"+C124+C125","v":10},7,8,4,43]

{"sheet":"CACoP Reporting Metrics - Ofgem","index":6,"n_rows":80,"n_cols":7,"rows_kept":80,"cut":false,"hidden":true,"merged":[[3,9,7,9],[3,10,17,21],[9,2,13,2],[9,3,13,3],[15,2,16,2],[15,3,16,3],[25,3,26,4],[25,5,26,5],[3,2,7,2],[3,3,7,3],[18,2,20,2],[18,3,20,3],[20,10,23,21],[22,2,23,2],[22,3,23,3],[53,3,53,4],[31,2,35,2],[31,3,35,3],[31,10,32,21],[37,2,39,2],[37,3,39,3],[37,10,38,21],[41,2,42,2],[41,3,42,3],[41,10,42,21],[44,2,48,2],[44,3,48,3],[25,2,26,2],[56,2,59,2],[56,3,59,3],[61,2,64,2],[61,3,64,3],[69,2,73,2],[69,3,73,3],[75,2,76,2],[75,3,76,4],[75,5,76,5],[78,2,79,2],[78,3,79,3]]}
[]
[null,null,null,"GENERAL"]
[]
[null,null,1,"Number of modifications raised in the period 01 April to 30 June:\n(Any modifications with alternates should just be counted as 1)","Authority Consent - Non-urgent",{"$f":"COUNTIFS('Modification Proposals Register'!E:E,\">=01/04/22\",'Modification Proposals Register'!E:E,\"<01/07/22\",'Modification Proposals Register'!G:G,\"Modification\")","v":2}]
[null,null,null,null,"Authority Consent - Urgent",{"$f":"COUNTIFS('Modification Proposals Register'!E:E,\">=01/04/22\",'Modification Proposals Register'!E:E,\"<01/07/22\",'Modification Proposals Register'!G:G,\"Urgent\")","v":0}]
[null,null,null,null,"Self-governance",{"$f":"COUNTIFS('Modification Proposals Register'!E:E,\">=01/04/22\",'Modification Proposals Register'!E:E,\"<01/07/22\",'Modification Proposals Register'!G:G,\"Self-Governance\")","v":2}]
[null,null,null,null,"Fast Track self-governance",{"$f":"COUNTIFS('Modification Proposals Register'!E:E,\">=01/04/22\",'Modification Proposals Register'!E:E,\"<01/07/22\",'Modification Proposals Register'!G:G,\"Fast Track\")","v":1}]
[null,null,null,null,"Self-governance - Urgent",{"$f":"COUNTIFS('Modification Proposals Register'!E:E,\">=01/04/22\",'Modification Proposals Register'!E:E,\"<01/07/22\",'Modification Proposals Register'!G:G,\"Urgent\")","v":0}]
[]
[null,null,2,"Number of modifications withdrawn in the period 01 April to 30 June:\n(Any modifications with alternates should just be counted as 1)","Authority Consent - Non-urgent",{"$f":"COUNTIFS('Modification Proposals Register'!L:L,\">=01/04/2022\",'Modification Proposals Register'!L:L,\"<01/07/2022\",'Modification Proposals Register'!G:G,\"Modification\",'Modification Proposals Register'!J:J,\"Withdrawn\")","v":2}]
[null,null,null,null,"Authority Consent - Urgent",{"$f":"COUNTIFS('Modification Proposals Register'!L:L,\">=01/04/2022\",'Modification Proposals Register'!L:L,\"<01/07/2022\",'Modification Proposals Register'!G:G,\"Urgent\",'Modification Proposals Register'!J:J,\"Withdrawn\")","v":0}]
[null,null,null,null,"Self-governance",{"$f":"COUNTIFS('Modification Proposals Register'!L:L,\">=01/04/2022\",'Modification Proposals Register'!L:L,\"<01/07/2022\",'Modification Proposals Register'!G:G,\"Self-Governance\",'Modification Proposals Register'!J:J,\"Withdrawn\")","v":0}]
[null,null,null,null,"Fast Track self-governance",{"$f":"COUNTIFS('Modification Proposals Register'!L:L,\">=01/04/2022\",'Modification Proposals Register'!L:L,\"<01/07/2022\",'Modification Proposals Register'!G:G,\"Fast Track\",'Modification Proposals Register'!J:J,\"Withdrawn\")","v":0}]
[null,null,null,null,"Self-governance - Urgent"]
[null,null,null,null,null,null,"Alternates"]
[null,null,3,"Number of modifications submitted to the Authority for decision in the period 01 April to 30 June (include the number of alternates submitted in the second box)","Non-urgent",{"$f":"COUNTIFS('Modification Proposals Register'!L:L,\">=01/04/2022\",'Modification Proposals Register'!L:L,\"<01/07/2022\",'Modification Proposals Register'!G:G,\"Urgent\",'Modification Proposals Register'!J:J,\"Withdrawn\")","v":0}]
[null,null,null,null,"Urgent",{"$f":"COUNTIFS('Modification Proposals Register'!L:L,\">=01/04/2022\",'Modification Proposals Register'!L:L,\"<01/07/2022\",'Modification Proposals Register'!G:G,\"Self-Governance\",'Modification Proposals Register'!J:J,\"Withdrawn\")","v":0}]
[]
[null,null,4,"Number of final industry decisions on modifications in the period 01 April to 30 June (include the number of alternates submitted in the second box):","Self-governance"]
[null,null,null,null,"Fast Track self-governance"]
[null,null,null,null,"Self-governance - Urgent"]
[]
[null,null,5,"Number of reports 'sent back' by the Authority in the period 01 April to 30 June (include the number of alternates submitted in the second box):","Non-urgent"]
[null,null,null,null,"Urgent"]
[]
[null,null,6,"Number of modifications implemented in 01 April to 30 June:"]
[]
[]
[]
[null,null,null,"CONSULTATION"]
[]
[null,null,7,"Number of consultations which closed in the period 01 April to 30 June for the following types of modification (this includes any consultation raised at any point during the modification cycle, and any modifications with alternates should be counted as 1):","Authority Consent - Non-urgent"]
[null,null,null,null,"Authority Consent - Urgent"]
[null,null,null,null,"Self-governance"]
[null,null,null,null,"Fast Track self-governance"]
[null,null,null,null,"Self-governance - Urgent"]
[]
[null,null,8,"Number of consultations to non-urgent modifications, which closed in the period 01 April to 30 June, that had a consultation period of less that 15 business days","Authority Consent "]
[null,null,null,null,"Self-governance"]
[null,null,null,null,"Fast Track self-governance"]
[]
[null,null,9,"Number of consultations to urgent modifications, which closed in the period 01 April to 30 June, that had a consultation period of less that 5 business days","Authority Consent - Urgent"]
[null,null,null,null,"Self-governance - Urgent"]
[]
[null,null,10,"Number of modifications which had their final vote in the period 01 April to 30 June, for which legal text was not available in the final consultation","Authority Consent - Non-urgent"]
[null,null,null,null,"Authority Consent - Urgent"]
[null,null,null,null,"Self-governance"]
[null,null,null,null,"Fast Track self-governance"]
[null,null,null,null,"Self-governance - Urgent"]
[]
[]
[null,null,null,"ENGAGEMENT"]
[]
[null,null,11,"Number of new parties who have acceded to the code in the period 01 April to 30 June:"]
[]
[]
[null,null,12,"Number of respondents to Authority Consent modification consultations which closed in the period 01 April to 30 June (this includes any consultation raised at any point during the modification cycle):","Minimum"]
[null,null,null,null,"Mean"]
[null,null,null,null,"Median"]
[null,null,null,null,"Maximum"]
[]
[null,null,13,"Number of respondents to Self-governance modification consultations which closed in the period 01 April to 30 June (this includes any consultation raised at any point during the modification cycle):","Minimum"]
[null,null,null,null,"Mean"]
[null,null,null,null,"Median"]
[null,null,null,null,"Maximum"]
[]
[]
[null,null,null,"COSTS"]
[]
[null,null,14,"Number of modifications which had their final vote in the period 01 April to 30 June, for which an estimation of the central system implementation costs was not available in the final consultation","Authority Consent - Non-urgent"]
[null,null,null,null,"Authority Consent - Urgent"]
[null,null,null,null,"Self-governance"]
[null,null,null,null,"Fast Track self-governance"]
[null,null,null,null,"Self-governance - Urgent"]
[]
[null,null,15,"Number of modifications, implemented in 01 April to 30 June, where the central system implementation costs were zero:"]
[]
[]
[null,null,16,"Number of modifications, implemented in 01 April to 30 June where the central system implementation costs were more or less than that advised prior to the final industry vote:","Greater than or equal to 10% MORE than the advised implementation cost"]
[null,null,null,null,"Greater than or equal to 10% LESS than the advised implementation cost"]